Workbook

Sheet Notes
A1: CorrelationCycleIndicator.xlsm; Traders Tip spreadsheet created for the June 2020 Issue
A2: Coded beginning 2020-April-09 by Ronald McAllister (rpmac_xltt@sprynet.com)
A4: This Workbook demonstrates an EXCEL version of the ideas presented
A5: by John Ehlers in an article titled "Correlation As A Cycle Indicator"
A6: which originally appeared in the June 2020 issue of
A7: "Technical Analysis of Stocks and Commodities" magazine.
A9: * * * * * * * * * * * * * * * *
A11: Development Notes:
A12: June 2020 T-Tip: This spreadsheet is built upon the spreadsheet created for May 2020 and includes an option to display the linear trend correlations Mr. Ehlers described in that issue.
A13: The excel built-in Correlation function is still in play for Cycle trend analysis.
A15: In this article, Mr. Ehlers has provided a set of intermediate charts to teach us the basics that go into the final Market State indicator chart.
A16: So I have built a mechanism where the user may quickly step the chart display through the various individual chart alternatives using the space available between the price and volume charts
A18: Some observations as I developed this spreadsheet:
A19: I noticed that charts in the early part of the article use a base cycle period of 20. Later charts use a base cycle period of 14.
A20: If you are attempting to match this spreadsheet to charts in the article, matching up the base cycle period for each chart makes a visible difference.
A22: Price Data source and conditioning matters!
A23: It can be subtle. I first noticed discrepancies on the State chart while testing.
A24: On the CalculationsAndCharts tab, near cell B5 is a button that toggles the use of "Raw" versus "Close Adjusted" pricing.
A25: "Close Adjusted" prices did not give me an exact match to Figure 10, the State chart. When I switched to "Raw" I got a good match.
A26: For the other charts, the differences were there, but a bit more subtle.
A28: I am not advocating either Raw or Adjusted pricing.
A29: I am merely noting that 4 months have passed between the middle of December 2019 shown in the article and now, the middle of April 2020, when I am building this spreadsheet.
A30: Splits, Dividends, and perhaps one or two market data reporting error corrections have crept into those Close Adjustments over that 4 month span.
A32: May 2020 T-Tip: The EXCEL Built-in Correlation function is efficient and quite adequate for developing this indicator.
A34: A nice feature of the correlation calculation is that it is symmetrical. That is, the only difference when correlating a price series
A35: to an up sloping line versus a down sloping line is the sign of the correlation value.
A37: For the basic Spearman correlation, the only requirement is that the slope of our line must be non-zero. That is, the "m" in the line formula (y = mx + b) can not be zero.
A38: The actual slope angle does not influence the correlation result.
A40: Mr. Ehlers achieves an up sloping line by way of negating the Count value as he uses it in the calculation.
A41: Older values are paired up with larger negative values. Net-out is that prices are being correlated to an up sloping line (of negative values).
A43: With that in mind, I am using my Rel Row column of numbers to define my (down sloping) straight line and then flipping the sign of the correlation result.
A44: This avoids adding a column of numbers just to define an up sloping line.
A46: New with this version of my T-Tips template: VBA to implement a "Perpetual" U.S. Markets Closed Holiday Calendar.
A48: Why we need one: The Yahoo Finance recently has begun having occasional filtration problems where bars for U.S. Market Closed Holidays
A49: make their way onto the Historical Data web page and into the Historical Data download.
A51: While testing this May 2020 spreadsheet with different symbols, I found that I sometimes had bars with the text "null" in the price fields.
A52: My code always translates the "null" text price values to zeros.
A53: The resulting zeros cause real problems with indicator computations and the amount of blank space below price candles on the price chart.
A55: "null" price bars can be valid for very lightly traded penny sheet symbols which may not trade every day the markets are open.
A56: But is definitely not normal for symbols on the big boards.
A58: A closer look determined that these "bars" were for holiday dates when the US markets are normally closed.
A59: I found it interesting that some times the next download for the same symbol would not contain any of these "holiday" bars. Weird!
A61: My approach here was to write code to determine if the DATE on a null price values bar falls on one of the 9 market closed U.S. Holidays.
A62: If the bar date corresponds to one of these market closed holidays, I drop the bar before it reaches the InputPriceData tab.
A63: If the date is not a holiday, I let the bar through with the resulting zero values.
A65: No messy tables to update over the years as there are good solid rules that can be used in VBA or any other programming language to determine
A66: the dates for U.S. Market Closed Holidays for any given calendar year.
A68: This workbook contains and uses VBA macros and may take advantage of user defined VBA Class structures.
A69: Input Data:
A70: The data in this workbook is sorted date-descending (most recent date at the top). All cell formulas and
A71: VBA routines are built assuming this date sequence.
A73: ERROR 9 (already fixed in this spreadsheet)
A74: On or about Jan 29, 2020 Yahoo Finance changed the format of the split factor expression used their historical data downloads.
A75: The Split expression went from using "/" as in "New Share Number/Old Share Number",
A76: to using ":" as in "New Share Number:Old Share Number".
A77: This caused the then current version of my VBA code to fail with a "Runtime Error '9': subscript out of range".
A79: Fix for this ERROR 9
A80: For T-Tip spreadsheets from September 2018 up to present:
A81: Selecting the Debug option takes one into the VBA at the code line which causes the failure:
A82: CellArray(C_A_RowNdx, C_A_ColNdx + 1) = SplitFactors(1)
A83: Two lines above the failing VBA line is a line that reads:
A84: SplitFactors = Split(CsvColumns(CsvColNdx), "/")
A85: Change the / to a :
A86: The corrected line should now read
A87: SplitFactors = Split(CsvColumns(CsvColNdx), ":")
A89: If you are fixing several spreadsheets and do not want to use the failure to find the fix location,
A90: you can use VBA’s FIND dialog (Ctrl F) to look for the substring
A91: SplitFactors =
A92: Do include one space and the equal sign in your FIND string
A93: Select the "Current Project" option
A94: There should only be one instance.
A96: T-Tip spreadsheets prior to the September 2018 spreadsheet do not hard fail.
A98: They just get weird results in the split columns of the Input Price Data tab (soft fail).
A99: These older spreadsheets used different data retrieval and formatting logic.
A101: To fix these older spreadsheets:
A102: In the VBA editor, use find (CTRL-F).
A103: Select the "Current Project" option, and search for the following:
A104: OtherChar:="/"
A105: You are looking for a hit in a line reading:
A106: Other:=True, OtherChar:="/", _
A107: This line is part of a multiline block of code starting with a line that reads:
A108: SplitRange.Offset(0, 1).Resize(SpRows, 1).TextToColumns
A109: Change the / to a : so that the line reads
A110: Other:=True, OtherChar:=":", _
A113: 2019-04-04 Finally came up with a mechanism to align the left location and overall length of the cursor scroll bar so that the left most and right most
A114: scroll bar thumb positions visually align reasonably well with the left and right ends of the price chart horizontal axis.
A115: Makes it a little easier to visually align the Thumb and thus the cursor with points of interest on the charts.
A117: Older:
B118: My sincere apologies to our Macintosh based readers: Neither MSXML nor WinHttpRequest are supported in your environment. So as it stands this version of the spreadsheet will not work for you.
B119: See "Why this approach does not work for Macintosh" below.
B120: I am investigating cURL as a non-Querytable based approach for the Macintosh environment.
A122: The new Yahoo Finance history download interface has changed rather radically. The biggest hurdle being a pseudo-security requirement of adding a
B123: crumb character string to any URL requesting any type of history download. That crumb must match up (by way of some sort of hash algorithm) with
B124: the Yahoo Finance cookie that must also be sent with any request to the new Yahoo History down load interface.
B126: A crumb value is returned, buried in the HTML for any of what I call the "entry level" Yahoo Finance web pages (no crumb security requirement for entry level pages).
B127: A crumb may come with other Yahoo Finance pages. A crumb may even accompany some of the secured pages as well. I have not checked.
B129: Entry level pages are the top level pages of the various Yahoo Finance dialogs and include: Quote Lookup, Stock Summary Quote, and any of the pages
B130: with links in the horizontal row with the "Summary" link on the quote summary page such as Options, Historical Data, and the rest.
B132: To date I have found no way to get at this crumb value using any native EXCEL capabilities.
B134: So this crumb requirement effectively shuts out any solution that attempts to exclusively use built-in facilities of EXCEL, which is to say a purely Querytables solution.
B136: The approach built for this Traders Tip spreadsheet uses WINHTTP calls to Load the InputPriceData worksheet.
B138: First I call to get the HTML text for the Yahoo Summary Quote page using the requested symbol. From this HTML text I extract the full company name,
B139: the market it trades, the market status and time stamp, and finally the associated crumb string. There is a bunch of other useful bits buried in this HTML
B140: text that do not necessarily appear on the web page your browser presents. Perhaps some day I will go after and build a worksheet with these other bits.
B142: Next I add the freshly extracted crumb string to the URLs I use in three separate WINHTTP calls to retrieve Price history, Split history, and Dividend history respectively.
B144: From there VBA code proceeds as in the past to fill in the cell formulas and formatting that make the "prettied up" InputPriceData sheet.
A146: Why this approach works for Windows:
B147: WINHTTP maintains a temporary computer memory cache where cookies are maintained for as long as the WINHTTP object is instantiated.
B148: WINHTTP updates this cache any time a "set cookie" header accompanies a web response.
B149: Subsequent WINHTTP calls automatically search this cache for cookies and add any "appropriate" cookies to the headers
B150: of any web requests that get sent out.
B151: This cookie handling automation means that even if the response to our WINHTTP call for the Summary web page includes a new version of
B152: the Yahoo Finance cookie, the imbedded Crumb value will always match the cookie newly installed in the cache!
A155: Why this approach does not work for Macintosh:
B156: For what it is worth, the Macintosh version of the MS Office suite of products do in fact maintain a special, shared amongst themselves only, cookie cache.
B157: They automate cookie handling into and from this cache JUST for the Office products and any Querytable activity they might originate.
B159: This cache is not tied to, nor shared with, any browser that might be installed on the MAC. And I have not found anything with HTTP capabilities similar to
B160: MSXML that can work with that Office product cookie cache.
B162: When working in the MAC EXCEL environment, I have not yet become conversant with a Mac based WINHTTP like capability.
B163: So l currently have no mechanism to replicate the non-Querytable data retrieval process I am using in Windows environments.
B164: A software product called CURL has been suggested as providing this capability in the MAC environment.
B165: A version of CURL is available for the Windows So some day I may explore its capabilities and how to access those capabilities from VBA.
A167: Calculation and Chart Worksheet Usage Comments:
C168: In General, Items in Bolded BLUE are items you may freely change to play what-if games.
C169: Be sure to have a backup copy of the spreadsheet before you alter anything else.
A171: Features carried forward from the June 2016 version of my T-Tips Template
A172: Added a pair of buttons near cell F12 that will allow the user to step the charting window forward or backward one bar for each click.
A173: I find this to be a good way to test my understanding of the author's ideas as I step through the evolution of the price behavior and the indicators.
B175: First: In the "Help! I would like to plot data" area.
B176: Added button to resolve #NA problems by locating the bar in the input data with a slightly more recent date than what the user actually requested.
B177: I find this particularly useful when I have a general idea of where I want to be date wise. Now I can pick a set of dates "out of the air".
B178: If either (or both) of my date specifications fall between dates that are available in the price history,
B179: this button will resolve them to the dates of the nearest, slightly more recent input bars.
B180: I can then refine my data interval search as necessary from there.
B181: Really great when working with Weekly or Monthly studies!
C182: 2016Jun11 - added logic to the "I would like to chart.." button to detect #N/A values and terminate
C183: gracefully with a message instead of blowing up in the charting logic.
B185: Second: In the "Price Chart Windowing Controls" area. (A11 and A12)
B186: When retrieving data for a new symbol or when changing from daily to weekly or monthly data, there was the possibility that the
B187: residual settings in A11 and A12 would fall outside of the number bars available on the input data tab after the new data retrieval.
B188: In certain combinations, this could create a serious error in the chart sizing logic and crash the spreadsheet.
B189: I have taken this opportunity to update the validity checking logic used in the chart sizing macros
B190: to adjust these values as necessary so that they fall within the boundaries of the newly retrieved input data.
A191: Features carried forward from the October 2015 Traders Tips Template
B192: Improved automation: changes to any of the following will automatically initiate calculations appropriate to reflect a change.
C193: Changing either of cells A11 (pan) or A12 (zoom) will automatically initiate the same chart sizing macros that the manual
C194: "Set Chart" button uses.

Sheet InputPriceData
A1: SPDR S&P 500 ETF Trust (SPY) -NYSEArca (Daily)
IJ2: 241.79
A3: Request Online Yahoo History for: | F3: Market State == > | G3: As of | H3: 15:43:00 | I3: EDT. Market open.
A4: Symbol | B4: SPY | D4: Valid | I4: =OFFSET(I4,-2,0,1,1) -> 0
A5: From | B5: 1950-01-01 | D5: Data | AD5: Trailing 12 Div return (Cur Close)
A6: To | B6: =NOW() -> 2020-04-16T15:21:41.560 | D6: Types | E6: =VLOOKUP(B7,D7:E10,2,FALSE) -> d
A7: Data Type | B7: Daily | D7: Daily | E7: d
A8: Crumb | B8: u03Yo66hhmk | D8: Weekly | E8: w
A9: Available Data | D9: Monthly | E9: m
A10: Bar Count: | B10: 6850 | AD10: =OFFSET(AC15,1,0,1,1)/OFFSET(N15,1,0,1,1) -> 0.02101062865
A11: From: | B11: =IF(B10<=0,"",OFFSET(B15,B10,IF(HistReqDataType="v",1,0),1,1)) -> 1993-01-29 | W11: Trailing 12 Month Dividend Returns
A12: To: | B12: =IF(B10<=0,"",IF(HistReqDataType="v",OFFSET(B15,2,1,1,1),OFFSET(B15,1,0,1,1))) -> 2020-04-13 | W12: Raw Close price on Dividend date | X12: Div Year and Month | Y12: Looking for year ago Div Year and Month | Z12: Year ago Div Date we found | AA12: row offset to year ago div Date | AB12: Same month flag | AC12: Trailing 12 Div Total | AD12: Trailing 12 Div return
Q13: Split History | S13: 0 | T13: Running | U13: Dividend History
B14: Raw Data Values | H14: Adjusted | I14: Price Adjust | J14: Vol Adjust | K14: Adjusted Values | P14: Last | Q14: Effective | R14: Shares | T14: Vol Adjust | V14: 113
A15: RelRow | B15: Date | C15: Open | D15: High | E15: Low | F15: Close | G15: Volume | H15: Close | I15: Factor | J15: Factor | K15: Open | L15: High | M15: Low | N15: Close | O15: Volume | P15: Trade | Q15: 43935 | R15: New | S15: Old | T15: 1 | U15: Date | V15: $ / Share
A16: 1 | B16: 2020-04-13 | C16: 277.140015 | D16: 277.420013 | E16: 271.410004 | F16: 275.670013 | G16: 96957829 | H16: 275.670013 | I16: =IF(F16=0,1,H16/F16) -> 1 | J16: =INDEX(OFFSET($T$15,0,0,$S$13+1,1),MATCH(B16,OFFSET($Q$15,0,0,$S$13+1,1),-1)) -> 1 | K16: =ROUND($I16*C16,2) -> 277.14 | L16: =ROUND($I16*D16,2) -> 277.42 | M16: =ROUND($I16*E16,2) -> 271.41 | N16: =ROUND($I16*F16,2) -> 275.67 | O16: =G16*J16 -> 96957829 | U16: 2020-03-20 | V16: 1.406 | W16: =(INDEX(OFFSET($F$15,1,0,$B$10,1),MATCH(U16,OFFSET($B$15,1,0,$B$10,1),-1))) -> 228.800003 | X16: =YEAR(U16)&RIGHT("0"&MONTH(U16),2) -> 202003 | Y16: =YEAR(U16)-1&RIGHT("0"&MONTH(U16),2) -> 201903 | Z16: =OFFSET(U15,AA16,0,1,1) -> 2019-03-15 | AA16: =MATCH(Y16,OFFSET($X$15,A16,0,$V$14+1-A16,1),-1) -> 5 | AB16: =IF(OR(AND(YEAR(U16)=YEAR(Z16),MONTH(U16)=MONTH(Z16)),MONTH(U16)=MONTH(Z16)),1,0) -> 1 | AC16: =(V16+IF(AA16-AB16=0,0,IFERROR(SUM(OFFSET(V16,1,0,AA16-AB16-1,1)),0))) -> 5.792 | AD16: =AC16/(INDEX(OFFSET($F$15,1,0,$B$10,1),MATCH(U16,OFFSET($B$15,1,0,$B$10,1),-1))) -> 0.02531468498
A17: 2 | B17: 2020-04-09 | C17: 277.579987 | D17: 281.200012 | E17: 275.470001 | F17: 278.200012 | G17: 190282700 | H17: 278.200012 | I17: =IF(F17=0,1,H17/F17) -> 1 | J17: =INDEX(OFFSET($T$15,0,0,$S$13+1,1),MATCH(B17,OFFSET($Q$15,0,0,$S$13+1,1),-1)) -> 1 | K17: =ROUND($I17*C17,2) -> 277.58 | L17: =ROUND($I17*D17,2) -> 281.2 | M17: =ROUND($I17*E17,2) -> 275.47 | N17: =ROUND($I17*F17,2) -> 278.2 | O17: =G17*J17 -> 190282700 | U17: 2019-12-20 | V17: 1.57 | W17: =(INDEX(OFFSET($F$15,1,0,$B$10,1),MATCH(U17,OFFSET($B$15,1,0,$B$10,1),-1))) -> 320.730011 | X17: =YEAR(U17)&RIGHT("0"&MONTH(U17),2) -> 201912 | Y17: =YEAR(U17)-1&RIGHT("0"&MONTH(U17),2) -> 201812 | Z17: =OFFSET(U16,AA17,0,1,1) -> 2018-12-21 | AA17: =MATCH(Y17,OFFSET($X$15,A17,0,$V$14+1-A17,1),-1) -> 5 | AB17: =IF(OR(AND(YEAR(U17)=YEAR(Z17),MONTH(U17)=MONTH(Z17)),MONTH(U17)=MONTH(Z17)),1,0) -> 1 | AC17: =(V17+IF(AA17-AB17=0,0,IFERROR(SUM(OFFSET(V17,1,0,AA17-AB17-1,1)),0))) -> 5.619 | AD17: =AC17/(INDEX(OFFSET($F$15,1,0,$B$10,1),MATCH(U17,OFFSET($B$15,1,0,$B$10,1),-1))) -> 0.01751940825
A18: 3 | B18: 2020-04-08 | C18: 267.959991 | D18: 276 | E18: 265.25 | F18: 274.029999 | G18: 153774500 | H18: 274.029999 | I18: 1 | J18: 1 | K18: 267.96 | L18: 276 | M18: 265.25 | N18: 274.03 | O18: 153774500 | U18: 2019-09-20 | V18: 1.384 | W18: 298.279999 | X18: 201909 | Y18: 201809 | Z18: 2018-09-21 | AA18: 5 | AB18: 1 | AC18: 5.484 | AD18: 0.01838540974
A19: 4 | B19: 2020-04-07 | C19: 274.209991 | D19: 275.029999 | E19: 264.890015 | F19: 265.130005 | G19: 201427200 | H19: 265.130005 | I19: 1 | J19: 1 | K19: 274.21 | L19: 275.03 | M19: 264.89 | N19: 265.13 | O19: 201427200 | U19: 2019-06-21 | V19: 1.432 | W19: 294 | X19: 201906 | Y19: 201806 | Z19: 2018-06-15 | AA19: 5 | AB19: 1 | AC19: 5.423 | AD19: 0.01844557823
A20: 5 | B20: 2020-04-06 | C20: 257.839996 | D20: 267 | E20: 248.169998 | F20: 264.859985 | G20: 188061200 | H20: 264.859985 | I20: 1 | J20: 1 | K20: 257.84 | L20: 267 | M20: 248.17 | N20: 264.86 | O20: 188061200 | U20: 2019-03-15 | V20: 1.233 | W20: 281.309998 | X20: 201903 | Y20: 201803 | Z20: 2018-03-16 | AA20: 5 | AB20: 1 | AC20: 5.237 | AD20: 0.01861647306
A21: 6 | B21: 2020-04-03 | C21: 250.759995 | D21: 253.320007 | E21: 245.220001 | F21: 248.190002 | G21: 135561200 | H21: 248.190002 | I21: 1 | J21: 1 | K21: 250.76 | L21: 253.32 | M21: 245.22 | N21: 248.19 | O21: 135561200 | U21: 2018-12-21 | V21: 1.435 | W21: 240.699997 | X21: 201812 | Y21: 201712 | Z21: 2017-12-15 | AA21: 5 | AB21: 1 | AC21: 5.101 | AD21: 0.02119235589
A22: 7 | B22: 2020-04-02 | C22: 245.190002 | D22: 252.679993 | E22: 244.589996 | F22: 251.830002 | G22: 177660400 | H22: 251.830002 | I22: 1 | J22: 1 | K22: 245.19 | L22: 252.68 | M22: 244.59 | N22: 251.83 | O22: 177660400 | U22: 2018-09-21 | V22: 1.323 | W22: 291.98999 | X22: 201809 | Y22: 201709 | Z22: 2017-09-15 | AA22: 5 | AB22: 1 | AC22: 5.017 | AD22: 0.01718209587
A23: 8 | B23: 2020-04-01 | C23: 247.979996 | D23: 257.660004 | E23: 243.899994 | F23: 246.149994 | G23: 189554600 | H23: 246.149994 | I23: 1 | J23: 1 | K23: 247.98 | L23: 257.66 | M23: 243.9 | N23: 246.15 | O23: 189554600 | U23: 2018-06-15 | V23: 1.246 | W23: 277.130005 | X23: 201806 | Y23: 201706 | Z23: 2017-06-16 | AA23: 5 | AB23: 1 | AC23: 4.929 | AD23: 0.01778587634
A24: 9 | B24: 2020-03-31 | C24: 260.559998 | D24: 263.329987 | E24: 256.220001 | F24: 257.75 | G24: 194881100 | H24: 257.75 | I24: 1 | J24: 1 | K24: 260.56 | L24: 263.33 | M24: 256.22 | N24: 257.75 | O24: 194881100 | U24: 2018-03-16 | V24: 1.097 | W24: 274.200012 | X24: 201803 | Y24: 201703 | Z24: 2017-03-17 | AA24: 5 | AB24: 1 | AC24: 4.866 | AD24: 0.0177461699
A25: 10 | B25: 2020-03-30 | C25: 255.699997 | D25: 262.429993 | E25: 253.529999 | F25: 261.649994 | G25: 171369500 | H25: 261.649994 | I25: 1 | J25: 1 | K25: 255.7 | L25: 262.43 | M25: 253.53 | N25: 261.65 | O25: 171369500 | U25: 2017-12-15 | V25: 1.351 | W25: 266.51001 | X25: 201712 | Y25: 201612 | Z25: 2016-12-16 | AA25: 5 | AB25: 1 | AC25: 4.802 | AD25: 0.01801808495
A26: 11 | B26: 2020-03-27 | C26: 253.270004 | D26: 260.809998 | E26: 251.050003 | F26: 253.419998 | G26: 224341200 | H26: 253.419998 | I26: 1 | J26: 1 | K26: 253.27 | L26: 260.81 | M26: 251.05 | N26: 253.42 | O26: 224341200 | U26: 2017-09-15 | V26: 1.235 | W26: 249.190002 | X26: 201709 | Y26: 201609 | Z26: 2016-09-16 | AA26: 5 | AB26: 1 | AC26: 4.78 | AD26: 0.01918215001
A27: 12 | B27: 2020-03-26 | C27: 249.520004 | D27: 262.799988 | E27: 249.050003 | F27: 261.200012 | G27: 257632800 | H27: 261.200012 | I27: 1 | J27: 1 | K27: 249.52 | L27: 262.8 | M27: 249.05 | N27: 261.2 | O27: 257632800 | U27: 2017-06-16 | V27: 1.183 | W27: 242.639999 | X27: 201706 | Y27: 201606 | Z27: 2016-06-17 | AA27: 5 | AB27: 1 | AC27: 4.627 | AD27: 0.01906940331
A28: 13 | B28: 2020-03-25 | C28: 244.869995 | D28: 256.350006 | E28: 239.75 | F28: 246.789993 | G28: 299430300 | H28: 246.789993 | I28: 1 | J28: 1 | K28: 244.87 | L28: 256.35 | M28: 239.75 | N28: 246.79 | O28: 299430300 | U28: 2017-03-17 | V28: 1.033 | W28: 237.029999 | X28: 201703 | Y28: 201603 | Z28: 2016-03-18 | AA28: 5 | AB28: 1 | AC28: 4.522 | AD28: 0.01907775395
A29: 14 | B29: 2020-03-24 | C29: 234.419998 | D29: 244.100006 | E29: 233.800003 | F29: 243.149994 | G29: 235494500 | H29: 243.149994 | I29: 1 | J29: 1 | K29: 234.42 | L29: 244.1 | M29: 233.8 | N29: 243.15 | O29: 235494500 | U29: 2016-12-16 | V29: 1.329 | W29: 225.039993 | X29: 201612 | Y29: 201512 | Z29: 2015-12-18 | AA29: 5 | AB29: 1 | AC29: 4.539 | AD29: 0.02016974823
A30: 15 | B30: 2020-03-23 | C30: 228.190002 | D30: 229.679993 | E30: 218.259995 | F30: 222.949997 | G30: 326025200 | H30: 222.949997 | I30: 1 | J30: 1 | K30: 228.19 | L30: 229.68 | M30: 218.26 | N30: 222.95 | O30: 326025200 | U30: 2016-09-16 | V30: 1.082 | W30: 213.369995 | X30: 201609 | Y30: 201509 | Z30: 2015-09-18 | AA30: 5 | AB30: 1 | AC30: 4.422 | AD30: 0.02072456345
A31: 16 | B31: 2020-03-20 | C31: 242.529999 | D31: 244.470001 | E31: 228.5 | F31: 228.800003 | G31: 347158800 | H31: 228.800003 | I31: 1 | J31: 1 | K31: 242.53 | L31: 244.47 | M31: 228.5 | N31: 228.8 | O31: 347158800 | U31: 2016-06-17 | V31: 1.078 | W31: 206.520004 | X31: 201606 | Y31: 201506 | Z31: 2015-06-19 | AA31: 5 | AB31: 1 | AC31: 4.373 | AD31: 0.02117470422
A32: 17 | B32: 2020-03-19 | C32: 239.25 | D32: 247.380005 | E32: 232.220001 | F32: 240.509995 | G32: 289322000 | H32: 239.103989 | I32: 0.9941540642 | J32: 1 | K32: 237.85 | L32: 245.93 | M32: 230.86 | N32: 239.1 | O32: 289322000 | U32: 2016-03-18 | V32: 1.05 | W32: 204.380005 | X32: 201603 | Y32: 201503 | Z32: 2015-03-20 | AA32: 5 | AB32: 1 | AC32: 4.325 | AD32: 0.02116156128
A33: 18 | B33: 2020-03-18 | C33: 236.25 | D33: 248.369995 | E33: 228.020004 | F33: 240 | G33: 327597100 | H33: 238.596985 | I33: 0.9941541042 | J33: 1 | K33: 234.87 | L33: 246.92 | M33: 226.69 | N33: 238.6 | O33: 327597100 | U33: 2015-12-18 | V33: 1.212 | W33: 200.020004 | X33: 201512 | Y33: 201412 | Z33: 2014-12-19 | AA33: 5 | AB33: 1 | AC33: 4.206 | AD33: 0.02102789679
A34: 19 | B34: 2020-03-17 | C34: 245.039993 | D34: 256.170013 | E34: 237.070007 | F34: 252.800003 | G34: 262070500 | H34: 251.322159 | I34: 0.9941540982 | J34: 1 | K34: 243.61 | L34: 254.67 | M34: 235.68 | N34: 251.32 | O34: 262070500 | U34: 2015-09-18 | V34: 1.033 | W34: 195.449997 | X34: 201509 | Y34: 201409 | Z34: 2014-09-19 | AA34: 5 | AB34: 1 | AC34: 4.129 | AD34: 0.0211256079
A35: 20 | B35: 2020-03-16 | C35: 241.179993 | D35: 256.899994 | E35: 237.360001 | F35: 239.850006 | G35: 297240000 | H35: 238.447861 | I35: 0.9941540756 | J35: 1 | K35: 239.77 | L35: 255.4 | M35: 235.97 | N35: 238.45 | O35: 297240000 | U35: 2015-06-19 | V35: 1.03 | W35: 210.809998 | X35: 201506 | Y35: 201406 | Z35: 2014-06-20 | AA35: 5 | AB35: 1 | AC35: 4.035 | AD35: 0.01914045841
A36: 21 | B36: 2020-03-13 | C36: 263.089996 | D36: 271.480011 | E36: 248.520004 | F36: 269.320007 | G36: 329566100 | H36: 267.745575 | I36: 0.9941540474 | J36: 1 | K36: 261.55 | L36: 269.89 | M36: 247.07 | N36: 267.75 | O36: 329566100 | U36: 2015-03-20 | V36: 0.931 | W36: 210.410004 | X36: 201503 | Y36: 201403 | Z36: 2014-03-21 | AA36: 5 | AB36: 1 | AC36: 3.942 | AD36: 0.01873485065
A37: 22 | B37: 2020-03-12 | C37: 256 | D37: 266.660004 | E37: 247.679993 | F37: 248.110001 | G37: 392220700 | H37: 246.659576 | I37: 0.9941541051 | J37: 1 | K37: 254.5 | L37: 265.1 | M37: 246.23 | N37: 246.66 | O37: 392220700 | U37: 2014-12-19 | V37: 1.135 | W37: 206.520004 | X37: 201412 | Y37: 201312 | Z37: 2013-12-20 | AA37: 5 | AB37: 1 | AC37: 3.836 | AD37: 0.01857447185
A38: 23 | B38: 2020-03-11 | C38: 280.700012 | D38: 281.940002 | E38: 270.880005 | F38: 274.359985 | G38: 255316300 | H38: 272.756104 | I38: 0.9941541001 | J38: 1 | K38: 279.06 | L38: 280.29 | M38: 269.3 | N38: 272.76 | O38: 255316300 | U38: 2014-09-19 | V38: 0.939 | W38: 200.699997 | X38: 201409 | Y38: 201309 | Z38: 2013-09-20 | AA38: 5 | AB38: 1 | AC38: 3.681 | AD38: 0.01834080745
A39: 24 | B39: 2020-03-10 | C39: 284.640015 | D39: 288.519989 | E39: 273.5 | F39: 288.420013 | G39: 276444100 | H39: 286.733948 | I39: 0.9941541331 | J39: 1 | K39: 282.98 | L39: 286.83 | M39: 271.9 | N39: 286.73 | O39: 276444100 | U39: 2014-06-20 | V39: 0.937 | W39: 195.940002 | X39: 201406 | Y39: 201306 | Z39: 2013-06-21 | AA39: 5 | AB39: 1 | AC39: 3.58 | AD39: 0.01827089907
A40: 25 | B40: 2020-03-09 | C40: 275.299988 | D40: 284.190002 | E40: 273.450012 | F40: 274.230011 | G40: 309417300 | H40: 272.626892 | I40: 0.9941541081 | J40: 1 | K40: 273.69 | L40: 282.53 | M40: 271.85 | N40: 272.63 | O40: 309417300 | U40: 2014-03-21 | V40: 0.825 | W40: 186.199997 | X40: 201403 | Y40: 201303 | Z40: 2013-03-15 | AA40: 5 | AB40: 1 | AC40: 3.482 | AD40: 0.01870032254
A41: 26 | B41: 2020-03-06 | C41: 293.149994 | D41: 298.779999 | E41: 290.230011 | F41: 297.459991 | G41: 228667200 | H41: 295.721069 | I41: 0.9941540979 | J41: 1 | K41: 291.44 | L41: 297.03 | M41: 288.53 | N41: 295.72 | O41: 228667200 | U41: 2013-12-20 | V41: 0.98 | W41: 181.559998 | X41: 201312 | Y41: 201212 | Z41: 2012-12-21 | AA41: 5 | AB41: 1 | AC41: 3.351 | AD41: 0.01845670873
A42: 27 | B42: 2020-03-05 | C42: 304.980011 | D42: 308.470001 | E42: 300.01001 | F42: 302.459991 | G42: 186366800 | H42: 300.691833 | I42: 0.9941540764 | J42: 1 | K42: 303.2 | L42: 306.67 | M42: 298.26 | N42: 300.69 | O42: 186366800 | U42: 2013-09-20 | V42: 0.838 | W42: 170.720001 | X42: 201309 | Y42: 201209 | Z42: 2012-09-21 | AA42: 5 | AB42: 1 | AC42: 3.393 | AD42: 0.01987464843
A43: 28 | B43: 2020-03-04 | C43: 306.119995 | D43: 313.100006 | E43: 303.329987 | F43: 312.859985 | G43: 176613400 | H43: 311.031036 | I43: 0.9941540974 | J43: 1 | K43: 304.33 | L43: 311.27 | M43: 301.56 | N43: 311.03 | O43: 176613400 | U43: 2013-06-21 | V43: 0.839 | W43: 159.070007 | X43: 201306 | Y43: 201206 | Z43: 2012-06-15 | AA43: 5 | AB43: 1 | AC43: 3.334 | AD43: 0.02095932516
A44: 29 | B44: 2020-03-03 | C44: 309.5 | D44: 313.839996 | E44: 297.570007 | F44: 300.23999 | G44: 300139100 | H44: 298.484802 | I44: 0.9941540499 | J44: 1 | K44: 307.69 | L44: 312.01 | M44: 295.83 | N44: 298.48 | O44: 300139100 | U44: 2013-03-15 | V44: 0.694 | W44: 155.830002 | X44: 201303 | Y44: 201203 | Z44: 2012-03-16 | AA44: 5 | AB44: 1 | AC44: 3.183 | AD44: 0.02042610511
A45: 30 | B45: 2020-03-02 | C45: 298.209991 | D45: 309.160004 | E45: 294.459991 | F45: 309.089996 | G45: 238703600 | H45: 307.283081 | I45: 0.9941540813 | J45: 1 | K45: 296.47 | L45: 307.35 | M45: 292.74 | N45: 307.28 | O45: 238703600 | U45: 2012-12-21 | V45: 1.022 | W45: 142.789993 | X45: 201212 | Y45: 201112 | Z45: 2011-12-16 | AA45: 5 | AB45: 1 | AC45: 3.103 | AD45: 0.02173121474
A46: 31 | B46: 2020-02-28 | C46: 288.700012 | D46: 297.890015 | E46: 285.540009 | F46: 296.26001 | G46: 385764000 | H46: 294.528107 | I46: 0.9941541115 | J46: 1 | K46: 287.01 | L46: 296.15 | M46: 283.87 | N46: 294.53 | O46: 385764000 | U46: 2012-09-21 | V46: 0.779 | W46: 145.869995 | X46: 201209 | Y46: 201109 | Z46: 2011-09-16 | AA46: 5 | AB46: 1 | AC46: 2.851 | AD46: 0.01954480083
A47: 32 | B47: 2020-02-27 | C47: 305.459991 | D47: 311.559998 | E47: 297.51001 | F47: 297.51001 | G47: 284353500 | H47: 295.770782 | I47: 0.9941540522 | J47: 1 | K47: 303.67 | L47: 309.74 | M47: 295.77 | N47: 295.77 | O47: 284353500 | U47: 2012-06-15 | V47: 0.688 | W47: 134.139999 | X47: 201206 | Y47: 201106 | Z47: 2011-06-17 | AA47: 5 | AB47: 1 | AC47: 2.697 | AD47: 0.0201058597
A48: 33 | B48: 2020-02-26 | C48: 314.179993 | D48: 318.109985 | E48: 310.700012 | F48: 311.5 | G48: 194773800 | H48: 309.678986 | I48: 0.9941540482 | J48: 1 | K48: 312.34 | L48: 316.25 | M48: 308.88 | N48: 309.68 | O48: 194773800 | U48: 2012-03-16 | V48: 0.614 | W48: 140.300003 | X48: 201203 | Y48: 201103 | Z48: 2011-03-18 | AA48: 5 | AB48: 1 | AC48: 2.637 | AD48: 0.01879543794
A49: 34 | B49: 2020-02-25 | C49: 323.940002 | D49: 324.609985 | E49: 311.690002 | F49: 312.649994 | G49: 218913200 | H49: 310.822266 | I49: 0.9941540763 | J49: 1 | K49: 322.05 | L49: 322.71 | M49: 309.87 | N49: 310.82 | O49: 218913200 | U49: 2011-12-16 | V49: 0.77 | W49: 121.589996 | X49: 201112 | Y49: 201012 | Z49: 2010-12-17 | AA49: 5 | AB49: 1 | AC49: 2.576 | AD49: 0.02118595349
A50: 35 | B50: 2020-02-24 | C50: 323.140015 | D50: 333.559998 | E50: 321.23999 | F50: 322.420013 | G50: 161088400 | H50: 320.535187 | I50: 0.9941541284 | J50: 1 | K50: 321.25 | L50: 331.61 | M50: 319.36 | N50: 320.54 | O50: 161088400 | U50: 2011-09-16 | V50: 0.625 | W50: 121.519997 | X50: 201109 | Y50: 201009 | Z50: 2010-09-17 | AA50: 5 | AB50: 1 | AC50: 2.459 | AD50: 0.0202353527
A51: 36 | B51: 2020-02-21 | C51: 335.470001 | D51: 335.809998 | E51: 332.579987 | F51: 333.480011 | G51: 113788200 | H51: 331.530518 | I51: 0.9941540934 | J51: 1 | K51: 333.51 | L51: 333.85 | M51: 330.64 | N51: 331.53 | O51: 113788200 | U51: 2011-06-17 | V51: 0.628 | W51: 127.050003 | X51: 201106 | Y51: 201006 | Z51: 2010-06-18 | AA51: 5 | AB51: 1 | AC51: 2.436 | AD51: 0.01917355327
A52: 37 | B52: 2020-02-20 | C52: 337.73999 | D52: 338.640015 | E52: 333.679993 | F52: 336.950012 | G52: 74163400 | H52: 334.980225 | I52: 0.9941540676 | J52: 1 | K52: 335.77 | L52: 336.66 | M52: 331.73 | N52: 334.98 | O52: 74163400 | U52: 2011-03-18 | V52: 0.553 | W52: 127.760002 | X52: 201103 | Y52: 201003 | Z52: 2010-03-19 | AA52: 5 | AB52: 1 | AC52: 2.339 | AD52: 0.01830776427
A53: 38 | B53: 2020-02-19 | C53: 337.790009 | D53: 339.079987 | E53: 337.480011 | F53: 338.339996 | G53: 48814700 | H53: 336.362091 | I53: 0.9941540905 | J53: 1 | K53: 335.82 | L53: 337.1 | M53: 335.51 | N53: 336.36 | O53: 48814700 | U53: 2010-12-17 | V53: 0.653 | W53: 124.300003 | X53: 201012 | Y53: 200912 | Z53: 2009-12-18 | AA53: 5 | AB53: 1 | AC53: 2.266 | AD53: 0.01823008806
A54: 39 | B54: 2020-02-18 | C54: 336.51001 | D54: 337.670013 | E54: 335.209991 | F54: 336.730011 | G54: 57226200 | H54: 334.761505 | I54: 0.9941540524 | J54: 1 | K54: 334.54 | L54: 335.7 | M54: 333.25 | N54: 334.76 | O54: 57226200 | U54: 2010-09-17 | V54: 0.602 | W54: 112.489998 | X54: 201009 | Y54: 200909 | Z54: 2009-09-18 | AA54: 5 | AB54: 1 | AC54: 2.203 | AD54: 0.01958396337
A55: 40 | B55: 2020-02-14 | C55: 337.51001 | D55: 337.730011 | E55: 336.200012 | F55: 337.600006 | G55: 64582200 | H55: 335.626434 | I55: 0.9941541115 | J55: 1 | K55: 335.54 | L55: 335.76 | M55: 334.23 | N55: 335.63 | O55: 64582200 | U55: 2010-06-18 | V55: 0.531 | W55: 111.730003 | X55: 201006 | Y55: 200906 | Z55: 2009-06-19 | AA55: 5 | AB55: 1 | AC55: 2.109 | AD55: 0.01887586094
A56: 41 | B56: 2020-02-13 | C56: 335.859985 | D56: 338.119995 | E56: 335.559998 | F56: 337.059998 | G56: 54501900 | H56: 335.089569 | I56: 0.9941540705 | J56: 1 | K56: 333.9 | L56: 336.14 | M56: 333.6 | N56: 335.09 | O56: 54501900 | U56: 2010-03-19 | V56: 0.48 | W56: 115.970001 | X56: 201003 | Y56: 200903 | Z56: 2009-03-20 | AA56: 5 | AB56: 1 | AC56: 2.096 | AD56: 0.01807363958
A57: 42 | B57: 2020-02-12 | C57: 336.829987 | D57: 337.649994 | E57: 336.429993 | F57: 337.420013 | G57: 43992700 | H57: 335.447479 | I57: 0.9941540693 | J57: 1 | K57: 334.86 | L57: 335.68 | M57: 334.46 | N57: 335.45 | O57: 43992700 | U57: 2009-12-18 | V57: 0.59 | W57: 110.209999 | X57: 200912 | Y57: 200812 | Z57: 2008-12-19 | AA57: 5 | AB57: 1 | AC57: 2.177 | AD57: 0.01975319862
A58: 43 | B58: 2020-02-11 | C58: 336.160004 | D58: 337.019989 | E58: 334.679993 | F58: 335.26001 | G58: 54864500 | H58: 333.30011 | I58: 0.9941540895 | J58: 1 | K58: 334.19 | L58: 335.05 | M58: 332.72 | N58: 333.3 | O58: 54864500 | U58: 2009-09-18 | V58: 0.508 | W58: 106.720001 | X58: 200909 | Y58: 200809 | Z58: 2008-09-19 | AA58: 5 | AB58: 1 | AC58: 2.306 | AD58: 0.02160794582
A59: 44 | B59: 2020-02-10 | C59: 331.230011 | D59: 334.75 | E59: 331.190002 | F59: 334.679993 | G59: 42070000 | H59: 332.72348 | I59: 0.9941540784 | J59: 1 | K59: 329.29 | L59: 332.79 | M59: 329.25 | N59: 332.72 | O59: 42070000 | U59: 2009-06-19 | V59: 0.518 | W59: 92.040001 | X59: 200906 | Y59: 200806 | Z59: 2008-06-20 | AA59: 5 | AB59: 1 | AC59: 2.489 | AD59: 0.02704258988
A60: 45 | B60: 2020-02-07 | C60: 332.820007 | D60: 333.98999 | E60: 331.600006 | F60: 332.200012 | G60: 64139400 | H60: 330.257996 | I60: 0.9941540761 | J60: 1 | K60: 330.87 | L60: 332.04 | M60: 329.66 | N60: 330.26 | O60: 64139400 | U60: 2009-03-20 | V60: 0.561 | W60: 76.709999 | X60: 200903 | Y60: 200803 | Z60: 2008-03-20 | AA60: 5 | AB60: 1 | AC60: 2.64 | AD60: 0.03441533091
A61: 46 | B61: 2020-02-06 | C61: 333.910004 | D61: 334.190002 | E61: 332.799988 | F61: 333.980011 | G61: 50359700 | H61: 332.027588 | I61: 0.9941540723 | J61: 1 | K61: 331.96 | L61: 332.24 | M61: 330.85 | N61: 332.03 | O61: 50359700 | U61: 2008-12-19 | V61: 0.719 | W61: 88.190002 | X61: 200812 | Y61: 200712 | Z61: 2007-12-21 | AA61: 5 | AB61: 1 | AC61: 2.721 | AD61: 0.0308538376
A62: 47 | B62: 2020-02-05 | C62: 332.269989 | D62: 333.089996 | E62: 330.670013 | F62: 332.859985 | G62: 65951100 | H62: 330.914124 | I62: 0.9941541156 | J62: 1 | K62: 330.33 | L62: 331.14 | M62: 328.74 | N62: 330.91 | O62: 65951100 | U62: 2008-09-19 | V62: 0.691 | W62: 124.120003 | X62: 200809 | Y62: 200709 | Z62: 2007-09-21 | AA62: 5 | AB62: 1 | AC62: 2.777 | AD62: 0.02237350897
A63: 48 | B63: 2020-02-04 | C63: 328.070007 | D63: 330.01001 | E63: 327.720001 | F63: 329.059998 | G63: 62573200 | H63: 327.136353 | I63: 0.9941541208 | J63: 1 | K63: 326.15 | L63: 328.08 | M63: 325.8 | N63: 327.14 | O63: 62573200 | U63: 2008-06-20 | V63: 0.669 | W63: 131.580002 | X63: 200806 | Y63: 200706 | Z63: 2007-06-15 | AA63: 5 | AB63: 1 | AC63: 2.805 | AD63: 0.02131782913
A64: 49 | B64: 2020-02-03 | C64: 323.350006 | D64: 326.160004 | E64: 323.220001 | F64: 324.119995 | G64: 69242300 | H64: 322.22522 | I64: 0.9941540941 | J64: 1 | K64: 321.46 | L64: 324.25 | M64: 321.33 | N64: 322.23 | O64: 69242300 | U64: 2008-03-20 | V64: 0.642 | W64: 132.080002 | X64: 200803 | Y64: 200703 | Z64: 2007-03-16 | AA64: 5 | AB64: 1 | AC64: 2.792 | AD64: 0.0211387035
A65: 50 | B65: 2020-01-31 | C65: 327 | D65: 327.170013 | E65: 320.730011 | F65: 321.730011 | G65: 113845600 | H65: 319.849213 | I65: 0.9941541108 | J65: 1 | K65: 325.09 | L65: 325.26 | M65: 318.86 | N65: 319.85 | O65: 113845600 | U65: 2007-12-21 | V65: 0.775 | W65: 148.130005 | X65: 200712 | Y65: 200612 | Z65: 2006-12-15 | AA65: 5 | AB65: 1 | AC65: 2.701 | AD65: 0.01823398305
A66: 51 | B66: 2020-01-30 | C66: 324.359985 | D66: 327.910004 | E66: 323.540009 | F66: 327.679993 | G66: 75491800 | H66: 325.764404 | I66: 0.9941540862 | J66: 1 | K66: 322.46 | L66: 325.99 | M66: 321.65 | N66: 325.76 | O66: 75491800 | U66: 2007-09-21 | V66: 0.719 | W66: 151.970001 | X66: 200709 | Y66: 200609 | Z66: 2006-09-15 | AA66: 5 | AB66: 1 | AC66: 2.719 | AD66: 0.01789168903
A67: 52 | B67: 2020-01-29 | C67: 328.380005 | D67: 328.630005 | E67: 326.399994 | F67: 326.619995 | G67: 53888900 | H67: 324.710602 | I67: 0.9941540842 | J67: 1 | K67: 326.46 | L67: 326.71 | M67: 324.49 | N67: 324.71 | O67: 53888900 | U67: 2007-06-15 | V67: 0.656 | W67: 153.070007 | X67: 200706 | Y67: 200606 | Z67: 2006-06-16 | AA67: 5 | AB67: 1 | AC67: 2.579 | AD67: 0.01684849992
A68: 53 | B68: 2020-01-28 | C68: 325.059998 | D68: 327.850006 | E68: 323.600006 | F68: 326.890015 | G68: 63834000 | H68: 324.979034 | I68: 0.9941540551 | J68: 1 | K68: 323.16 | L68: 325.93 | M68: 321.71 | N68: 324.98 | O68: 63834000 | U68: 2007-03-16 | V68: 0.551 | W68: 138.529999 | X68: 200703 | Y68: 200603 | Z68: 2006-03-17 | AA68: 5 | AB68: 1 | AC68: 2.478 | AD68: 0.01788782226
A69: 54 | B69: 2020-01-27 | C69: 323.029999 | D69: 325.119995 | E69: 322.660004 | F69: 323.5 | G69: 84062500 | H69: 321.608856 | I69: 0.9941541144 | J69: 1 | K69: 321.14 | L69: 323.22 | M69: 320.77 | N69: 321.61 | O69: 84062500 | U69: 2006-12-15 | V69: 0.793 | W69: 142.339996 | X69: 200612 | Y69: 200512 | Z69: 2005-12-16 | AA69: 5 | AB69: 1 | AC69: 2.446 | AD69: 0.01718420731
A70: 55 | B70: 2020-01-24 | C70: 332.440002 | D70: 332.529999 | E70: 327.359985 | F70: 328.769989 | G70: 87578400 | H70: 326.848022 | I70: 0.994154068 | J70: 1 | K70: 330.5 | L70: 330.59 | M70: 325.45 | N70: 326.85 | O70: 87578400 | U70: 2006-09-15 | V70: 0.579 | W70: 131.960007 | X70: 200609 | Y70: 200509 | Z70: 2005-09-16 | AA70: 5 | AB70: 1 | AC70: 2.325 | AD70: 0.01761897451
A71: 56 | B71: 2020-01-23 | C71: 330.630005 | D71: 332.170013 | E71: 329.410004 | F71: 331.720001 | G71: 51963000 | H71: 329.780792 | I71: 0.9941540788 | J71: 1 | K71: 328.7 | L71: 330.23 | M71: 327.48 | N71: 329.78 | O71: 51963000 | U71: 2006-06-16 | V71: 0.555 | W71: 124.650002 | X71: 200606 | Y71: 200506 | Z71: 2005-06-17 | AA71: 5 | AB71: 1 | AC71: 2.268 | AD71: 0.01819494556
A72: 57 | B72: 2020-01-22 | C72: 332.23999 | D72: 332.950012 | E72: 331.170013 | F72: 331.339996 | G72: 48914900 | H72: 329.403015 | I72: 0.9941540984 | J72: 1 | K72: 330.3 | L72: 331 | M72: 329.23 | N72: 329.4 | O72: 48914900 | U72: 2006-03-17 | V72: 0.519 | W72: 130.619995 | X72: 200603 | Y72: 200503 | Z72: 2005-03-18 | AA72: 5 | AB72: 1 | AC72: 2.201 | AD72: 0.0168504064
A73: 58 | B73: 2020-01-21 | C73: 330.899994 | D73: 332.179993 | E73: 330.820007 | F73: 331.299988 | G73: 77742400 | H73: 329.363251 | I73: 0.994154129 | J73: 1 | K73: 328.97 | L73: 330.24 | M73: 328.89 | N73: 329.36 | O73: 77742400 | U73: 2005-12-16 | V73: 0.672 | W73: 126.360001 | X73: 200512 | Y73: 200412 | Z73: 2004-12-17 | AA73: 5 | AB73: 1 | AC73: 2.149 | AD73: 0.01700696409
A74: 59 | B74: 2020-01-17 | C74: 331.700012 | D74: 332.179993 | E74: 330.850006 | F74: 331.950012 | G74: 95846000 | H74: 330.00946 | I74: 0.9941540837 | J74: 1 | K74: 329.76 | L74: 330.24 | M74: 328.92 | N74: 330.01 | O74: 95846000 | U74: 2005-09-16 | V74: 0.522 | W74: 123.5 | X74: 200509 | Y74: 200409 | Z74: 2004-09-17 | AA74: 6 | AB74: 1 | AC74: 2.396 | AD74: 0.01940080972
A75: 60 | B75: 2020-01-16 | C75: 329.700012 | D75: 330.920013 | E75: 329.450012 | F75: 330.920013 | G75: 54050300 | H75: 328.985474 | I75: 0.9941540586 | J75: 1 | K75: 327.77 | L75: 328.99 | M75: 327.52 | N75: 328.99 | O75: 54050300 | U75: 2005-06-17 | V75: 0.488 | W75: 121.360001 | X75: 200506 | Y75: 200406 | Z75: 2004-06-18 | AA75: 6 | AB75: 1 | AC75: 2.343 | AD75: 0.01930619628
A76: 61 | B76: 2020-01-15 | C76: 327.350006 | D76: 329.019989 | E76: 327.26001 | F76: 328.190002 | G76: 72056600 | H76: 326.271423 | I76: 0.9941540602 | J76: 1 | K76: 325.44 | L76: 327.1 | M76: 325.35 | N76: 326.27 | O76: 72056600 | U76: 2005-03-18 | V76: 0.467 | W76: 118.540001 | X76: 200503 | Y76: 200403 | Z76: 2004-03-19 | AA76: 6 | AB76: 1 | AC76: 2.269 | AD76: 0.01914121799
A77: 62 | B77: 2020-01-14 | C77: 327.470001 | D77: 328.619995 | E77: 326.839996 | F77: 327.450012 | G77: 62832800 | H77: 325.535767 | I77: 0.9941540848 | J77: 1 | K77: 325.56 | L77: 326.7 | M77: 324.93 | N77: 325.54 | O77: 62832800 | U77: 2004-12-17 | V77: 0.568 | W77: 119.440002 | X77: 200412 | Y77: 200312 | Z77: 2003-12-19 | AA77: 6 | AB77: 1 | AC77: 2.197 | AD77: 0.0183941725
A78: 63 | B78: 2020-01-13 | C78: 326.390015 | D78: 327.959991 | E78: 325.920013 | F78: 327.950012 | G78: 47086800 | H78: 326.032837 | I78: 0.9941540633 | J78: 1 | K78: 324.48 | L78: 326.04 | M78: 324.01 | N78: 326.03 | O78: 47086800 | U78: 2004-11-15 | V78: 0.351 | W78: 118.730003 | X78: 200411 | Y78: 200311 | Z78: 2003-12-19 | AA78: 5 | AB78: 0 | AC78: 2.145 | AD78: 0.01806620017
A79: 64 | B79: 2020-01-10 | C79: 327.290009 | D79: 327.459991 | E79: 325.200012 | F79: 325.709991 | G79: 53029300 | H79: 323.805908 | I79: 0.9941540541 | J79: 1 | K79: 325.38 | L79: 325.55 | M79: 323.3 | N79: 323.81 | O79: 53029300 | U79: 2004-09-17 | V79: 0.469 | W79: 113.150002 | X79: 200409 | Y79: 200309 | Z79: 2003-09-19 | AA79: 5 | AB79: 1 | AC79: 1.794 | AD79: 0.01585505938
A80: 65 | B80: 2020-01-09 | C80: 326.160004 | D80: 326.730011 | E80: 325.519989 | F80: 326.649994 | G80: 48473300 | H80: 324.740417 | I80: 0.9941540578 | J80: 1 | K80: 324.25 | L80: 324.82 | M80: 323.62 | N80: 324.74 | O80: 48473300 | U80: 2004-06-18 | V80: 0.414 | W80: 113.629997 | X80: 200406 | Y80: 200306 | Z80: 2003-06-20 | AA80: 5 | AB80: 1 | AC80: 1.725 | AD80: 0.01518085053
A81: 66 | B81: 2020-01-08 | C81: 322.940002 | D81: 325.779999 | E81: 322.670013 | F81: 324.450012 | G81: 68296000 | H81: 322.553314 | I81: =IF(F81=0,1,H81/F81) -> 0.9941541133 | J81: =INDEX(OFFSET($T$15,0,0,$S$13+1,1),MATCH(B81,OFFSET($Q$15,0,0,$S$13+1,1),-1)) -> 1 | K81: =ROUND($I81*C81,2) -> 321.05 | L81: =ROUND($I81*D81,2) -> 323.88 | M81: =ROUND($I81*E81,2) -> 320.78 | N81: =ROUND($I81*F81,2) -> 322.55 | O81: =G81*J81 -> 68296000 | U81: 2004-03-19 | V81: 0.395 | W81: =(INDEX(OFFSET($F$15,1,0,$B$10,1),MATCH(U81,OFFSET($B$15,1,0,$B$10,1),-1))) -> 111.059998 | X81: =YEAR(U81)&RIGHT("0"&MONTH(U81),2) -> 200403 | Y81: =YEAR(U81)-1&RIGHT("0"&MONTH(U81),2) -> 200303 | Z81: =OFFSET(U80,AA81,0,1,1) -> 2003-03-21 | AA81: =MATCH(Y81,OFFSET($X$15,A81,0,$V$14+1-A81,1),-1) -> 5 | AB81: =IF(OR(AND(YEAR(U81)=YEAR(Z81),MONTH(U81)=MONTH(Z81)),MONTH(U81)=MONTH(Z81)),1,0) -> 1 | AC81: =(V81+IF(AA81-AB81=0,0,IFERROR(SUM(OFFSET(V81,1,0,AA81-AB81-1,1)),0))) -> 1.671 | AD81: =AC81/(INDEX(OFFSET($F$15,1,0,$B$10,1),MATCH(U81,OFFSET($B$15,1,0,$B$10,1),-1))) -> 0.01504592139
A82: 67 | B82: 2020-01-07 | C82: 323.019989 | D82: 323.540009 | E82: 322.23999 | F82: 322.730011 | G82: 40496400 | H82: 320.843353 | I82: 0.9941540671 | J82: 1 | K82: 321.13 | L82: 321.65 | M82: 320.36 | N82: 320.84 | O82: 40496400 | U82: 2003-12-19 | V82: 0.516 | W82: 108.900002 | X82: 200312 | Y82: 200212 | Z82: 2002-12-20 | AA82: 5 | AB82: 1 | AC82: 1.63 | AD82: 0.01496786015
A83: 68 | B83: 2020-01-06 | C83: 320.48999 | D83: 323.730011 | E83: 320.359985 | F83: 323.640015 | G83: 55653900 | H83: 321.748047 | I83: 0.9941540974 | J83: 1 | K83: 318.62 | L83: 321.84 | M83: 318.49 | N83: 321.75 | O83: 55653900 | U83: 2003-09-19 | V83: 0.4 | W83: 103.669998 | X83: 200309 | Y83: 200209 | Z83: 2002-09-20 | AA83: 5 | AB83: 1 | AC83: 1.55 | AD83: 0.01495128803
A84: 69 | B84: 2020-01-03 | C84: 321.160004 | D84: 323.640015 | E84: 321.100006 | F84: 322.410004 | G84: 77709700 | H84: 320.525238 | I84: 0.994154133 | J84: 1 | K84: 319.28 | L84: 321.75 | M84: 319.22 | N84: 320.53 | O84: 77709700 | U84: 2003-06-20 | V84: 0.36 | W84: 99.440002 | X84: 200306 | Y84: 200206 | Z84: 2002-06-21 | AA84: 5 | AB84: 1 | AC84: 1.528 | AD84: 0.01536604957
A85: 70 | B85: 2020-01-02 | C85: 323.540009 | D85: 324.890015 | E85: 322.529999 | F85: 324.869995 | G85: 59151200 | H85: 322.970825 | I85: 0.9941540615 | J85: 1 | K85: 321.65 | L85: 322.99 | M85: 320.64 | N85: 322.97 | O85: 59151200 | U85: 2003-03-21 | V85: 0.354 | W85: 89.669998 | X85: 200303 | Y85: 200203 | Z85: 2002-03-15 | AA85: 5 | AB85: 1 | AC85: 1.521 | AD85: 0.01696219509
A86: 71 | B86: 2019-12-31 | C86: 320.529999 | D86: 322.130005 | E86: 320.149994 | F86: 321.859985 | G86: 57077300 | H86: 319.978424 | I86: 0.9941541009 | J86: 1 | K86: 318.66 | L86: 320.25 | M86: 318.28 | N86: 319.98 | O86: 57077300 | U86: 2002-12-20 | V86: 0.436 | W86: 89.989998 | X86: 200212 | Y86: 200112 | Z86: 2001-12-21 | AA86: 5 | AB86: 1 | AC86: 1.498 | AD86: 0.0166462944
A87: 72 | B87: 2019-12-30 | C87: 322.950012 | D87: 323.100006 | E87: 320.549988 | F87: 321.079987 | G87: 49729100 | H87: 319.202972 | I87: 0.9941540579 | J87: 1 | K87: 321.06 | L87: 321.21 | M87: 318.68 | N87: 319.2 | O87: 49729100 | U87: 2002-09-20 | V87: 0.378 | W87: 84.349998 | X87: 200209 | Y87: 200109 | Z87: 2001-09-21 | AA87: 5 | AB87: 1 | AC87: 1.455 | AD87: 0.01724955583
A88: 73 | B88: 2019-12-27 | C88: 323.73999 | D88: 323.799988 | E88: 322.279999 | F88: 322.859985 | G88: 42528800 | H88: 320.972565 | I88: 0.9941540603 | J88: 1 | K88: 321.85 | L88: 321.91 | M88: 320.4 | N88: 320.97 | O88: 42528800 | U88: 2002-06-21 | V88: 0.353 | W88: 99.279999 | X88: 200206 | Y88: 200106 | Z88: 2001-06-15 | AA88: 5 | AB88: 1 | AC88: 1.446 | AD88: 0.01456486719
A89: 74 | B89: 2019-12-26 | C89: 321.649994 | D89: 322.950012 | E89: 321.640015 | F89: 322.940002 | G89: 30911200 | H89: 321.052124 | I89: 0.9941540906 | J89: 1 | K89: 319.77 | L89: 321.06 | M89: 319.76 | N89: 321.05 | O89: 30911200 | U89: 2002-03-15 | V89: 0.331 | W89: 116.650002 | X89: 200203 | Y89: 200103 | Z89: 2001-03-16 | AA89: 5 | AB89: 1 | AC89: 1.439 | AD89: 0.0123360478
A90: 75 | B90: 2019-12-24 | C90: 321.470001 | D90: 321.519989 | E90: 320.899994 | F90: 321.230011 | G90: 20270000 | H90: 319.352142 | I90: 0.9941541296 | J90: 1 | K90: 319.59 | L90: 319.64 | M90: 319.02 | N90: 319.35 | O90: 20270000 | U90: 2001-12-21 | V90: 0.393 | W90: 114.949997 | X90: 200112 | Y90: 200012 | Z90: 2000-12-27 | AA90: 5 | AB90: 1 | AC90: 1.424 | AD90: 0.0123879951
A91: 76 | B91: 2019-12-23 | C91: 321.589996 | D91: 321.649994 | E91: 321.059998 | F91: 321.220001 | G91: 52990000 | H91: 319.342194 | I91: 0.9941541405 | J91: 1 | K91: 319.71 | L91: 319.77 | M91: 319.18 | N91: 319.34 | O91: 52990000 | U91: 2001-09-21 | V91: 0.369 | W91: 97.279999 | X91: 200109 | Y91: 200009 | Z91: 2000-09-15 | AA91: 6 | AB91: 1 | AC91: 1.442 | AD91: 0.01482319094
A92: 77 | B92: 2019-12-20 | C92: 320.459991 | D92: 321.970001 | E92: 319.390015 | F92: 320.730011 | G92: 147142100 | H92: 318.855042 | I92: 0.9941540581 | J92: 1 | K92: 318.59 | L92: 320.09 | M92: 317.52 | N92: 318.86 | O92: 147142100 | U92: 2001-06-15 | V92: 0.346 | W92: 121.849998 | X92: 200106 | Y92: 200006 | Z92: 2000-06-16 | AA92: 7 | AB92: 1 | AC92: 1.448 | AD92: 0.01188346347
A93: 78 | B93: 2019-12-19 | C93: 319.799988 | D93: 320.980011 | E93: 319.519989 | F93: 320.899994 | G93: 85310500 | H93: 317.463226 | I93: 0.9892902211 | J93: 1 | K93: 316.38 | L93: 317.54 | M93: 316.1 | N93: 317.46 | O93: 85310500 | U93: 2001-03-16 | V93: 0.316 | W93: 115.010002 | X93: 200103 | Y93: 200003 | Z93: 2000-03-17 | AA93: 7 | AB93: 1 | AC93: 1.45 | AD93: 0.01260759912
A94: 79 | B94: 2019-12-18 | C94: 320 | D94: 320.25 | E94: 319.529999 | F94: 319.589996 | G94: 48133000 | H94: 316.167267 | I94: 0.9892902499 | J94: 1 | K94: 316.57 | L94: 316.82 | M94: 316.11 | N94: 316.17 | O94: 48133000 | U94: 2000-12-27 | V94: 0 | W94: 133.3125 | X94: 200012 | Y94: 199912 | Z94: 1999-12-17 | AA94: 7 | AB94: 1 | AC94: 1.505 | AD94: 0.01128926395
A95: 80 | B95: 2019-12-17 | C95: 319.920013 | D95: 320.25 | E95: 319.480011 | F95: 319.570007 | G95: 61097700 | H95: 316.147491 | I95: 0.9892902465 | J95: 1 | K95: 316.49 | L95: 316.82 | M95: 316.06 | N95: 316.15 | O95: 61097700 | U95: 2000-12-15 | V95: 0.411 | W95: 130.96875 | X95: 200012 | Y95: 199912 | Z95: 1999-12-17 | AA95: 6 | AB95: 1 | AC95: 1.505 | AD95: 0.01149129086
A96: 81 | B96: 2019-12-16 | C96: 319.220001 | D96: 320.149994 | E96: 317.25 | F96: 319.5 | G96: 82749700 | H96: 316.078217 | I96: 0.9892901941 | J96: 1 | K96: 315.8 | L96: 316.72 | M96: 313.85 | N96: 316.08 | O96: 82749700 | U96: 2000-09-15 | V96: 0.375 | W96: 146 | X96: 200009 | Y96: 199909 | Z96: 1999-09-17 | AA96: 6 | AB96: 1 | AC96: 1.442 | AD96: 0.009876712329
A97: 82 | B97: 2019-12-13 | C97: 316.869995 | D97: 318.670013 | E97: 316.019989 | F97: 317.320007 | G97: 81503900 | H97: 313.9216 | I97: 0.9892902845 | J97: 1 | K97: 313.48 | L97: 315.26 | M97: 312.64 | N97: 313.92 | O97: 81503900 | U97: 2000-09-14 | V97: 0 | W97: 149.640625 | X97: 200009 | Y97: 199909 | Z97: 1999-09-17 | AA97: 5 | AB97: 1 | AC97: 1.067 | AD97: 0.007130416623
A98: 83 | B98: 2019-12-12 | C98: 314.429993 | D98: 317.98999 | E98: 314.170013 | F98: 317.130005 | G98: 96389600 | H98: 313.733612 | I98: 0.9892902187 | J98: 1 | K98: 311.06 | L98: 314.58 | M98: 310.81 | N98: 313.73 | O98: 96389600 | U98: 2000-06-16 | V98: 0.348 | W98: 146.59375 | X98: 200006 | Y98: 199906 | Z98: 1999-06-18 | AA98: 5 | AB98: 1 | AC98: 1.439 | AD98: 0.009816243871
A99: 84 | B99: 2019-12-11 | C99: 314.029999 | D99: 314.700012 | E99: 313.440002 | F99: 314.420013 | G99: 53429100 | H99: 311.052643 | I99: 0.9892902174 | J99: 1 | K99: 310.67 | L99: 311.33 | M99: 310.08 | N99: 311.05 | O99: 53429100 | U99: 2000-03-17 | V99: 0.371 | W99: 146.9375 | X99: 200003 | Y99: 199903 | Z99: 1999-03-19 | AA99: 5 | AB99: 1 | AC99: 1.496 | AD99: 0.01018119949
A100: 85 | B100: 2019-12-10 | C100: 313.820007 | D100: 314.549988 | E100: 312.809998 | F100: 313.529999 | G100: 52649800 | H100: 310.17218 | I100: 0.9892902784 | J100: 1 | K100: 310.46 | L100: 311.18 | M100: 309.46 | N100: 310.17 | O100: 52649800 | U100: 1999-12-17 | V100: 0.348 | W100: 142.6875 | X100: 199912 | Y100: 199812 | Z100: 1998-12-18 | AA100: 5 | AB100: 1 | AC100: 1.445 | AD100: 0.01012702584
A101: 86 | B101: 2019-12-09 | C101: 314.440002 | D101: 315.179993 | E101: 313.799988 | F101: 313.880005 | G101: 34838500 | H101: 310.518433 | I101: 0.989290264 | J101: 1 | K101: 311.07 | L101: 311.8 | M101: 310.44 | N101: 310.52 | O101: 34838500 | U101: 1999-09-17 | V101: 0.372 | W101: 133.75 | X101: 199909 | Y101: 199809 | Z101: 1998-09-18 | AA101: 5 | AB101: 1 | AC101: 1.489 | AD101: 0.01113271028
A102: 87 | B102: 2019-12-06 | C102: 314.119995 | D102: 315.309998 | E102: 314.109985 | F102: 314.869995 | G102: 48927000 | H102: 311.497803 | I102: 0.9892902085 | J102: 1 | K102: 310.76 | L102: 311.93 | M102: 310.75 | N102: 311.5 | O102: 48927000 | U102: 1999-06-18 | V102: 0.405 | W102: 134.3125 | X102: 199906 | Y102: 199806 | Z102: 1998-06-19 | AA102: 5 | AB102: 1 | AC102: 1.476 | AD102: 0.01098929735
A103: 88 | B103: 2019-12-05 | C103: 312.230011 | D103: 312.25 | E103: 310.579987 | F103: 312.019989 | G103: 40709000 | H103: 308.678314 | I103: 0.9892901894 | J103: 1 | K103: 308.89 | L103: 308.91 | M103: 307.25 | N103: 308.68 | O103: 40709000 | U103: 1999-03-19 | V103: 0.32 | W103: 129.6875 | X103: 199903 | Y103: 199803 | Z103: 1998-03-20 | AA103: 5 | AB103: 1 | AC103: 1.423 | AD103: 0.01097253012
A104: 89 | B104: 2019-12-04 | C104: 310.700012 | D104: 312.119995 | E104: 310.320007 | F104: 311.459991 | G104: 49080000 | H104: 308.124329 | I104: 0.9892902392 | J104: 1 | K104: 307.37 | L104: 308.78 | M104: 307 | N104: 308.12 | O104: 49080000 | U104: 1998-12-18 | V104: 0.392 | W104: 118.5 | X104: 199812 | Y104: 199712 | Z104: 1997-12-19 | AA104: 5 | AB104: 1 | AC104: 1.416 | AD104: 0.01194936709
A105: 90 | B105: 2019-12-03 | C105: 308.649994 | D105: 309.640015 | E105: 307.130005 | F105: 309.549988 | G105: 73941700 | H105: 306.234772 | I105: 0.989290208 | J105: 1 | K105: 305.34 | L105: 306.32 | M105: 303.84 | N105: 306.23 | O105: 73941700 | U105: 1998-09-18 | V105: 0.359 | W105: 102.09375 | X105: 199809 | Y105: 199709 | Z105: 1997-09-19 | AA105: 5 | AB105: 1 | AC105: 1.404 | AD105: 0.01375206612
A106: 91 | B106: 2019-12-02 | C106: 314.589996 | D106: 314.660004 | E106: 311.170013 | F106: 311.640015 | G106: 75767800 | H106: 308.302429 | I106: 0.9892902521 | J106: 1 | K106: 311.22 | L106: 311.29 | M106: 307.84 | N106: 308.3 | O106: 75767800 | U106: 1998-06-19 | V106: 0.352 | W106: 110.0625 | X106: 199806 | Y106: 199706 | Z106: 1997-06-20 | AA106: 5 | AB106: 1 | AC106: 1.393 | AD106: 0.0126564452
A107: 92 | B107: 2019-11-29 | C107: 314.859985 | D107: 315.130005 | E107: 314.059998 | F107: 314.309998 | G107: 36592700 | H107: 310.943817 | I107: 0.9892902516 | J107: 1 | K107: 311.49 | L107: 311.76 | M107: 310.7 | N107: 310.94 | O107: 36592700 | U107: 1998-03-20 | V107: 0.313 | W107: 109.875 | X107: 199803 | Y107: 199703 | Z107: 1997-03-21 | AA107: 5 | AB107: 1 | AC107: 1.391 | AD107: 0.01265984073
A108: 93 | B108: 2019-11-27 | C108: 314.609985 | D108: 315.480011 | E108: 314.369995 | F108: 315.480011 | G108: 44444600 | H108: 312.101288 | I108: 0.9892902153 | J108: 1 | K108: 311.24 | L108: 312.1 | M108: 311 | N108: 312.1 | O108: 44444600 | U108: 1997-12-19 | V108: 0.38 | W108: 94.78125 | X108: 199712 | Y108: 199612 | Z108: 1996-12-20 | AA108: 5 | AB108: 1 | AC108: 1.377 | AD108: 0.01452818991
A109: 94 | B109: 2019-11-26 | C109: 313.410004 | D109: 314.279999 | E109: 313.059998 | F109: 314.079987 | G109: 37569000 | H109: 310.716248 | I109: 0.9892901836 | J109: 1 | K109: 310.05 | L109: 310.91 | M109: 309.71 | N109: 310.72 | O109: 37569000 | U109: 1997-09-19 | V109: 0.348 | W109: 95.03125 | X109: 199709 | Y109: 199609 | Z109: 1996-09-20 | AA109: 5 | AB109: 1 | AC109: 1.364 | AD109: 0.0143531733
A110: 95 | B110: 2019-11-25 | C110: 311.980011 | D110: 313.369995 | E110: 311.980011 | F110: 313.369995 | G110: 48647200 | H110: 310.013855 | I110: 0.989290168 | J110: 1 | K110: 308.64 | L110: 310.01 | M110: 308.64 | N110: 310.01 | O110: 48647200 | U110: 1997-06-20 | V110: 0.35 | W110: 89.578125 | X110: 199706 | Y110: 199606 | Z110: 1996-06-21 | AA110: 5 | AB110: 1 | AC110: 1.368 | AD110: 0.01527158556
A111: 96 | B111: 2019-11-22 | C111: 311.089996 | D111: 311.23999 | E111: 309.850006 | F111: 310.959991 | G111: 44850200 | H111: 307.629669 | I111: 0.9892901914 | J111: 1 | K111: 307.76 | L111: 307.91 | M111: 306.53 | N111: 307.63 | O111: 44850200 | U111: 1997-03-21 | V111: 0.299 | W111: 78.4375 | X111: 199703 | Y111: 199603 | Z111: 1996-03-15 | AA111: 5 | AB111: 1 | AC111: 1.369 | AD111: 0.01745338645
A112: 97 | B112: 2019-11-21 | C112: 310.890015 | D112: 311.01001 | E112: 309.390015 | F112: 310.269989 | G112: 54664700 | H112: 306.947052 | I112: 0.9892901759 | J112: 1 | K112: 307.56 | L112: 307.68 | M112: 306.08 | N112: 306.95 | O112: 54664700 | U112: 1996-12-20 | V112: 0.367 | W112: 74.84375 | X112: 199612 | Y112: 199512 | Z112: 1995-12-15 | AA112: 5 | AB112: 1 | AC112: 1.355 | AD112: 0.01810438413
A113: 98 | B113: 2019-11-20 | C113: 311.279999 | D113: 311.850006 | E113: 309.059998 | F113: 310.769989 | G113: 79406200 | H113: 307.441711 | I113: 0.9892902207 | J113: 1 | K113: 307.95 | L113: 308.51 | M113: 305.75 | N113: 307.44 | O113: 79406200 | U113: 1996-09-20 | V113: 0.352 | W113: 68.640625 | X113: 199609 | Y113: 199509 | Z113: 1995-09-15 | AA113: 5 | AB113: 1 | AC113: 1.37 | AD113: 0.01995902572
A114: 99 | B114: 2019-11-19 | C114: 312.679993 | D114: 312.690002 | E114: 311.220001 | F114: 311.929993 | G114: 67804700 | H114: 308.589294 | I114: 0.9892902283 | J114: 1 | K114: 309.33 | L114: 309.34 | M114: 307.89 | N114: 308.59 | O114: 67804700 | U114: 1996-06-21 | V114: 0.351 | W114: 66.8125 | X114: 199606 | Y114: 199506 | Z114: 1995-06-16 | AA114: 5 | AB114: 1 | AC114: 1.33 | AD114: 0.01990645463
A115: 100 | B115: 2019-11-18 | C115: 311.529999 | D115: 312.279999 | E115: 311.029999 | F115: 312.019989 | G115: 49228000 | H115: 308.678314 | I115: 0.9892901894 | J115: 1 | K115: 308.19 | L115: 308.94 | M115: 307.7 | N115: 308.68 | O115: 49228000 | U115: 1996-03-15 | V115: 0.285 | W115: 64.125 | X115: 199603 | Y115: 199503 | Z115: 1995-03-17 | AA115: 5 | AB115: 1 | AC115: 1.295 | AD115: 0.02019493177
A116: 101 | B116: 2019-11-15 | C116: 311.019989 | D116: 311.839996 | E116: 310.26001 | F116: 311.790009 | G116: 62023600 | H116: 308.450806 | I116: 0.9892902181 | J116: 1 | K116: 307.69 | L116: 308.5 | M116: 306.94 | N116: 308.45 | O116: 62023600 | U116: 1995-12-15 | V116: 0.382 | W116: 61.8125 | X116: 199512 | Y116: 199412 | Z116: 1994-12-16 | AA116: 5 | AB116: 1 | AC116: 1.278 | AD116: 0.02067542973
A117: 102 | B117: 2019-11-14 | C117: 308.790009 | D117: 309.640015 | E117: 308.089996 | F117: 309.549988 | G117: 51219900 | H117: 306.234772 | I117: 0.989290208 | J117: 1 | K117: 305.48 | L117: 306.32 | M117: 304.79 | N117: 306.23 | O117: 51219900 | U117: 1995-09-15 | V117: 0.312 | W117: 58.4375 | X117: 199509 | Y117: 199409 | Z117: 1994-09-19 | AA117: 5 | AB117: 1 | AC117: 1.259 | AD117: 0.02154438503
A118: 103 | B118: 2019-11-13 | C118: 307.910004 | D118: 309.540009 | E118: 307.660004 | F118: 309.100006 | G118: 53917700 | H118: 305.789612 | I118: 0.989290217 | J118: 1 | K118: 304.61 | L118: 306.22 | M118: 304.37 | N118: 305.79 | O118: 53917700 | U118: 1995-06-16 | V118: 0.316 | W118: 53.96875 | X118: 199506 | Y118: 199406 | Z118: 1994-06-17 | AA118: 6 | AB118: 1 | AC118: 1.235 | AD118: 0.0228836132
A119: 104 | B119: 2019-11-12 | C119: 308.75 | D119: 309.98999 | E119: 308.149994 | F119: 309 | G119: 46484600 | H119: 305.690674 | I119: 0.9892902071 | J119: 1 | K119: 305.44 | L119: 306.67 | M119: 304.85 | N119: 305.69 | O119: 46484600 | U119: 1995-03-17 | V119: 0.268 | W119: 49.5625 | X119: 199503 | Y119: 199403 | Z119: 1994-03-18 | AA119: 6 | AB119: 1 | AC119: 1.224 | AD119: 0.02469609079
A120: 105 | B120: 2019-11-11 | C120: 307.420013 | D120: 308.540009 | E120: 307.269989 | F120: 308.350006 | G120: 35797300 | H120: 305.047638 | I120: 0.9892901964 | J120: 1 | K120: 304.13 | L120: 305.24 | M120: 303.98 | N120: 305.05 | O120: 35797300 | U120: 1994-12-16 | V120: 0.363 | W120: 45.75 | X120: 199412 | Y120: 199312 | Z120: 1993-12-17 | AA120: 6 | AB120: 1 | AC120: 1.227 | AD120: 0.02681967213
A121: 106 | B121: 2019-11-08 | C121: 307.799988 | D121: 309 | E121: 307.029999 | F121: 308.940002 | G121: 49032100 | H121: 305.631317 | I121: 0.9892902021 | J121: 1 | K121: 304.5 | L121: 305.69 | M121: 303.74 | N121: 305.63 | O121: 49032100 | U121: 1994-09-19 | V121: 0 | W121: 47.0625 | X121: 199409 | Y121: 199309 | Z121: 1993-09-17 | AA121: 6 | AB121: 1 | AC121: 1.181 | AD121: 0.02509428951
A122: 107 | B122: 2019-11-07 | C122: 308.570007 | D122: 309.649994 | E122: 307.660004 | F122: 308.179993 | G122: 54272300 | H122: 304.879456 | I122: 0.9892902295 | J122: 1 | K122: 305.27 | L122: 306.33 | M122: 304.37 | N122: 304.88 | O122: 54272300 | U122: 1994-09-16 | V122: 0.288 | W122: 47.015625 | X122: 199409 | Y122: 199309 | Z122: 1993-09-17 | AA122: 5 | AB122: 1 | AC122: 1.181 | AD122: 0.02511930874
A123: 108 | B123: 2019-11-06 | C123: 307.029999 | D123: 307.399994 | E123: 306.059998 | F123: 307.100006 | G123: 46487100 | H123: 303.811035 | I123: 0.9892902281 | J123: 1 | K123: 303.74 | L123: 304.11 | M123: 302.78 | N123: 303.81 | O123: 46487100 | U123: 1994-06-17 | V123: 0.305 | W123: 45.875 | X123: 199406 | Y123: 199306 | Z123: 1993-06-18 | AA123: 5 | AB123: 1 | AC123: 1.179 | AD123: 0.02570027248
A124: 109 | B124: 2019-11-05 | C124: 307.589996 | D124: 307.920013 | E124: 306.709991 | F124: 307.029999 | G124: 42933200 | H124: 303.741791 | I124: 0.9892902713 | J124: 1 | K124: 304.3 | L124: 304.62 | M124: 303.43 | N124: 303.74 | O124: 42933200 | U124: 1994-03-18 | V124: 0.271 | W124: 46.96875 | X124: 199403 | Y124: 199303 | Z124: 1993-03-19 | AA124: 5 | AB124: 1 | AC124: 1.192 | AD124: 0.02537857618
A125: 110 | B125: 2019-11-04 | C125: 307.850006 | D125: 308 | E125: 306.959991 | F125: 307.369995 | G125: 60606900 | H125: 304.078156 | I125: 0.9892903047 | J125: 1 | K125: 304.55 | L125: 304.7 | M125: 303.67 | N125: 304.08 | O125: 60606900 | U125: 1993-12-17 | V125: 0.317 | W125: 46.5625 | X125: 199312 | Y125: 199212 | Z125: 1993-03-19 | AA125: 4 | AB125: 0 | AC125: 1.134 | AD125: 0.02435436242
A126: 111 | B126: 2019-11-01 | C126: 304.920013 | D126: 306.190002 | E126: 304.73999 | F126: 306.140015 | G126: 71141500 | H126: 302.861328 | I126: 0.989290237 | J126: 1 | K126: 301.65 | L126: 302.91 | M126: 301.48 | N126: 302.86 | O126: 71141500 | U126: 1993-09-17 | V126: 0.286 | W126: 45.8125 | X126: 199309 | Y126: 199209 | Z126: 1993-03-19 | AA126: 3 | AB126: 0 | AC126: 0.817 | AD126: 0.01783356071
A127: 112 | B127: 2019-10-31 | C127: 304.130005 | D127: 304.130005 | E127: 301.730011 | F127: 303.329987 | G127: 69053800 | H127: 300.081421 | I127: 0.9892903236 | J127: 1 | K127: 300.87 | L127: 300.87 | M127: 298.5 | N127: 300.08 | O127: 69053800 | U127: 1993-06-18 | V127: 0.318 | W127: 44.5 | X127: 199306 | Y127: 199206 | Z127: 1993-03-19 | AA127: 2 | AB127: 0 | AC127: 0.531 | AD127: 0.01193258427
A128: 113 | B128: 2019-10-30 | C128: 303.429993 | D128: 304.549988 | E128: 301.98999 | F128: 304.140015 | G128: 49643900 | H128: 300.882721 | I128: 0.9892901498 | J128: 1 | K128: 300.18 | L128: 301.29 | M128: 298.76 | N128: 300.88 | O128: 49643900 | U128: 1993-03-19 | V128: 0.213 | W128: 45.03125 | X128: 199303 | Y128: 199203 | Z128: 1993-03-19 | AA128: 1 | AB128: 1 | AC128: 0.213 | AD128: 0.004730048577
A129: 114 | B129: 2019-10-29 | C129: 303 | D129: 304.230011 | E129: 302.859985 | F129: 303.209991 | G129: 44284900 | H129: 299.962708 | I129: 0.9892903166 | J129: 1 | K129: 299.75 | L129: 300.97 | M129: 299.62 | N129: 299.96 | O129: 44284900
A130: 115 | B130: 2019-10-28 | C130: 302.940002 | D130: 303.850006 | E130: 302.910004 | F130: 303.299988 | G130: 42147000 | H130: 300.051697 | I130: 0.989290171 | J130: 1 | K130: 299.7 | L130: 300.6 | M130: 299.67 | N130: 300.05 | O130: 42147000
A131: 116 | B131: 2019-10-25 | C131: 299.73999 | D131: 302.200012 | E131: 299.679993 | F131: 301.600006 | G131: 45205400 | H131: 298.369934 | I131: 0.9892902124 | J131: 1 | K131: 296.53 | L131: 298.96 | M131: 296.47 | N131: 298.37 | O131: 45205400
A132: 117 | B132: 2019-10-24 | C132: 300.910004 | D132: 301.070007 | E132: 299.459991 | F132: 300.369995 | G132: 35453100 | H132: 297.153107 | I132: 0.9892902485 | J132: 1 | K132: 297.69 | L132: 297.85 | M132: 296.25 | N132: 297.15 | O132: 35453100
A133: 118 | B133: 2019-10-23 | C133: 298.730011 | D133: 299.940002 | E133: 298.5 | F133: 299.880005 | G133: 34352200 | H133: 296.668335 | I133: 0.9892901496 | J133: 1 | K133: 295.53 | L133: 296.73 | M133: 295.3 | N133: 296.67 | O133: 34352200
A134: 119 | B134: 2019-10-22 | C134: 300.579987 | D134: 300.899994 | E134: 298.910004 | F134: 299.01001 | G134: 48594700 | H134: 295.807678 | I134: 0.9892902181 | J134: 1 | K134: 297.36 | L134: 297.68 | M134: 295.71 | N134: 295.81 | O134: 48594700
A135: 120 | B135: 2019-10-21 | C135: 299.420013 | D135: 300.209991 | E135: 298.940002 | F135: 299.98999 | G135: 39048600 | H135: 296.777161 | I135: 0.9892902127 | J135: 1 | K135: 296.21 | L135: 296.99 | M135: 295.74 | N135: 296.78 | O135: 39048600
A136: 121 | B136: 2019-10-18 | C136: 298.690002 | D136: 299.399994 | E136: 297.029999 | F136: 297.970001 | G136: 64304000 | H136: 294.778809 | I136: 0.9892902239 | J136: 1 | K136: 295.49 | L136: 296.19 | M136: 293.85 | N136: 294.78 | O136: 64304000
A137: 122 | B137: 2019-10-17 | C137: 299.679993 | D137: 300.23999 | E137: 298.519989 | F137: 299.279999 | G137: 45736600 | H137: 296.074768 | I137: 0.9892901931 | J137: 1 | K137: 296.47 | L137: 297.02 | M137: 295.32 | N137: 296.07 | O137: 45736600
A138: 123 | B138: 2019-10-16 | C138: 298.369995 | D138: 299.160004 | E138: 297.920013 | F138: 298.399994 | G138: 48928200 | H138: 295.204193 | I138: 0.9892902109 | J138: 1 | K138: 295.17 | L138: 295.96 | M138: 294.73 | N138: 295.2 | O138: 48928200
A139: 124 | B139: 2019-10-15 | C139: 297.100006 | D139: 299.700012 | E139: 296.970001 | F139: 298.880005 | G139: 46754500 | H139: 295.679077 | I139: 0.9892902571 | J139: 1 | K139: 293.92 | L139: 296.49 | M139: 293.79 | N139: 295.68 | O139: 46754500
A140: 125 | B140: 2019-10-14 | C140: 295.929993 | D140: 296.670013 | E140: 295.570007 | F140: 295.950012 | G140: 40394800 | H140: 292.780457 | I140: 0.9892902353 | J140: 1 | K140: 292.76 | L140: 293.49 | M140: 292.4 | N140: 292.78 | O140: 40394800
A141: 126 | B141: 2019-10-11 | C141: 296.269989 | D141: 298.73999 | E141: 296.140015 | F141: 296.279999 | G141: 98720400 | H141: 293.106903 | I141: 0.9892902119 | J141: 1 | K141: 293.1 | L141: 295.54 | M141: 292.97 | N141: 293.11 | O141: 98720400
A142: 127 | B142: 2019-10-10 | C142: 291.179993 | D142: 294.209991 | E142: 291 | F142: 293.23999 | G142: 55296300 | H142: 290.099457 | I142: 0.9892902295 | J142: 1 | K142: 288.06 | L142: 291.06 | M142: 287.88 | N142: 290.1 | O142: 55296300
A143: 128 | B143: 2019-10-09 | C143: 290.75 | D143: 292.299988 | E143: 290.059998 | F143: 291.269989 | G143: 62359400 | H143: 288.150574 | I143: 0.9892902973 | J143: 1 | K143: 287.64 | L143: 289.17 | M143: 286.95 | N143: 288.15 | O143: 62359400
A144: 129 | B144: 2019-10-08 | C144: 291.040009 | D144: 291.850006 | E144: 288.48999 | F144: 288.529999 | G144: 95708100 | H144: 285.439911 | I144: 0.9892902367 | J144: 1 | K144: 287.92 | L144: 288.72 | M144: 285.4 | N144: 285.44 | O144: 95708100
A145: 130 | B145: 2019-10-07 | C145: 293.470001 | D145: 295.26001 | E145: 292.769989 | F145: 293.079987 | G145: 59610500 | H145: 289.941162 | I145: =IF(F145=0,1,H145/F145) -> 0.9892902104 | J145: =INDEX(OFFSET($T$15,0,0,$S$13+1,1),MATCH(B145,OFFSET($Q$15,0,0,$S$13+1,1),-1)) -> 1 | K145: =ROUND($I145*C145,2) -> 290.33 | L145: =ROUND($I145*D145,2) -> 292.1 | M145: =ROUND($I145*E145,2) -> 289.63 | N145: =ROUND($I145*F145,2) -> 289.94 | O145: =G145*J145 -> 59610500
A146: 131 | B146: 2019-10-04 | C146: 291.140015 | D146: 294.630005 | E146: 291.079987 | F146: 294.350006 | G146: 65091200 | H146: 291.197601 | I146: 0.9892902839 | J146: 1 | K146: 288.02 | L146: 291.47 | M146: 287.96 | N146: 291.2 | O146: 65091200
A147: 132 | B147: 2019-10-03 | C147: 287.809998 | D147: 290.450012 | E147: 284.820007 | F147: 290.420013 | G147: 85278800 | H147: 287.309692 | I147: 0.9892902663 | J147: 1 | K147: 284.73 | L147: 287.34 | M147: 281.77 | N147: 287.31 | O147: 85278800
A148: 133 | B148: 2019-10-02 | C148: 291.5 | D148: 291.51001 | E148: 286.640015 | F148: 288.059998 | G148: 122539500 | H148: 284.974945 | I148: 0.9892902415 | J148: 1 | K148: 288.38 | L148: 288.39 | M148: 283.57 | N148: 284.97 | O148: 122539500
A149: 134 | B149: 2019-10-01 | C149: 297.73999 | D149: 298.459991 | E149: 293 | F149: 293.23999 | G149: 88242400 | H149: 290.099457 | I149: 0.9892902295 | J149: 1 | K149: 294.55 | L149: 295.26 | M149: 289.86 | N149: 290.1 | O149: 88242400
A150: 135 | B150: 2019-09-30 | C150: 295.970001 | D150: 297.549988 | E150: 295.920013 | F150: 296.769989 | G150: 51662400 | H150: 293.591644 | I150: 0.9892902075 | J150: 1 | K150: 292.8 | L150: 294.36 | M150: 292.75 | N150: 293.59 | O150: 51662400
A151: 136 | B151: 2019-09-27 | C151: 297.829987 | D151: 297.950012 | E151: 293.690002 | F151: 295.399994 | G151: 84746600 | H151: 292.236328 | I151: 0.98929023 | J151: 1 | K151: 294.64 | L151: 294.76 | M151: 290.54 | N151: 292.24 | O151: 84746600
A152: 137 | B152: 2019-09-26 | C152: 297.630005 | D152: 297.859985 | E152: 295.450012 | F152: 297 | G152: 56179700 | H152: 293.819183 | I152: 0.9892901785 | J152: 1 | K152: 294.44 | L152: 294.67 | M152: 292.29 | N152: 293.82 | O152: 56179700
A153: 138 | B153: 2019-09-25 | C153: 295.959991 | D153: 298.109985 | E153: 294.329987 | F153: 297.619995 | G153: 71854000 | H153: 294.432556 | I153: 0.9892902391 | J153: 1 | K153: 292.79 | L153: 294.92 | M153: 291.18 | N153: 294.43 | O153: 71854000
A154: 139 | B154: 2019-09-24 | C154: 299.410004 | D154: 299.839996 | E154: 294.809998 | F154: 295.869995 | G154: 94869400 | H154: 292.701294 | I154: 0.9892902253 | J154: 1 | K154: 296.2 | L154: 296.63 | M154: 291.65 | N154: 292.7 | O154: 94869400
A155: 140 | B155: 2019-09-23 | C155: 297.549988 | D155: 299 | E155: 297.269989 | F155: 298.209991 | G155: 43476800 | H155: 295.016235 | I155: 0.9892902448 | J155: 1 | K155: 294.36 | L155: 295.8 | M155: 294.09 | N155: 295.02 | O155: 43476800
A156: 141 | B156: 2019-09-20 | C156: 300.359985 | D156: 300.670013 | E156: 297.410004 | F156: 298.279999 | G156: 89565000 | H156: 295.08548 | I156: 0.9892902004 | J156: 1 | K156: 297.14 | L156: 297.45 | M156: 294.22 | N156: 295.09 | O156: 89565000
A157: 142 | B157: 2019-09-19 | C157: 301.529999 | D157: 302.630005 | E157: 300.709991 | F157: 301.079987 | G157: 76560500 | H157: 296.486328 | I157: 0.9847427288 | J157: 1 | K157: 296.93 | L157: 298.01 | M157: 296.12 | N157: 296.49 | O157: 76560500
A158: 143 | B158: 2019-09-18 | C158: 300.48999 | D158: 301.220001 | E158: 298.23999 | F158: 301.100006 | G158: 73375800 | H158: 296.506042 | I158: 0.9847427303 | J158: 1 | K158: 295.91 | L158: 296.62 | M158: 293.69 | N158: 296.51 | O158: 73375800
A159: 144 | B159: 2019-09-17 | C159: 299.940002 | D159: 301.019989 | E159: 299.75 | F159: 300.920013 | G159: 41475500 | H159: 296.328766 | I159: 0.9847426333 | J159: 1 | K159: 295.36 | L159: 296.43 | M159: 295.18 | N159: 296.33 | O159: 41475500
A160: 145 | B160: 2019-09-16 | C160: 299.839996 | D160: 301.140015 | E160: 299.450012 | F160: 300.160004 | G160: 58191200 | H160: 295.580383 | I160: 0.9847427341 | J160: 1 | K160: 295.27 | L160: 296.55 | M160: 294.88 | N160: 295.58 | O160: 58191200
A161: 146 | B161: 2019-09-13 | C161: 301.779999 | D161: 302.170013 | E161: 300.679993 | F161: 301.089996 | G161: 62104800 | H161: 296.496185 | I161: 0.9847427312 | J161: 1 | K161: 297.18 | L161: 297.56 | M161: 296.09 | N161: 296.5 | O161: 62104800
A162: 147 | B162: 2019-09-12 | C162: 301.25 | D162: 302.459991 | E162: 300.410004 | F162: 301.290009 | G162: 72908700 | H162: 296.693115 | I162: 0.9847426272 | J162: 1 | K162: 296.65 | L162: 297.85 | M162: 295.83 | N162: 296.69 | O162: 72908700
A163: 148 | B163: 2019-09-11 | C163: 298.470001 | D163: 300.339996 | E163: 297.75 | F163: 300.25 | G163: 68821100 | H163: 295.669006 | I163: 0.9847427344 | J163: 1 | K163: 293.92 | L163: 295.76 | M163: 293.21 | N163: 295.67 | O163: 68821100
A164: 149 | B164: 2019-09-10 | C164: 297.359985 | D164: 298.200012 | E164: 295.970001 | F164: 298.130005 | G164: 57947100 | H164: 293.58136 | I164: 0.9847427467 | J164: 1 | K164: 292.82 | L164: 293.65 | M164: 291.45 | N164: 293.58 | O164: 57947100
A165: 150 | B165: 2019-09-09 | C165: 299.140015 | D165: 299.23999 | E165: 297.160004 | F165: 298.200012 | G165: 51260300 | H165: 293.650299 | I165: 0.9847427471 | J165: 1 | K165: 294.58 | L165: 294.67 | M165: 292.63 | N165: 293.65 | O165: 51260300
A166: 151 | B166: 2019-09-06 | C166: 298.170013 | D166: 298.76001 | E166: 297.420013 | F166: 298.049988 | G166: 49584300 | H166: 293.502533 | I166: 0.9847426432 | J166: 1 | K166: 293.62 | L166: 294.2 | M166: 292.88 | N166: 293.5 | O166: 49584300
A167: 152 | B167: 2019-09-05 | C167: 296.790009 | D167: 298.829987 | E167: 294 | F167: 297.820007 | G167: 83258100 | H167: 293.276093 | I167: 0.984742751 | J167: 1 | K167: 292.26 | L167: 294.27 | M167: 289.51 | N167: 293.28 | O167: 83258100
A168: 153 | B168: 2019-09-04 | C168: 293.140015 | D168: 294.059998 | E168: 292.309998 | F168: 294.040009 | G168: 46887300 | H168: 289.553772 | I168: 0.9847427668 | J168: 1 | K168: 288.67 | L168: 289.57 | M168: 287.85 | N168: 289.55 | O168: 46887300
A169: 154 | B169: 2019-09-03 | C169: 290.570007 | D169: 291.579987 | E169: 289.269989 | F169: 290.73999 | G169: 69101400 | H169: 286.304077 | I169: 0.9847426802 | J169: 1 | K169: 286.14 | L169: 287.13 | M169: 284.86 | N169: 286.3 | O169: 69101400
A170: 155 | B170: 2019-08-30 | C170: 294.220001 | D170: 294.23999 | E170: 291.420013 | F170: 292.450012 | G170: 62901200 | H170: 287.988037 | I170: 0.9847427772 | J170: 1 | K170: 289.73 | L170: 289.75 | M170: 286.97 | N170: 287.99 | O170: 62901200
A171: 156 | B171: 2019-08-29 | C171: 291.720001 | D171: 293.160004 | E171: 290.609985 | F171: 292.579987 | G171: 57899400 | H171: 288.115997 | I171: 0.984742668 | J171: 1 | K171: 287.27 | L171: 288.69 | M171: 286.18 | N171: 288.12 | O171: 57899400
A172: 157 | B172: 2019-08-28 | C172: 286.140015 | D172: 289.070007 | E172: 285.25 | F172: 288.890015 | G172: 59696700 | H172: 284.482361 | I172: 0.9847427956 | J172: 1 | K172: 281.77 | L172: 284.66 | M172: 280.9 | N172: 284.48 | O172: 59696700
A173: 158 | B173: 2019-08-27 | C173: 289.540009 | D173: 289.950012 | E173: 286.029999 | F173: 286.869995 | G173: 66668900 | H173: 282.493134 | I173: 0.984742702 | J173: 1 | K173: 285.12 | L173: 285.53 | M173: 281.67 | N173: 282.49 | O173: 66668900
A174: 159 | B174: 2019-08-26 | C174: 287.269989 | D174: 288 | E174: 285.579987 | F174: 288 | G174: 72423800 | H174: 283.605896 | I174: 0.9847426944 | J174: 1 | K174: 282.89 | L174: 283.61 | M174: 281.22 | N174: 283.61 | O174: 72423800
A175: 160 | B175: 2019-08-23 | C175: 290.920013 | D175: 292.76001 | E175: 283.470001 | F175: 284.850006 | G175: 149161500 | H175: 280.503998 | I175: 0.9847428193 | J175: 1 | K175: 286.48 | L175: 288.29 | M175: 279.15 | N175: 280.5 | O175: 149161500
A176: 161 | B176: 2019-08-22 | C176: 293.230011 | D176: 293.929993 | E176: 290.399994 | F176: 292.359985 | G176: 51666400 | H176: 287.899353 | I176: 0.9847426726 | J176: 1 | K176: 288.76 | L176: 289.45 | M176: 285.97 | N176: 287.9 | O176: 51666400
A177: 162 | B177: 2019-08-21 | C177: 292.480011 | D177: 292.859985 | E177: 291.720001 | F177: 292.450012 | G177: 49524700 | H177: 287.988037 | I177: 0.9847427772 | J177: 1 | K177: 288.02 | L177: 288.39 | M177: 287.27 | N177: 287.99 | O177: 49524700
A178: 163 | B178: 2019-08-20 | C178: 291.769989 | D178: 292.359985 | E178: 289.950012 | F178: 290.089996 | G178: 51596400 | H178: 285.664001 | I178: 0.9847426831 | J178: 1 | K178: 287.32 | L178: 287.9 | M178: 285.53 | N178: 285.66 | O178: 51596400
A179: 164 | B179: 2019-08-19 | C179: 292.190002 | D179: 293.079987 | E179: 291.440002 | F179: 292.329987 | G179: 53571800 | H179: 287.869843 | I179: 0.9847427763 | J179: 1 | K179: 287.73 | L179: 288.61 | M179: 286.99 | N179: 287.87 | O179: 53571800
A180: 165 | B180: 2019-08-16 | C180: 286.480011 | D180: 289.329987 | E180: 284.709991 | F180: 288.850006 | G180: 83018300 | H180: 284.442932 | I180: 0.9847426903 | J180: 1 | K180: 282.11 | L180: 284.92 | M180: 280.37 | N180: 284.44 | O180: 83018300
A181: 166 | B181: 2019-08-15 | C181: 284.880005 | D181: 285.640015 | E181: 282.390015 | F181: 284.649994 | G181: 99556600 | H181: 280.307007 | I181: 0.9847427118 | J181: 1 | K181: 280.53 | L181: 281.28 | M181: 278.08 | N181: 280.31 | O181: 99556600
A182: 167 | B182: 2019-08-14 | C182: 288.070007 | D182: 288.73999 | E182: 283.76001 | F182: 283.899994 | G182: 135622100 | H182: 279.568451 | I182: 0.9847427154 | J182: 1 | K182: 283.67 | L182: 284.33 | M182: 279.43 | N182: 279.57 | O182: 135622100
A183: 168 | B183: 2019-08-13 | C183: 287.73999 | D183: 294.149994 | E183: 287.359985 | F183: 292.549988 | G183: 94299800 | H183: 288.086487 | I183: 0.984742775 | J183: 1 | K183: 283.35 | L183: 289.66 | M183: 282.98 | N183: 288.09 | O183: 94299800
A184: 169 | B184: 2019-08-12 | C184: 289.959991 | D184: 291.609985 | E184: 287.019989 | F184: 288.070007 | G184: 62629500 | H184: 283.674866 | I184: 0.9847428025 | J184: 1 | K184: 285.54 | L184: 287.16 | M184: 282.64 | N184: 283.67 | O184: 62629500
A185: 170 | B185: 2019-08-09 | C185: 292.579987 | D185: 293.23999 | E185: 289.649994 | F185: 291.619995 | G185: 93730000 | H185: 287.170654 | I185: 0.9847426751 | J185: 1 | K185: 288.12 | L185: 288.77 | M185: 285.23 | N185: 287.17 | O185: 93730000
A186: 171 | B186: 2019-08-08 | C186: 289.619995 | D186: 293.619995 | E186: 289.01001 | F186: 293.619995 | G186: 87713900 | H186: 289.140137 | I186: 0.9847426671 | J186: 1 | K186: 285.2 | L186: 289.14 | M186: 284.6 | N186: 289.14 | O186: 87713900
A187: 172 | B187: 2019-08-07 | C187: 284.399994 | D187: 288.820007 | E187: 282.040009 | F187: 287.970001 | G187: 140572300 | H187: 283.576385 | I187: 0.9847427997 | J187: 1 | K187: 280.06 | L187: 284.41 | M187: 277.74 | N187: 283.58 | O187: 140572300
A188: 173 | B188: 2019-08-06 | C188: 285.910004 | D188: 288.040009 | E188: 284.279999 | F188: 287.799988 | G188: 120711700 | H188: 283.408936 | I188: 0.9847426957 | J188: 1 | K188: 281.55 | L188: 283.65 | M188: 279.94 | N188: 283.41 | O188: 120711700
A189: 174 | B189: 2019-08-05 | C189: 288.089996 | D189: 288.209991 | E189: 281.720001 | F189: 283.820007 | G189: 178745400 | H189: 279.489685 | I189: 0.9847427176 | J189: 1 | K189: 283.69 | L189: 283.81 | M189: 277.42 | N189: 279.49 | O189: 178745400
A190: 175 | B190: 2019-08-02 | C190: 293.850006 | D190: 294.119995 | E190: 290.899994 | F190: 292.619995 | G190: 116749700 | H190: 288.155396 | I190: 0.9847426728 | J190: 1 | K190: 289.37 | L190: 289.63 | M190: 286.46 | N190: 288.16 | O190: 116749700
A191: 176 | B191: 2019-08-01 | C191: 297.600006 | D191: 300.869995 | E191: 293.959991 | F191: 294.839996 | G191: 142646600 | H191: 290.341553 | I191: 0.9847427654 | J191: 1 | K191: 293.06 | L191: 296.28 | M191: 289.47 | N191: 290.34 | O191: 142646600
A192: 177 | B192: 2019-07-31 | C192: 300.98999 | D192: 301.200012 | E192: 295.200012 | F192: 297.429993 | G192: 104245200 | H192: 292.892029 | I192: 0.9847427492 | J192: 1 | K192: 296.4 | L192: 296.6 | M192: 290.7 | N192: 292.89 | O192: 104245200
A193: 178 | B193: 2019-07-30 | C193: 299.910004 | D193: 301.170013 | E193: 299.48999 | F193: 300.720001 | G193: 45849000 | H193: 296.131805 | I193: 0.9847426311 | J193: 1 | K193: 295.33 | L193: 296.57 | M193: 294.92 | N193: 296.13 | O193: 45849000
A194: 179 | B194: 2019-07-29 | C194: 301.880005 | D194: 302.01001 | E194: 300.850006 | F194: 301.459991 | G194: 38126500 | H194: 296.860504 | I194: 0.9847426287 | J194: 1 | K194: 297.27 | L194: 297.4 | M194: 296.26 | N194: 296.86 | O194: 38126500
A195: 180 | B195: 2019-07-26 | C195: 300.76001 | D195: 302.230011 | E195: 300.619995 | F195: 302.01001 | G195: 45084100 | H195: 297.40213 | I195: 0.9847426249 | J195: 1 | K195: 296.17 | L195: 297.62 | M195: 296.03 | N195: 297.4 | O195: 45084100
A196: 181 | B196: 2019-07-25 | C196: 300.940002 | D196: 301 | E196: 299.109985 | F196: 300 | G196: 55394100 | H196: 295.422791 | I196: 0.9847426367 | J196: 1 | K196: 296.35 | L196: 296.41 | M196: 294.55 | N196: 295.42 | O196: 55394100
A197: 182 | B197: 2019-07-24 | C197: 299.190002 | D197: 301.440002 | E197: 299.089996 | F197: 301.440002 | G197: 47213200 | H197: 296.840851 | I197: 0.9847427317 | J197: 1 | K197: 294.63 | L197: 296.84 | M197: 294.53 | N197: 296.84 | O197: 47213200
A198: 183 | B198: 2019-07-23 | C198: 299.140015 | D198: 300.029999 | E198: 298.220001 | F198: 300.029999 | G198: 44564500 | H198: 295.452362 | I198: 0.9847427357 | J198: 1 | K198: 294.58 | L198: 295.45 | M198: 293.67 | N198: 295.45 | O198: 44564500
A199: 184 | B199: 2019-07-22 | C199: 297.609985 | D199: 298.5 | E199: 297.040009 | F199: 297.899994 | G199: 43638100 | H199: 293.354858 | I199: 0.9847427456 | J199: 1 | K199: 293.07 | L199: 293.95 | M199: 292.51 | N199: 293.35 | O199: 43638100
A200: 185 | B200: 2019-07-19 | C200: 300.040009 | D200: 300.070007 | E200: 296.980011 | F200: 297.170013 | G200: 58678600 | H200: 292.636017 | I200: 0.984742754 | J200: 1 | K200: 295.46 | L200: 295.49 | M200: 292.45 | N200: 292.64 | O200: 58678600
... 4300 more rows

Sheet CalculationsAndCharts
A1: CorrelationCycleIndicator.xlsm
A2: =InputPriceData!A1 -> SPDR S&P 500 ETF Trust (SPY) -NYSEArca (Daily)
A4: User Charting Controls | E4: Click to Shift Chart One Bar:
A5: Data Control | C5: FALSE
A6: =InputPriceData!$B$10 -> 6850 | B6: Available Input Data Rows | E6: Earliest: | F6: =OFFSET(InputPriceData!B15,CalculationsAndCharts!A6,0,1,1) -> 1993-01-29
A7: =MAX(A33:A56896) -> 1250 | B7: Available Calculation Rows | E7: Latest: | F7: =OFFSET(InputPriceData!B15,1,0,1,1) -> 2020-04-13
A8: =MIN(AvailableInputRows-DataPanRows,A7) -> 1250 | B8: Logically Available for Calc / Plot | E8: $ Change: | F8: =G33-G34 -> 2.709992
A10: Historical Price Windowing Specifications | F10: Click to Shift
A11: 82 | B11: Input Data Offset (Pan) | F11: Points to Plot
A12: 253 | B12: Data Points to Plot (Zoom)
B13: First: | C13: =OFFSET(B32,A12,0,1,1) -> 2018-12-12
B14: ="Last: " & IF(OFFSET(InputPriceData!P15,1+A11,0,1,1)="","",TEXT(OFFSET(InputPriceData!P15,1+A11,0,1,1),"H:MM AM/PM")) -> Last: | C14: =B33 -> 2019-12-12 | R14: 1
A15: Trend Correlation Controls
A16: 10 | B16: Correlation Trend Look Back
A17: 20 | B17: Correlation Trend Look Back
A18: 40 | B18: Correlation Trend Look Back
R19: TRUE
A20: Cycle Correlation Controls
A21: 20 | B21: Base Correlation Cycle Period
A22: 25 | B22: Period for Theoretical Sinusoid | F22: 2 | R22: TRUE
A23: 9 | B23: Threshold: Trend vs Cycle Modes | R23: TRUE
R24: TRUE
A25: Help! I would like to plot data
A26: From | B26: 2018-12-12 | C26: =OFFSET(InputPriceData!$A$15,MATCH(B26,OFFSET(InputPriceData!B15,1,0,InputPriceData!$B$10,1),0),0,1,1)-C27 -> 253 | E26: 118
A27: To | B27: 2019-12-12 | C27: =OFFSET(InputPriceData!$A$15,MATCH(B27,OFFSET(InputPriceData!$B$15,1,0,InputPriceData!$B$10,1),0),0,1,1)-1 -> 82 | E27: =$A$12-$E$26+1 -> 136 | AB27: Chart Content work area
H28: Value @ Cursor => | I28: =OFFSET(A32,$E$27,0,1,1)&"(RR)" -> 136(RR) | J28: =OFFSET($B$32,E27,0,1,1) -> 2019-06-03 | K28: =TEXT(OFFSET(D32,$E$27,0,1,1),"#,##0.00")&"(o)" -> 275.31(o) | L28: =TEXT(OFFSET(E32,$E$27,0,1,1),"#,##0.00")&"(h)" -> 276.55(h) | M28: =TEXT(OFFSET(F32,$E$27,0,1,1),"#,##0.00")&"(l)" -> 273.09(l) | N28: =TEXT(OFFSET(G32,$E$27,0,1,1),"#,##0.00")&"(c)" -> 274.57(c) | O28: =TEXT(OFFSET(C32,$E$27,0,1,1),"#,##0.00,,""M""")&"(v)" -> 96.43M(v) | T28: ="Phasor("&A21&", " & IF(F22=1,0,A22) & ") Angle" -> Phasor(20, 25) Angle
E29: Cursor ==> | AE29: ="Cycle Correlation Angle(" & A21&", " & IF(F22=1,0,A22) & ")" -> Cycle Correlation Angle(20, 25) | AU29: Work Area For Chart Cursors
AE30: =F22 -> 2
A31: Rel Row | C31: ="Price Bars: " & InputPriceData!A1 -> Price Bars: SPDR S&P 500 ETF Trust (SPY) -NYSEArca (Daily) | H31: ="Trend Correl("&$A$16&")" -> Trend Correl(10) | I31: ="Trend Correl("&$A$17&")" -> Trend Correl(20) | J31: ="Trend Correl("&$A$18&")" -> Trend Correl(40) | K31: Angles in Radians | L31: Fixed -Sine | M31: Fixed Cos | N31: Theoretical Sinusoid | O31: =IF($F$22=1,G32,N31) -> Theoretical Sinusoid | P31: Theoretical Correlation | Q31: COS Correlation(R) | R31: -SIN Correlation(I) | T31: Rate Of Change | U31: ="Trend("&A21&", " &IF(F22=1,0,A22)&")" -> Trend(20, 25) | AE31: =IF($F$22=2,N31,"Correlation w -SIN") -> Theoretical Sinusoid | AF31: =IF($F$22=2,P31,"Correlation") -> Theoretical Correlation | AP31: Used To Color Vol Bars
B32: Date | C32: Volume | D32: Open | E32: High | F32: Low | G32: Close | S32: Angle | U32: State | AB32: =H31 -> Trend Correl(10) | AC32: =I31 -> Trend Correl(20) | AD32: =J31 -> Trend Correl(40) | AG32: Up | AH32: Down | AP32: Up Vol | AQ32: Dn Vol | AU32: Volume Cursor | AV32: =MAX(OFFSET(C33,0,0,A12,1)) -> 255345600 | AW32: OBVM Cursor | AY32: Price Chart Cursor | BA32: Correl Cursor | BC32: Price Phasor Cursor | BE32: Trend State Cursor | BG32: Cycle Cursor
A33: 1 | B33: =IF(A33>$A$8,"",OFFSET(InputPriceData!B$15,$A33+$A$11,0,1,1)) -> 2019-12-12 | C33: =IF($A33>$A$8,"",OFFSET(InputPriceData!G$15,CalculationsAndCharts!$A33+$A$11,IF($C$5,8,0),1,1)) -> 96389600 | D33: =IF(A33>$A$8,"",OFFSET(InputPriceData!C$15,CalculationsAndCharts!$A33+$A$11,IF($C$5,8,0),1,1)) -> 314.429993 | E33: =IF(A33>$A$8,"",OFFSET(InputPriceData!D$15,CalculationsAndCharts!$A33+$A$11,IF($C$5,8,0),1,1)) -> 317.98999 | F33: =IF(A33>$A$8,"",OFFSET(InputPriceData!E$15,CalculationsAndCharts!$A33+$A$11,IF($C$5,8,0),1,1)) -> 314.170013 | G33: =IF(A33>$A$8,"",OFFSET(InputPriceData!F$15,CalculationsAndCharts!$A33+$A$11,IF($C$5,8,0),1,1)) -> 317.130005 | H33: =IF(A33<$A$8,-CORREL(OFFSET($G33,0,0,$A$16,1),OFFSET($A$33,0,0,$A$16,1)),NA()) -> 0.6385573998 | I33: =IF(A33<$A$8,-CORREL(OFFSET($G33,0,0,$A$17,1),OFFSET($A$33,0,0,$A$17,1)),NA()) -> 0.5946904135 | J33: =IF(A33<$A$8,-CORREL(OFFSET($G33,0,0,$A$18,1),OFFSET($A$33,0,0,$A$18,1)),NA()) -> 0.9396708689 | K33: =RADIANS(360/$A$21*MOD((A33-1),$A$21)) -> 0 | L33: =-SIN(K33) -> 0 | M33: =COS(K33) -> 1 | N33: =IF($A$22=0,NA(),SIN(RADIANS(360/$A$22*(A33-1)))) -> 0 | O33: =IF($F$22=1,G33,N33) -> 0 | P33: =IF(A33<$A$8,CORREL(OFFSET($M$33,0,0,$A$21,1),OFFSET($O33,0,0,$A$21,1)),NA()) -> -0.4516903807 | Q33: =IF($A33<$A$8,CORREL(OFFSET($M$33,0,0,$A$21,1),OFFSET($O33,0,0,$A$21,1)),NA()) -> -0.4516903807 | R33: =IF($A33<$A$8,CORREL(OFFSET($L$33,0,0,$A$21,1),OFFSET($O33,0,0,$A$21,1)),NA()) -> -0.8554943325 | S33: =IF(R33<>0,90+DEGREES(ATAN(Q33/R33))-IF(R33>0,180,0)) -> 117.8334974 | T33: =IF(A33>=$A$8-2,$S33,IF(AND((T34-$S33)<270,$S33<T34),T34,$S33)) -> 117.8334974 | U33: =IF(ABS(T33-T34)<$A$23,IF(T33<0,-1,IF(T33>=0,1,0)),0) -> 0 | AB33: =IF($R$22,H33,NA()) -> 0.6385573998 | AC33: =IF($R$23,I33,NA()) -> 0.5946904135 | AD33: =IF($R$24,J33,NA()) -> 0.9396708689 | AE33: =IF($F$22=2,N33,R33) -> 0 | AF33: =IF($F$22=2,P33,Q33) -> -0.4516903807 | AG33: =IF(AND($R$14=3,$R$19,$U33=1),$AZ$34,NA()) ->  | AH33: =IF(AND($R$14=3,$R$19,$U33=-1),$AZ$34,NA()) ->  | AP33: =IF(G33>=D33,C33,NA()) -> 96389600 | AQ33: =IF(G33<D33,C33,NA()) ->  | AU33: =$E$27 -> 136 | AV33: 0 | AW33: =$E$27 -> 136 | AX33: 62500000 | AY33: =$E$27 -> 136 | AZ33: 227.9159951 | BA33: =$E$27 -> 136 | BB33: =IF($F$22=1,-1,NA()) ->  | BC33: =$E$27 -> 136 | BD33: =IF($F$22=1,-180,NA()) ->  | BE33: =$E$27 -> 136 | BF33: =IF($F$22=1,-1,NA()) ->  | BG33: =$E$27 -> 136 | BH33: =IF($F$22=1,-1,NA()) -> 
A34: 2 | B34: =IF(A34>$A$8,"",OFFSET(InputPriceData!B$15,$A34+$A$11,0,1,1)) -> 2019-12-11 | C34: =IF(A34>$A$8,"",OFFSET(InputPriceData!G$15,CalculationsAndCharts!$A34+$A$11,IF($C$5,8,0),1,1)) -> 53429100 | D34: =IF(A34>$A$8,"",OFFSET(InputPriceData!C$15,CalculationsAndCharts!$A34+$A$11,IF($C$5,8,0),1,1)) -> 314.029999 | E34: =IF(A34>$A$8,"",OFFSET(InputPriceData!D$15,CalculationsAndCharts!$A34+$A$11,IF($C$5,8,0),1,1)) -> 314.700012 | F34: =IF(A34>$A$8,"",OFFSET(InputPriceData!E$15,CalculationsAndCharts!$A34+$A$11,IF($C$5,8,0),1,1)) -> 313.440002 | G34: =IF(A34>$A$8,"",OFFSET(InputPriceData!F$15,CalculationsAndCharts!$A34+$A$11,IF($C$5,8,0),1,1)) -> 314.420013 | H34: 0.1249885457 | I34: 0.5770180324 | J34: 0.9398551889 | K34: 0.3141592654 | L34: =-SIN(K34) -> -0.3090169944 | M34: =COS(K34) -> 0.9510565163 | N34: 0.2486898872 | O34: 0.2486898872 | P34: -0.2431918379 | Q34: -0.2431918379 | R34: -0.9285090696 | S34: =IF(R34<>0,90+DEGREES(ATAN(Q34/R34))-IF(R34>0,180,0)) -> 104.6770221 | T34: =IF(A34>=$A$8-2,$S34,IF(AND((T35-$S34)<270,$S34<T35),T35,$S34)) -> 104.6770221 | U34: =IF(ABS(T34-T35)<$A$23,IF(T34<0,-1,IF(T34>=0,1,0)),0) -> 0 | AB34: 0.1249885457 | AC34: 0.5770180324 | AD34: 0.9398551889 | AE34: 0.2486898872 | AF34: -0.2431918379 | AG34: =IF(AND($R$14=3,$R$19,$U34=1),$AZ$34,NA()) ->  | AH34: =IF(AND($R$14=3,$R$19,$U34=-1),$AZ$34,NA()) ->  | AP34: =IF(G34>=D34,C34,NA()) -> 53429100 | AQ34: =IF(G34<D34,C34,NA()) ->  | AU34: =$E$27 -> 136 | AV34: =CEILING(AV32,10^INT(LOG10(AV32))/8) -> 262500000 | AW34: =$E$27 -> 136 | AX34: 125000000 | AY34: =$E$27 -> 136 | AZ34: 325.9397398 | BA34: =$E$27 -> 136 | BB34: =IF($F$22=1,1,NA()) ->  | BC34: =$E$27 -> 136 | BD34: =IF($F$22=1,180,NA()) ->  | BE34: =$E$27 -> 136 | BF34: =IF($F$22=1,1,NA()) ->  | BG34: =$E$27 -> 136 | BH34: =IF($F$22=1,1,NA()) -> 
A35: 3 | B35: =IF(A35>$A$8,"",OFFSET(InputPriceData!B$15,$A35+$A$11,0,1,1)) -> 2019-12-10 | C35: =IF(A35>$A$8,"",OFFSET(InputPriceData!G$15,CalculationsAndCharts!$A35+$A$11,IF($C$5,8,0),1,1)) -> 52649800 | D35: =IF(A35>$A$8,"",OFFSET(InputPriceData!C$15,CalculationsAndCharts!$A35+$A$11,IF($C$5,8,0),1,1)) -> 313.820007 | E35: =IF(A35>$A$8,"",OFFSET(InputPriceData!D$15,CalculationsAndCharts!$A35+$A$11,IF($C$5,8,0),1,1)) -> 314.549988 | F35: =IF(A35>$A$8,"",OFFSET(InputPriceData!E$15,CalculationsAndCharts!$A35+$A$11,IF($C$5,8,0),1,1)) -> 312.809998 | G35: =IF(A35>$A$8,"",OFFSET(InputPriceData!F$15,CalculationsAndCharts!$A35+$A$11,IF($C$5,8,0),1,1)) -> 313.529999 | H35: -0.1024957597 | I35: 0.5961359741 | J35: 0.9434537484 | K35: 0.6283185307 | L35: -0.5877852523 | M35: 0.8090169944 | N35: 0.4817536741 | O35: 0.4817536741 | P35: -0.04289620124 | Q35: -0.04289620124 | R35: -0.9543174948 | S35: 92.57369065 | T35: 92.57369065 | U35: 0 | AB35: -0.1024957597 | AC35: 0.5961359741 | AD35: 0.9434537484 | AE35: 0.4817536741 | AF35: -0.04289620124 | AP35: =IF(G35>=D35,C35,NA()) ->  | AQ35: =IF(G35<D35,C35,NA()) -> 52649800
A36: 4 | B36: =IF(A36>$A$8,"",OFFSET(InputPriceData!B$15,$A36+$A$11,0,1,1)) -> 2019-12-09 | C36: =IF(A36>$A$8,"",OFFSET(InputPriceData!G$15,CalculationsAndCharts!$A36+$A$11,IF($C$5,8,0),1,1)) -> 34838500 | D36: =IF(A36>$A$8,"",OFFSET(InputPriceData!C$15,CalculationsAndCharts!$A36+$A$11,IF($C$5,8,0),1,1)) -> 314.440002 | E36: =IF(A36>$A$8,"",OFFSET(InputPriceData!D$15,CalculationsAndCharts!$A36+$A$11,IF($C$5,8,0),1,1)) -> 315.179993 | F36: =IF(A36>$A$8,"",OFFSET(InputPriceData!E$15,CalculationsAndCharts!$A36+$A$11,IF($C$5,8,0),1,1)) -> 313.799988 | G36: =IF(A36>$A$8,"",OFFSET(InputPriceData!F$15,CalculationsAndCharts!$A36+$A$11,IF($C$5,8,0),1,1)) -> 313.880005 | H36: -0.1776769654 | I36: 0.638715957 | J36: 0.9482344813 | K36: 0.9424777961 | L36: -0.8090169944 | M36: 0.5877852523 | N36: 0.6845471059 | O36: 0.6845471059 | P36: 0.1492044882 | Q36: 0.1492044882 | R36: -0.9420400633 | S36: 81 | T36: 81 | U36: 0 | AB36: -0.1776769654 | AC36: 0.638715957 | AD36: 0.9482344813 | AE36: 0.6845471059 | AF36: 0.1492044882 | AP36: =IF(G36>=D36,C36,NA()) ->  | AQ36: =IF(G36<D36,C36,NA()) -> 34838500
A37: 5 | B37: =IF(A37>$A$8,"",OFFSET(InputPriceData!B$15,$A37+$A$11,0,1,1)) -> 2019-12-06 | C37: =IF(A37>$A$8,"",OFFSET(InputPriceData!G$15,CalculationsAndCharts!$A37+$A$11,IF($C$5,8,0),1,1)) -> 48927000 | D37: =IF(A37>$A$8,"",OFFSET(InputPriceData!C$15,CalculationsAndCharts!$A37+$A$11,IF($C$5,8,0),1,1)) -> 314.119995 | E37: =IF(A37>$A$8,"",OFFSET(InputPriceData!D$15,CalculationsAndCharts!$A37+$A$11,IF($C$5,8,0),1,1)) -> 315.309998 | F37: =IF(A37>$A$8,"",OFFSET(InputPriceData!E$15,CalculationsAndCharts!$A37+$A$11,IF($C$5,8,0),1,1)) -> 314.109985 | G37: =IF(A37>$A$8,"",OFFSET(InputPriceData!F$15,CalculationsAndCharts!$A37+$A$11,IF($C$5,8,0),1,1)) -> 314.869995 | H37: -0.0744847374 | I37: 0.6474484663 | J37: 0.9521135295 | K37: 1.256637061 | L37: -0.9510565163 | M37: 0.3090169944 | N37: 0.8443279255 | O37: 0.8443279255 | P37: 0.3356970356 | Q37: 0.3356970356 | R37: -0.8943542169 | S37: 69.42630935 | T37: 69.42630935 | U37: 0 | AB37: -0.0744847374 | AC37: 0.6474484663 | AD37: 0.9521135295 | AE37: 0.8443279255 | AF37: 0.3356970356 | AP37: 48927000
A38: 6 | B38: =IF(A38>$A$8,"",OFFSET(InputPriceData!B$15,$A38+$A$11,0,1,1)) -> 2019-12-05 | C38: =IF(A38>$A$8,"",OFFSET(InputPriceData!G$15,CalculationsAndCharts!$A38+$A$11,IF($C$5,8,0),1,1)) -> 40709000 | D38: =IF(A38>$A$8,"",OFFSET(InputPriceData!C$15,CalculationsAndCharts!$A38+$A$11,IF($C$5,8,0),1,1)) -> 312.230011 | E38: =IF(A38>$A$8,"",OFFSET(InputPriceData!D$15,CalculationsAndCharts!$A38+$A$11,IF($C$5,8,0),1,1)) -> 312.25 | F38: =IF(A38>$A$8,"",OFFSET(InputPriceData!E$15,CalculationsAndCharts!$A38+$A$11,IF($C$5,8,0),1,1)) -> 310.579987 | G38: =IF(A38>$A$8,"",OFFSET(InputPriceData!F$15,CalculationsAndCharts!$A38+$A$11,IF($C$5,8,0),1,1)) -> 312.019989 | H38: -0.07972289012 | I38: 0.6401608215 | J38: 0.9511541494 | K38: 1.570796327 | L38: -1 | M38: 6.125742275e-17 | N38: 0.9510565163 | O38: 0.9510565163 | P38: 0.5182142641 | Q38: 0.5182142641 | R38: -0.8079141903 | S38: 57.32297794 | T38: 57.32297794 | U38: 0 | AB38: -0.07972289012 | AC38: 0.6401608215 | AD38: 0.9511541494 | AE38: 0.9510565163 | AF38: 0.5182142641 | AQ38: 40709000
A39: 7 | B39: =IF(A39>$A$8,"",OFFSET(InputPriceData!B$15,$A39+$A$11,0,1,1)) -> 2019-12-04 | C39: =IF(A39>$A$8,"",OFFSET(InputPriceData!G$15,CalculationsAndCharts!$A39+$A$11,IF($C$5,8,0),1,1)) -> 49080000 | D39: =IF(A39>$A$8,"",OFFSET(InputPriceData!C$15,CalculationsAndCharts!$A39+$A$11,IF($C$5,8,0),1,1)) -> 310.700012 | E39: =IF(A39>$A$8,"",OFFSET(InputPriceData!D$15,CalculationsAndCharts!$A39+$A$11,IF($C$5,8,0),1,1)) -> 312.119995 | F39: =IF(A39>$A$8,"",OFFSET(InputPriceData!E$15,CalculationsAndCharts!$A39+$A$11,IF($C$5,8,0),1,1)) -> 310.320007 | G39: =IF(A39>$A$8,"",OFFSET(InputPriceData!F$15,CalculationsAndCharts!$A39+$A$11,IF($C$5,8,0),1,1)) -> 311.459991 | H39: 0.08143835313 | I39: 0.7056995976 | J39: 0.9547891186 | K39: 1.884955592 | L39: -0.9510565163 | M39: -0.3090169944 | N39: 0.9980267284 | O39: 0.9980267284 | P39: 0.6939453673 | Q39: 0.6939453673 | R39: -0.6740434557 | S39: 44.16650262 | T39: 44.16650262 | U39: 0 | AB39: 0.08143835313 | AC39: 0.7056995976 | AD39: 0.9547891186 | AE39: 0.9980267284 | AF39: 0.6939453673 | AP39: 49080000
A40: 8 | B40: =IF(A40>$A$8,"",OFFSET(InputPriceData!B$15,$A40+$A$11,0,1,1)) -> 2019-12-03 | C40: =IF(A40>$A$8,"",OFFSET(InputPriceData!G$15,CalculationsAndCharts!$A40+$A$11,IF($C$5,8,0),1,1)) -> 73941700 | D40: =IF(A40>$A$8,"",OFFSET(InputPriceData!C$15,CalculationsAndCharts!$A40+$A$11,IF($C$5,8,0),1,1)) -> 308.649994 | E40: =IF(A40>$A$8,"",OFFSET(InputPriceData!D$15,CalculationsAndCharts!$A40+$A$11,IF($C$5,8,0),1,1)) -> 309.640015 | F40: =IF(A40>$A$8,"",OFFSET(InputPriceData!E$15,CalculationsAndCharts!$A40+$A$11,IF($C$5,8,0),1,1)) -> 307.130005 | G40: =IF(A40>$A$8,"",OFFSET(InputPriceData!F$15,CalculationsAndCharts!$A40+$A$11,IF($C$5,8,0),1,1)) -> 309.549988 | H40: 0.178563277 | I40: 0.7742675333 | J40: 0.956594163 | K40: 2.199114858 | L40: -0.8090169944 | M40: -0.5877852523 | N40: 0.9822872507 | O40: 0.9822872507 | P40: 0.8505977083 | Q40: 0.8505977083 | R40: -0.4813914521 | S40: 29.50747086 | T40: 29.50747086 | U40: 0 | AB40: 0.178563277 | AC40: 0.7742675333 | AD40: 0.956594163 | AE40: 0.9822872507 | AF40: 0.8505977083 | AP40: 73941700
A41: 9 | B41: =IF(A41>$A$8,"",OFFSET(InputPriceData!B$15,$A41+$A$11,0,1,1)) -> 2019-12-02 | C41: =IF(A41>$A$8,"",OFFSET(InputPriceData!G$15,CalculationsAndCharts!$A41+$A$11,IF($C$5,8,0),1,1)) -> 75767800 | D41: =IF(A41>$A$8,"",OFFSET(InputPriceData!C$15,CalculationsAndCharts!$A41+$A$11,IF($C$5,8,0),1,1)) -> 314.589996 | E41: =IF(A41>$A$8,"",OFFSET(InputPriceData!D$15,CalculationsAndCharts!$A41+$A$11,IF($C$5,8,0),1,1)) -> 314.660004 | F41: =IF(A41>$A$8,"",OFFSET(InputPriceData!E$15,CalculationsAndCharts!$A41+$A$11,IF($C$5,8,0),1,1)) -> 311.170013 | G41: =IF(A41>$A$8,"",OFFSET(InputPriceData!F$15,CalculationsAndCharts!$A41+$A$11,IF($C$5,8,0),1,1)) -> 311.640015 | H41: 0.5359894866 | I41: 0.8964078329 | J41: 0.9712841281 | K41: 2.513274123 | L41: -0.5877852523 | M41: -0.8090169944 | N41: 0.9048270525 | O41: 0.9048270525 | P41: 0.9613788356 | Q41: 0.9613788356 | R41: -0.2248572087 | S41: 13.16428408 | T41: 13.16428408 | U41: 0 | AB41: 0.5359894866 | AC41: 0.8964078329 | AD41: 0.9712841281 | AE41: 0.9048270525 | AF41: 0.9613788356 | AQ41: 75767800
A42: 10 | B42: =IF(A42>$A$8,"",OFFSET(InputPriceData!B$15,$A42+$A$11,0,1,1)) -> 2019-11-29 | C42: =IF(A42>$A$8,"",OFFSET(InputPriceData!G$15,CalculationsAndCharts!$A42+$A$11,IF($C$5,8,0),1,1)) -> 36592700 | D42: =IF(A42>$A$8,"",OFFSET(InputPriceData!C$15,CalculationsAndCharts!$A42+$A$11,IF($C$5,8,0),1,1)) -> 314.859985 | E42: =IF(A42>$A$8,"",OFFSET(InputPriceData!D$15,CalculationsAndCharts!$A42+$A$11,IF($C$5,8,0),1,1)) -> 315.130005 | F42: =IF(A42>$A$8,"",OFFSET(InputPriceData!E$15,CalculationsAndCharts!$A42+$A$11,IF($C$5,8,0),1,1)) -> 314.059998 | G42: =IF(A42>$A$8,"",OFFSET(InputPriceData!F$15,CalculationsAndCharts!$A42+$A$11,IF($C$5,8,0),1,1)) -> 314.309998 | H42: 0.7032114421 | I42: 0.940973724 | J42: 0.9766231083 | K42: 2.827433388 | L42: -0.3090169944 | M42: -0.9510565163 | N42: 0.7705132428 | O42: 0.7705132428 | P42: 0.9899341049 | Q42: 0.9899341049 | R42: 0.07773424042 | S42: -4.48991835 | T42: -4.48991835 | U42: 0 | AB42: 0.7032114421 | AC42: 0.940973724 | AD42: 0.9766231083 | AE42: 0.7705132428 | AF42: 0.9899341049 | AQ42: 36592700
A43: 11 | B43: =IF(A43>$A$8,"",OFFSET(InputPriceData!B$15,$A43+$A$11,0,1,1)) -> 2019-11-27 | C43: =IF(A43>$A$8,"",OFFSET(InputPriceData!G$15,CalculationsAndCharts!$A43+$A$11,IF($C$5,8,0),1,1)) -> 44444600 | D43: =IF(A43>$A$8,"",OFFSET(InputPriceData!C$15,CalculationsAndCharts!$A43+$A$11,IF($C$5,8,0),1,1)) -> 314.609985 | E43: =IF(A43>$A$8,"",OFFSET(InputPriceData!D$15,CalculationsAndCharts!$A43+$A$11,IF($C$5,8,0),1,1)) -> 315.480011 | F43: =IF(A43>$A$8,"",OFFSET(InputPriceData!E$15,CalculationsAndCharts!$A43+$A$11,IF($C$5,8,0),1,1)) -> 314.369995 | G43: =IF(A43>$A$8,"",OFFSET(InputPriceData!F$15,CalculationsAndCharts!$A43+$A$11,IF($C$5,8,0),1,1)) -> 315.480011 | H43: 0.731695899 | I43: 0.9342230854 | J43: 0.9775526556 | K43: 3.141592654 | L43: -1.225148455e-16 | M43: -1 | N43: 0.5877852523 | O43: 0.5877852523 | P43: 0.9158731514 | Q43: 0.9158731514 | R43: 0.3784392315 | S43: -22.45043776 | T43: -22.45043776 | U43: 0 | AB43: 0.731695899 | AC43: 0.9342230854 | AD43: 0.9775526556 | AE43: 0.5877852523 | AF43: 0.9158731514 | AP43: 44444600
A44: 12 | B44: =IF(A44>$A$8,"",OFFSET(InputPriceData!B$15,$A44+$A$11,0,1,1)) -> 2019-11-26 | C44: =IF(A44>$A$8,"",OFFSET(InputPriceData!G$15,CalculationsAndCharts!$A44+$A$11,IF($C$5,8,0),1,1)) -> 37569000 | D44: =IF(A44>$A$8,"",OFFSET(InputPriceData!C$15,CalculationsAndCharts!$A44+$A$11,IF($C$5,8,0),1,1)) -> 313.410004 | E44: =IF(A44>$A$8,"",OFFSET(InputPriceData!D$15,CalculationsAndCharts!$A44+$A$11,IF($C$5,8,0),1,1)) -> 314.279999 | F44: =IF(A44>$A$8,"",OFFSET(InputPriceData!E$15,CalculationsAndCharts!$A44+$A$11,IF($C$5,8,0),1,1)) -> 313.059998 | G44: =IF(A44>$A$8,"",OFFSET(InputPriceData!F$15,CalculationsAndCharts!$A44+$A$11,IF($C$5,8,0),1,1)) -> 314.079987 | H44: 0.7085749717 | I44: 0.9361574624 | J44: 0.9763024745 | K44: 3.455751919 | L44: 0.3090169944 | M44: -0.9510565163 | N44: 0.3681245527 | O44: 0.3681245527 | P44: 0.7577600105 | Q44: 0.7577600105 | R44: 0.625519641 | S44: -39.53916727 | T44: -39.53916727 | U44: 0 | AB44: 0.7085749717 | AC44: 0.9361574624 | AD44: 0.9763024745 | AE44: 0.3681245527 | AF44: 0.7577600105 | AP44: 37569000
A45: 13 | B45: =IF(A45>$A$8,"",OFFSET(InputPriceData!B$15,$A45+$A$11,0,1,1)) -> 2019-11-25 | C45: =IF(A45>$A$8,"",OFFSET(InputPriceData!G$15,CalculationsAndCharts!$A45+$A$11,IF($C$5,8,0),1,1)) -> 48647200 | D45: =IF(A45>$A$8,"",OFFSET(InputPriceData!C$15,CalculationsAndCharts!$A45+$A$11,IF($C$5,8,0),1,1)) -> 311.980011 | E45: =IF(A45>$A$8,"",OFFSET(InputPriceData!D$15,CalculationsAndCharts!$A45+$A$11,IF($C$5,8,0),1,1)) -> 313.369995 | F45: =IF(A45>$A$8,"",OFFSET(InputPriceData!E$15,CalculationsAndCharts!$A45+$A$11,IF($C$5,8,0),1,1)) -> 311.980011 | G45: =IF(A45>$A$8,"",OFFSET(InputPriceData!F$15,CalculationsAndCharts!$A45+$A$11,IF($C$5,8,0),1,1)) -> 313.369995 | H45: 0.6795787051 | I45: 0.935403 | J45: 0.9739925913 | K45: 3.769911184 | L45: 0.5877852523 | M45: -0.8090169944 | N45: 0.1253332336 | O45: 0.1253332336 | P45: 0.5569916222 | Q45: 0.5569916222 | R45: 0.7968191743 | S45: -55.04572592 | T45: -55.04572592 | U45: 0 | AB45: 0.6795787051 | AC45: 0.935403 | AD45: 0.9739925913 | AE45: 0.1253332336 | AF45: 0.5569916222 | AP45: 48647200
A46: 14 | B46: =IF(A46>$A$8,"",OFFSET(InputPriceData!B$15,$A46+$A$11,0,1,1)) -> 2019-11-22 | C46: =IF(A46>$A$8,"",OFFSET(InputPriceData!G$15,CalculationsAndCharts!$A46+$A$11,IF($C$5,8,0),1,1)) -> 44850200 | D46: =IF(A46>$A$8,"",OFFSET(InputPriceData!C$15,CalculationsAndCharts!$A46+$A$11,IF($C$5,8,0),1,1)) -> 311.089996 | E46: =IF(A46>$A$8,"",OFFSET(InputPriceData!D$15,CalculationsAndCharts!$A46+$A$11,IF($C$5,8,0),1,1)) -> 311.23999 | F46: =IF(A46>$A$8,"",OFFSET(InputPriceData!E$15,CalculationsAndCharts!$A46+$A$11,IF($C$5,8,0),1,1)) -> 309.850006 | G46: =IF(A46>$A$8,"",OFFSET(InputPriceData!F$15,CalculationsAndCharts!$A46+$A$11,IF($C$5,8,0),1,1)) -> 310.959991 | H46: 0.6633412436 | I46: 0.9355012442 | J46: 0.961717646 | K46: 4.08407045 | L46: 0.8090169944 | M46: -0.5877852523 | N46: -0.1253332336 | O46: -0.1253332336 | P46: 0.3466485339 | Q46: 0.3466485339 | R46: 0.8987221286 | S46: -68.90773985 | T46: -68.90773985 | U46: 0 | AB46: 0.6633412436 | AC46: 0.9355012442 | AD46: 0.961717646 | AE46: -0.1253332336 | AF46: 0.3466485339 | AQ46: 44850200
A47: 15 | B47: =IF(A47>$A$8,"",OFFSET(InputPriceData!B$15,$A47+$A$11,0,1,1)) -> 2019-11-21 | C47: =IF(A47>$A$8,"",OFFSET(InputPriceData!G$15,CalculationsAndCharts!$A47+$A$11,IF($C$5,8,0),1,1)) -> 54664700 | D47: =IF(A47>$A$8,"",OFFSET(InputPriceData!C$15,CalculationsAndCharts!$A47+$A$11,IF($C$5,8,0),1,1)) -> 310.890015 | E47: =IF(A47>$A$8,"",OFFSET(InputPriceData!D$15,CalculationsAndCharts!$A47+$A$11,IF($C$5,8,0),1,1)) -> 311.01001 | F47: =IF(A47>$A$8,"",OFFSET(InputPriceData!E$15,CalculationsAndCharts!$A47+$A$11,IF($C$5,8,0),1,1)) -> 309.390015 | G47: =IF(A47>$A$8,"",OFFSET(InputPriceData!F$15,CalculationsAndCharts!$A47+$A$11,IF($C$5,8,0),1,1)) -> 310.269989 | H47: 0.7233908666 | I47: 0.9487616483 | J47: 0.9550434338 | K47: 4.398229715 | L47: 0.9510565163 | M47: -0.3090169944 | N47: -0.3681245527 | O47: -0.3681245527 | P47: 0.1419074621 | Q47: 0.1419074621 | R47: 0.9465905853 | S47: -81.47403682 | T47: -81.47403682 | U47: 0 | AB47: 0.7233908666 | AC47: 0.9487616483 | AD47: 0.9550434338 | AE47: -0.3681245527 | AF47: 0.1419074621 | AQ47: 54664700
A48: 16 | B48: =IF(A48>$A$8,"",OFFSET(InputPriceData!B$15,$A48+$A$11,0,1,1)) -> 2019-11-20 | C48: =IF(A48>$A$8,"",OFFSET(InputPriceData!G$15,CalculationsAndCharts!$A48+$A$11,IF($C$5,8,0),1,1)) -> 79406200 | D48: =IF(A48>$A$8,"",OFFSET(InputPriceData!C$15,CalculationsAndCharts!$A48+$A$11,IF($C$5,8,0),1,1)) -> 311.279999 | E48: =IF(A48>$A$8,"",OFFSET(InputPriceData!D$15,CalculationsAndCharts!$A48+$A$11,IF($C$5,8,0),1,1)) -> 311.850006 | F48: =IF(A48>$A$8,"",OFFSET(InputPriceData!E$15,CalculationsAndCharts!$A48+$A$11,IF($C$5,8,0),1,1)) -> 309.059998 | G48: =IF(A48>$A$8,"",OFFSET(InputPriceData!F$15,CalculationsAndCharts!$A48+$A$11,IF($C$5,8,0),1,1)) -> 310.769989 | H48: 0.8627639608 | I48: 0.966358887 | J48: 0.941876332 | K48: 4.71238898 | L48: 1 | M48: -1.837722682e-16 | N48: -0.5877852523 | O48: -0.5877852523 | P48: -0.05403043772 | Q48: -0.05403043772 | R48: 0.952625196 | S48: -93.24619058 | T48: -93.24619058 | U48: 0 | AB48: 0.8627639608 | AC48: 0.966358887 | AD48: 0.941876332 | AE48: -0.5877852523 | AF48: -0.05403043772 | AQ48: 79406200
A49: 17 | B49: =IF(A49>$A$8,"",OFFSET(InputPriceData!B$15,$A49+$A$11,0,1,1)) -> 2019-11-19 | C49: =IF(A49>$A$8,"",OFFSET(InputPriceData!G$15,CalculationsAndCharts!$A49+$A$11,IF($C$5,8,0),1,1)) -> 67804700 | D49: =IF(A49>$A$8,"",OFFSET(InputPriceData!C$15,CalculationsAndCharts!$A49+$A$11,IF($C$5,8,0),1,1)) -> 312.679993 | E49: =IF(A49>$A$8,"",OFFSET(InputPriceData!D$15,CalculationsAndCharts!$A49+$A$11,IF($C$5,8,0),1,1)) -> 312.690002 | F49: =IF(A49>$A$8,"",OFFSET(InputPriceData!E$15,CalculationsAndCharts!$A49+$A$11,IF($C$5,8,0),1,1)) -> 311.220001 | G49: =IF(A49>$A$8,"",OFFSET(InputPriceData!F$15,CalculationsAndCharts!$A49+$A$11,IF($C$5,8,0),1,1)) -> 311.929993 | H49: 0.936176695 | I49: 0.9767139634 | J49: 0.9229108426 | K49: 5.026548246 | L49: 0.9510565163 | M49: 0.3090169944 | N49: -0.7705132428 | O49: -0.7705132428 | P49: -0.242991375 | Q49: -0.242991375 | R49: 0.9226967237 | S49: -104.7538094 | T49: -104.7538094 | U49: 0 | AB49: 0.936176695 | AC49: 0.9767139634 | AD49: 0.9229108426 | AE49: -0.7705132428 | AF49: -0.242991375 | AQ49: 67804700
A50: 18 | B50: =IF(A50>$A$8,"",OFFSET(InputPriceData!B$15,$A50+$A$11,0,1,1)) -> 2019-11-18 | C50: =IF(A50>$A$8,"",OFFSET(InputPriceData!G$15,CalculationsAndCharts!$A50+$A$11,IF($C$5,8,0),1,1)) -> 49228000 | D50: =IF(A50>$A$8,"",OFFSET(InputPriceData!C$15,CalculationsAndCharts!$A50+$A$11,IF($C$5,8,0),1,1)) -> 311.529999 | E50: =IF(A50>$A$8,"",OFFSET(InputPriceData!D$15,CalculationsAndCharts!$A50+$A$11,IF($C$5,8,0),1,1)) -> 312.279999 | F50: =IF(A50>$A$8,"",OFFSET(InputPriceData!E$15,CalculationsAndCharts!$A50+$A$11,IF($C$5,8,0),1,1)) -> 311.029999 | G50: =IF(A50>$A$8,"",OFFSET(InputPriceData!F$15,CalculationsAndCharts!$A50+$A$11,IF($C$5,8,0),1,1)) -> 312.019989 | H50: 0.9309126114 | I50: 0.9775133981 | J50: 0.9079894954 | K50: 5.340707511 | L50: 0.8090169944 | M50: 0.5877852523 | N50: -0.9048270525 | O50: -0.9048270525 | P50: -0.4274745941 | Q50: -0.4274745941 | R50: 0.856409327 | S50: -116.5259632 | T50: -116.5259632 | U50: 0 | AB50: 0.9309126114 | AC50: 0.9775133981 | AD50: 0.9079894954 | AE50: -0.9048270525 | AF50: -0.4274745941 | AP50: 49228000
A51: 19 | B51: =IF(A51>$A$8,"",OFFSET(InputPriceData!B$15,$A51+$A$11,0,1,1)) -> 2019-11-15 | C51: =IF(A51>$A$8,"",OFFSET(InputPriceData!G$15,CalculationsAndCharts!$A51+$A$11,IF($C$5,8,0),1,1)) -> 62023600 | D51: =IF(A51>$A$8,"",OFFSET(InputPriceData!C$15,CalculationsAndCharts!$A51+$A$11,IF($C$5,8,0),1,1)) -> 311.019989 | E51: =IF(A51>$A$8,"",OFFSET(InputPriceData!D$15,CalculationsAndCharts!$A51+$A$11,IF($C$5,8,0),1,1)) -> 311.839996 | F51: =IF(A51>$A$8,"",OFFSET(InputPriceData!E$15,CalculationsAndCharts!$A51+$A$11,IF($C$5,8,0),1,1)) -> 310.26001 | G51: =IF(A51>$A$8,"",OFFSET(InputPriceData!F$15,CalculationsAndCharts!$A51+$A$11,IF($C$5,8,0),1,1)) -> 311.790009 | H51: 0.8976886803 | I51: 0.975976506 | J51: 0.8794023787 | K51: 5.654866776 | L51: 0.5877852523 | M51: 0.8090169944 | N51: -0.9822872507 | O51: -0.9822872507 | P51: -0.607402758 | Q51: -0.607402758 | R51: 0.7476152487 | S51: -129.0922601 | T51: -129.0922601 | U51: 0 | AB51: 0.8976886803 | AC51: 0.975976506 | AD51: 0.8794023787 | AE51: -0.9822872507 | AF51: -0.607402758 | AP51: 62023600
A52: 20 | B52: =IF(A52>$A$8,"",OFFSET(InputPriceData!B$15,$A52+$A$11,0,1,1)) -> 2019-11-14 | C52: =IF(A52>$A$8,"",OFFSET(InputPriceData!G$15,CalculationsAndCharts!$A52+$A$11,IF($C$5,8,0),1,1)) -> 51219900 | D52: =IF(A52>$A$8,"",OFFSET(InputPriceData!C$15,CalculationsAndCharts!$A52+$A$11,IF($C$5,8,0),1,1)) -> 308.790009 | E52: =IF(A52>$A$8,"",OFFSET(InputPriceData!D$15,CalculationsAndCharts!$A52+$A$11,IF($C$5,8,0),1,1)) -> 309.640015 | F52: =IF(A52>$A$8,"",OFFSET(InputPriceData!E$15,CalculationsAndCharts!$A52+$A$11,IF($C$5,8,0),1,1)) -> 308.089996 | G52: =IF(A52>$A$8,"",OFFSET(InputPriceData!F$15,CalculationsAndCharts!$A52+$A$11,IF($C$5,8,0),1,1)) -> 309.549988 | H52: 0.940186902 | I52: 0.9757285335 | J52: 0.847389455 | K52: 5.969026042 | L52: 0.3090169944 | M52: 0.9510565163 | N52: -0.9980267284 | O52: -0.9980267284 | P52: -0.7759611781 | Q52: -0.7759611781 | R52: 0.585700191 | S52: -142.9542741 | T52: -142.9542741 | U52: 0 | AB52: 0.940186902 | AC52: 0.9757285335 | AD52: 0.847389455 | AE52: -0.9980267284 | AF52: -0.7759611781 | AP52: 51219900
A53: 21 | B53: =IF(A53>$A$8,"",OFFSET(InputPriceData!B$15,$A53+$A$11,0,1,1)) -> 2019-11-13 | C53: =IF(A53>$A$8,"",OFFSET(InputPriceData!G$15,CalculationsAndCharts!$A53+$A$11,IF($C$5,8,0),1,1)) -> 53917700 | D53: =IF(A53>$A$8,"",OFFSET(InputPriceData!C$15,CalculationsAndCharts!$A53+$A$11,IF($C$5,8,0),1,1)) -> 307.910004 | E53: =IF(A53>$A$8,"",OFFSET(InputPriceData!D$15,CalculationsAndCharts!$A53+$A$11,IF($C$5,8,0),1,1)) -> 309.540009 | F53: =IF(A53>$A$8,"",OFFSET(InputPriceData!E$15,CalculationsAndCharts!$A53+$A$11,IF($C$5,8,0),1,1)) -> 307.660004 | G53: =IF(A53>$A$8,"",OFFSET(InputPriceData!F$15,CalculationsAndCharts!$A53+$A$11,IF($C$5,8,0),1,1)) -> 309.100006 | H53: 0.87528439 | I53: 0.9757954452 | J53: 0.793288292 | K53: 0 | L53: 0 | M53: 1 | N53: -0.9510565163 | O53: -0.9510565163 | P53: -0.9139687952 | Q53: -0.9139687952 | R53: 0.3607438098 | S53: -158.4608327 | T53: -158.4608327 | U53: 0 | AB53: 0.87528439 | AC53: 0.9757954452 | AD53: 0.793288292 | AE53: -0.9510565163 | AF53: -0.9139687952 | AP53: 53917700
A54: 22 | B54: =IF(A54>$A$8,"",OFFSET(InputPriceData!B$15,$A54+$A$11,0,1,1)) -> 2019-11-12 | C54: =IF(A54>$A$8,"",OFFSET(InputPriceData!G$15,CalculationsAndCharts!$A54+$A$11,IF($C$5,8,0),1,1)) -> 46484600 | D54: =IF(A54>$A$8,"",OFFSET(InputPriceData!C$15,CalculationsAndCharts!$A54+$A$11,IF($C$5,8,0),1,1)) -> 308.75 | E54: =IF(A54>$A$8,"",OFFSET(InputPriceData!D$15,CalculationsAndCharts!$A54+$A$11,IF($C$5,8,0),1,1)) -> 309.98999 | F54: =IF(A54>$A$8,"",OFFSET(InputPriceData!E$15,CalculationsAndCharts!$A54+$A$11,IF($C$5,8,0),1,1)) -> 308.149994 | G54: =IF(A54>$A$8,"",OFFSET(InputPriceData!F$15,CalculationsAndCharts!$A54+$A$11,IF($C$5,8,0),1,1)) -> 309 | H54: 0.9071909525 | I54: 0.9771573176 | J54: 0.734811955 | K54: 0.3141592654 | L54: -0.3090169944 | M54: 0.9510565163 | N54: -0.8443279255 | O54: -0.8443279255 | P54: -0.9879912826 | Q54: -0.9879912826 | R54: 0.07689672861 | S54: -175.5495622 | T54: -175.5495622 | U54: 0 | AB54: 0.9071909525 | AC54: 0.9771573176 | AD54: 0.734811955 | AE54: -0.8443279255 | AF54: -0.9879912826 | AP54: 46484600
A55: 23 | B55: =IF(A55>$A$8,"",OFFSET(InputPriceData!B$15,$A55+$A$11,0,1,1)) -> 2019-11-11 | C55: =IF(A55>$A$8,"",OFFSET(InputPriceData!G$15,CalculationsAndCharts!$A55+$A$11,IF($C$5,8,0),1,1)) -> 35797300 | D55: =IF(A55>$A$8,"",OFFSET(InputPriceData!C$15,CalculationsAndCharts!$A55+$A$11,IF($C$5,8,0),1,1)) -> 307.420013 | E55: =IF(A55>$A$8,"",OFFSET(InputPriceData!D$15,CalculationsAndCharts!$A55+$A$11,IF($C$5,8,0),1,1)) -> 308.540009 | F55: =IF(A55>$A$8,"",OFFSET(InputPriceData!E$15,CalculationsAndCharts!$A55+$A$11,IF($C$5,8,0),1,1)) -> 307.269989 | G55: =IF(A55>$A$8,"",OFFSET(InputPriceData!F$15,CalculationsAndCharts!$A55+$A$11,IF($C$5,8,0),1,1)) -> 308.350006 | H55: 0.9280125424 | I55: 0.9708642092 | J55: 0.672547037 | K55: 0.6283185307 | L55: -0.5877852523 | M55: 0.8090169944 | N55: -0.6845471059 | O55: -0.6845471059 | P55: -0.9655044825 | Q55: -0.9655044825 | R55: -0.2319768058 | S55: 166.4899184 | T55: 166.4899184 | U55: 0 | AB55: 0.9280125424 | AC55: 0.9708642092 | AD55: 0.672547037 | AE55: -0.6845471059 | AF55: -0.9655044825 | AP55: 35797300
A56: 24 | B56: =IF(A56>$A$8,"",OFFSET(InputPriceData!B$15,$A56+$A$11,0,1,1)) -> 2019-11-08 | C56: =IF(A56>$A$8,"",OFFSET(InputPriceData!G$15,CalculationsAndCharts!$A56+$A$11,IF($C$5,8,0),1,1)) -> 49032100 | D56: =IF(A56>$A$8,"",OFFSET(InputPriceData!C$15,CalculationsAndCharts!$A56+$A$11,IF($C$5,8,0),1,1)) -> 307.799988 | E56: =IF(A56>$A$8,"",OFFSET(InputPriceData!D$15,CalculationsAndCharts!$A56+$A$11,IF($C$5,8,0),1,1)) -> 309 | F56: =IF(A56>$A$8,"",OFFSET(InputPriceData!E$15,CalculationsAndCharts!$A56+$A$11,IF($C$5,8,0),1,1)) -> 307.029999 | G56: =IF(A56>$A$8,"",OFFSET(InputPriceData!F$15,CalculationsAndCharts!$A56+$A$11,IF($C$5,8,0),1,1)) -> 308.940002 | H56: 0.9451837035 | I56: 0.9731951202 | J56: 0.6126813807 | K56: 0.9424777961 | L56: -0.8090169944 | M56: 0.5877852523 | N56: -0.4817536741 | O56: -0.4817536741 | P56: -0.8448409074 | Q56: -0.8448409074 | R56: -0.5109343118 | S56: 148.8357159 | T56: 148.8357159 | U56: 0 | AB56: 0.9451837035 | AC56: 0.9731951202 | AD56: 0.6126813807 | AE56: -0.4817536741 | AF56: -0.8448409074 | AP56: 49032100
A57: 25 | B57: =IF(A57>$A$8,"",OFFSET(InputPriceData!B$15,$A57+$A$11,0,1,1)) -> 2019-11-07 | C57: =IF(A57>$A$8,"",OFFSET(InputPriceData!G$15,CalculationsAndCharts!$A57+$A$11,IF($C$5,8,0),1,1)) -> 54272300 | D57: =IF(A57>$A$8,"",OFFSET(InputPriceData!C$15,CalculationsAndCharts!$A57+$A$11,IF($C$5,8,0),1,1)) -> 308.570007 | E57: =IF(A57>$A$8,"",OFFSET(InputPriceData!D$15,CalculationsAndCharts!$A57+$A$11,IF($C$5,8,0),1,1)) -> 309.649994 | F57: =IF(A57>$A$8,"",OFFSET(InputPriceData!E$15,CalculationsAndCharts!$A57+$A$11,IF($C$5,8,0),1,1)) -> 307.660004 | G57: =IF(A57>$A$8,"",OFFSET(InputPriceData!F$15,CalculationsAndCharts!$A57+$A$11,IF($C$5,8,0),1,1)) -> 308.179993 | H57: 0.9474186757 | I57: 0.9720099449 | J57: 0.5353666313 | K57: 1.256637061 | L57: -0.9510565163 | M57: 0.3090169944 | N57: -0.2486898872 | O57: -0.2486898872 | P57: -0.6602083535 | Q57: -0.6602083535 | R57: -0.7206796246 | S57: 132.4925291 | T57: 132.4925291 | U57: 0 | AB57: 0.9474186757 | AC57: 0.9720099449 | AD57: 0.5353666313 | AE57: -0.2486898872 | AF57: -0.6602083535 | AQ57: 54272300
A58: 26 | B58: =IF(A58>$A$8,"",OFFSET(InputPriceData!B$15,$A58+$A$11,0,1,1)) -> 2019-11-06 | C58: =IF(A58>$A$8,"",OFFSET(InputPriceData!G$15,CalculationsAndCharts!$A58+$A$11,IF($C$5,8,0),1,1)) -> 46487100 | D58: =IF(A58>$A$8,"",OFFSET(InputPriceData!C$15,CalculationsAndCharts!$A58+$A$11,IF($C$5,8,0),1,1)) -> 307.029999 | E58: =IF(A58>$A$8,"",OFFSET(InputPriceData!D$15,CalculationsAndCharts!$A58+$A$11,IF($C$5,8,0),1,1)) -> 307.399994 | F58: =IF(A58>$A$8,"",OFFSET(InputPriceData!E$15,CalculationsAndCharts!$A58+$A$11,IF($C$5,8,0),1,1)) -> 306.059998 | G58: =IF(A58>$A$8,"",OFFSET(InputPriceData!F$15,CalculationsAndCharts!$A58+$A$11,IF($C$5,8,0),1,1)) -> 307.100006 | H58: 0.9510657297 | I58: 0.9686738966 | J58: 0.4499376989 | K58: 1.570796327 | L58: -1 | M58: 6.125742275e-17 | N58: -2.45029691e-16 | O58: -2.45029691e-16 | P58: -0.4516903807 | Q58: -0.4516903807 | R58: -0.8554943325 | S58: 117.8334974 | T58: 117.8334974 | U58: 0 | AB58: 0.9510657297 | AC58: 0.9686738966 | AD58: 0.4499376989 | AE58: -2.45029691e-16 | AF58: -0.4516903807 | AP58: 46487100
A59: 27 | B59: =IF(A59>$A$8,"",OFFSET(InputPriceData!B$15,$A59+$A$11,0,1,1)) -> 2019-11-05 | C59: =IF(A59>$A$8,"",OFFSET(InputPriceData!G$15,CalculationsAndCharts!$A59+$A$11,IF($C$5,8,0),1,1)) -> 42933200 | D59: =IF(A59>$A$8,"",OFFSET(InputPriceData!C$15,CalculationsAndCharts!$A59+$A$11,IF($C$5,8,0),1,1)) -> 307.589996 | E59: =IF(A59>$A$8,"",OFFSET(InputPriceData!D$15,CalculationsAndCharts!$A59+$A$11,IF($C$5,8,0),1,1)) -> 307.920013 | F59: =IF(A59>$A$8,"",OFFSET(InputPriceData!E$15,CalculationsAndCharts!$A59+$A$11,IF($C$5,8,0),1,1)) -> 306.709991 | G59: =IF(A59>$A$8,"",OFFSET(InputPriceData!F$15,CalculationsAndCharts!$A59+$A$11,IF($C$5,8,0),1,1)) -> 307.029999 | H59: 0.9637796169 | I59: 0.9628418424 | J59: 0.3714299171 | K59: 1.884955592 | L59: -0.9510565163 | M59: -0.3090169944 | N59: 0.2486898872 | O59: 0.2486898872 | P59: -0.2431918379 | Q59: -0.2431918379 | R59: -0.9285090696 | S59: 104.6770221 | T59: 104.6770221 | U59: 0 | AB59: 0.9637796169 | AC59: 0.9628418424 | AD59: 0.3714299171 | AE59: 0.2486898872 | AF59: -0.2431918379 | AQ59: 42933200
A60: 28 | B60: =IF(A60>$A$8,"",OFFSET(InputPriceData!B$15,$A60+$A$11,0,1,1)) -> 2019-11-04 | C60: =IF(A60>$A$8,"",OFFSET(InputPriceData!G$15,CalculationsAndCharts!$A60+$A$11,IF($C$5,8,0),1,1)) -> 60606900 | D60: =IF(A60>$A$8,"",OFFSET(InputPriceData!C$15,CalculationsAndCharts!$A60+$A$11,IF($C$5,8,0),1,1)) -> 307.850006 | E60: =IF(A60>$A$8,"",OFFSET(InputPriceData!D$15,CalculationsAndCharts!$A60+$A$11,IF($C$5,8,0),1,1)) -> 308 | F60: =IF(A60>$A$8,"",OFFSET(InputPriceData!E$15,CalculationsAndCharts!$A60+$A$11,IF($C$5,8,0),1,1)) -> 306.959991 | G60: =IF(A60>$A$8,"",OFFSET(InputPriceData!F$15,CalculationsAndCharts!$A60+$A$11,IF($C$5,8,0),1,1)) -> 307.369995 | H60: 0.9671950303 | I60: 0.9501841264 | J60: 0.305535902 | K60: 2.199114858 | L60: -0.8090169944 | M60: -0.5877852523 | N60: 0.4817536741 | O60: 0.4817536741 | P60: -0.04289620124 | Q60: -0.04289620124 | R60: -0.9543174948 | S60: 92.57369065 | T60: 92.57369065 | U60: 0 | AB60: 0.9671950303 | AC60: 0.9501841264 | AD60: 0.305535902 | AE60: 0.4817536741 | AF60: -0.04289620124 | AQ60: 60606900
A61: 29 | B61: =IF(A61>$A$8,"",OFFSET(InputPriceData!B$15,$A61+$A$11,0,1,1)) -> 2019-11-01 | C61: =IF(A61>$A$8,"",OFFSET(InputPriceData!G$15,CalculationsAndCharts!$A61+$A$11,IF($C$5,8,0),1,1)) -> 71141500 | D61: =IF(A61>$A$8,"",OFFSET(InputPriceData!C$15,CalculationsAndCharts!$A61+$A$11,IF($C$5,8,0),1,1)) -> 304.920013 | E61: =IF(A61>$A$8,"",OFFSET(InputPriceData!D$15,CalculationsAndCharts!$A61+$A$11,IF($C$5,8,0),1,1)) -> 306.190002 | F61: =IF(A61>$A$8,"",OFFSET(InputPriceData!E$15,CalculationsAndCharts!$A61+$A$11,IF($C$5,8,0),1,1)) -> 304.73999 | G61: =IF(A61>$A$8,"",OFFSET(InputPriceData!F$15,CalculationsAndCharts!$A61+$A$11,IF($C$5,8,0),1,1)) -> 306.140015 | H61: 0.9419554376 | I61: 0.9438306373 | J61: 0.2261915145 | K61: 2.513274123 | L61: -0.5877852523 | M61: -0.8090169944 | N61: 0.6845471059 | O61: 0.6845471059 | P61: 0.1492044882 | Q61: 0.1492044882 | R61: -0.9420400633 | S61: 81 | T61: 81 | U61: 0 | AB61: 0.9419554376 | AC61: 0.9438306373 | AD61: 0.2261915145 | AE61: 0.6845471059 | AF61: 0.1492044882 | AP61: 71141500
A62: 30 | B62: =IF(A62>$A$8,"",OFFSET(InputPriceData!B$15,$A62+$A$11,0,1,1)) -> 2019-10-31 | C62: =IF(A62>$A$8,"",OFFSET(InputPriceData!G$15,CalculationsAndCharts!$A62+$A$11,IF($C$5,8,0),1,1)) -> 69053800 | D62: =IF(A62>$A$8,"",OFFSET(InputPriceData!C$15,CalculationsAndCharts!$A62+$A$11,IF($C$5,8,0),1,1)) -> 304.130005 | E62: =IF(A62>$A$8,"",OFFSET(InputPriceData!D$15,CalculationsAndCharts!$A62+$A$11,IF($C$5,8,0),1,1)) -> 304.130005 | F62: =IF(A62>$A$8,"",OFFSET(InputPriceData!E$15,CalculationsAndCharts!$A62+$A$11,IF($C$5,8,0),1,1)) -> 301.730011 | G62: =IF(A62>$A$8,"",OFFSET(InputPriceData!F$15,CalculationsAndCharts!$A62+$A$11,IF($C$5,8,0),1,1)) -> 303.329987 | H62: 0.9455075145 | I62: 0.9241100892 | J62: 0.1455858063 | K62: 2.827433388 | L62: -0.3090169944 | M62: -0.9510565163 | N62: 0.8443279255 | O62: 0.8443279255 | P62: 0.3356970356 | Q62: 0.3356970356 | R62: -0.8943542169 | S62: 69.42630935 | T62: 69.42630935 | U62: 0 | AB62: 0.9455075145 | AC62: 0.9241100892 | AD62: 0.1455858063 | AE62: 0.8443279255 | AF62: 0.3356970356 | AQ62: 69053800
A63: 31 | B63: =IF(A63>$A$8,"",OFFSET(InputPriceData!B$15,$A63+$A$11,0,1,1)) -> 2019-10-30 | C63: =IF(A63>$A$8,"",OFFSET(InputPriceData!G$15,CalculationsAndCharts!$A63+$A$11,IF($C$5,8,0),1,1)) -> 49643900 | D63: =IF(A63>$A$8,"",OFFSET(InputPriceData!C$15,CalculationsAndCharts!$A63+$A$11,IF($C$5,8,0),1,1)) -> 303.429993 | E63: =IF(A63>$A$8,"",OFFSET(InputPriceData!D$15,CalculationsAndCharts!$A63+$A$11,IF($C$5,8,0),1,1)) -> 304.549988 | F63: =IF(A63>$A$8,"",OFFSET(InputPriceData!E$15,CalculationsAndCharts!$A63+$A$11,IF($C$5,8,0),1,1)) -> 301.98999 | G63: =IF(A63>$A$8,"",OFFSET(InputPriceData!F$15,CalculationsAndCharts!$A63+$A$11,IF($C$5,8,0),1,1)) -> 304.140015 | H63: 0.9274802179 | I63: 0.9311484144 | J63: 0.08501513393 | K63: 3.141592654 | L63: -1.225148455e-16 | M63: -1 | N63: 0.9510565163 | O63: 0.9510565163 | P63: 0.5182142641 | Q63: 0.5182142641 | R63: -0.8079141903 | S63: 57.32297794 | T63: 57.32297794 | U63: 0 | AB63: 0.9274802179 | AC63: 0.9311484144 | AD63: 0.08501513393 | AE63: 0.9510565163 | AF63: 0.5182142641 | AP63: 49643900
A64: 32 | B64: =IF(A64>$A$8,"",OFFSET(InputPriceData!B$15,$A64+$A$11,0,1,1)) -> 2019-10-29 | C64: =IF(A64>$A$8,"",OFFSET(InputPriceData!G$15,CalculationsAndCharts!$A64+$A$11,IF($C$5,8,0),1,1)) -> 44284900 | D64: =IF(A64>$A$8,"",OFFSET(InputPriceData!C$15,CalculationsAndCharts!$A64+$A$11,IF($C$5,8,0),1,1)) -> 303 | E64: =IF(A64>$A$8,"",OFFSET(InputPriceData!D$15,CalculationsAndCharts!$A64+$A$11,IF($C$5,8,0),1,1)) -> 304.230011 | F64: =IF(A64>$A$8,"",OFFSET(InputPriceData!E$15,CalculationsAndCharts!$A64+$A$11,IF($C$5,8,0),1,1)) -> 302.859985 | G64: =IF(A64>$A$8,"",OFFSET(InputPriceData!F$15,CalculationsAndCharts!$A64+$A$11,IF($C$5,8,0),1,1)) -> 303.209991 | H64: 0.9029448481 | I64: 0.932049775 | J64: 0.05150569096 | K64: 3.455751919 | L64: 0.3090169944 | M64: -0.9510565163 | N64: 0.9980267284 | O64: 0.9980267284 | P64: 0.6939453673 | Q64: 0.6939453673 | R64: -0.6740434557 | S64: 44.16650262 | T64: 44.16650262 | U64: 0 | AB64: 0.9029448481 | AC64: 0.932049775 | AD64: 0.05150569096 | AE64: 0.9980267284 | AF64: 0.6939453673 | AP64: 44284900
A65: 33 | B65: =IF(A65>$A$8,"",OFFSET(InputPriceData!B$15,$A65+$A$11,0,1,1)) -> 2019-10-28 | C65: =IF(A65>$A$8,"",OFFSET(InputPriceData!G$15,CalculationsAndCharts!$A65+$A$11,IF($C$5,8,0),1,1)) -> 42147000 | D65: =IF(A65>$A$8,"",OFFSET(InputPriceData!C$15,CalculationsAndCharts!$A65+$A$11,IF($C$5,8,0),1,1)) -> 302.940002 | E65: =IF(A65>$A$8,"",OFFSET(InputPriceData!D$15,CalculationsAndCharts!$A65+$A$11,IF($C$5,8,0),1,1)) -> 303.850006 | F65: =IF(A65>$A$8,"",OFFSET(InputPriceData!E$15,CalculationsAndCharts!$A65+$A$11,IF($C$5,8,0),1,1)) -> 302.910004 | G65: =IF(A65>$A$8,"",OFFSET(InputPriceData!F$15,CalculationsAndCharts!$A65+$A$11,IF($C$5,8,0),1,1)) -> 303.299988 | H65: 0.8333257542 | I65: 0.9032788216 | J65: 0.05836667276 | K65: 3.769911184 | L65: 0.5877852523 | M65: -0.8090169944 | N65: 0.9822872507 | O65: 0.9822872507 | P65: 0.8505977083 | Q65: 0.8505977083 | R65: -0.4813914521 | S65: 29.50747086 | T65: 29.50747086 | U65: 0 | AB65: 0.8333257542 | AC65: 0.9032788216 | AD65: 0.05836667276 | AE65: 0.9822872507 | AF65: 0.8505977083 | AP65: 42147000
A66: 34 | B66: =IF(A66>$A$8,"",OFFSET(InputPriceData!B$15,$A66+$A$11,0,1,1)) -> 2019-10-25 | C66: =IF(A66>$A$8,"",OFFSET(InputPriceData!G$15,CalculationsAndCharts!$A66+$A$11,IF($C$5,8,0),1,1)) -> 45205400 | D66: =IF(A66>$A$8,"",OFFSET(InputPriceData!C$15,CalculationsAndCharts!$A66+$A$11,IF($C$5,8,0),1,1)) -> 299.73999 | E66: =IF(A66>$A$8,"",OFFSET(InputPriceData!D$15,CalculationsAndCharts!$A66+$A$11,IF($C$5,8,0),1,1)) -> 302.200012 | F66: =IF(A66>$A$8,"",OFFSET(InputPriceData!E$15,CalculationsAndCharts!$A66+$A$11,IF($C$5,8,0),1,1)) -> 299.679993 | G66: =IF(A66>$A$8,"",OFFSET(InputPriceData!F$15,CalculationsAndCharts!$A66+$A$11,IF($C$5,8,0),1,1)) -> 301.600006 | H66: 0.8389391795 | I66: 0.7995550744 | J66: 0.03840109681 | K66: 4.08407045 | L66: 0.8090169944 | M66: -0.5877852523 | N66: 0.9048270525 | O66: 0.9048270525 | P66: 0.9613788356 | Q66: 0.9613788356 | R66: -0.2248572087 | S66: 13.16428408 | T66: 13.16428408 | U66: 0 | AB66: 0.8389391795 | AC66: 0.7995550744 | AD66: 0.03840109681 | AE66: 0.9048270525 | AF66: 0.9613788356 | AP66: 45205400
A67: 35 | B67: =IF(A67>$A$8,"",OFFSET(InputPriceData!B$15,$A67+$A$11,0,1,1)) -> 2019-10-24 | C67: =IF(A67>$A$8,"",OFFSET(InputPriceData!G$15,CalculationsAndCharts!$A67+$A$11,IF($C$5,8,0),1,1)) -> 35453100 | D67: =IF(A67>$A$8,"",OFFSET(InputPriceData!C$15,CalculationsAndCharts!$A67+$A$11,IF($C$5,8,0),1,1)) -> 300.910004 | E67: =IF(A67>$A$8,"",OFFSET(InputPriceData!D$15,CalculationsAndCharts!$A67+$A$11,IF($C$5,8,0),1,1)) -> 301.070007 | F67: =IF(A67>$A$8,"",OFFSET(InputPriceData!E$15,CalculationsAndCharts!$A67+$A$11,IF($C$5,8,0),1,1)) -> 299.459991 | G67: =IF(A67>$A$8,"",OFFSET(InputPriceData!F$15,CalculationsAndCharts!$A67+$A$11,IF($C$5,8,0),1,1)) -> 300.369995 | H67: 0.8370157409 | I67: 0.7173162042 | J67: 0.03034374784 | K67: 4.398229715 | L67: 0.9510565163 | M67: -0.3090169944 | N67: 0.7705132428 | O67: 0.7705132428 | P67: 0.9899341049 | Q67: 0.9899341049 | R67: 0.07773424042 | S67: -4.48991835 | T67: -4.48991835 | U67: 0 | AB67: 0.8370157409 | AC67: 0.7173162042 | AD67: 0.03034374784 | AE67: 0.7705132428 | AF67: 0.9899341049 | AQ67: 35453100
A68: 36 | B68: =IF(A68>$A$8,"",OFFSET(InputPriceData!B$15,$A68+$A$11,0,1,1)) -> 2019-10-23 | C68: =IF(A68>$A$8,"",OFFSET(InputPriceData!G$15,CalculationsAndCharts!$A68+$A$11,IF($C$5,8,0),1,1)) -> 34352200 | D68: =IF(A68>$A$8,"",OFFSET(InputPriceData!C$15,CalculationsAndCharts!$A68+$A$11,IF($C$5,8,0),1,1)) -> 298.730011 | E68: =IF(A68>$A$8,"",OFFSET(InputPriceData!D$15,CalculationsAndCharts!$A68+$A$11,IF($C$5,8,0),1,1)) -> 299.940002 | F68: =IF(A68>$A$8,"",OFFSET(InputPriceData!E$15,CalculationsAndCharts!$A68+$A$11,IF($C$5,8,0),1,1)) -> 298.5 | G68: =IF(A68>$A$8,"",OFFSET(InputPriceData!F$15,CalculationsAndCharts!$A68+$A$11,IF($C$5,8,0),1,1)) -> 299.880005 | H68: 0.8380461716 | I68: 0.5907891663 | J68: 0.0719570527 | K68: 4.71238898 | L68: 1 | M68: -1.837722682e-16 | N68: 0.5877852523 | O68: 0.5877852523 | P68: 0.9158731514 | Q68: 0.9158731514 | R68: 0.3784392315 | S68: -22.45043776 | T68: -22.45043776 | U68: 0 | AB68: 0.8380461716 | AC68: 0.5907891663 | AD68: 0.0719570527 | AE68: 0.5877852523 | AF68: 0.9158731514 | AP68: 34352200
A69: 37 | B69: =IF(A69>$A$8,"",OFFSET(InputPriceData!B$15,$A69+$A$11,0,1,1)) -> 2019-10-22 | C69: =IF(A69>$A$8,"",OFFSET(InputPriceData!G$15,CalculationsAndCharts!$A69+$A$11,IF($C$5,8,0),1,1)) -> 48594700 | D69: =IF(A69>$A$8,"",OFFSET(InputPriceData!C$15,CalculationsAndCharts!$A69+$A$11,IF($C$5,8,0),1,1)) -> 300.579987 | E69: =IF(A69>$A$8,"",OFFSET(InputPriceData!D$15,CalculationsAndCharts!$A69+$A$11,IF($C$5,8,0),1,1)) -> 300.899994 | F69: =IF(A69>$A$8,"",OFFSET(InputPriceData!E$15,CalculationsAndCharts!$A69+$A$11,IF($C$5,8,0),1,1)) -> 298.910004 | G69: =IF(A69>$A$8,"",OFFSET(InputPriceData!F$15,CalculationsAndCharts!$A69+$A$11,IF($C$5,8,0),1,1)) -> 299.01001 | H69: 0.8677782522 | I69: 0.438213069 | J69: 0.1285462624 | K69: 5.026548246 | L69: 0.9510565163 | M69: 0.3090169944 | N69: 0.3681245527 | O69: 0.3681245527 | P69: 0.7577600105 | Q69: 0.7577600105 | R69: 0.625519641 | S69: -39.53916727 | T69: -39.53916727 | U69: 0 | AB69: 0.8677782522 | AC69: 0.438213069 | AD69: 0.1285462624 | AE69: 0.3681245527 | AF69: 0.7577600105 | AQ69: 48594700
A70: 38 | B70: =IF(A70>$A$8,"",OFFSET(InputPriceData!B$15,$A70+$A$11,0,1,1)) -> 2019-10-21 | C70: =IF(A70>$A$8,"",OFFSET(InputPriceData!G$15,CalculationsAndCharts!$A70+$A$11,IF($C$5,8,0),1,1)) -> 39048600 | D70: =IF(A70>$A$8,"",OFFSET(InputPriceData!C$15,CalculationsAndCharts!$A70+$A$11,IF($C$5,8,0),1,1)) -> 299.420013 | E70: =IF(A70>$A$8,"",OFFSET(InputPriceData!D$15,CalculationsAndCharts!$A70+$A$11,IF($C$5,8,0),1,1)) -> 300.209991 | F70: =IF(A70>$A$8,"",OFFSET(InputPriceData!E$15,CalculationsAndCharts!$A70+$A$11,IF($C$5,8,0),1,1)) -> 298.940002 | G70: =IF(A70>$A$8,"",OFFSET(InputPriceData!F$15,CalculationsAndCharts!$A70+$A$11,IF($C$5,8,0),1,1)) -> 299.98999 | H70: 0.9133686845 | I70: 0.3352156895 | J70: 0.1731000155 | K70: 5.340707511 | L70: 0.8090169944 | M70: 0.5877852523 | N70: 0.1253332336 | O70: 0.1253332336 | P70: 0.5569916222 | Q70: 0.5569916222 | R70: 0.7968191743 | S70: -55.04572592 | T70: -55.04572592 | U70: 0 | AB70: 0.9133686845 | AC70: 0.3352156895 | AD70: 0.1731000155 | AE70: 0.1253332336 | AF70: 0.5569916222 | AP70: 39048600
A71: 39 | B71: =IF(A71>$A$8,"",OFFSET(InputPriceData!B$15,$A71+$A$11,0,1,1)) -> 2019-10-18 | C71: =IF(A71>$A$8,"",OFFSET(InputPriceData!G$15,CalculationsAndCharts!$A71+$A$11,IF($C$5,8,0),1,1)) -> 64304000 | D71: =IF(A71>$A$8,"",OFFSET(InputPriceData!C$15,CalculationsAndCharts!$A71+$A$11,IF($C$5,8,0),1,1)) -> 298.690002 | E71: =IF(A71>$A$8,"",OFFSET(InputPriceData!D$15,CalculationsAndCharts!$A71+$A$11,IF($C$5,8,0),1,1)) -> 299.399994 | F71: =IF(A71>$A$8,"",OFFSET(InputPriceData!E$15,CalculationsAndCharts!$A71+$A$11,IF($C$5,8,0),1,1)) -> 297.029999 | G71: =IF(A71>$A$8,"",OFFSET(InputPriceData!F$15,CalculationsAndCharts!$A71+$A$11,IF($C$5,8,0),1,1)) -> 297.970001 | H71: 0.8690085428 | I71: 0.1321002222 | J71: 0.2235597289 | K71: 5.654866776 | L71: 0.5877852523 | M71: 0.8090169944 | N71: -0.1253332336 | O71: -0.1253332336 | P71: 0.3466485339 | Q71: 0.3466485339 | R71: 0.8987221286 | S71: -68.90773985 | T71: -68.90773985 | U71: 0 | AB71: 0.8690085428 | AC71: 0.1321002222 | AD71: 0.2235597289 | AE71: -0.1253332336 | AF71: 0.3466485339 | AQ71: 64304000
A72: 40 | B72: =IF(A72>$A$8,"",OFFSET(InputPriceData!B$15,$A72+$A$11,0,1,1)) -> 2019-10-17 | C72: =IF(A72>$A$8,"",OFFSET(InputPriceData!G$15,CalculationsAndCharts!$A72+$A$11,IF($C$5,8,0),1,1)) -> 45736600 | D72: =IF(A72>$A$8,"",OFFSET(InputPriceData!C$15,CalculationsAndCharts!$A72+$A$11,IF($C$5,8,0),1,1)) -> 299.679993 | E72: =IF(A72>$A$8,"",OFFSET(InputPriceData!D$15,CalculationsAndCharts!$A72+$A$11,IF($C$5,8,0),1,1)) -> 300.23999 | F72: =IF(A72>$A$8,"",OFFSET(InputPriceData!E$15,CalculationsAndCharts!$A72+$A$11,IF($C$5,8,0),1,1)) -> 298.519989 | G72: =IF(A72>$A$8,"",OFFSET(InputPriceData!F$15,CalculationsAndCharts!$A72+$A$11,IF($C$5,8,0),1,1)) -> 299.279999 | H72: 0.7881760467 | I72: -0.03245156591 | J72: 0.2258926162 | K72: 5.969026042 | L72: 0.3090169944 | M72: 0.9510565163 | N72: -0.3681245527 | O72: -0.3681245527 | P72: 0.1419074621 | Q72: 0.1419074621 | R72: 0.9465905853 | S72: -81.47403682 | T72: -81.47403682 | U72: 0 | AB72: 0.7881760467 | AC72: -0.03245156591 | AD72: 0.2258926162 | AE72: -0.3681245527 | AF72: 0.1419074621 | AQ72: 45736600
A73: 41 | B73: =IF(A73>$A$8,"",OFFSET(InputPriceData!B$15,$A73+$A$11,0,1,1)) -> 2019-10-16 | C73: =IF(A73>$A$8,"",OFFSET(InputPriceData!G$15,CalculationsAndCharts!$A73+$A$11,IF($C$5,8,0),1,1)) -> 48928200 | D73: =IF(A73>$A$8,"",OFFSET(InputPriceData!C$15,CalculationsAndCharts!$A73+$A$11,IF($C$5,8,0),1,1)) -> 298.369995 | E73: =IF(A73>$A$8,"",OFFSET(InputPriceData!D$15,CalculationsAndCharts!$A73+$A$11,IF($C$5,8,0),1,1)) -> 299.160004 | F73: =IF(A73>$A$8,"",OFFSET(InputPriceData!E$15,CalculationsAndCharts!$A73+$A$11,IF($C$5,8,0),1,1)) -> 297.920013 | G73: =IF(A73>$A$8,"",OFFSET(InputPriceData!F$15,CalculationsAndCharts!$A73+$A$11,IF($C$5,8,0),1,1)) -> 298.399994 | H73: 0.7728282109 | I73: -0.289457688 | J73: 0.2130774927 | K73: 0 | L73: 0 | M73: 1 | N73: -0.5877852523 | O73: -0.5877852523 | P73: -0.05403043772 | Q73: -0.05403043772 | R73: 0.952625196 | S73: -93.24619058 | T73: -93.24619058 | U73: 0 | AB73: 0.7728282109 | AC73: -0.289457688 | AD73: 0.2130774927 | AE73: -0.5877852523 | AF73: -0.05403043772 | AP73: 48928200
A74: 42 | B74: =IF(A74>$A$8,"",OFFSET(InputPriceData!B$15,$A74+$A$11,0,1,1)) -> 2019-10-15 | C74: =IF(A74>$A$8,"",OFFSET(InputPriceData!G$15,CalculationsAndCharts!$A74+$A$11,IF($C$5,8,0),1,1)) -> 46754500 | D74: =IF(A74>$A$8,"",OFFSET(InputPriceData!C$15,CalculationsAndCharts!$A74+$A$11,IF($C$5,8,0),1,1)) -> 297.100006 | E74: =IF(A74>$A$8,"",OFFSET(InputPriceData!D$15,CalculationsAndCharts!$A74+$A$11,IF($C$5,8,0),1,1)) -> 299.700012 | F74: =IF(A74>$A$8,"",OFFSET(InputPriceData!E$15,CalculationsAndCharts!$A74+$A$11,IF($C$5,8,0),1,1)) -> 296.970001 | G74: =IF(A74>$A$8,"",OFFSET(InputPriceData!F$15,CalculationsAndCharts!$A74+$A$11,IF($C$5,8,0),1,1)) -> 298.880005 | H74: 0.7819959895 | I74: -0.4952135819 | J74: 0.2252429294 | K74: =RADIANS(360/$A$21*(A74-1)) -> 12.88052988 | L74: -0.3090169944 | M74: 0.9510565163 | N74: -0.7705132428 | O74: -0.7705132428 | P74: -0.242991375 | Q74: -0.242991375 | R74: 0.9226967237 | S74: -104.7538094 | T74: -104.7538094 | U74: 0 | AB74: 0.7819959895 | AC74: -0.4952135819 | AD74: 0.2252429294 | AE74: -0.7705132428 | AF74: -0.242991375 | AP74: 46754500
A75: 43 | B75: =IF(A75>$A$8,"",OFFSET(InputPriceData!B$15,$A75+$A$11,0,1,1)) -> 2019-10-14 | C75: =IF(A75>$A$8,"",OFFSET(InputPriceData!G$15,CalculationsAndCharts!$A75+$A$11,IF($C$5,8,0),1,1)) -> 40394800 | D75: =IF(A75>$A$8,"",OFFSET(InputPriceData!C$15,CalculationsAndCharts!$A75+$A$11,IF($C$5,8,0),1,1)) -> 295.929993 | E75: =IF(A75>$A$8,"",OFFSET(InputPriceData!D$15,CalculationsAndCharts!$A75+$A$11,IF($C$5,8,0),1,1)) -> 296.670013 | F75: =IF(A75>$A$8,"",OFFSET(InputPriceData!E$15,CalculationsAndCharts!$A75+$A$11,IF($C$5,8,0),1,1)) -> 295.570007 | G75: =IF(A75>$A$8,"",OFFSET(InputPriceData!F$15,CalculationsAndCharts!$A75+$A$11,IF($C$5,8,0),1,1)) -> 295.950012 | H75: 0.5323307465 | I75: -0.692045617 | J75: 0.2103291806 | K75: 13.19468915 | L75: -0.5877852523 | M75: 0.8090169944 | N75: -0.9048270525 | O75: -0.9048270525 | P75: -0.4274745941 | Q75: -0.4274745941 | R75: 0.856409327 | S75: -116.5259632 | T75: -116.5259632 | U75: 0 | AB75: 0.5323307465 | AC75: -0.692045617 | AD75: 0.2103291806 | AE75: -0.9048270525 | AF75: -0.4274745941 | AP75: 40394800
A76: 44 | B76: =IF(A76>$A$8,"",OFFSET(InputPriceData!B$15,$A76+$A$11,0,1,1)) -> 2019-10-11 | C76: =IF(A76>$A$8,"",OFFSET(InputPriceData!G$15,CalculationsAndCharts!$A76+$A$11,IF($C$5,8,0),1,1)) -> 98720400 | D76: =IF(A76>$A$8,"",OFFSET(InputPriceData!C$15,CalculationsAndCharts!$A76+$A$11,IF($C$5,8,0),1,1)) -> 296.269989 | E76: =IF(A76>$A$8,"",OFFSET(InputPriceData!D$15,CalculationsAndCharts!$A76+$A$11,IF($C$5,8,0),1,1)) -> 298.73999 | F76: =IF(A76>$A$8,"",OFFSET(InputPriceData!E$15,CalculationsAndCharts!$A76+$A$11,IF($C$5,8,0),1,1)) -> 296.140015 | G76: =IF(A76>$A$8,"",OFFSET(InputPriceData!F$15,CalculationsAndCharts!$A76+$A$11,IF($C$5,8,0),1,1)) -> 296.279999 | H76: 0.02916742438 | I76: -0.7830072734 | J76: 0.2484852061 | K76: 13.50884841 | L76: -0.8090169944 | M76: 0.5877852523 | N76: -0.9822872507 | O76: -0.9822872507 | P76: -0.607402758 | Q76: -0.607402758 | R76: 0.7476152487 | S76: -129.0922601 | T76: -129.0922601 | U76: 0 | AB76: 0.02916742438 | AC76: -0.7830072734 | AD76: 0.2484852061 | AE76: -0.9822872507 | AF76: -0.607402758 | AP76: 98720400
A77: 45 | B77: =IF(A77>$A$8,"",OFFSET(InputPriceData!B$15,$A77+$A$11,0,1,1)) -> 2019-10-10 | C77: =IF(A77>$A$8,"",OFFSET(InputPriceData!G$15,CalculationsAndCharts!$A77+$A$11,IF($C$5,8,0),1,1)) -> 55296300 | D77: =IF(A77>$A$8,"",OFFSET(InputPriceData!C$15,CalculationsAndCharts!$A77+$A$11,IF($C$5,8,0),1,1)) -> 291.179993 | E77: =IF(A77>$A$8,"",OFFSET(InputPriceData!D$15,CalculationsAndCharts!$A77+$A$11,IF($C$5,8,0),1,1)) -> 294.209991 | F77: =IF(A77>$A$8,"",OFFSET(InputPriceData!E$15,CalculationsAndCharts!$A77+$A$11,IF($C$5,8,0),1,1)) -> 291 | G77: =IF(A77>$A$8,"",OFFSET(InputPriceData!F$15,CalculationsAndCharts!$A77+$A$11,IF($C$5,8,0),1,1)) -> 293.23999 | H77: -0.4033183903 | I77: -0.8765474954 | J77: 0.3067698073 | K77: 13.82300768 | L77: -0.9510565163 | M77: 0.3090169944 | N77: -0.9980267284 | O77: -0.9980267284 | P77: -0.7759611781 | Q77: -0.7759611781 | R77: 0.585700191 | S77: -142.9542741 | T77: -142.9542741 | U77: 0 | AB77: -0.4033183903 | AC77: -0.8765474954 | AD77: 0.3067698073 | AE77: -0.9980267284 | AF77: -0.7759611781 | AP77: 55296300
A78: 46 | B78: =IF(A78>$A$8,"",OFFSET(InputPriceData!B$15,$A78+$A$11,0,1,1)) -> 2019-10-09 | C78: =IF(A78>$A$8,"",OFFSET(InputPriceData!G$15,CalculationsAndCharts!$A78+$A$11,IF($C$5,8,0),1,1)) -> 62359400 | D78: =IF(A78>$A$8,"",OFFSET(InputPriceData!C$15,CalculationsAndCharts!$A78+$A$11,IF($C$5,8,0),1,1)) -> 290.75 | E78: =IF(A78>$A$8,"",OFFSET(InputPriceData!D$15,CalculationsAndCharts!$A78+$A$11,IF($C$5,8,0),1,1)) -> 292.299988 | F78: =IF(A78>$A$8,"",OFFSET(InputPriceData!E$15,CalculationsAndCharts!$A78+$A$11,IF($C$5,8,0),1,1)) -> 290.059998 | G78: =IF(A78>$A$8,"",OFFSET(InputPriceData!F$15,CalculationsAndCharts!$A78+$A$11,IF($C$5,8,0),1,1)) -> 291.269989 | H78: -0.6468179204 | I78: -0.9033984816 | J78: 0.3861597295 | K78: 14.13716694 | L78: -1 | M78: 5.513168047e-16 | N78: -0.9510565163 | O78: -0.9510565163 | P78: -0.9139687952 | Q78: -0.9139687952 | R78: 0.3607438098 | S78: -158.4608327 | T78: -158.4608327 | U78: 0 | AB78: -0.6468179204 | AC78: -0.9033984816 | AD78: 0.3861597295 | AE78: -0.9510565163 | AF78: -0.9139687952 | AP78: 62359400
A79: 47 | B79: =IF(A79>$A$8,"",OFFSET(InputPriceData!B$15,$A79+$A$11,0,1,1)) -> 2019-10-08 | C79: =IF(A79>$A$8,"",OFFSET(InputPriceData!G$15,CalculationsAndCharts!$A79+$A$11,IF($C$5,8,0),1,1)) -> 95708100 | D79: =IF(A79>$A$8,"",OFFSET(InputPriceData!C$15,CalculationsAndCharts!$A79+$A$11,IF($C$5,8,0),1,1)) -> 291.040009 | E79: =IF(A79>$A$8,"",OFFSET(InputPriceData!D$15,CalculationsAndCharts!$A79+$A$11,IF($C$5,8,0),1,1)) -> 291.850006 | F79: =IF(A79>$A$8,"",OFFSET(InputPriceData!E$15,CalculationsAndCharts!$A79+$A$11,IF($C$5,8,0),1,1)) -> 288.48999 | G79: =IF(A79>$A$8,"",OFFSET(InputPriceData!F$15,CalculationsAndCharts!$A79+$A$11,IF($C$5,8,0),1,1)) -> 288.529999 | H79: -0.7340173428 | I79: -0.8914058889 | J79: 0.4233814838 | K79: 14.45132621 | L79: -0.9510565163 | M79: -0.3090169944 | N79: -0.8443279255 | O79: -0.8443279255 | P79: -0.9879912826 | Q79: -0.9879912826 | R79: 0.07689672861 | S79: -175.5495622 | T79: -175.5495622 | U79: 0 | AB79: -0.7340173428 | AC79: -0.8914058889 | AD79: 0.4233814838 | AE79: -0.8443279255 | AF79: -0.9879912826 | AQ79: 95708100
A80: 48 | B80: =IF(A80>$A$8,"",OFFSET(InputPriceData!B$15,$A80+$A$11,0,1,1)) -> 2019-10-07 | C80: =IF(A80>$A$8,"",OFFSET(InputPriceData!G$15,CalculationsAndCharts!$A80+$A$11,IF($C$5,8,0),1,1)) -> 59610500 | D80: =IF(A80>$A$8,"",OFFSET(InputPriceData!C$15,CalculationsAndCharts!$A80+$A$11,IF($C$5,8,0),1,1)) -> 293.470001 | E80: =IF(A80>$A$8,"",OFFSET(InputPriceData!D$15,CalculationsAndCharts!$A80+$A$11,IF($C$5,8,0),1,1)) -> 295.26001 | F80: =IF(A80>$A$8,"",OFFSET(InputPriceData!E$15,CalculationsAndCharts!$A80+$A$11,IF($C$5,8,0),1,1)) -> 292.769989 | G80: =IF(A80>$A$8,"",OFFSET(InputPriceData!F$15,CalculationsAndCharts!$A80+$A$11,IF($C$5,8,0),1,1)) -> 293.079987 | H80: -0.6372707601 | I80: -0.8299531618 | J80: 0.520979795 | K80: 14.76548547 | L80: -0.8090169944 | M80: -0.5877852523 | N80: -0.6845471059 | O80: -0.6845471059 | P80: -0.9655044825 | Q80: -0.9655044825 | R80: -0.2319768058 | S80: 166.4899184 | T80: 166.4899184 | U80: 0 | AB80: -0.6372707601 | AC80: -0.8299531618 | AD80: 0.520979795 | AE80: -0.6845471059 | AF80: -0.9655044825 | AQ80: 59610500
A81: 49 | B81: =IF(A81>$A$8,"",OFFSET(InputPriceData!B$15,$A81+$A$11,0,1,1)) -> 2019-10-04 | C81: =IF(A81>$A$8,"",OFFSET(InputPriceData!G$15,CalculationsAndCharts!$A81+$A$11,IF($C$5,8,0),1,1)) -> 65091200 | D81: =IF(A81>$A$8,"",OFFSET(InputPriceData!C$15,CalculationsAndCharts!$A81+$A$11,IF($C$5,8,0),1,1)) -> 291.140015 | E81: =IF(A81>$A$8,"",OFFSET(InputPriceData!D$15,CalculationsAndCharts!$A81+$A$11,IF($C$5,8,0),1,1)) -> 294.630005 | F81: =IF(A81>$A$8,"",OFFSET(InputPriceData!E$15,CalculationsAndCharts!$A81+$A$11,IF($C$5,8,0),1,1)) -> 291.079987 | G81: =IF(A81>$A$8,"",OFFSET(InputPriceData!F$15,CalculationsAndCharts!$A81+$A$11,IF($C$5,8,0),1,1)) -> 294.350006 | H81: -0.7301798043 | I81: -0.7784244056 | J81: 0.5479267709 | K81: 15.07964474 | L81: -0.5877852523 | M81: -0.8090169944 | N81: -0.4817536741 | O81: -0.4817536741 | P81: -0.8448409074 | Q81: -0.8448409074 | R81: -0.5109343118 | S81: 148.8357159 | T81: 148.8357159 | U81: 0 | AB81: -0.7301798043 | AC81: -0.7784244056 | AD81: 0.5479267709 | AE81: -0.4817536741 | AF81: -0.8448409074 | AP81: 65091200
A82: 50 | B82: =IF(A82>$A$8,"",OFFSET(InputPriceData!B$15,$A82+$A$11,0,1,1)) -> 2019-10-03 | C82: =IF(A82>$A$8,"",OFFSET(InputPriceData!G$15,CalculationsAndCharts!$A82+$A$11,IF($C$5,8,0),1,1)) -> 85278800 | D82: =IF(A82>$A$8,"",OFFSET(InputPriceData!C$15,CalculationsAndCharts!$A82+$A$11,IF($C$5,8,0),1,1)) -> 287.809998 | E82: =IF(A82>$A$8,"",OFFSET(InputPriceData!D$15,CalculationsAndCharts!$A82+$A$11,IF($C$5,8,0),1,1)) -> 290.450012 | F82: =IF(A82>$A$8,"",OFFSET(InputPriceData!E$15,CalculationsAndCharts!$A82+$A$11,IF($C$5,8,0),1,1)) -> 284.820007 | G82: =IF(A82>$A$8,"",OFFSET(InputPriceData!F$15,CalculationsAndCharts!$A82+$A$11,IF($C$5,8,0),1,1)) -> 290.420013 | H82: -0.8421618495 | I82: -0.7306212689 | J82: 0.5474357661 | K82: 15.393804 | L82: -0.3090169944 | M82: -0.9510565163 | N82: -0.2486898872 | O82: -0.2486898872 | P82: -0.6602083535 | Q82: -0.6602083535 | R82: -0.7206796246 | S82: 132.4925291 | T82: 132.4925291 | U82: 0 | AB82: -0.8421618495 | AC82: -0.7306212689 | AD82: 0.5474357661 | AE82: -0.2486898872 | AF82: -0.6602083535 | AP82: =IF(G82>=D82,C82,NA()) -> 85278800 | AQ82: =IF(G82<D82,C82,NA()) -> 
A83: 51 | B83: =IF(A83>$A$8,"",OFFSET(InputPriceData!B$15,$A83+$A$11,0,1,1)) -> 2019-10-02 | C83: =IF(A83>$A$8,"",OFFSET(InputPriceData!G$15,CalculationsAndCharts!$A83+$A$11,IF($C$5,8,0),1,1)) -> 122539500 | D83: =IF(A83>$A$8,"",OFFSET(InputPriceData!C$15,CalculationsAndCharts!$A83+$A$11,IF($C$5,8,0),1,1)) -> 291.5 | E83: =IF(A83>$A$8,"",OFFSET(InputPriceData!D$15,CalculationsAndCharts!$A83+$A$11,IF($C$5,8,0),1,1)) -> 291.51001 | F83: =IF(A83>$A$8,"",OFFSET(InputPriceData!E$15,CalculationsAndCharts!$A83+$A$11,IF($C$5,8,0),1,1)) -> 286.640015 | G83: =IF(A83>$A$8,"",OFFSET(InputPriceData!F$15,CalculationsAndCharts!$A83+$A$11,IF($C$5,8,0),1,1)) -> 288.059998 | H83: -0.8451631213 | I83: -0.6236876567 | J83: 0.6218036355 | K83: 15.70796327 | L83: -6.125742275e-16 | M83: -1 | N83: -4.90059382e-16 | O83: -4.90059382e-16 | P83: -0.4516903807 | Q83: -0.4516903807 | R83: -0.8554943325 | S83: 117.8334974 | T83: 117.8334974 | U83: 0 | AB83: -0.8451631213 | AC83: -0.6236876567 | AD83: 0.6218036355 | AE83: -4.90059382e-16 | AF83: -0.4516903807 | AQ83: 122539500
A84: 52 | B84: =IF(A84>$A$8,"",OFFSET(InputPriceData!B$15,$A84+$A$11,0,1,1)) -> 2019-10-01 | C84: =IF(A84>$A$8,"",OFFSET(InputPriceData!G$15,CalculationsAndCharts!$A84+$A$11,IF($C$5,8,0),1,1)) -> 88242400 | D84: =IF(A84>$A$8,"",OFFSET(InputPriceData!C$15,CalculationsAndCharts!$A84+$A$11,IF($C$5,8,0),1,1)) -> 297.73999 | E84: =IF(A84>$A$8,"",OFFSET(InputPriceData!D$15,CalculationsAndCharts!$A84+$A$11,IF($C$5,8,0),1,1)) -> 298.459991 | F84: =IF(A84>$A$8,"",OFFSET(InputPriceData!E$15,CalculationsAndCharts!$A84+$A$11,IF($C$5,8,0),1,1)) -> 293 | G84: =IF(A84>$A$8,"",OFFSET(InputPriceData!F$15,CalculationsAndCharts!$A84+$A$11,IF($C$5,8,0),1,1)) -> 293.23999 | H84: -0.8871130375 | I84: -0.3081778478 | J84: 0.7222656195 | K84: 16.02212253 | L84: 0.3090169944 | M84: -0.9510565163 | N84: 0.2486898872 | O84: 0.2486898872 | P84: -0.2431918379 | Q84: -0.2431918379 | R84: -0.9285090696 | S84: 104.6770221 | T84: 104.6770221 | U84: 0 | AB84: -0.8871130375 | AC84: -0.3081778478 | AD84: 0.7222656195 | AE84: 0.2486898872 | AF84: -0.2431918379 | AQ84: 88242400
A85: 53 | B85: =IF(A85>$A$8,"",OFFSET(InputPriceData!B$15,$A85+$A$11,0,1,1)) -> 2019-09-30 | C85: =IF(A85>$A$8,"",OFFSET(InputPriceData!G$15,CalculationsAndCharts!$A85+$A$11,IF($C$5,8,0),1,1)) -> 51662400 | D85: =IF(A85>$A$8,"",OFFSET(InputPriceData!C$15,CalculationsAndCharts!$A85+$A$11,IF($C$5,8,0),1,1)) -> 295.970001 | E85: =IF(A85>$A$8,"",OFFSET(InputPriceData!D$15,CalculationsAndCharts!$A85+$A$11,IF($C$5,8,0),1,1)) -> 297.549988 | F85: =IF(A85>$A$8,"",OFFSET(InputPriceData!E$15,CalculationsAndCharts!$A85+$A$11,IF($C$5,8,0),1,1)) -> 295.920013 | G85: =IF(A85>$A$8,"",OFFSET(InputPriceData!F$15,CalculationsAndCharts!$A85+$A$11,IF($C$5,8,0),1,1)) -> 296.769989 | H85: -0.8745865441 | I85: 0.132433662 | J85: 0.7752868258 | K85: 16.3362818 | L85: 0.5877852523 | M85: -0.8090169944 | N85: 0.4817536741 | O85: 0.4817536741 | P85: -0.04289620124 | Q85: -0.04289620124 | R85: -0.9543174948 | S85: 92.57369065 | T85: 92.57369065 | U85: 0 | AB85: -0.8745865441 | AC85: 0.132433662 | AD85: 0.7752868258 | AE85: 0.4817536741 | AF85: -0.04289620124 | AP85: 51662400
A86: 54 | B86: =IF(A86>$A$8,"",OFFSET(InputPriceData!B$15,$A86+$A$11,0,1,1)) -> 2019-09-27 | C86: =IF(A86>$A$8,"",OFFSET(InputPriceData!G$15,CalculationsAndCharts!$A86+$A$11,IF($C$5,8,0),1,1)) -> 84746600 | D86: =IF(A86>$A$8,"",OFFSET(InputPriceData!C$15,CalculationsAndCharts!$A86+$A$11,IF($C$5,8,0),1,1)) -> 297.829987 | E86: =IF(A86>$A$8,"",OFFSET(InputPriceData!D$15,CalculationsAndCharts!$A86+$A$11,IF($C$5,8,0),1,1)) -> 297.950012 | F86: =IF(A86>$A$8,"",OFFSET(InputPriceData!E$15,CalculationsAndCharts!$A86+$A$11,IF($C$5,8,0),1,1)) -> 293.690002 | G86: =IF(A86>$A$8,"",OFFSET(InputPriceData!F$15,CalculationsAndCharts!$A86+$A$11,IF($C$5,8,0),1,1)) -> 295.399994 | H86: -0.8815798258 | I86: 0.3221046234 | J86: 0.7604068226 | K86: 16.65044106 | L86: 0.8090169944 | M86: -0.5877852523 | N86: 0.6845471059 | O86: 0.6845471059 | P86: 0.1492044882 | Q86: 0.1492044882 | R86: -0.9420400633 | S86: 81 | T86: 81 | U86: 0 | AB86: -0.8815798258 | AC86: 0.3221046234 | AD86: 0.7604068226 | AE86: 0.6845471059 | AF86: 0.1492044882 | AQ86: 84746600
A87: 55 | B87: =IF(A87>$A$8,"",OFFSET(InputPriceData!B$15,$A87+$A$11,0,1,1)) -> 2019-09-26 | C87: =IF(A87>$A$8,"",OFFSET(InputPriceData!G$15,CalculationsAndCharts!$A87+$A$11,IF($C$5,8,0),1,1)) -> 56179700 | D87: =IF(A87>$A$8,"",OFFSET(InputPriceData!C$15,CalculationsAndCharts!$A87+$A$11,IF($C$5,8,0),1,1)) -> 297.630005 | E87: =IF(A87>$A$8,"",OFFSET(InputPriceData!D$15,CalculationsAndCharts!$A87+$A$11,IF($C$5,8,0),1,1)) -> 297.859985 | F87: =IF(A87>$A$8,"",OFFSET(InputPriceData!E$15,CalculationsAndCharts!$A87+$A$11,IF($C$5,8,0),1,1)) -> 295.450012 | G87: =IF(A87>$A$8,"",OFFSET(InputPriceData!F$15,CalculationsAndCharts!$A87+$A$11,IF($C$5,8,0),1,1)) -> 297 | H87: -0.852021787 | I87: 0.5180527258 | J87: 0.7350482297 | K87: 16.96460033 | L87: 0.9510565163 | M87: -0.3090169944 | N87: 0.8443279255 | O87: 0.8443279255 | P87: 0.3356970356 | Q87: 0.3356970356 | R87: -0.8943542169 | S87: 69.42630935 | T87: 69.42630935 | U87: 0 | AB87: -0.852021787 | AC87: 0.5180527258 | AD87: 0.7350482297 | AE87: 0.8443279255 | AF87: 0.3356970356 | AQ87: 56179700
A88: 56 | B88: =IF(A88>$A$8,"",OFFSET(InputPriceData!B$15,$A88+$A$11,0,1,1)) -> 2019-09-25 | C88: =IF(A88>$A$8,"",OFFSET(InputPriceData!G$15,CalculationsAndCharts!$A88+$A$11,IF($C$5,8,0),1,1)) -> 71854000 | D88: =IF(A88>$A$8,"",OFFSET(InputPriceData!C$15,CalculationsAndCharts!$A88+$A$11,IF($C$5,8,0),1,1)) -> 295.959991 | E88: =IF(A88>$A$8,"",OFFSET(InputPriceData!D$15,CalculationsAndCharts!$A88+$A$11,IF($C$5,8,0),1,1)) -> 298.109985 | F88: =IF(A88>$A$8,"",OFFSET(InputPriceData!E$15,CalculationsAndCharts!$A88+$A$11,IF($C$5,8,0),1,1)) -> 294.329987 | G88: =IF(A88>$A$8,"",OFFSET(InputPriceData!F$15,CalculationsAndCharts!$A88+$A$11,IF($C$5,8,0),1,1)) -> 297.619995 | H88: -0.8353493977 | I88: 0.658117283 | J88: 0.6738450109 | K88: 17.27875959 | L88: 1 | M88: 1.102525189e-15 | N88: 0.9510565163 | O88: 0.9510565163 | P88: 0.5182142641 | Q88: 0.5182142641 | R88: -0.8079141903 | S88: 57.32297794 | T88: 57.32297794 | U88: 0 | AB88: -0.8353493977 | AC88: 0.658117283 | AD88: 0.6738450109 | AE88: 0.9510565163 | AF88: 0.5182142641 | AP88: 71854000
A89: 57 | B89: =IF(A89>$A$8,"",OFFSET(InputPriceData!B$15,$A89+$A$11,0,1,1)) -> 2019-09-24 | C89: =IF(A89>$A$8,"",OFFSET(InputPriceData!G$15,CalculationsAndCharts!$A89+$A$11,IF($C$5,8,0),1,1)) -> 94869400 | D89: =IF(A89>$A$8,"",OFFSET(InputPriceData!C$15,CalculationsAndCharts!$A89+$A$11,IF($C$5,8,0),1,1)) -> 299.410004 | E89: =IF(A89>$A$8,"",OFFSET(InputPriceData!D$15,CalculationsAndCharts!$A89+$A$11,IF($C$5,8,0),1,1)) -> 299.839996 | F89: =IF(A89>$A$8,"",OFFSET(InputPriceData!E$15,CalculationsAndCharts!$A89+$A$11,IF($C$5,8,0),1,1)) -> 294.809998 | G89: =IF(A89>$A$8,"",OFFSET(InputPriceData!F$15,CalculationsAndCharts!$A89+$A$11,IF($C$5,8,0),1,1)) -> 295.869995 | H89: -0.7359518266 | I89: 0.7527992434 | J89: 0.5736924637 | K89: 17.59291886 | L89: 0.9510565163 | M89: 0.3090169944 | N89: 0.9980267284 | O89: 0.9980267284 | P89: 0.6939453673 | Q89: 0.6939453673 | R89: -0.6740434557 | S89: 44.16650262 | T89: 44.16650262 | U89: 0 | AB89: -0.7359518266 | AC89: 0.7527992434 | AD89: 0.5736924637 | AE89: 0.9980267284 | AF89: 0.6939453673 | AQ89: 94869400
A90: 58 | B90: =IF(A90>$A$8,"",OFFSET(InputPriceData!B$15,$A90+$A$11,0,1,1)) -> 2019-09-23 | C90: =IF(A90>$A$8,"",OFFSET(InputPriceData!G$15,CalculationsAndCharts!$A90+$A$11,IF($C$5,8,0),1,1)) -> 43476800 | D90: =IF(A90>$A$8,"",OFFSET(InputPriceData!C$15,CalculationsAndCharts!$A90+$A$11,IF($C$5,8,0),1,1)) -> 297.549988 | E90: =IF(A90>$A$8,"",OFFSET(InputPriceData!D$15,CalculationsAndCharts!$A90+$A$11,IF($C$5,8,0),1,1)) -> 299 | F90: =IF(A90>$A$8,"",OFFSET(InputPriceData!E$15,CalculationsAndCharts!$A90+$A$11,IF($C$5,8,0),1,1)) -> 297.269989 | G90: =IF(A90>$A$8,"",OFFSET(InputPriceData!F$15,CalculationsAndCharts!$A90+$A$11,IF($C$5,8,0),1,1)) -> 298.209991 | H90: -0.184628596 | I90: 0.8595921094 | J90: 0.4821254772 | K90: 17.90707813 | L90: 0.8090169944 | M90: 0.5877852523 | N90: 0.9822872507 | O90: 0.9822872507 | P90: 0.8505977083 | Q90: 0.8505977083 | R90: -0.4813914521 | S90: 29.50747086 | T90: 29.50747086 | U90: 0 | AB90: -0.184628596 | AC90: 0.8595921094 | AD90: 0.4821254772 | AE90: 0.9822872507 | AF90: 0.8505977083 | AP90: 43476800
A91: 59 | B91: =IF(A91>$A$8,"",OFFSET(InputPriceData!B$15,$A91+$A$11,0,1,1)) -> 2019-09-20 | C91: =IF(A91>$A$8,"",OFFSET(InputPriceData!G$15,CalculationsAndCharts!$A91+$A$11,IF($C$5,8,0),1,1)) -> 89565000 | D91: =IF(A91>$A$8,"",OFFSET(InputPriceData!C$15,CalculationsAndCharts!$A91+$A$11,IF($C$5,8,0),1,1)) -> 300.359985 | E91: =IF(A91>$A$8,"",OFFSET(InputPriceData!D$15,CalculationsAndCharts!$A91+$A$11,IF($C$5,8,0),1,1)) -> 300.670013 | F91: =IF(A91>$A$8,"",OFFSET(InputPriceData!E$15,CalculationsAndCharts!$A91+$A$11,IF($C$5,8,0),1,1)) -> 297.410004 | G91: =IF(A91>$A$8,"",OFFSET(InputPriceData!F$15,CalculationsAndCharts!$A91+$A$11,IF($C$5,8,0),1,1)) -> 298.279999 | H91: 0.3262095629 | I91: 0.9098594843 | J91: 0.3756539222 | K91: 18.22123739 | L91: 0.5877852523 | M91: 0.8090169944 | N91: 0.9048270525 | O91: 0.9048270525 | P91: 0.9613788356 | Q91: 0.9613788356 | R91: -0.2248572087 | S91: 13.16428408 | T91: 13.16428408 | U91: 0 | AB91: 0.3262095629 | AC91: 0.9098594843 | AD91: 0.3756539222 | AE91: 0.9048270525 | AF91: 0.9613788356 | AQ91: 89565000
A92: 60 | B92: =IF(A92>$A$8,"",OFFSET(InputPriceData!B$15,$A92+$A$11,0,1,1)) -> 2019-09-19 | C92: =IF(A92>$A$8,"",OFFSET(InputPriceData!G$15,CalculationsAndCharts!$A92+$A$11,IF($C$5,8,0),1,1)) -> 76560500 | D92: =IF(A92>$A$8,"",OFFSET(InputPriceData!C$15,CalculationsAndCharts!$A92+$A$11,IF($C$5,8,0),1,1)) -> 301.529999 | E92: =IF(A92>$A$8,"",OFFSET(InputPriceData!D$15,CalculationsAndCharts!$A92+$A$11,IF($C$5,8,0),1,1)) -> 302.630005 | F92: =IF(A92>$A$8,"",OFFSET(InputPriceData!E$15,CalculationsAndCharts!$A92+$A$11,IF($C$5,8,0),1,1)) -> 300.709991 | G92: =IF(A92>$A$8,"",OFFSET(InputPriceData!F$15,CalculationsAndCharts!$A92+$A$11,IF($C$5,8,0),1,1)) -> 301.079987 | H92: 0.8224936572 | I92: 0.916118929 | J92: 0.2923421451 | K92: 18.53539666 | L92: 0.3090169944 | M92: 0.9510565163 | N92: 0.7705132428 | O92: 0.7705132428 | P92: 0.9899341049 | Q92: 0.9899341049 | R92: 0.07773424042 | S92: -4.48991835 | T92: -4.48991835 | U92: 0 | AB92: 0.8224936572 | AC92: 0.916118929 | AD92: 0.2923421451 | AE92: 0.7705132428 | AF92: 0.9899341049 | AQ92: 76560500
A93: 61 | B93: =IF(A93>$A$8,"",OFFSET(InputPriceData!B$15,$A93+$A$11,0,1,1)) -> 2019-09-18 | C93: =IF(A93>$A$8,"",OFFSET(InputPriceData!G$15,CalculationsAndCharts!$A93+$A$11,IF($C$5,8,0),1,1)) -> 73375800 | D93: =IF(A93>$A$8,"",OFFSET(InputPriceData!C$15,CalculationsAndCharts!$A93+$A$11,IF($C$5,8,0),1,1)) -> 300.48999 | E93: =IF(A93>$A$8,"",OFFSET(InputPriceData!D$15,CalculationsAndCharts!$A93+$A$11,IF($C$5,8,0),1,1)) -> 301.220001 | F93: =IF(A93>$A$8,"",OFFSET(InputPriceData!E$15,CalculationsAndCharts!$A93+$A$11,IF($C$5,8,0),1,1)) -> 298.23999 | G93: =IF(A93>$A$8,"",OFFSET(InputPriceData!F$15,CalculationsAndCharts!$A93+$A$11,IF($C$5,8,0),1,1)) -> 301.100006 | H93: 0.8666133512 | I93: 0.8870550069 | J93: 0.1792802798 | K93: 18.84955592 | L93: 7.350890729e-16 | M93: 1 | N93: 0.5877852523 | O93: 0.5877852523 | P93: 0.9158731514 | Q93: 0.9158731514 | R93: 0.3784392315 | S93: -22.45043776 | T93: -22.45043776 | U93: 0 | AB93: 0.8666133512 | AC93: 0.8870550069 | AD93: 0.1792802798 | AE93: 0.5877852523 | AF93: 0.9158731514 | AP93: 73375800
A94: 62 | B94: =IF(A94>$A$8,"",OFFSET(InputPriceData!B$15,$A94+$A$11,0,1,1)) -> 2019-09-17 | C94: =IF(A94>$A$8,"",OFFSET(InputPriceData!G$15,CalculationsAndCharts!$A94+$A$11,IF($C$5,8,0),1,1)) -> 41475500 | D94: =IF(A94>$A$8,"",OFFSET(InputPriceData!C$15,CalculationsAndCharts!$A94+$A$11,IF($C$5,8,0),1,1)) -> 299.940002 | E94: =IF(A94>$A$8,"",OFFSET(InputPriceData!D$15,CalculationsAndCharts!$A94+$A$11,IF($C$5,8,0),1,1)) -> 301.019989 | F94: =IF(A94>$A$8,"",OFFSET(InputPriceData!E$15,CalculationsAndCharts!$A94+$A$11,IF($C$5,8,0),1,1)) -> 299.75 | G94: =IF(A94>$A$8,"",OFFSET(InputPriceData!F$15,CalculationsAndCharts!$A94+$A$11,IF($C$5,8,0),1,1)) -> 300.920013 | H94: 0.8655619215 | I94: 0.8738364285 | J94: 0.07773230381 | K94: 19.16371519 | L94: -0.3090169944 | M94: 0.9510565163 | N94: 0.3681245527 | O94: 0.3681245527 | P94: 0.7577600105 | Q94: 0.7577600105 | R94: 0.625519641 | S94: -39.53916727 | T94: -39.53916727 | U94: 0 | AB94: 0.8655619215 | AC94: 0.8738364285 | AD94: 0.07773230381 | AE94: 0.3681245527 | AF94: 0.7577600105 | AP94: 41475500
A95: 63 | B95: =IF(A95>$A$8,"",OFFSET(InputPriceData!B$15,$A95+$A$11,0,1,1)) -> 2019-09-16 | C95: =IF(A95>$A$8,"",OFFSET(InputPriceData!G$15,CalculationsAndCharts!$A95+$A$11,IF($C$5,8,0),1,1)) -> 58191200 | D95: =IF(A95>$A$8,"",OFFSET(InputPriceData!C$15,CalculationsAndCharts!$A95+$A$11,IF($C$5,8,0),1,1)) -> 299.839996 | E95: =IF(A95>$A$8,"",OFFSET(InputPriceData!D$15,CalculationsAndCharts!$A95+$A$11,IF($C$5,8,0),1,1)) -> 301.140015 | F95: =IF(A95>$A$8,"",OFFSET(InputPriceData!E$15,CalculationsAndCharts!$A95+$A$11,IF($C$5,8,0),1,1)) -> 299.450012 | G95: =IF(A95>$A$8,"",OFFSET(InputPriceData!F$15,CalculationsAndCharts!$A95+$A$11,IF($C$5,8,0),1,1)) -> 300.160004 | H95: 0.8760762452 | I95: 0.8260921969 | J95: -0.007972723545 | K95: 19.47787445 | L95: -0.5877852523 | M95: 0.8090169944 | N95: 0.1253332336 | O95: 0.1253332336 | P95: 0.5569916222 | Q95: 0.5569916222 | R95: 0.7968191743 | S95: -55.04572592 | T95: -55.04572592 | U95: 0 | AB95: 0.8760762452 | AC95: 0.8260921969 | AD95: -0.007972723545 | AE95: 0.1253332336 | AF95: 0.5569916222 | AP95: 58191200
A96: 64 | B96: =IF(A96>$A$8,"",OFFSET(InputPriceData!B$15,$A96+$A$11,0,1,1)) -> 2019-09-13 | C96: =IF(A96>$A$8,"",OFFSET(InputPriceData!G$15,CalculationsAndCharts!$A96+$A$11,IF($C$5,8,0),1,1)) -> 62104800 | D96: =IF(A96>$A$8,"",OFFSET(InputPriceData!C$15,CalculationsAndCharts!$A96+$A$11,IF($C$5,8,0),1,1)) -> 301.779999 | E96: =IF(A96>$A$8,"",OFFSET(InputPriceData!D$15,CalculationsAndCharts!$A96+$A$11,IF($C$5,8,0),1,1)) -> 302.170013 | F96: =IF(A96>$A$8,"",OFFSET(InputPriceData!E$15,CalculationsAndCharts!$A96+$A$11,IF($C$5,8,0),1,1)) -> 300.679993 | G96: =IF(A96>$A$8,"",OFFSET(InputPriceData!F$15,CalculationsAndCharts!$A96+$A$11,IF($C$5,8,0),1,1)) -> 301.089996 | H96: 0.9294914075 | I96: 0.8139619812 | J96: -0.08531590075 | K96: 19.79203372 | L96: -0.8090169944 | M96: 0.5877852523 | N96: -0.1253332336 | O96: -0.1253332336 | P96: 0.3466485339 | Q96: 0.3466485339 | R96: 0.8987221286 | S96: -68.90773985 | T96: -68.90773985 | U96: 0 | AB96: 0.9294914075 | AC96: 0.8139619812 | AD96: -0.08531590075 | AE96: -0.1253332336 | AF96: 0.3466485339 | AQ96: 62104800
A97: 65 | B97: =IF(A97>$A$8,"",OFFSET(InputPriceData!B$15,$A97+$A$11,0,1,1)) -> 2019-09-12 | C97: =IF(A97>$A$8,"",OFFSET(InputPriceData!G$15,CalculationsAndCharts!$A97+$A$11,IF($C$5,8,0),1,1)) -> 72908700 | D97: =IF(A97>$A$8,"",OFFSET(InputPriceData!C$15,CalculationsAndCharts!$A97+$A$11,IF($C$5,8,0),1,1)) -> 301.25 | E97: =IF(A97>$A$8,"",OFFSET(InputPriceData!D$15,CalculationsAndCharts!$A97+$A$11,IF($C$5,8,0),1,1)) -> 302.459991 | F97: =IF(A97>$A$8,"",OFFSET(InputPriceData!E$15,CalculationsAndCharts!$A97+$A$11,IF($C$5,8,0),1,1)) -> 300.410004 | G97: =IF(A97>$A$8,"",OFFSET(InputPriceData!F$15,CalculationsAndCharts!$A97+$A$11,IF($C$5,8,0),1,1)) -> 301.290009 | H97: =IF(A97<$A$8,-CORREL(OFFSET($G97,0,0,$A$16,1),OFFSET($A$33,0,0,$A$16,1)),NA()) -> 0.9276181359 | I97: =IF(A97<$A$8,-CORREL(OFFSET($G97,0,0,$A$17,1),OFFSET($A$33,0,0,$A$17,1)),NA()) -> 0.8152993939 | J97: =IF(A97<$A$8,-CORREL(OFFSET($G97,0,0,$A$18,1),OFFSET($A$33,0,0,$A$18,1)),NA()) -> -0.1861874462 | K97: 20.10619298 | L97: -0.9510565163 | M97: 0.3090169944 | N97: =IF($A$22=0,NA(),SIN(RADIANS(360/$A$22*(A97-1)))) -> -0.3681245527 | O97: =IF($F$22=1,G97,N97) -> -0.3681245527 | P97: =IF(A97<$A$8,CORREL(OFFSET($M$33,0,0,$A$21,1),OFFSET($O97,0,0,$A$21,1)),NA()) -> 0.1419074621 | Q97: =IF($A97<$A$8,CORREL(OFFSET($M$33,0,0,$A$21,1),OFFSET($O97,0,0,$A$21,1)),NA()) -> 0.1419074621 | R97: =IF($A97<$A$8,CORREL(OFFSET($L$33,0,0,$A$21,1),OFFSET($O97,0,0,$A$21,1)),NA()) -> 0.9465905853 | S97: -81.47403682 | T97: -81.47403682 | U97: 0 | AB97: =IF($R$22,H97,NA()) -> 0.9276181359 | AC97: =IF($R$23,I97,NA()) -> 0.8152993939 | AD97: =IF($R$24,J97,NA()) -> -0.1861874462 | AE97: =IF($F$22=2,N97,R97) -> -0.3681245527 | AF97: =IF($F$22=2,P97,Q97) -> 0.1419074621 | AP97: 72908700
A98: 66 | B98: =IF(A98>$A$8,"",OFFSET(InputPriceData!B$15,$A98+$A$11,0,1,1)) -> 2019-09-11 | C98: =IF(A98>$A$8,"",OFFSET(InputPriceData!G$15,CalculationsAndCharts!$A98+$A$11,IF($C$5,8,0),1,1)) -> 68821100 | D98: =IF(A98>$A$8,"",OFFSET(InputPriceData!C$15,CalculationsAndCharts!$A98+$A$11,IF($C$5,8,0),1,1)) -> 298.470001 | E98: =IF(A98>$A$8,"",OFFSET(InputPriceData!D$15,CalculationsAndCharts!$A98+$A$11,IF($C$5,8,0),1,1)) -> 300.339996 | F98: =IF(A98>$A$8,"",OFFSET(InputPriceData!E$15,CalculationsAndCharts!$A98+$A$11,IF($C$5,8,0),1,1)) -> 297.75 | G98: =IF(A98>$A$8,"",OFFSET(InputPriceData!F$15,CalculationsAndCharts!$A98+$A$11,IF($C$5,8,0),1,1)) -> 300.25 | H98: 0.9317279562 | I98: 0.8131928016 | J98: -0.2852020293 | K98: 20.42035225 | L98: =-SIN(K98) -> -1 | M98: =COS(K98) -> -9.800103437e-16 | N98: -0.5877852523 | O98: -0.5877852523 | P98: -0.05403043772 | Q98: -0.05403043772 | R98: 0.952625196 | S98: =IF(R98<>0,90+DEGREES(ATAN(Q98/R98))-IF(R98>0,180,0)) -> -93.24619058 | T98: =IF(A98>=$A$8-2,$S98,IF(AND((T99-$S98)<270,$S98<T99),T99,$S98)) -> -93.24619058 | U98: =IF(ABS(T98-T99)<$A$23,IF(T98<0,-1,IF(T98>=0,1,0)),0) -> 0 | AB98: 0.9317279562 | AC98: 0.8131928016 | AD98: -0.2852020293 | AE98: -0.5877852523 | AF98: -0.05403043772 | AG98: =IF(AND($R$14=3,$R$19,$U98=1),$AZ$34,NA()) ->  | AH98: =IF(AND($R$14=3,$R$19,$U98=-1),$AZ$34,NA()) ->  | AP98: 68821100
A99: 67 | B99: =IF(A99>$A$8,"",OFFSET(InputPriceData!B$15,$A99+$A$11,0,1,1)) -> 2019-09-10 | C99: =IF(A99>$A$8,"",OFFSET(InputPriceData!G$15,CalculationsAndCharts!$A99+$A$11,IF($C$5,8,0),1,1)) -> 57947100 | D99: =IF(A99>$A$8,"",OFFSET(InputPriceData!C$15,CalculationsAndCharts!$A99+$A$11,IF($C$5,8,0),1,1)) -> 297.359985 | E99: =IF(A99>$A$8,"",OFFSET(InputPriceData!D$15,CalculationsAndCharts!$A99+$A$11,IF($C$5,8,0),1,1)) -> 298.200012 | F99: =IF(A99>$A$8,"",OFFSET(InputPriceData!E$15,CalculationsAndCharts!$A99+$A$11,IF($C$5,8,0),1,1)) -> 295.970001 | G99: =IF(A99>$A$8,"",OFFSET(InputPriceData!F$15,CalculationsAndCharts!$A99+$A$11,IF($C$5,8,0),1,1)) -> 298.130005 | H99: 0.9363929842 | I99: 0.6975167285 | J99: -0.390800244 | K99: 20.73451151 | L99: -0.9510565163 | M99: -0.3090169944 | N99: -0.7705132428 | O99: -0.7705132428 | P99: -0.242991375 | Q99: -0.242991375 | R99: 0.9226967237 | S99: -104.7538094 | T99: -104.7538094 | U99: 0 | AB99: 0.9363929842 | AC99: 0.6975167285 | AD99: -0.390800244 | AE99: -0.7705132428 | AF99: -0.242991375 | AP99: 57947100
A100: 68 | B100: =IF(A100>$A$8,"",OFFSET(InputPriceData!B$15,$A100+$A$11,0,1,1)) -> 2019-09-09 | C100: =IF(A100>$A$8,"",OFFSET(InputPriceData!G$15,CalculationsAndCharts!$A100+$A$11,IF($C$5,8,0),1,1)) -> 51260300 | D100: =IF(A100>$A$8,"",OFFSET(InputPriceData!C$15,CalculationsAndCharts!$A100+$A$11,IF($C$5,8,0),1,1)) -> 299.140015 | E100: =IF(A100>$A$8,"",OFFSET(InputPriceData!D$15,CalculationsAndCharts!$A100+$A$11,IF($C$5,8,0),1,1)) -> 299.23999 | F100: =IF(A100>$A$8,"",OFFSET(InputPriceData!E$15,CalculationsAndCharts!$A100+$A$11,IF($C$5,8,0),1,1)) -> 297.160004 | G100: =IF(A100>$A$8,"",OFFSET(InputPriceData!F$15,CalculationsAndCharts!$A100+$A$11,IF($C$5,8,0),1,1)) -> 298.200012 | H100: 0.9420443907 | I100: 0.6544105142 | J100: -0.4794148678 | K100: 21.04867078 | L100: -0.8090169944 | M100: -0.5877852523 | N100: -0.9048270525 | O100: -0.9048270525 | P100: -0.4274745941 | Q100: -0.4274745941 | R100: 0.856409327 | S100: -116.5259632 | T100: -116.5259632 | U100: 0 | AB100: 0.9420443907 | AC100: 0.6544105142 | AD100: -0.4794148678 | AE100: -0.9048270525 | AF100: -0.4274745941 | AQ100: 51260300
A101: 69 | B101: =IF(A101>$A$8,"",OFFSET(InputPriceData!B$15,$A101+$A$11,0,1,1)) -> 2019-09-06 | C101: =IF(A101>$A$8,"",OFFSET(InputPriceData!G$15,CalculationsAndCharts!$A101+$A$11,IF($C$5,8,0),1,1)) -> 49584300 | D101: =IF(A101>$A$8,"",OFFSET(InputPriceData!C$15,CalculationsAndCharts!$A101+$A$11,IF($C$5,8,0),1,1)) -> 298.170013 | E101: =IF(A101>$A$8,"",OFFSET(InputPriceData!D$15,CalculationsAndCharts!$A101+$A$11,IF($C$5,8,0),1,1)) -> 298.76001 | F101: =IF(A101>$A$8,"",OFFSET(InputPriceData!E$15,CalculationsAndCharts!$A101+$A$11,IF($C$5,8,0),1,1)) -> 297.420013 | G101: =IF(A101>$A$8,"",OFFSET(InputPriceData!F$15,CalculationsAndCharts!$A101+$A$11,IF($C$5,8,0),1,1)) -> 298.049988 | H101: 0.9477751828 | I101: 0.5228857845 | J101: -0.565130063 | K101: 21.36283004 | L101: -0.5877852523 | M101: -0.8090169944 | N101: -0.9822872507 | O101: -0.9822872507 | P101: -0.607402758 | Q101: -0.607402758 | R101: 0.7476152487 | S101: -129.0922601 | T101: -129.0922601 | U101: 0 | AB101: 0.9477751828 | AC101: 0.5228857845 | AD101: -0.565130063 | AE101: -0.9822872507 | AF101: -0.607402758 | AQ101: 49584300
A102: 70 | B102: =IF(A102>$A$8,"",OFFSET(InputPriceData!B$15,$A102+$A$11,0,1,1)) -> 2019-09-05 | C102: =IF(A102>$A$8,"",OFFSET(InputPriceData!G$15,CalculationsAndCharts!$A102+$A$11,IF($C$5,8,0),1,1)) -> 83258100 | D102: =IF(A102>$A$8,"",OFFSET(InputPriceData!C$15,CalculationsAndCharts!$A102+$A$11,IF($C$5,8,0),1,1)) -> 296.790009 | E102: =IF(A102>$A$8,"",OFFSET(InputPriceData!D$15,CalculationsAndCharts!$A102+$A$11,IF($C$5,8,0),1,1)) -> 298.829987 | F102: =IF(A102>$A$8,"",OFFSET(InputPriceData!E$15,CalculationsAndCharts!$A102+$A$11,IF($C$5,8,0),1,1)) -> 294 | G102: =IF(A102>$A$8,"",OFFSET(InputPriceData!F$15,CalculationsAndCharts!$A102+$A$11,IF($C$5,8,0),1,1)) -> 297.820007 | H102: 0.7115113101 | I102: 0.3028368256 | J102: -0.6406423588 | K102: 21.67698931 | L102: -0.3090169944 | M102: -0.9510565163 | N102: -0.9980267284 | O102: -0.9980267284 | P102: -0.7759611781 | Q102: -0.7759611781 | R102: 0.585700191 | S102: -142.9542741 | T102: -142.9542741 | U102: 0 | AB102: 0.7115113101 | AC102: 0.3028368256 | AD102: -0.6406423588 | AE102: -0.9980267284 | AF102: -0.7759611781 | AP102: 83258100
A103: 71 | B103: =IF(A103>$A$8,"",OFFSET(InputPriceData!B$15,$A103+$A$11,0,1,1)) -> 2019-09-04 | C103: =IF(A103>$A$8,"",OFFSET(InputPriceData!G$15,CalculationsAndCharts!$A103+$A$11,IF($C$5,8,0),1,1)) -> 46887300 | D103: =IF(A103>$A$8,"",OFFSET(InputPriceData!C$15,CalculationsAndCharts!$A103+$A$11,IF($C$5,8,0),1,1)) -> 293.140015 | E103: =IF(A103>$A$8,"",OFFSET(InputPriceData!D$15,CalculationsAndCharts!$A103+$A$11,IF($C$5,8,0),1,1)) -> 294.059998 | F103: =IF(A103>$A$8,"",OFFSET(InputPriceData!E$15,CalculationsAndCharts!$A103+$A$11,IF($C$5,8,0),1,1)) -> 292.309998 | G103: =IF(A103>$A$8,"",OFFSET(InputPriceData!F$15,CalculationsAndCharts!$A103+$A$11,IF($C$5,8,0),1,1)) -> 294.040009 | H103: 0.3456914111 | I103: 0.1851447082 | J103: -0.7092756676 | K103: 21.99114858 | L103: -8.576039184e-16 | M103: -1 | N103: -0.9510565163 | O103: -0.9510565163 | P103: -0.9139687952 | Q103: -0.9139687952 | R103: 0.3607438098 | S103: -158.4608327 | T103: -158.4608327 | U103: 0 | AB103: 0.3456914111 | AC103: 0.1851447082 | AD103: -0.7092756676 | AE103: -0.9510565163 | AF103: -0.9139687952 | AP103: 46887300
A104: 72 | B104: =IF(A104>$A$8,"",OFFSET(InputPriceData!B$15,$A104+$A$11,0,1,1)) -> 2019-09-03 | C104: =IF(A104>$A$8,"",OFFSET(InputPriceData!G$15,CalculationsAndCharts!$A104+$A$11,IF($C$5,8,0),1,1)) -> 69101400 | D104: =IF(A104>$A$8,"",OFFSET(InputPriceData!C$15,CalculationsAndCharts!$A104+$A$11,IF($C$5,8,0),1,1)) -> 290.570007 | E104: =IF(A104>$A$8,"",OFFSET(InputPriceData!D$15,CalculationsAndCharts!$A104+$A$11,IF($C$5,8,0),1,1)) -> 291.579987 | F104: =IF(A104>$A$8,"",OFFSET(InputPriceData!E$15,CalculationsAndCharts!$A104+$A$11,IF($C$5,8,0),1,1)) -> 289.269989 | G104: =IF(A104>$A$8,"",OFFSET(InputPriceData!F$15,CalculationsAndCharts!$A104+$A$11,IF($C$5,8,0),1,1)) -> 290.73999 | H104: 0.1212978709 | I104: 0.1199613271 | J104: -0.7346022868 | K104: 22.30530784 | L104: 0.3090169944 | M104: -0.9510565163 | N104: -0.8443279255 | O104: -0.8443279255 | P104: -0.9879912826 | Q104: -0.9879912826 | R104: 0.07689672861 | S104: -175.5495622 | T104: -175.5495622 | U104: 0 | AB104: 0.1212978709 | AC104: 0.1199613271 | AD104: -0.7346022868 | AE104: -0.8443279255 | AF104: -0.9879912826 | AP104: 69101400
A105: 73 | B105: =IF(A105>$A$8,"",OFFSET(InputPriceData!B$15,$A105+$A$11,0,1,1)) -> 2019-08-30 | C105: =IF(A105>$A$8,"",OFFSET(InputPriceData!G$15,CalculationsAndCharts!$A105+$A$11,IF($C$5,8,0),1,1)) -> 62901200 | D105: =IF(A105>$A$8,"",OFFSET(InputPriceData!C$15,CalculationsAndCharts!$A105+$A$11,IF($C$5,8,0),1,1)) -> 294.220001 | E105: =IF(A105>$A$8,"",OFFSET(InputPriceData!D$15,CalculationsAndCharts!$A105+$A$11,IF($C$5,8,0),1,1)) -> 294.23999 | F105: =IF(A105>$A$8,"",OFFSET(InputPriceData!E$15,CalculationsAndCharts!$A105+$A$11,IF($C$5,8,0),1,1)) -> 291.420013 | G105: =IF(A105>$A$8,"",OFFSET(InputPriceData!F$15,CalculationsAndCharts!$A105+$A$11,IF($C$5,8,0),1,1)) -> 292.450012 | H105: -0.08229682403 | I105: 0.2254354444 | J105: -0.7331660167 | K105: 22.61946711 | L105: 0.5877852523 | M105: -0.8090169944 | N105: -0.6845471059 | O105: -0.6845471059 | P105: -0.9655044825 | Q105: -0.9655044825 | R105: -0.2319768058 | S105: 166.4899184 | T105: 166.4899184 | U105: 0 | AB105: -0.08229682403 | AC105: 0.2254354444 | AD105: -0.7331660167 | AE105: -0.6845471059 | AF105: -0.9655044825 | AQ105: 62901200
A106: 74 | B106: =IF(A106>$A$8,"",OFFSET(InputPriceData!B$15,$A106+$A$11,0,1,1)) -> 2019-08-29 | C106: =IF(A106>$A$8,"",OFFSET(InputPriceData!G$15,CalculationsAndCharts!$A106+$A$11,IF($C$5,8,0),1,1)) -> 57899400 | D106: =IF(A106>$A$8,"",OFFSET(InputPriceData!C$15,CalculationsAndCharts!$A106+$A$11,IF($C$5,8,0),1,1)) -> 291.720001 | E106: =IF(A106>$A$8,"",OFFSET(InputPriceData!D$15,CalculationsAndCharts!$A106+$A$11,IF($C$5,8,0),1,1)) -> 293.160004 | F106: =IF(A106>$A$8,"",OFFSET(InputPriceData!E$15,CalculationsAndCharts!$A106+$A$11,IF($C$5,8,0),1,1)) -> 290.609985 | G106: =IF(A106>$A$8,"",OFFSET(InputPriceData!F$15,CalculationsAndCharts!$A106+$A$11,IF($C$5,8,0),1,1)) -> 292.579987 | H106: -0.1864268714 | I106: 0.04107233212 | J106: -0.7500142401 | K106: 22.93362637 | L106: 0.8090169944 | M106: -0.5877852523 | N106: -0.4817536741 | O106: -0.4817536741 | P106: -0.8448409074 | Q106: -0.8448409074 | R106: -0.5109343118 | S106: 148.8357159 | T106: 148.8357159 | U106: 0 | AB106: -0.1864268714 | AC106: 0.04107233212 | AD106: -0.7500142401 | AE106: -0.4817536741 | AF106: -0.8448409074 | AP106: 57899400
A107: 75 | B107: =IF(A107>$A$8,"",OFFSET(InputPriceData!B$15,$A107+$A$11,0,1,1)) -> 2019-08-28 | C107: =IF(A107>$A$8,"",OFFSET(InputPriceData!G$15,CalculationsAndCharts!$A107+$A$11,IF($C$5,8,0),1,1)) -> 59696700 | D107: =IF(A107>$A$8,"",OFFSET(InputPriceData!C$15,CalculationsAndCharts!$A107+$A$11,IF($C$5,8,0),1,1)) -> 286.140015 | E107: =IF(A107>$A$8,"",OFFSET(InputPriceData!D$15,CalculationsAndCharts!$A107+$A$11,IF($C$5,8,0),1,1)) -> 289.070007 | F107: =IF(A107>$A$8,"",OFFSET(InputPriceData!E$15,CalculationsAndCharts!$A107+$A$11,IF($C$5,8,0),1,1)) -> 285.25 | G107: =IF(A107>$A$8,"",OFFSET(InputPriceData!F$15,CalculationsAndCharts!$A107+$A$11,IF($C$5,8,0),1,1)) -> 288.890015 | H107: -0.08247981676 | I107: -0.1942662955 | J107: -0.7674463286 | K107: 23.24778564 | L107: 0.9510565163 | M107: -0.3090169944 | N107: -0.2486898872 | O107: -0.2486898872 | P107: -0.6602083535 | Q107: -0.6602083535 | R107: -0.7206796246 | S107: 132.4925291 | T107: 132.4925291 | U107: 0 | AB107: -0.08247981676 | AC107: -0.1942662955 | AD107: -0.7674463286 | AE107: -0.2486898872 | AF107: -0.6602083535 | AP107: 59696700
A108: 76 | B108: =IF(A108>$A$8,"",OFFSET(InputPriceData!B$15,$A108+$A$11,0,1,1)) -> 2019-08-27 | C108: =IF(A108>$A$8,"",OFFSET(InputPriceData!G$15,CalculationsAndCharts!$A108+$A$11,IF($C$5,8,0),1,1)) -> 66668900 | D108: =IF(A108>$A$8,"",OFFSET(InputPriceData!C$15,CalculationsAndCharts!$A108+$A$11,IF($C$5,8,0),1,1)) -> 289.540009 | E108: =IF(A108>$A$8,"",OFFSET(InputPriceData!D$15,CalculationsAndCharts!$A108+$A$11,IF($C$5,8,0),1,1)) -> 289.950012 | F108: =IF(A108>$A$8,"",OFFSET(InputPriceData!E$15,CalculationsAndCharts!$A108+$A$11,IF($C$5,8,0),1,1)) -> 286.029999 | G108: =IF(A108>$A$8,"",OFFSET(InputPriceData!F$15,CalculationsAndCharts!$A108+$A$11,IF($C$5,8,0),1,1)) -> 286.869995 | H108: 0.1796304856 | I108: -0.339660287 | J108: -0.7486820529 | K108: 23.5619449 | L108: 1 | M108: 8.574954982e-16 | N108: -7.350890729e-16 | O108: -7.350890729e-16 | P108: -0.4516903807 | Q108: -0.4516903807 | R108: -0.8554943325 | S108: 117.8334974 | T108: 117.8334974 | U108: 0 | AB108: 0.1796304856 | AC108: -0.339660287 | AD108: -0.7486820529 | AE108: -7.350890729e-16 | AF108: -0.4516903807 | AQ108: 66668900
A109: 77 | B109: =IF(A109>$A$8,"",OFFSET(InputPriceData!B$15,$A109+$A$11,0,1,1)) -> 2019-08-26 | C109: =IF(A109>$A$8,"",OFFSET(InputPriceData!G$15,CalculationsAndCharts!$A109+$A$11,IF($C$5,8,0),1,1)) -> 72423800 | D109: =IF(A109>$A$8,"",OFFSET(InputPriceData!C$15,CalculationsAndCharts!$A109+$A$11,IF($C$5,8,0),1,1)) -> 287.269989 | E109: =IF(A109>$A$8,"",OFFSET(InputPriceData!D$15,CalculationsAndCharts!$A109+$A$11,IF($C$5,8,0),1,1)) -> 288 | F109: =IF(A109>$A$8,"",OFFSET(InputPriceData!E$15,CalculationsAndCharts!$A109+$A$11,IF($C$5,8,0),1,1)) -> 285.579987 | G109: =IF(A109>$A$8,"",OFFSET(InputPriceData!F$15,CalculationsAndCharts!$A109+$A$11,IF($C$5,8,0),1,1)) -> 288 | H109: 0.06685751768 | I109: -0.4375899612 | J109: -0.7140301084 | K109: 23.87610417 | L109: 0.9510565163 | M109: 0.3090169944 | N109: 0.2486898872 | O109: 0.2486898872 | P109: -0.2431918379 | Q109: -0.2431918379 | R109: -0.9285090696 | S109: 104.6770221 | T109: 104.6770221 | U109: 0 | AB109: 0.06685751768 | AC109: -0.4375899612 | AD109: -0.7140301084 | AE109: 0.2486898872 | AF109: -0.2431918379 | AP109: 72423800
A110: 78 | B110: =IF(A110>$A$8,"",OFFSET(InputPriceData!B$15,$A110+$A$11,0,1,1)) -> 2019-08-23 | C110: =IF(A110>$A$8,"",OFFSET(InputPriceData!G$15,CalculationsAndCharts!$A110+$A$11,IF($C$5,8,0),1,1)) -> 149161500 | D110: =IF(A110>$A$8,"",OFFSET(InputPriceData!C$15,CalculationsAndCharts!$A110+$A$11,IF($C$5,8,0),1,1)) -> 290.920013 | E110: =IF(A110>$A$8,"",OFFSET(InputPriceData!D$15,CalculationsAndCharts!$A110+$A$11,IF($C$5,8,0),1,1)) -> 292.76001 | F110: =IF(A110>$A$8,"",OFFSET(InputPriceData!E$15,CalculationsAndCharts!$A110+$A$11,IF($C$5,8,0),1,1)) -> 283.470001 | G110: =IF(A110>$A$8,"",OFFSET(InputPriceData!F$15,CalculationsAndCharts!$A110+$A$11,IF($C$5,8,0),1,1)) -> 284.850006 | H110: 0.1683668362 | I110: -0.5259150273 | J110: -0.6580527294 | K110: 24.19026343 | L110: 0.8090169944 | M110: 0.5877852523 | N110: 0.4817536741 | O110: 0.4817536741 | P110: -0.04289620124 | Q110: -0.04289620124 | R110: -0.9543174948 | S110: 92.57369065 | T110: 92.57369065 | U110: 0 | AB110: 0.1683668362 | AC110: -0.5259150273 | AD110: -0.6580527294 | AE110: 0.4817536741 | AF110: -0.04289620124 | AQ110: 149161500
A111: 79 | B111: =IF(A111>$A$8,"",OFFSET(InputPriceData!B$15,$A111+$A$11,0,1,1)) -> 2019-08-22 | C111: =IF(A111>$A$8,"",OFFSET(InputPriceData!G$15,CalculationsAndCharts!$A111+$A$11,IF($C$5,8,0),1,1)) -> 51666400 | D111: =IF(A111>$A$8,"",OFFSET(InputPriceData!C$15,CalculationsAndCharts!$A111+$A$11,IF($C$5,8,0),1,1)) -> 293.230011 | E111: =IF(A111>$A$8,"",OFFSET(InputPriceData!D$15,CalculationsAndCharts!$A111+$A$11,IF($C$5,8,0),1,1)) -> 293.929993 | F111: =IF(A111>$A$8,"",OFFSET(InputPriceData!E$15,CalculationsAndCharts!$A111+$A$11,IF($C$5,8,0),1,1)) -> 290.399994 | G111: =IF(A111>$A$8,"",OFFSET(InputPriceData!F$15,CalculationsAndCharts!$A111+$A$11,IF($C$5,8,0),1,1)) -> 292.359985 | H111: 0.3061975334 | I111: -0.5566247323 | J111: -0.5715833447 | K111: 24.5044227 | L111: 0.5877852523 | M111: 0.8090169944 | N111: 0.6845471059 | O111: 0.6845471059 | P111: 0.1492044882 | Q111: 0.1492044882 | R111: -0.9420400633 | S111: 81 | T111: 81 | U111: 0 | AB111: 0.3061975334 | AC111: -0.5566247323 | AD111: -0.5715833447 | AE111: 0.6845471059 | AF111: 0.1492044882 | AQ111: 51666400
A112: 80 | B112: =IF(A112>$A$8,"",OFFSET(InputPriceData!B$15,$A112+$A$11,0,1,1)) -> 2019-08-21 | C112: =IF(A112>$A$8,"",OFFSET(InputPriceData!G$15,CalculationsAndCharts!$A112+$A$11,IF($C$5,8,0),1,1)) -> 49524700 | D112: =IF(A112>$A$8,"",OFFSET(InputPriceData!C$15,CalculationsAndCharts!$A112+$A$11,IF($C$5,8,0),1,1)) -> 292.480011 | E112: =IF(A112>$A$8,"",OFFSET(InputPriceData!D$15,CalculationsAndCharts!$A112+$A$11,IF($C$5,8,0),1,1)) -> 292.859985 | F112: =IF(A112>$A$8,"",OFFSET(InputPriceData!E$15,CalculationsAndCharts!$A112+$A$11,IF($C$5,8,0),1,1)) -> 291.720001 | G112: =IF(A112>$A$8,"",OFFSET(InputPriceData!F$15,CalculationsAndCharts!$A112+$A$11,IF($C$5,8,0),1,1)) -> 292.450012 | H112: -0.05549037887 | I112: -0.6539073179 | J112: -0.5081886859 | K112: 24.81858196 | L112: 0.3090169944 | M112: 0.9510565163 | N112: 0.8443279255 | O112: 0.8443279255 | P112: 0.3356970356 | Q112: 0.3356970356 | R112: -0.8943542169 | S112: 69.42630935 | T112: 69.42630935 | U112: 0 | AB112: -0.05549037887 | AC112: -0.6539073179 | AD112: -0.5081886859 | AE112: 0.8443279255 | AF112: 0.3356970356 | AQ112: 49524700
A113: 81 | B113: =IF(A113>$A$8,"",OFFSET(InputPriceData!B$15,$A113+$A$11,0,1,1)) -> 2019-08-20 | C113: =IF(A113>$A$8,"",OFFSET(InputPriceData!G$15,CalculationsAndCharts!$A113+$A$11,IF($C$5,8,0),1,1)) -> 51596400 | D113: =IF(A113>$A$8,"",OFFSET(InputPriceData!C$15,CalculationsAndCharts!$A113+$A$11,IF($C$5,8,0),1,1)) -> 291.769989 | E113: =IF(A113>$A$8,"",OFFSET(InputPriceData!D$15,CalculationsAndCharts!$A113+$A$11,IF($C$5,8,0),1,1)) -> 292.359985 | F113: =IF(A113>$A$8,"",OFFSET(InputPriceData!E$15,CalculationsAndCharts!$A113+$A$11,IF($C$5,8,0),1,1)) -> 289.950012 | G113: =IF(A113>$A$8,"",OFFSET(InputPriceData!F$15,CalculationsAndCharts!$A113+$A$11,IF($C$5,8,0),1,1)) -> 290.089996 | H113: -0.1258758345 | I113: -0.7445362242 | J113: -0.4500154593 | K113: 25.13274123 | L113: 9.801187639e-16 | M113: 1 | N113: 0.9510565163 | O113: 0.9510565163 | P113: 0.5182142641 | Q113: 0.5182142641 | R113: -0.8079141903 | S113: 57.32297794 | T113: 57.32297794 | U113: 0 | AB113: -0.1258758345 | AC113: -0.7445362242 | AD113: -0.4500154593 | AE113: 0.9510565163 | AF113: 0.5182142641 | AQ113: 51596400
A114: 82 | B114: =IF(A114>$A$8,"",OFFSET(InputPriceData!B$15,$A114+$A$11,0,1,1)) -> 2019-08-19 | C114: =IF(A114>$A$8,"",OFFSET(InputPriceData!G$15,CalculationsAndCharts!$A114+$A$11,IF($C$5,8,0),1,1)) -> 53571800 | D114: =IF(A114>$A$8,"",OFFSET(InputPriceData!C$15,CalculationsAndCharts!$A114+$A$11,IF($C$5,8,0),1,1)) -> 292.190002 | E114: =IF(A114>$A$8,"",OFFSET(InputPriceData!D$15,CalculationsAndCharts!$A114+$A$11,IF($C$5,8,0),1,1)) -> 293.079987 | F114: =IF(A114>$A$8,"",OFFSET(InputPriceData!E$15,CalculationsAndCharts!$A114+$A$11,IF($C$5,8,0),1,1)) -> 291.440002 | G114: =IF(A114>$A$8,"",OFFSET(InputPriceData!F$15,CalculationsAndCharts!$A114+$A$11,IF($C$5,8,0),1,1)) -> 292.329987 | H114: -0.09136358447 | I114: -0.7817111586 | J114: -0.4026253593 | K114: 25.44690049 | L114: -0.3090169944 | M114: 0.9510565163 | N114: 0.9980267284 | O114: 0.9980267284 | P114: 0.6939453673 | Q114: 0.6939453673 | R114: -0.6740434557 | S114: 44.16650262 | T114: 44.16650262 | U114: 0 | AB114: -0.09136358447 | AC114: -0.7817111586 | AD114: -0.4026253593 | AE114: 0.9980267284 | AF114: 0.6939453673 | AP114: 53571800
A115: 83 | B115: =IF(A115>$A$8,"",OFFSET(InputPriceData!B$15,$A115+$A$11,0,1,1)) -> 2019-08-16 | C115: =IF(A115>$A$8,"",OFFSET(InputPriceData!G$15,CalculationsAndCharts!$A115+$A$11,IF($C$5,8,0),1,1)) -> 83018300 | D115: =IF(A115>$A$8,"",OFFSET(InputPriceData!C$15,CalculationsAndCharts!$A115+$A$11,IF($C$5,8,0),1,1)) -> 286.480011 | E115: =IF(A115>$A$8,"",OFFSET(InputPriceData!D$15,CalculationsAndCharts!$A115+$A$11,IF($C$5,8,0),1,1)) -> 289.329987 | F115: =IF(A115>$A$8,"",OFFSET(InputPriceData!E$15,CalculationsAndCharts!$A115+$A$11,IF($C$5,8,0),1,1)) -> 284.709991 | G115: =IF(A115>$A$8,"",OFFSET(InputPriceData!F$15,CalculationsAndCharts!$A115+$A$11,IF($C$5,8,0),1,1)) -> 288.850006 | H115: -0.02033863856 | I115: -0.8195703134 | J115: -0.3725927566 | K115: 25.76105976 | L115: -0.5877852523 | M115: 0.8090169944 | N115: 0.9822872507 | O115: 0.9822872507 | P115: 0.8505977083 | Q115: 0.8505977083 | R115: -0.4813914521 | S115: 29.50747086 | T115: 29.50747086 | U115: 0 | AB115: -0.02033863856 | AC115: -0.8195703134 | AD115: -0.3725927566 | AE115: 0.9822872507 | AF115: 0.8505977083 | AP115: 83018300
A116: 84 | B116: =IF(A116>$A$8,"",OFFSET(InputPriceData!B$15,$A116+$A$11,0,1,1)) -> 2019-08-15 | C116: =IF(A116>$A$8,"",OFFSET(InputPriceData!G$15,CalculationsAndCharts!$A116+$A$11,IF($C$5,8,0),1,1)) -> 99556600 | D116: =IF(A116>$A$8,"",OFFSET(InputPriceData!C$15,CalculationsAndCharts!$A116+$A$11,IF($C$5,8,0),1,1)) -> 284.880005 | E116: =IF(A116>$A$8,"",OFFSET(InputPriceData!D$15,CalculationsAndCharts!$A116+$A$11,IF($C$5,8,0),1,1)) -> 285.640015 | F116: =IF(A116>$A$8,"",OFFSET(InputPriceData!E$15,CalculationsAndCharts!$A116+$A$11,IF($C$5,8,0),1,1)) -> 282.390015 | G116: =IF(A116>$A$8,"",OFFSET(InputPriceData!F$15,CalculationsAndCharts!$A116+$A$11,IF($C$5,8,0),1,1)) -> 284.649994 | H116: -0.2390894404 | I116: -0.8048351145 | J116: -0.3319868697 | K116: 26.07521902 | L116: -0.8090169944 | M116: 0.5877852523 | N116: 0.9048270525 | O116: 0.9048270525 | P116: 0.9613788356 | Q116: 0.9613788356 | R116: -0.2248572087 | S116: 13.16428408 | T116: 13.16428408 | U116: 0 | AB116: -0.2390894404 | AC116: -0.8048351145 | AD116: -0.3319868697 | AE116: 0.9048270525 | AF116: 0.9613788356 | AQ116: 99556600
A117: 85 | B117: =IF(A117>$A$8,"",OFFSET(InputPriceData!B$15,$A117+$A$11,0,1,1)) -> 2019-08-14 | C117: =IF(A117>$A$8,"",OFFSET(InputPriceData!G$15,CalculationsAndCharts!$A117+$A$11,IF($C$5,8,0),1,1)) -> 135622100 | D117: =IF(A117>$A$8,"",OFFSET(InputPriceData!C$15,CalculationsAndCharts!$A117+$A$11,IF($C$5,8,0),1,1)) -> 288.070007 | E117: =IF(A117>$A$8,"",OFFSET(InputPriceData!D$15,CalculationsAndCharts!$A117+$A$11,IF($C$5,8,0),1,1)) -> 288.73999 | F117: =IF(A117>$A$8,"",OFFSET(InputPriceData!E$15,CalculationsAndCharts!$A117+$A$11,IF($C$5,8,0),1,1)) -> 283.76001 | G117: =IF(A117>$A$8,"",OFFSET(InputPriceData!F$15,CalculationsAndCharts!$A117+$A$11,IF($C$5,8,0),1,1)) -> 283.899994 | H117: -0.2823023933 | I117: -0.7701273536 | J117: -0.2332708643 | K117: 26.38937829 | L117: -0.9510565163 | M117: 0.3090169944 | N117: 0.7705132428 | O117: 0.7705132428 | P117: 0.9899341049 | Q117: 0.9899341049 | R117: 0.07773424042 | S117: -4.48991835 | T117: -4.48991835 | U117: 0 | AB117: -0.2823023933 | AC117: -0.7701273536 | AD117: -0.2332708643 | AE117: 0.7705132428 | AF117: 0.9899341049 | AQ117: 135622100
A118: 86 | B118: =IF(A118>$A$8,"",OFFSET(InputPriceData!B$15,$A118+$A$11,0,1,1)) -> 2019-08-13 | C118: =IF(A118>$A$8,"",OFFSET(InputPriceData!G$15,CalculationsAndCharts!$A118+$A$11,IF($C$5,8,0),1,1)) -> 94299800 | D118: =IF(A118>$A$8,"",OFFSET(InputPriceData!C$15,CalculationsAndCharts!$A118+$A$11,IF($C$5,8,0),1,1)) -> 287.73999 | E118: =IF(A118>$A$8,"",OFFSET(InputPriceData!D$15,CalculationsAndCharts!$A118+$A$11,IF($C$5,8,0),1,1)) -> 294.149994 | F118: =IF(A118>$A$8,"",OFFSET(InputPriceData!E$15,CalculationsAndCharts!$A118+$A$11,IF($C$5,8,0),1,1)) -> 287.359985 | G118: =IF(A118>$A$8,"",OFFSET(InputPriceData!F$15,CalculationsAndCharts!$A118+$A$11,IF($C$5,8,0),1,1)) -> 292.549988 | H118: -0.3020832462 | I118: -0.708454849 | J118: -0.1058268858 | K118: 26.70353756 | L118: -1 | M118: -7.349806527e-16 | N118: 0.5877852523 | O118: 0.5877852523 | P118: 0.9158731514 | Q118: 0.9158731514 | R118: 0.3784392315 | S118: -22.45043776 | T118: -22.45043776 | U118: 0 | AB118: -0.3020832462 | AC118: -0.708454849 | AD118: -0.1058268858 | AE118: 0.5877852523 | AF118: 0.9158731514 | AP118: 94299800
A119: 87 | B119: =IF(A119>$A$8,"",OFFSET(InputPriceData!B$15,$A119+$A$11,0,1,1)) -> 2019-08-12 | C119: =IF(A119>$A$8,"",OFFSET(InputPriceData!G$15,CalculationsAndCharts!$A119+$A$11,IF($C$5,8,0),1,1)) -> 62629500 | D119: =IF(A119>$A$8,"",OFFSET(InputPriceData!C$15,CalculationsAndCharts!$A119+$A$11,IF($C$5,8,0),1,1)) -> 289.959991 | E119: =IF(A119>$A$8,"",OFFSET(InputPriceData!D$15,CalculationsAndCharts!$A119+$A$11,IF($C$5,8,0),1,1)) -> 291.609985 | F119: =IF(A119>$A$8,"",OFFSET(InputPriceData!E$15,CalculationsAndCharts!$A119+$A$11,IF($C$5,8,0),1,1)) -> 287.019989 | G119: =IF(A119>$A$8,"",OFFSET(InputPriceData!F$15,CalculationsAndCharts!$A119+$A$11,IF($C$5,8,0),1,1)) -> 288.070007 | H119: -0.6155226425 | I119: -0.7226497876 | J119: -0.01408882309 | K119: 27.01769682 | L119: -0.9510565163 | M119: -0.3090169944 | N119: 0.3681245527 | O119: 0.3681245527 | P119: 0.7577600105 | Q119: 0.7577600105 | R119: 0.625519641 | S119: -39.53916727 | T119: -39.53916727 | U119: 0 | AB119: -0.6155226425 | AC119: -0.7226497876 | AD119: -0.01408882309 | AE119: 0.3681245527 | AF119: 0.7577600105 | AQ119: 62629500
A120: 88 | B120: =IF(A120>$A$8,"",OFFSET(InputPriceData!B$15,$A120+$A$11,0,1,1)) -> 2019-08-09 | C120: =IF(A120>$A$8,"",OFFSET(InputPriceData!G$15,CalculationsAndCharts!$A120+$A$11,IF($C$5,8,0),1,1)) -> 93730000 | D120: =IF(A120>$A$8,"",OFFSET(InputPriceData!C$15,CalculationsAndCharts!$A120+$A$11,IF($C$5,8,0),1,1)) -> 292.579987 | E120: =IF(A120>$A$8,"",OFFSET(InputPriceData!D$15,CalculationsAndCharts!$A120+$A$11,IF($C$5,8,0),1,1)) -> 293.23999 | F120: =IF(A120>$A$8,"",OFFSET(InputPriceData!E$15,CalculationsAndCharts!$A120+$A$11,IF($C$5,8,0),1,1)) -> 289.649994 | G120: =IF(A120>$A$8,"",OFFSET(InputPriceData!F$15,CalculationsAndCharts!$A120+$A$11,IF($C$5,8,0),1,1)) -> 291.619995 | H120: -0.6931314809 | I120: -0.6950364279 | J120: 0.1210372233 | K120: 27.33185609 | L120: -0.8090169944 | M120: -0.5877852523 | N120: 0.1253332336 | O120: 0.1253332336 | P120: 0.5569916222 | Q120: 0.5569916222 | R120: 0.7968191743 | S120: -55.04572592 | T120: -55.04572592 | U120: 0 | AB120: -0.6931314809 | AC120: -0.6950364279 | AD120: 0.1210372233 | AE120: 0.1253332336 | AF120: 0.5569916222 | AQ120: 93730000
A121: 89 | B121: =IF(A121>$A$8,"",OFFSET(InputPriceData!B$15,$A121+$A$11,0,1,1)) -> 2019-08-08 | C121: =IF(A121>$A$8,"",OFFSET(InputPriceData!G$15,CalculationsAndCharts!$A121+$A$11,IF($C$5,8,0),1,1)) -> 87713900 | D121: =IF(A121>$A$8,"",OFFSET(InputPriceData!C$15,CalculationsAndCharts!$A121+$A$11,IF($C$5,8,0),1,1)) -> 289.619995 | E121: =IF(A121>$A$8,"",OFFSET(InputPriceData!D$15,CalculationsAndCharts!$A121+$A$11,IF($C$5,8,0),1,1)) -> 293.619995 | F121: =IF(A121>$A$8,"",OFFSET(InputPriceData!E$15,CalculationsAndCharts!$A121+$A$11,IF($C$5,8,0),1,1)) -> 289.01001 | G121: =IF(A121>$A$8,"",OFFSET(InputPriceData!F$15,CalculationsAndCharts!$A121+$A$11,IF($C$5,8,0),1,1)) -> 293.619995 | H121: -0.8082965904 | I121: -0.6847002135 | J121: 0.2153414576 | K121: 27.64601535 | L121: -0.5877852523 | M121: -0.8090169944 | N121: -0.1253332336 | O121: -0.1253332336 | P121: 0.3466485339 | Q121: 0.3466485339 | R121: 0.8987221286 | S121: -68.90773985 | T121: -68.90773985 | U121: 0 | AB121: -0.8082965904 | AC121: -0.6847002135 | AD121: 0.2153414576 | AE121: -0.1253332336 | AF121: 0.3466485339 | AP121: 87713900
A122: 90 | B122: =IF(A122>$A$8,"",OFFSET(InputPriceData!B$15,$A122+$A$11,0,1,1)) -> 2019-08-07 | C122: =IF(A122>$A$8,"",OFFSET(InputPriceData!G$15,CalculationsAndCharts!$A122+$A$11,IF($C$5,8,0),1,1)) -> 140572300 | D122: =IF(A122>$A$8,"",OFFSET(InputPriceData!C$15,CalculationsAndCharts!$A122+$A$11,IF($C$5,8,0),1,1)) -> 284.399994 | E122: =IF(A122>$A$8,"",OFFSET(InputPriceData!D$15,CalculationsAndCharts!$A122+$A$11,IF($C$5,8,0),1,1)) -> 288.820007 | F122: =IF(A122>$A$8,"",OFFSET(InputPriceData!E$15,CalculationsAndCharts!$A122+$A$11,IF($C$5,8,0),1,1)) -> 282.040009 | G122: =IF(A122>$A$8,"",OFFSET(InputPriceData!F$15,CalculationsAndCharts!$A122+$A$11,IF($C$5,8,0),1,1)) -> 287.970001 | H122: -0.9042246656 | I122: -0.6711284268 | J122: 0.2931554322 | K122: 27.96017462 | L122: -0.3090169944 | M122: -0.9510565163 | N122: -0.3681245527 | O122: -0.3681245527 | P122: 0.1419074621 | Q122: 0.1419074621 | R122: 0.9465905853 | S122: -81.47403682 | T122: -81.47403682 | U122: 0 | AB122: -0.9042246656 | AC122: -0.6711284268 | AD122: 0.2931554322 | AE122: -0.3681245527 | AF122: 0.1419074621 | AP122: 140572300
A123: 91 | B123: =IF(A123>$A$8,"",OFFSET(InputPriceData!B$15,$A123+$A$11,0,1,1)) -> 2019-08-06 | C123: =IF(A123>$A$8,"",OFFSET(InputPriceData!G$15,CalculationsAndCharts!$A123+$A$11,IF($C$5,8,0),1,1)) -> 120711700 | D123: =IF(A123>$A$8,"",OFFSET(InputPriceData!C$15,CalculationsAndCharts!$A123+$A$11,IF($C$5,8,0),1,1)) -> 285.910004 | E123: =IF(A123>$A$8,"",OFFSET(InputPriceData!D$15,CalculationsAndCharts!$A123+$A$11,IF($C$5,8,0),1,1)) -> 288.040009 | F123: =IF(A123>$A$8,"",OFFSET(InputPriceData!E$15,CalculationsAndCharts!$A123+$A$11,IF($C$5,8,0),1,1)) -> 284.279999 | G123: =IF(A123>$A$8,"",OFFSET(InputPriceData!F$15,CalculationsAndCharts!$A123+$A$11,IF($C$5,8,0),1,1)) -> 287.799988 | H123: -0.8835508706 | I123: -0.5825762169 | J123: 0.4276809337 | K123: 28.27433388 | L123: -1.102633609e-15 | M123: -1 | N123: -0.5877852523 | O123: -0.5877852523 | P123: -0.05403043772 | Q123: -0.05403043772 | R123: 0.952625196 | S123: -93.24619058 | T123: -93.24619058 | U123: 0 | AB123: -0.8835508706 | AC123: -0.5825762169 | AD123: 0.4276809337 | AE123: -0.5877852523 | AF123: -0.05403043772 | AP123: 120711700
A124: 92 | B124: =IF(A124>$A$8,"",OFFSET(InputPriceData!B$15,$A124+$A$11,0,1,1)) -> 2019-08-05 | C124: =IF(A124>$A$8,"",OFFSET(InputPriceData!G$15,CalculationsAndCharts!$A124+$A$11,IF($C$5,8,0),1,1)) -> 178745400 | D124: =IF(A124>$A$8,"",OFFSET(InputPriceData!C$15,CalculationsAndCharts!$A124+$A$11,IF($C$5,8,0),1,1)) -> 288.089996 | E124: =IF(A124>$A$8,"",OFFSET(InputPriceData!D$15,CalculationsAndCharts!$A124+$A$11,IF($C$5,8,0),1,1)) -> 288.209991 | F124: =IF(A124>$A$8,"",OFFSET(InputPriceData!E$15,CalculationsAndCharts!$A124+$A$11,IF($C$5,8,0),1,1)) -> 281.720001 | G124: =IF(A124>$A$8,"",OFFSET(InputPriceData!F$15,CalculationsAndCharts!$A124+$A$11,IF($C$5,8,0),1,1)) -> 283.820007 | H124: -0.7978625693 | I124: -0.4345509992 | J124: 0.5670212582 | K124: 28.58849315 | L124: 0.3090169944 | M124: -0.9510565163 | N124: -0.7705132428 | O124: -0.7705132428 | P124: -0.242991375 | Q124: -0.242991375 | R124: 0.9226967237 | S124: -104.7538094 | T124: -104.7538094 | U124: 0 | AB124: -0.7978625693 | AC124: -0.4345509992 | AD124: 0.5670212582 | AE124: -0.7705132428 | AF124: -0.242991375 | AQ124: 178745400
A125: 93 | B125: =IF(A125>$A$8,"",OFFSET(InputPriceData!B$15,$A125+$A$11,0,1,1)) -> 2019-08-02 | C125: =IF(A125>$A$8,"",OFFSET(InputPriceData!G$15,CalculationsAndCharts!$A125+$A$11,IF($C$5,8,0),1,1)) -> 116749700 | D125: =IF(A125>$A$8,"",OFFSET(InputPriceData!C$15,CalculationsAndCharts!$A125+$A$11,IF($C$5,8,0),1,1)) -> 293.850006 | E125: =IF(A125>$A$8,"",OFFSET(InputPriceData!D$15,CalculationsAndCharts!$A125+$A$11,IF($C$5,8,0),1,1)) -> 294.119995 | F125: =IF(A125>$A$8,"",OFFSET(InputPriceData!E$15,CalculationsAndCharts!$A125+$A$11,IF($C$5,8,0),1,1)) -> 290.899994 | G125: =IF(A125>$A$8,"",OFFSET(InputPriceData!F$15,CalculationsAndCharts!$A125+$A$11,IF($C$5,8,0),1,1)) -> 292.619995 | H125: -0.6018656176 | I125: -0.140103127 | J125: 0.7911758117 | K125: 28.90265241 | L125: 0.5877852523 | M125: -0.8090169944 | N125: -0.9048270525 | O125: -0.9048270525 | P125: -0.4274745941 | Q125: -0.4274745941 | R125: 0.856409327 | S125: -116.5259632 | T125: -116.5259632 | U125: 0 | AB125: -0.6018656176 | AC125: -0.140103127 | AD125: 0.7911758117 | AE125: -0.9048270525 | AF125: -0.4274745941 | AQ125: 116749700
A126: 94 | B126: =IF(A126>$A$8,"",OFFSET(InputPriceData!B$15,$A126+$A$11,0,1,1)) -> 2019-08-01 | C126: =IF(A126>$A$8,"",OFFSET(InputPriceData!G$15,CalculationsAndCharts!$A126+$A$11,IF($C$5,8,0),1,1)) -> 142646600 | D126: =IF(A126>$A$8,"",OFFSET(InputPriceData!C$15,CalculationsAndCharts!$A126+$A$11,IF($C$5,8,0),1,1)) -> 297.600006 | E126: =IF(A126>$A$8,"",OFFSET(InputPriceData!D$15,CalculationsAndCharts!$A126+$A$11,IF($C$5,8,0),1,1)) -> 300.869995 | F126: =IF(A126>$A$8,"",OFFSET(InputPriceData!E$15,CalculationsAndCharts!$A126+$A$11,IF($C$5,8,0),1,1)) -> 293.959991 | G126: =IF(A126>$A$8,"",OFFSET(InputPriceData!F$15,CalculationsAndCharts!$A126+$A$11,IF($C$5,8,0),1,1)) -> 294.839996 | H126: -0.1466062235 | I126: 0.1430092367 | J126: 0.867075099 | K126: 29.21681168 | L126: 0.8090169944 | M126: -0.5877852523 | N126: -0.9822872507 | O126: -0.9822872507 | P126: -0.607402758 | Q126: -0.607402758 | R126: 0.7476152487 | S126: -129.0922601 | T126: -129.0922601 | U126: 0 | AB126: -0.1466062235 | AC126: 0.1430092367 | AD126: 0.867075099 | AE126: -0.9822872507 | AF126: -0.607402758 | AQ126: 142646600
A127: 95 | B127: =IF(A127>$A$8,"",OFFSET(InputPriceData!B$15,$A127+$A$11,0,1,1)) -> 2019-07-31 | C127: =IF(A127>$A$8,"",OFFSET(InputPriceData!G$15,CalculationsAndCharts!$A127+$A$11,IF($C$5,8,0),1,1)) -> 104245200 | D127: =IF(A127>$A$8,"",OFFSET(InputPriceData!C$15,CalculationsAndCharts!$A127+$A$11,IF($C$5,8,0),1,1)) -> 300.98999 | E127: =IF(A127>$A$8,"",OFFSET(InputPriceData!D$15,CalculationsAndCharts!$A127+$A$11,IF($C$5,8,0),1,1)) -> 301.200012 | F127: =IF(A127>$A$8,"",OFFSET(InputPriceData!E$15,CalculationsAndCharts!$A127+$A$11,IF($C$5,8,0),1,1)) -> 295.200012 | G127: =IF(A127>$A$8,"",OFFSET(InputPriceData!F$15,CalculationsAndCharts!$A127+$A$11,IF($C$5,8,0),1,1)) -> 297.429993 | H127: 0.357825684 | I127: 0.4284697575 | J127: 0.90859556 | K127: 29.53097094 | L127: 0.9510565163 | M127: -0.3090169944 | N127: -0.9980267284 | O127: -0.9980267284 | P127: -0.7759611781 | Q127: -0.7759611781 | R127: 0.585700191 | S127: -142.9542741 | T127: -142.9542741 | U127: 0 | AB127: 0.357825684 | AC127: 0.4284697575 | AD127: 0.90859556 | AE127: -0.9980267284 | AF127: -0.7759611781 | AQ127: 104245200
A128: 96 | B128: =IF(A128>$A$8,"",OFFSET(InputPriceData!B$15,$A128+$A$11,0,1,1)) -> 2019-07-30 | C128: =IF(A128>$A$8,"",OFFSET(InputPriceData!G$15,CalculationsAndCharts!$A128+$A$11,IF($C$5,8,0),1,1)) -> 45849000 | D128: =IF(A128>$A$8,"",OFFSET(InputPriceData!C$15,CalculationsAndCharts!$A128+$A$11,IF($C$5,8,0),1,1)) -> 299.910004 | E128: =IF(A128>$A$8,"",OFFSET(InputPriceData!D$15,CalculationsAndCharts!$A128+$A$11,IF($C$5,8,0),1,1)) -> 301.170013 | F128: =IF(A128>$A$8,"",OFFSET(InputPriceData!E$15,CalculationsAndCharts!$A128+$A$11,IF($C$5,8,0),1,1)) -> 299.48999 | G128: =IF(A128>$A$8,"",OFFSET(InputPriceData!F$15,CalculationsAndCharts!$A128+$A$11,IF($C$5,8,0),1,1)) -> 300.720001 | H128: 0.8182703985 | I128: 0.6544276543 | J128: 0.9227199267 | K128: 29.84513021 | L128: 1 | M128: 6.124658072e-16 | N128: -0.9510565163 | O128: -0.9510565163 | P128: -0.9139687952 | Q128: -0.9139687952 | R128: 0.3607438098 | S128: -158.4608327 | T128: -158.4608327 | U128: 0 | AB128: 0.8182703985 | AC128: 0.6544276543 | AD128: 0.9227199267 | AE128: -0.9510565163 | AF128: -0.9139687952 | AP128: 45849000
A129: 97 | B129: =IF(A129>$A$8,"",OFFSET(InputPriceData!B$15,$A129+$A$11,0,1,1)) -> 2019-07-29 | C129: =IF(A129>$A$8,"",OFFSET(InputPriceData!G$15,CalculationsAndCharts!$A129+$A$11,IF($C$5,8,0),1,1)) -> 38126500 | D129: =IF(A129>$A$8,"",OFFSET(InputPriceData!C$15,CalculationsAndCharts!$A129+$A$11,IF($C$5,8,0),1,1)) -> 301.880005 | E129: =IF(A129>$A$8,"",OFFSET(InputPriceData!D$15,CalculationsAndCharts!$A129+$A$11,IF($C$5,8,0),1,1)) -> 302.01001 | F129: =IF(A129>$A$8,"",OFFSET(InputPriceData!E$15,CalculationsAndCharts!$A129+$A$11,IF($C$5,8,0),1,1)) -> 300.850006 | G129: =IF(A129>$A$8,"",OFFSET(InputPriceData!F$15,CalculationsAndCharts!$A129+$A$11,IF($C$5,8,0),1,1)) -> 301.459991 | H129: 0.7122176533 | I129: 0.6926318295 | J129: 0.9047927472 | K129: 30.15928947 | L129: 0.9510565163 | M129: 0.3090169944 | N129: -0.8443279255 | O129: -0.8443279255 | P129: -0.9879912826 | Q129: -0.9879912826 | R129: 0.07689672861 | S129: -175.5495622 | T129: -175.5495622 | U129: 0 | AB129: 0.7122176533 | AC129: 0.6926318295 | AD129: 0.9047927472 | AE129: -0.8443279255 | AF129: -0.9879912826 | AQ129: 38126500
A130: 98 | B130: =IF(A130>$A$8,"",OFFSET(InputPriceData!B$15,$A130+$A$11,0,1,1)) -> 2019-07-26 | C130: =IF(A130>$A$8,"",OFFSET(InputPriceData!G$15,CalculationsAndCharts!$A130+$A$11,IF($C$5,8,0),1,1)) -> 45084100 | D130: =IF(A130>$A$8,"",OFFSET(InputPriceData!C$15,CalculationsAndCharts!$A130+$A$11,IF($C$5,8,0),1,1)) -> 300.76001 | E130: =IF(A130>$A$8,"",OFFSET(InputPriceData!D$15,CalculationsAndCharts!$A130+$A$11,IF($C$5,8,0),1,1)) -> 302.230011 | F130: =IF(A130>$A$8,"",OFFSET(InputPriceData!E$15,CalculationsAndCharts!$A130+$A$11,IF($C$5,8,0),1,1)) -> 300.619995 | G130: =IF(A130>$A$8,"",OFFSET(InputPriceData!F$15,CalculationsAndCharts!$A130+$A$11,IF($C$5,8,0),1,1)) -> 302.01001 | H130: 0.4035504682 | I130: 0.7080509635 | J130: 0.9009873951 | K130: 30.47344874 | L130: 0.8090169944 | M130: 0.5877852523 | N130: -0.6845471059 | O130: -0.6845471059 | P130: -0.9655044825 | Q130: -0.9655044825 | R130: -0.2319768058 | S130: 166.4899184 | T130: 166.4899184 | U130: 0 | AB130: 0.4035504682 | AC130: 0.7080509635 | AD130: 0.9009873951 | AE130: -0.6845471059 | AF130: -0.9655044825 | AP130: 45084100
A131: 99 | B131: =IF(A131>$A$8,"",OFFSET(InputPriceData!B$15,$A131+$A$11,0,1,1)) -> 2019-07-25 | C131: =IF(A131>$A$8,"",OFFSET(InputPriceData!G$15,CalculationsAndCharts!$A131+$A$11,IF($C$5,8,0),1,1)) -> 55394100 | D131: =IF(A131>$A$8,"",OFFSET(InputPriceData!C$15,CalculationsAndCharts!$A131+$A$11,IF($C$5,8,0),1,1)) -> 300.940002 | E131: =IF(A131>$A$8,"",OFFSET(InputPriceData!D$15,CalculationsAndCharts!$A131+$A$11,IF($C$5,8,0),1,1)) -> 301 | F131: =IF(A131>$A$8,"",OFFSET(InputPriceData!E$15,CalculationsAndCharts!$A131+$A$11,IF($C$5,8,0),1,1)) -> 299.109985 | G131: =IF(A131>$A$8,"",OFFSET(InputPriceData!F$15,CalculationsAndCharts!$A131+$A$11,IF($C$5,8,0),1,1)) -> 300 | H131: -0.01207813532 | I131: 0.7138293836 | J131: 0.9049630177 | K131: 30.78760801 | L131: 0.5877852523 | M131: 0.8090169944 | N131: -0.4817536741 | O131: -0.4817536741 | P131: -0.8448409074 | Q131: -0.8448409074 | R131: -0.5109343118 | S131: 148.8357159 | T131: 148.8357159 | U131: 0 | AB131: -0.01207813532 | AC131: 0.7138293836 | AD131: 0.9049630177 | AE131: -0.4817536741 | AF131: -0.8448409074 | AQ131: 55394100
A132: 100 | B132: =IF(A132>$A$8,"",OFFSET(InputPriceData!B$15,$A132+$A$11,0,1,1)) -> 2019-07-24 | C132: =IF(A132>$A$8,"",OFFSET(InputPriceData!G$15,CalculationsAndCharts!$A132+$A$11,IF($C$5,8,0),1,1)) -> 47213200 | D132: =IF(A132>$A$8,"",OFFSET(InputPriceData!C$15,CalculationsAndCharts!$A132+$A$11,IF($C$5,8,0),1,1)) -> 299.190002 | E132: =IF(A132>$A$8,"",OFFSET(InputPriceData!D$15,CalculationsAndCharts!$A132+$A$11,IF($C$5,8,0),1,1)) -> 301.440002 | F132: =IF(A132>$A$8,"",OFFSET(InputPriceData!E$15,CalculationsAndCharts!$A132+$A$11,IF($C$5,8,0),1,1)) -> 299.089996 | G132: =IF(A132>$A$8,"",OFFSET(InputPriceData!F$15,CalculationsAndCharts!$A132+$A$11,IF($C$5,8,0),1,1)) -> 301.440002 | H132: -0.07908702 | I132: 0.7540090363 | J132: 0.9129092151 | K132: 31.10176727 | L132: 0.3090169944 | M132: 0.9510565163 | N132: -0.2486898872 | O132: -0.2486898872 | P132: -0.6602083535 | Q132: -0.6602083535 | R132: -0.7206796246 | S132: 132.4925291 | T132: 132.4925291 | U132: 0 | AB132: -0.07908702 | AC132: 0.7540090363 | AD132: 0.9129092151 | AE132: -0.2486898872 | AF132: -0.6602083535 | AP132: 47213200
A133: 101 | B133: =IF(A133>$A$8,"",OFFSET(InputPriceData!B$15,$A133+$A$11,0,1,1)) -> 2019-07-23 | C133: =IF(A133>$A$8,"",OFFSET(InputPriceData!G$15,CalculationsAndCharts!$A133+$A$11,IF($C$5,8,0),1,1)) -> 44564500 | D133: =IF(A133>$A$8,"",OFFSET(InputPriceData!C$15,CalculationsAndCharts!$A133+$A$11,IF($C$5,8,0),1,1)) -> 299.140015 | E133: =IF(A133>$A$8,"",OFFSET(InputPriceData!D$15,CalculationsAndCharts!$A133+$A$11,IF($C$5,8,0),1,1)) -> 300.029999 | F133: =IF(A133>$A$8,"",OFFSET(InputPriceData!E$15,CalculationsAndCharts!$A133+$A$11,IF($C$5,8,0),1,1)) -> 298.220001 | G133: =IF(A133>$A$8,"",OFFSET(InputPriceData!F$15,CalculationsAndCharts!$A133+$A$11,IF($C$5,8,0),1,1)) -> 300.029999 | H133: -0.3300792871 | I133: 0.7686391231 | J133: 0.9159584627 | K133: 31.41592654 | L133: 1.225148455e-15 | M133: 1 | N133: -9.801187639e-16 | O133: -9.801187639e-16 | P133: -0.4516903807 | Q133: -0.4516903807 | R133: -0.8554943325 | S133: 117.8334974 | T133: 117.8334974 | U133: 0 | AB133: -0.3300792871 | AC133: 0.7686391231 | AD133: 0.9159584627 | AE133: -9.801187639e-16 | AF133: -0.4516903807 | AP133: 44564500
A134: 102 | B134: =IF(A134>$A$8,"",OFFSET(InputPriceData!B$15,$A134+$A$11,0,1,1)) -> 2019-07-22 | C134: =IF(A134>$A$8,"",OFFSET(InputPriceData!G$15,CalculationsAndCharts!$A134+$A$11,IF($C$5,8,0),1,1)) -> 43638100 | D134: =IF(A134>$A$8,"",OFFSET(InputPriceData!C$15,CalculationsAndCharts!$A134+$A$11,IF($C$5,8,0),1,1)) -> 297.609985 | E134: =IF(A134>$A$8,"",OFFSET(InputPriceData!D$15,CalculationsAndCharts!$A134+$A$11,IF($C$5,8,0),1,1)) -> 298.5 | F134: =IF(A134>$A$8,"",OFFSET(InputPriceData!E$15,CalculationsAndCharts!$A134+$A$11,IF($C$5,8,0),1,1)) -> 297.040009 | G134: =IF(A134>$A$8,"",OFFSET(InputPriceData!F$15,CalculationsAndCharts!$A134+$A$11,IF($C$5,8,0),1,1)) -> 297.899994 | H134: -0.2196161946 | I134: 0.7685856766 | J134: 0.9161470544 | K134: 31.7300858 | L134: -0.3090169944 | M134: 0.9510565163 | N134: 0.2486898872 | O134: 0.2486898872 | P134: -0.2431918379 | Q134: -0.2431918379 | R134: -0.9285090696 | S134: 104.6770221 | T134: 104.6770221 | U134: 0 | AB134: -0.2196161946 | AC134: 0.7685856766 | AD134: 0.9161470544 | AE134: 0.2486898872 | AF134: -0.2431918379 | AP134: 43638100
A135: 103 | B135: =IF(A135>$A$8,"",OFFSET(InputPriceData!B$15,$A135+$A$11,0,1,1)) -> 2019-07-19 | C135: =IF(A135>$A$8,"",OFFSET(InputPriceData!G$15,CalculationsAndCharts!$A135+$A$11,IF($C$5,8,0),1,1)) -> 58678600 | D135: =IF(A135>$A$8,"",OFFSET(InputPriceData!C$15,CalculationsAndCharts!$A135+$A$11,IF($C$5,8,0),1,1)) -> 300.040009 | E135: =IF(A135>$A$8,"",OFFSET(InputPriceData!D$15,CalculationsAndCharts!$A135+$A$11,IF($C$5,8,0),1,1)) -> 300.070007 | F135: =IF(A135>$A$8,"",OFFSET(InputPriceData!E$15,CalculationsAndCharts!$A135+$A$11,IF($C$5,8,0),1,1)) -> 296.980011 | G135: =IF(A135>$A$8,"",OFFSET(InputPriceData!F$15,CalculationsAndCharts!$A135+$A$11,IF($C$5,8,0),1,1)) -> 297.170013 | H135: 0.1503129356 | I135: 0.7935837834 | J135: 0.921301229 | K135: 32.04424507 | L135: -0.5877852523 | M135: 0.8090169944 | N135: 0.4817536741 | O135: 0.4817536741 | P135: -0.04289620124 | Q135: -0.04289620124 | R135: -0.9543174948 | S135: 92.57369065 | T135: 92.57369065 | U135: 0 | AB135: 0.1503129356 | AC135: 0.7935837834 | AD135: 0.921301229 | AE135: 0.4817536741 | AF135: -0.04289620124 | AQ135: 58678600
A136: 104 | B136: =IF(A136>$A$8,"",OFFSET(InputPriceData!B$15,$A136+$A$11,0,1,1)) -> 2019-07-18 | C136: =IF(A136>$A$8,"",OFFSET(InputPriceData!G$15,CalculationsAndCharts!$A136+$A$11,IF($C$5,8,0),1,1)) -> 51392600 | D136: =IF(A136>$A$8,"",OFFSET(InputPriceData!C$15,CalculationsAndCharts!$A136+$A$11,IF($C$5,8,0),1,1)) -> 297.190002 | E136: =IF(A136>$A$8,"",OFFSET(InputPriceData!D$15,CalculationsAndCharts!$A136+$A$11,IF($C$5,8,0),1,1)) -> 299.25 | F136: =IF(A136>$A$8,"",OFFSET(InputPriceData!E$15,CalculationsAndCharts!$A136+$A$11,IF($C$5,8,0),1,1)) -> 296.700012 | G136: =IF(A136>$A$8,"",OFFSET(InputPriceData!F$15,CalculationsAndCharts!$A136+$A$11,IF($C$5,8,0),1,1)) -> 298.829987 | H136: 0.4164542376 | I136: 0.7901227623 | J136: 0.9164379683 | K136: 32.35840433 | L136: -0.8090169944 | M136: 0.5877852523 | N136: 0.6845471059 | O136: 0.6845471059 | P136: 0.1492044882 | Q136: 0.1492044882 | R136: -0.9420400633 | S136: 81 | T136: 81 | U136: 0 | AB136: 0.4164542376 | AC136: 0.7901227623 | AD136: 0.9164379683 | AE136: 0.6845471059 | AF136: 0.1492044882 | AP136: 51392600
A137: 105 | B137: =IF(A137>$A$8,"",OFFSET(InputPriceData!B$15,$A137+$A$11,0,1,1)) -> 2019-07-17 | C137: =IF(A137>$A$8,"",OFFSET(InputPriceData!G$15,CalculationsAndCharts!$A137+$A$11,IF($C$5,8,0),1,1)) -> 36036300 | D137: =IF(A137>$A$8,"",OFFSET(InputPriceData!C$15,CalculationsAndCharts!$A137+$A$11,IF($C$5,8,0),1,1)) -> 299.75 | E137: =IF(A137>$A$8,"",OFFSET(InputPriceData!D$15,CalculationsAndCharts!$A137+$A$11,IF($C$5,8,0),1,1)) -> 299.929993 | F137: =IF(A137>$A$8,"",OFFSET(InputPriceData!E$15,CalculationsAndCharts!$A137+$A$11,IF($C$5,8,0),1,1)) -> 297.73999 | G137: =IF(A137>$A$8,"",OFFSET(InputPriceData!F$15,CalculationsAndCharts!$A137+$A$11,IF($C$5,8,0),1,1)) -> 297.73999 | H137: 0.415775135 | I137: 0.8004575413 | J137: 0.9013813662 | K137: 32.6725636 | L137: -0.9510565163 | M137: 0.3090169944 | N137: 0.8443279255 | O137: 0.8443279255 | P137: 0.3356970356 | Q137: 0.3356970356 | R137: -0.8943542169 | S137: 69.42630935 | T137: 69.42630935 | U137: 0 | AB137: 0.415775135 | AC137: 0.8004575413 | AD137: 0.9013813662 | AE137: 0.8443279255 | AF137: 0.3356970356 | AQ137: 36036300
A138: 106 | B138: =IF(A138>$A$8,"",OFFSET(InputPriceData!B$15,$A138+$A$11,0,1,1)) -> 2019-07-16 | C138: =IF(A138>$A$8,"",OFFSET(InputPriceData!G$15,CalculationsAndCharts!$A138+$A$11,IF($C$5,8,0),1,1)) -> 36650100 | D138: =IF(A138>$A$8,"",OFFSET(InputPriceData!C$15,CalculationsAndCharts!$A138+$A$11,IF($C$5,8,0),1,1)) -> 300.649994 | E138: =IF(A138>$A$8,"",OFFSET(InputPriceData!D$15,CalculationsAndCharts!$A138+$A$11,IF($C$5,8,0),1,1)) -> 300.880005 | F138: =IF(A138>$A$8,"",OFFSET(InputPriceData!E$15,CalculationsAndCharts!$A138+$A$11,IF($C$5,8,0),1,1)) -> 299.440002 | G138: =IF(A138>$A$8,"",OFFSET(InputPriceData!F$15,CalculationsAndCharts!$A138+$A$11,IF($C$5,8,0),1,1)) -> 299.779999 | H138: 0.7721898677 | I138: 0.8307621423 | J138: 0.8966834405 | K138: =RADIANS(360/$A$21*(A138-1)) -> 32.98672286 | L138: -1 | M138: -4.899509617e-16 | N138: 0.9510565163 | O138: 0.9510565163 | P138: 0.5182142641 | Q138: 0.5182142641 | R138: -0.8079141903 | S138: 57.32297794 | T138: 57.32297794 | U138: 0 | AB138: 0.7721898677 | AC138: 0.8307621423 | AD138: 0.8966834405 | AE138: 0.9510565163 | AF138: 0.5182142641 | AQ138: 36650100
A139: 107 | B139: =IF(A139>$A$8,"",OFFSET(InputPriceData!B$15,$A139+$A$11,0,1,1)) -> 2019-07-15 | C139: =IF(A139>$A$8,"",OFFSET(InputPriceData!G$15,CalculationsAndCharts!$A139+$A$11,IF($C$5,8,0),1,1)) -> 33900000 | D139: =IF(A139>$A$8,"",OFFSET(InputPriceData!C$15,CalculationsAndCharts!$A139+$A$11,IF($C$5,8,0),1,1)) -> 301.130005 | E139: =IF(A139>$A$8,"",OFFSET(InputPriceData!D$15,CalculationsAndCharts!$A139+$A$11,IF($C$5,8,0),1,1)) -> 301.130005 | F139: =IF(A139>$A$8,"",OFFSET(InputPriceData!E$15,CalculationsAndCharts!$A139+$A$11,IF($C$5,8,0),1,1)) -> 300.190002 | G139: =IF(A139>$A$8,"",OFFSET(InputPriceData!F$15,CalculationsAndCharts!$A139+$A$11,IF($C$5,8,0),1,1)) -> 300.75 | H139: 0.8371385188 | I139: 0.843783541 | J139: 0.8779496129 | K139: 33.30088213 | L139: -0.9510565163 | M139: -0.3090169944 | N139: 0.9980267284 | O139: 0.9980267284 | P139: 0.6939453673 | Q139: 0.6939453673 | R139: -0.6740434557 | S139: 44.16650262 | T139: 44.16650262 | U139: 0 | AB139: 0.8371385188 | AC139: 0.843783541 | AD139: 0.8779496129 | AE139: 0.9980267284 | AF139: 0.6939453673 | AQ139: 33900000
A140: 108 | B140: =IF(A140>$A$8,"",OFFSET(InputPriceData!B$15,$A140+$A$11,0,1,1)) -> 2019-07-12 | C140: =IF(A140>$A$8,"",OFFSET(InputPriceData!G$15,CalculationsAndCharts!$A140+$A$11,IF($C$5,8,0),1,1)) -> 40326000 | D140: =IF(A140>$A$8,"",OFFSET(InputPriceData!C$15,CalculationsAndCharts!$A140+$A$11,IF($C$5,8,0),1,1)) -> 299.850006 | E140: =IF(A140>$A$8,"",OFFSET(InputPriceData!D$15,CalculationsAndCharts!$A140+$A$11,IF($C$5,8,0),1,1)) -> 300.730011 | F140: =IF(A140>$A$8,"",OFFSET(InputPriceData!E$15,CalculationsAndCharts!$A140+$A$11,IF($C$5,8,0),1,1)) -> 299.51001 | G140: =IF(A140>$A$8,"",OFFSET(InputPriceData!F$15,CalculationsAndCharts!$A140+$A$11,IF($C$5,8,0),1,1)) -> 300.649994 | H140: 0.8356945358 | I140: 0.8441928046 | J140: 0.8457786741 | K140: 33.61504139 | L140: -0.8090169944 | M140: -0.5877852523 | N140: 0.9822872507 | O140: 0.9822872507 | P140: 0.8505977083 | Q140: 0.8505977083 | R140: -0.4813914521 | S140: 29.50747086 | T140: 29.50747086 | U140: 0 | AB140: 0.8356945358 | AC140: 0.8441928046 | AD140: 0.8457786741 | AE140: 0.9822872507 | AF140: 0.8505977083 | AP140: 40326000
A141: 109 | B141: =IF(A141>$A$8,"",OFFSET(InputPriceData!B$15,$A141+$A$11,0,1,1)) -> 2019-07-11 | C141: =IF(A141>$A$8,"",OFFSET(InputPriceData!G$15,CalculationsAndCharts!$A141+$A$11,IF($C$5,8,0),1,1)) -> 50826100 | D141: =IF(A141>$A$8,"",OFFSET(InputPriceData!C$15,CalculationsAndCharts!$A141+$A$11,IF($C$5,8,0),1,1)) -> 299.320007 | E141: =IF(A141>$A$8,"",OFFSET(InputPriceData!D$15,CalculationsAndCharts!$A141+$A$11,IF($C$5,8,0),1,1)) -> 299.579987 | F141: =IF(A141>$A$8,"",OFFSET(InputPriceData!E$15,CalculationsAndCharts!$A141+$A$11,IF($C$5,8,0),1,1)) -> 298.200012 | G141: =IF(A141>$A$8,"",OFFSET(InputPriceData!F$15,CalculationsAndCharts!$A141+$A$11,IF($C$5,8,0),1,1)) -> 299.309998 | H141: 0.8391682757 | I141: 0.8376537293 | J141: 0.8240354112 | K141: 33.92920066 | L141: -0.5877852523 | M141: -0.8090169944 | N141: 0.9048270525 | O141: 0.9048270525 | P141: 0.9613788356 | Q141: 0.9613788356 | R141: -0.2248572087 | S141: 13.16428408 | T141: 13.16428408 | U141: 0 | AB141: 0.8391682757 | AC141: 0.8376537293 | AD141: 0.8240354112 | AE141: 0.9048270525 | AF141: 0.9613788356 | AQ141: 50826100
A142: 110 | B142: =IF(A142>$A$8,"",OFFSET(InputPriceData!B$15,$A142+$A$11,0,1,1)) -> 2019-07-10 | C142: =IF(A142>$A$8,"",OFFSET(InputPriceData!G$15,CalculationsAndCharts!$A142+$A$11,IF($C$5,8,0),1,1)) -> 58448500 | D142: =IF(A142>$A$8,"",OFFSET(InputPriceData!C$15,CalculationsAndCharts!$A142+$A$11,IF($C$5,8,0),1,1)) -> 298.369995 | E142: =IF(A142>$A$8,"",OFFSET(InputPriceData!D$15,CalculationsAndCharts!$A142+$A$11,IF($C$5,8,0),1,1)) -> 299.660004 | F142: =IF(A142>$A$8,"",OFFSET(InputPriceData!E$15,CalculationsAndCharts!$A142+$A$11,IF($C$5,8,0),1,1)) -> 297.779999 | G142: =IF(A142>$A$8,"",OFFSET(InputPriceData!F$15,CalculationsAndCharts!$A142+$A$11,IF($C$5,8,0),1,1)) -> 298.609985 | H142: 0.8691296642 | I142: 0.8385722889 | J142: 0.8086768199 | K142: 34.24335992 | L142: -0.3090169944 | M142: -0.9510565163 | N142: 0.7705132428 | O142: 0.7705132428 | P142: 0.9899341049 | Q142: 0.9899341049 | R142: 0.07773424042 | S142: -4.48991835 | T142: -4.48991835 | U142: 0 | AB142: 0.8691296642 | AC142: 0.8385722889 | AD142: 0.8086768199 | AE142: 0.7705132428 | AF142: 0.9899341049 | AP142: 58448500
A143: 111 | B143: =IF(A143>$A$8,"",OFFSET(InputPriceData!B$15,$A143+$A$11,0,1,1)) -> 2019-07-09 | C143: =IF(A143>$A$8,"",OFFSET(InputPriceData!G$15,CalculationsAndCharts!$A143+$A$11,IF($C$5,8,0),1,1)) -> 41101300 | D143: =IF(A143>$A$8,"",OFFSET(InputPriceData!C$15,CalculationsAndCharts!$A143+$A$11,IF($C$5,8,0),1,1)) -> 295.540009 | E143: =IF(A143>$A$8,"",OFFSET(InputPriceData!D$15,CalculationsAndCharts!$A143+$A$11,IF($C$5,8,0),1,1)) -> 297.519989 | F143: =IF(A143>$A$8,"",OFFSET(InputPriceData!E$15,CalculationsAndCharts!$A143+$A$11,IF($C$5,8,0),1,1)) -> 295.480011 | G143: =IF(A143>$A$8,"",OFFSET(InputPriceData!F$15,CalculationsAndCharts!$A143+$A$11,IF($C$5,8,0),1,1)) -> 297.190002 | H143: 0.8928569695 | I143: 0.8334607293 | J143: 0.8013796249 | K143: 34.55751919 | L143: 2.205050378e-15 | M143: -1 | N143: 0.5877852523 | O143: 0.5877852523 | P143: 0.9158731514 | Q143: 0.9158731514 | R143: 0.3784392315 | S143: -22.45043776 | T143: -22.45043776 | U143: 0 | AB143: 0.8928569695 | AC143: 0.8334607293 | AD143: 0.8013796249 | AE143: 0.5877852523 | AF143: 0.9158731514 | AP143: 41101300
A144: 112 | B144: =IF(A144>$A$8,"",OFFSET(InputPriceData!B$15,$A144+$A$11,0,1,1)) -> 2019-07-08 | C144: =IF(A144>$A$8,"",OFFSET(InputPriceData!G$15,CalculationsAndCharts!$A144+$A$11,IF($C$5,8,0),1,1)) -> 45841800 | D144: =IF(A144>$A$8,"",OFFSET(InputPriceData!C$15,CalculationsAndCharts!$A144+$A$11,IF($C$5,8,0),1,1)) -> 297.01001 | E144: =IF(A144>$A$8,"",OFFSET(InputPriceData!D$15,CalculationsAndCharts!$A144+$A$11,IF($C$5,8,0),1,1)) -> 298.26001 | F144: =IF(A144>$A$8,"",OFFSET(InputPriceData!E$15,CalculationsAndCharts!$A144+$A$11,IF($C$5,8,0),1,1)) -> 296.220001 | G144: =IF(A144>$A$8,"",OFFSET(InputPriceData!F$15,CalculationsAndCharts!$A144+$A$11,IF($C$5,8,0),1,1)) -> 296.820007 | H144: 0.8367080184 | I144: 0.831189195 | J144: 0.7568086274 | K144: 34.87167845 | L144: 0.3090169944 | M144: -0.9510565163 | N144: 0.3681245527 | O144: 0.3681245527 | P144: 0.7577600105 | Q144: 0.7577600105 | R144: 0.625519641 | S144: -39.53916727 | T144: -39.53916727 | U144: 0 | AB144: 0.8367080184 | AC144: 0.831189195 | AD144: 0.7568086274 | AE144: 0.3681245527 | AF144: 0.7577600105 | AQ144: 45841800
A145: 113 | B145: =IF(A145>$A$8,"",OFFSET(InputPriceData!B$15,$A145+$A$11,0,1,1)) -> 2019-07-05 | C145: =IF(A145>$A$8,"",OFFSET(InputPriceData!G$15,CalculationsAndCharts!$A145+$A$11,IF($C$5,8,0),1,1)) -> 51677300 | D145: =IF(A145>$A$8,"",OFFSET(InputPriceData!C$15,CalculationsAndCharts!$A145+$A$11,IF($C$5,8,0),1,1)) -> 297.440002 | E145: =IF(A145>$A$8,"",OFFSET(InputPriceData!D$15,CalculationsAndCharts!$A145+$A$11,IF($C$5,8,0),1,1)) -> 298.640015 | F145: =IF(A145>$A$8,"",OFFSET(InputPriceData!E$15,CalculationsAndCharts!$A145+$A$11,IF($C$5,8,0),1,1)) -> 296.01001 | G145: =IF(A145>$A$8,"",OFFSET(InputPriceData!F$15,CalculationsAndCharts!$A145+$A$11,IF($C$5,8,0),1,1)) -> 298.459991 | H145: 0.7433777616 | I145: 0.8364315828 | J145: 0.719066214 | K145: 35.18583772 | L145: 0.5877852523 | M145: -0.8090169944 | N145: 0.1253332336 | O145: 0.1253332336 | P145: 0.5569916222 | Q145: 0.5569916222 | R145: 0.7968191743 | S145: -55.04572592 | T145: -55.04572592 | U145: 0 | AB145: 0.7433777616 | AC145: 0.8364315828 | AD145: 0.719066214 | AE145: 0.1253332336 | AF145: 0.5569916222 | AP145: 51677300
A146: 114 | B146: =IF(A146>$A$8,"",OFFSET(InputPriceData!B$15,$A146+$A$11,0,1,1)) -> 2019-07-03 | C146: =IF(A146>$A$8,"",OFFSET(InputPriceData!G$15,CalculationsAndCharts!$A146+$A$11,IF($C$5,8,0),1,1)) -> 40898900 | D146: =IF(A146>$A$8,"",OFFSET(InputPriceData!C$15,CalculationsAndCharts!$A146+$A$11,IF($C$5,8,0),1,1)) -> 297.179993 | E146: =IF(A146>$A$8,"",OFFSET(InputPriceData!D$15,CalculationsAndCharts!$A146+$A$11,IF($C$5,8,0),1,1)) -> 298.820007 | F146: =IF(A146>$A$8,"",OFFSET(InputPriceData!E$15,CalculationsAndCharts!$A146+$A$11,IF($C$5,8,0),1,1)) -> 297.019989 | G146: =IF(A146>$A$8,"",OFFSET(InputPriceData!F$15,CalculationsAndCharts!$A146+$A$11,IF($C$5,8,0),1,1)) -> 298.799988 | H146: 0.4170954117 | I146: 0.8366530923 | J146: 0.6668574401 | K146: 35.49999699 | L146: 0.8090169944 | M146: -0.5877852523 | N146: -0.1253332336 | O146: -0.1253332336 | P146: 0.3466485339 | Q146: 0.3466485339 | R146: 0.8987221286 | S146: -68.90773985 | T146: -68.90773985 | U146: 0 | AB146: 0.4170954117 | AC146: 0.8366530923 | AD146: 0.6668574401 | AE146: -0.1253332336 | AF146: 0.3466485339 | AP146: =IF(G146>=D146,C146,NA()) -> 40898900 | AQ146: =IF(G146<D146,C146,NA()) -> 
A147: 115 | B147: =IF(A147>$A$8,"",OFFSET(InputPriceData!B$15,$A147+$A$11,0,1,1)) -> 2019-07-02 | C147: =IF(A147>$A$8,"",OFFSET(InputPriceData!G$15,CalculationsAndCharts!$A147+$A$11,IF($C$5,8,0),1,1)) -> 61504500 | D147: =IF(A147>$A$8,"",OFFSET(InputPriceData!C$15,CalculationsAndCharts!$A147+$A$11,IF($C$5,8,0),1,1)) -> 295.609985 | E147: =IF(A147>$A$8,"",OFFSET(InputPriceData!D$15,CalculationsAndCharts!$A147+$A$11,IF($C$5,8,0),1,1)) -> 296.48999 | F147: =IF(A147>$A$8,"",OFFSET(InputPriceData!E$15,CalculationsAndCharts!$A147+$A$11,IF($C$5,8,0),1,1)) -> 294.679993 | G147: =IF(A147>$A$8,"",OFFSET(InputPriceData!F$15,CalculationsAndCharts!$A147+$A$11,IF($C$5,8,0),1,1)) -> 296.429993 | H147: 0.1495390833 | I147: 0.8345510073 | J147: 0.6041887455 | K147: 35.81415625 | L147: 0.9510565163 | M147: -0.3090169944 | N147: -0.3681245527 | O147: -0.3681245527 | P147: 0.1419074621 | Q147: 0.1419074621 | R147: 0.9465905853 | S147: -81.47403682 | T147: -81.47403682 | U147: 0 | AB147: 0.1495390833 | AC147: 0.8345510073 | AD147: 0.6041887455 | AE147: -0.3681245527 | AF147: 0.1419074621 | AP147: 61504500
A148: 116 | B148: =IF(A148>$A$8,"",OFFSET(InputPriceData!B$15,$A148+$A$11,0,1,1)) -> 2019-07-01 | C148: =IF(A148>$A$8,"",OFFSET(InputPriceData!G$15,CalculationsAndCharts!$A148+$A$11,IF($C$5,8,0),1,1)) -> 79107500 | D148: =IF(A148>$A$8,"",OFFSET(InputPriceData!C$15,CalculationsAndCharts!$A148+$A$11,IF($C$5,8,0),1,1)) -> 296.679993 | E148: =IF(A148>$A$8,"",OFFSET(InputPriceData!D$15,CalculationsAndCharts!$A148+$A$11,IF($C$5,8,0),1,1)) -> 296.920013 | F148: =IF(A148>$A$8,"",OFFSET(InputPriceData!E$15,CalculationsAndCharts!$A148+$A$11,IF($C$5,8,0),1,1)) -> 294.329987 | G148: =IF(A148>$A$8,"",OFFSET(InputPriceData!F$15,CalculationsAndCharts!$A148+$A$11,IF($C$5,8,0),1,1)) -> 295.660004 | H148: -0.06310222756 | I148: 0.8307006458 | J148: 0.4923657241 | K148: 36.12831552 | L148: 1 | M148: -3.185277563e-15 | N148: -0.5877852523 | O148: -0.5877852523 | P148: -0.05403043772 | Q148: -0.05403043772 | R148: 0.952625196 | S148: -93.24619058 | T148: -93.24619058 | U148: 0 | AB148: -0.06310222756 | AC148: 0.8307006458 | AD148: 0.4923657241 | AE148: -0.5877852523 | AF148: -0.05403043772 | AQ148: 79107500
A149: 117 | B149: =IF(A149>$A$8,"",OFFSET(InputPriceData!B$15,$A149+$A$11,0,1,1)) -> 2019-06-28 | C149: =IF(A149>$A$8,"",OFFSET(InputPriceData!G$15,CalculationsAndCharts!$A149+$A$11,IF($C$5,8,0),1,1)) -> 59350900 | D149: =IF(A149>$A$8,"",OFFSET(InputPriceData!C$15,CalculationsAndCharts!$A149+$A$11,IF($C$5,8,0),1,1)) -> 292.579987 | E149: =IF(A149>$A$8,"",OFFSET(InputPriceData!D$15,CalculationsAndCharts!$A149+$A$11,IF($C$5,8,0),1,1)) -> 293.549988 | F149: =IF(A149>$A$8,"",OFFSET(InputPriceData!E$15,CalculationsAndCharts!$A149+$A$11,IF($C$5,8,0),1,1)) -> 292.01001 | G149: =IF(A149>$A$8,"",OFFSET(InputPriceData!F$15,CalculationsAndCharts!$A149+$A$11,IF($C$5,8,0),1,1)) -> 293 | H149: -0.02137612393 | I149: 0.807935223 | J149: 0.3651871067 | K149: 36.44247478 | L149: 0.9510565163 | M149: 0.3090169944 | N149: -0.7705132428 | O149: -0.7705132428 | P149: -0.242991375 | Q149: -0.242991375 | R149: 0.9226967237 | S149: -104.7538094 | T149: -104.7538094 | U149: 0 | AB149: -0.02137612393 | AC149: 0.807935223 | AD149: 0.3651871067 | AE149: -0.7705132428 | AF149: -0.242991375 | AP149: 59350900
A150: 118 | B150: =IF(A150>$A$8,"",OFFSET(InputPriceData!B$15,$A150+$A$11,0,1,1)) -> 2019-06-27 | C150: =IF(A150>$A$8,"",OFFSET(InputPriceData!G$15,CalculationsAndCharts!$A150+$A$11,IF($C$5,8,0),1,1)) -> 40355200 | D150: =IF(A150>$A$8,"",OFFSET(InputPriceData!C$15,CalculationsAndCharts!$A150+$A$11,IF($C$5,8,0),1,1)) -> 291.309998 | E150: =IF(A150>$A$8,"",OFFSET(InputPriceData!D$15,CalculationsAndCharts!$A150+$A$11,IF($C$5,8,0),1,1)) -> 292.059998 | F150: =IF(A150>$A$8,"",OFFSET(InputPriceData!E$15,CalculationsAndCharts!$A150+$A$11,IF($C$5,8,0),1,1)) -> 290.890015 | G150: =IF(A150>$A$8,"",OFFSET(InputPriceData!F$15,CalculationsAndCharts!$A150+$A$11,IF($C$5,8,0),1,1)) -> 291.5 | H150: 0.1671431926 | I150: 0.8376562094 | J150: 0.2797704221 | K150: 36.75663405 | L150: 0.8090169944 | M150: 0.5877852523 | N150: -0.9048270525 | O150: -0.9048270525 | P150: -0.4274745941 | Q150: -0.4274745941 | R150: 0.856409327 | S150: -116.5259632 | T150: -116.5259632 | U150: 0 | AB150: 0.1671431926 | AC150: 0.8376562094 | AD150: 0.2797704221 | AE150: -0.9048270525 | AF150: -0.4274745941 | AP150: 40355200
A151: 119 | B151: =IF(A151>$A$8,"",OFFSET(InputPriceData!B$15,$A151+$A$11,0,1,1)) -> 2019-06-26 | C151: =IF(A151>$A$8,"",OFFSET(InputPriceData!G$15,CalculationsAndCharts!$A151+$A$11,IF($C$5,8,0),1,1)) -> 51584900 | D151: =IF(A151>$A$8,"",OFFSET(InputPriceData!C$15,CalculationsAndCharts!$A151+$A$11,IF($C$5,8,0),1,1)) -> 291.75 | E151: =IF(A151>$A$8,"",OFFSET(InputPriceData!D$15,CalculationsAndCharts!$A151+$A$11,IF($C$5,8,0),1,1)) -> 292.309998 | F151: =IF(A151>$A$8,"",OFFSET(InputPriceData!E$15,CalculationsAndCharts!$A151+$A$11,IF($C$5,8,0),1,1)) -> 290.350006 | G151: =IF(A151>$A$8,"",OFFSET(InputPriceData!F$15,CalculationsAndCharts!$A151+$A$11,IF($C$5,8,0),1,1)) -> 290.470001 | H151: 0.3819976903 | I151: 0.8730589602 | J151: 0.1977800155 | K151: 37.07079331 | L151: 0.5877852523 | M151: 0.8090169944 | N151: -0.9822872507 | O151: -0.9822872507 | P151: -0.607402758 | Q151: -0.607402758 | R151: 0.7476152487 | S151: -129.0922601 | T151: -129.0922601 | U151: 0 | AB151: 0.3819976903 | AC151: 0.8730589602 | AD151: 0.1977800155 | AE151: -0.9822872507 | AF151: -0.607402758 | AQ151: 51584900
A152: 120 | B152: =IF(A152>$A$8,"",OFFSET(InputPriceData!B$15,$A152+$A$11,0,1,1)) -> 2019-06-25 | C152: =IF(A152>$A$8,"",OFFSET(InputPriceData!G$15,CalculationsAndCharts!$A152+$A$11,IF($C$5,8,0),1,1)) -> 82028700 | D152: =IF(A152>$A$8,"",OFFSET(InputPriceData!C$15,CalculationsAndCharts!$A152+$A$11,IF($C$5,8,0),1,1)) -> 293.700012 | E152: =IF(A152>$A$8,"",OFFSET(InputPriceData!D$15,CalculationsAndCharts!$A152+$A$11,IF($C$5,8,0),1,1)) -> 293.730011 | F152: =IF(A152>$A$8,"",OFFSET(InputPriceData!E$15,CalculationsAndCharts!$A152+$A$11,IF($C$5,8,0),1,1)) -> 290.640015 | G152: =IF(A152>$A$8,"",OFFSET(InputPriceData!F$15,CalculationsAndCharts!$A152+$A$11,IF($C$5,8,0),1,1)) -> 290.76001 | H152: 0.6861298022 | I152: 0.9116717401 | J152: 0.1052199018 | K152: 37.38495258 | L152: 0.3090169944 | M152: 0.9510565163 | N152: -0.9980267284 | O152: -0.9980267284 | P152: -0.7759611781 | Q152: -0.7759611781 | R152: 0.585700191 | S152: -142.9542741 | T152: -142.9542741 | U152: 0 | AB152: 0.6861298022 | AC152: 0.9116717401 | AD152: 0.1052199018 | AE152: -0.9980267284 | AF152: -0.7759611781 | AQ152: 82028700
A153: 121 | B153: =IF(A153>$A$8,"",OFFSET(InputPriceData!B$15,$A153+$A$11,0,1,1)) -> 2019-06-24 | C153: =IF(A153>$A$8,"",OFFSET(InputPriceData!G$15,CalculationsAndCharts!$A153+$A$11,IF($C$5,8,0),1,1)) -> 47582700 | D153: =IF(A153>$A$8,"",OFFSET(InputPriceData!C$15,CalculationsAndCharts!$A153+$A$11,IF($C$5,8,0),1,1)) -> 294.230011 | E153: =IF(A153>$A$8,"",OFFSET(InputPriceData!D$15,CalculationsAndCharts!$A153+$A$11,IF($C$5,8,0),1,1)) -> 294.579987 | F153: =IF(A153>$A$8,"",OFFSET(InputPriceData!E$15,CalculationsAndCharts!$A153+$A$11,IF($C$5,8,0),1,1)) -> 293.470001 | G153: =IF(A153>$A$8,"",OFFSET(InputPriceData!F$15,CalculationsAndCharts!$A153+$A$11,IF($C$5,8,0),1,1)) -> 293.640015 | H153: 0.8879989704 | I153: 0.9290954814 | J153: 0.01610079543 | K153: 37.69911184 | L153: 1.470178146e-15 | M153: 1 | N153: -0.9510565163 | O153: -0.9510565163 | P153: -0.9139687952 | Q153: -0.9139687952 | R153: 0.3607438098 | S153: -158.4608327 | T153: -158.4608327 | U153: 0 | AB153: 0.8879989704 | AC153: 0.9290954814 | AD153: 0.01610079543 | AE153: -0.9510565163 | AF153: -0.9139687952 | AQ153: 47582700
A154: 122 | B154: =IF(A154>$A$8,"",OFFSET(InputPriceData!B$15,$A154+$A$11,0,1,1)) -> 2019-06-21 | C154: =IF(A154>$A$8,"",OFFSET(InputPriceData!G$15,CalculationsAndCharts!$A154+$A$11,IF($C$5,8,0),1,1)) -> 83309500 | D154: =IF(A154>$A$8,"",OFFSET(InputPriceData!C$15,CalculationsAndCharts!$A154+$A$11,IF($C$5,8,0),1,1)) -> 294.130005 | E154: =IF(A154>$A$8,"",OFFSET(InputPriceData!D$15,CalculationsAndCharts!$A154+$A$11,IF($C$5,8,0),1,1)) -> 295.519989 | F154: =IF(A154>$A$8,"",OFFSET(InputPriceData!E$15,CalculationsAndCharts!$A154+$A$11,IF($C$5,8,0),1,1)) -> 293.76001 | G154: =IF(A154>$A$8,"",OFFSET(InputPriceData!F$15,CalculationsAndCharts!$A154+$A$11,IF($C$5,8,0),1,1)) -> 294 | H154: 0.8812295901 | I154: 0.8967216808 | J154: -0.09064158865 | K154: 38.01327111 | L154: -0.3090169944 | M154: 0.9510565163 | N154: -0.8443279255 | O154: -0.8443279255 | P154: -0.9879912826 | Q154: -0.9879912826 | R154: 0.07689672861 | S154: -175.5495622 | T154: -175.5495622 | U154: 0 | AB154: 0.8812295901 | AC154: 0.8967216808 | AD154: -0.09064158865 | AE154: -0.8443279255 | AF154: -0.9879912826 | AQ154: 83309500
A155: 123 | B155: =IF(A155>$A$8,"",OFFSET(InputPriceData!B$15,$A155+$A$11,0,1,1)) -> 2019-06-20 | C155: =IF(A155>$A$8,"",OFFSET(InputPriceData!G$15,CalculationsAndCharts!$A155+$A$11,IF($C$5,8,0),1,1)) -> 116570000 | D155: =IF(A155>$A$8,"",OFFSET(InputPriceData!C$15,CalculationsAndCharts!$A155+$A$11,IF($C$5,8,0),1,1)) -> 296.040009 | E155: =IF(A155>$A$8,"",OFFSET(InputPriceData!D$15,CalculationsAndCharts!$A155+$A$11,IF($C$5,8,0),1,1)) -> 296.309998 | F155: =IF(A155>$A$8,"",OFFSET(InputPriceData!E$15,CalculationsAndCharts!$A155+$A$11,IF($C$5,8,0),1,1)) -> 293.130005 | G155: =IF(A155>$A$8,"",OFFSET(InputPriceData!F$15,CalculationsAndCharts!$A155+$A$11,IF($C$5,8,0),1,1)) -> 295.859985 | H155: 0.8731217421 | I155: 0.8595192122 | J155: -0.191735183 | K155: 38.32743037 | L155: -0.5877852523 | M155: 0.8090169944 | N155: -0.6845471059 | O155: -0.6845471059 | P155: -0.9655044825 | Q155: -0.9655044825 | R155: -0.2319768058 | S155: 166.4899184 | T155: 166.4899184 | U155: 0 | AB155: 0.8731217421 | AC155: 0.8595192122 | AD155: -0.191735183 | AE155: -0.6845471059 | AF155: -0.9655044825 | AQ155: 116570000
A156: 124 | B156: =IF(A156>$A$8,"",OFFSET(InputPriceData!B$15,$A156+$A$11,0,1,1)) -> 2019-06-19 | C156: =IF(A156>$A$8,"",OFFSET(InputPriceData!G$15,CalculationsAndCharts!$A156+$A$11,IF($C$5,8,0),1,1)) -> 78674400 | D156: =IF(A156>$A$8,"",OFFSET(InputPriceData!C$15,CalculationsAndCharts!$A156+$A$11,IF($C$5,8,0),1,1)) -> 292.549988 | E156: =IF(A156>$A$8,"",OFFSET(InputPriceData!D$15,CalculationsAndCharts!$A156+$A$11,IF($C$5,8,0),1,1)) -> 293.649994 | F156: =IF(A156>$A$8,"",OFFSET(InputPriceData!E$15,CalculationsAndCharts!$A156+$A$11,IF($C$5,8,0),1,1)) -> 291.470001 | G156: =IF(A156>$A$8,"",OFFSET(InputPriceData!F$15,CalculationsAndCharts!$A156+$A$11,IF($C$5,8,0),1,1)) -> 293.059998 | H156: 0.8900521888 | I156: 0.756305417 | J156: -0.3173054184 | K156: 38.64158964 | L156: -0.8090169944 | M156: 0.5877852523 | N156: -0.4817536741 | O156: -0.4817536741 | P156: -0.8448409074 | Q156: -0.8448409074 | R156: -0.5109343118 | S156: 148.8357159 | T156: 148.8357159 | U156: 0 | AB156: 0.8900521888 | AC156: 0.756305417 | AD156: -0.3173054184 | AE156: -0.4817536741 | AF156: -0.8448409074 | AP156: 78674400
A157: 125 | B157: =IF(A157>$A$8,"",OFFSET(InputPriceData!B$15,$A157+$A$11,0,1,1)) -> 2019-06-18 | C157: =IF(A157>$A$8,"",OFFSET(InputPriceData!G$15,CalculationsAndCharts!$A157+$A$11,IF($C$5,8,0),1,1)) -> 85434800 | D157: =IF(A157>$A$8,"",OFFSET(InputPriceData!C$15,CalculationsAndCharts!$A157+$A$11,IF($C$5,8,0),1,1)) -> 291.390015 | E157: =IF(A157>$A$8,"",OFFSET(InputPriceData!D$15,CalculationsAndCharts!$A157+$A$11,IF($C$5,8,0),1,1)) -> 293.570007 | F157: =IF(A157>$A$8,"",OFFSET(InputPriceData!E$15,CalculationsAndCharts!$A157+$A$11,IF($C$5,8,0),1,1)) -> 290.98999 | G157: =IF(A157>$A$8,"",OFFSET(InputPriceData!F$15,CalculationsAndCharts!$A157+$A$11,IF($C$5,8,0),1,1)) -> 292.399994 | H157: 0.8798039037 | I157: 0.624393289 | J157: -0.4213608923 | K157: 38.9557489 | L157: -0.9510565163 | M157: 0.3090169944 | N157: -0.2486898872 | O157: -0.2486898872 | P157: -0.6602083535 | Q157: -0.6602083535 | R157: -0.7206796246 | S157: 132.4925291 | T157: 132.4925291 | U157: 0 | AB157: 0.8798039037 | AC157: 0.624393289 | AD157: -0.4213608923 | AE157: -0.2486898872 | AF157: -0.6602083535 | AP157: 85434800
A158: 126 | B158: =IF(A158>$A$8,"",OFFSET(InputPriceData!B$15,$A158+$A$11,0,1,1)) -> 2019-06-17 | C158: =IF(A158>$A$8,"",OFFSET(InputPriceData!G$15,CalculationsAndCharts!$A158+$A$11,IF($C$5,8,0),1,1)) -> 39205700 | D158: =IF(A158>$A$8,"",OFFSET(InputPriceData!C$15,CalculationsAndCharts!$A158+$A$11,IF($C$5,8,0),1,1)) -> 289.519989 | E158: =IF(A158>$A$8,"",OFFSET(InputPriceData!D$15,CalculationsAndCharts!$A158+$A$11,IF($C$5,8,0),1,1)) -> 290.220001 | F158: =IF(A158>$A$8,"",OFFSET(InputPriceData!E$15,CalculationsAndCharts!$A158+$A$11,IF($C$5,8,0),1,1)) -> 289.179993 | G158: =IF(A158>$A$8,"",OFFSET(InputPriceData!F$15,CalculationsAndCharts!$A158+$A$11,IF($C$5,8,0),1,1)) -> 289.369995 | H158: 0.8675879202 | I158: 0.521617867 | J158: -0.5026482844 | K158: 39.26990817 | L158: -1 | M158: -2.449212708e-16 | N158: -1.225148455e-15 | O158: -1.225148455e-15 | P158: -0.4516903807 | Q158: -0.4516903807 | R158: -0.8554943325 | S158: 117.8334974 | T158: 117.8334974 | U158: 0 | AB158: 0.8675879202 | AC158: 0.521617867 | AD158: -0.5026482844 | AE158: -1.225148455e-15 | AF158: -0.4516903807 | AQ158: 39205700
A159: 127 | B159: =IF(A159>$A$8,"",OFFSET(InputPriceData!B$15,$A159+$A$11,0,1,1)) -> 2019-06-14 | C159: =IF(A159>$A$8,"",OFFSET(InputPriceData!G$15,CalculationsAndCharts!$A159+$A$11,IF($C$5,8,0),1,1)) -> 52324700 | D159: =IF(A159>$A$8,"",OFFSET(InputPriceData!C$15,CalculationsAndCharts!$A159+$A$11,IF($C$5,8,0),1,1)) -> 289.26001 | E159: =IF(A159>$A$8,"",OFFSET(InputPriceData!D$15,CalculationsAndCharts!$A159+$A$11,IF($C$5,8,0),1,1)) -> 289.929993 | F159: =IF(A159>$A$8,"",OFFSET(InputPriceData!E$15,CalculationsAndCharts!$A159+$A$11,IF($C$5,8,0),1,1)) -> 288.410004 | G159: =IF(A159>$A$8,"",OFFSET(InputPriceData!F$15,CalculationsAndCharts!$A159+$A$11,IF($C$5,8,0),1,1)) -> 289.26001 | H159: 0.880250528 | I159: 0.3939575013 | J159: -0.5514325183 | K159: 39.58406744 | L159: -0.9510565163 | M159: -0.3090169944 | N159: 0.2486898872 | O159: 0.2486898872 | P159: -0.2431918379 | Q159: -0.2431918379 | R159: -0.9285090696 | S159: 104.6770221 | T159: 104.6770221 | U159: 0 | AB159: 0.880250528 | AC159: 0.3939575013 | AD159: -0.5514325183 | AE159: 0.2486898872 | AF159: -0.2431918379 | AP159: 52324700
A160: 128 | B160: =IF(A160>$A$8,"",OFFSET(InputPriceData!B$15,$A160+$A$11,0,1,1)) -> 2019-06-13 | C160: =IF(A160>$A$8,"",OFFSET(InputPriceData!G$15,CalculationsAndCharts!$A160+$A$11,IF($C$5,8,0),1,1)) -> 48945200 | D160: =IF(A160>$A$8,"",OFFSET(InputPriceData!C$15,CalculationsAndCharts!$A160+$A$11,IF($C$5,8,0),1,1)) -> 289.399994 | E160: =IF(A160>$A$8,"",OFFSET(InputPriceData!D$15,CalculationsAndCharts!$A160+$A$11,IF($C$5,8,0),1,1)) -> 289.980011 | F160: =IF(A160>$A$8,"",OFFSET(InputPriceData!E$15,CalculationsAndCharts!$A160+$A$11,IF($C$5,8,0),1,1)) -> 288.619995 | G160: =IF(A160>$A$8,"",OFFSET(InputPriceData!F$15,CalculationsAndCharts!$A160+$A$11,IF($C$5,8,0),1,1)) -> 289.579987 | H160: 0.9300825646 | I160: 0.2150330155 | J160: -0.5949065582 | K160: 39.8982267 | L160: -0.8090169944 | M160: -0.5877852523 | N160: 0.4817536741 | O160: 0.4817536741 | P160: -0.04289620124 | Q160: -0.04289620124 | R160: -0.9543174948 | S160: 92.57369065 | T160: 92.57369065 | U160: 0 | AB160: 0.9300825646 | AC160: 0.2150330155 | AD160: -0.5949065582 | AE160: 0.4817536741 | AF160: -0.04289620124 | AP160: 48945200
A161: 129 | B161: =IF(A161>$A$8,"",OFFSET(InputPriceData!B$15,$A161+$A$11,0,1,1)) -> 2019-06-12 | C161: =IF(A161>$A$8,"",OFFSET(InputPriceData!G$15,CalculationsAndCharts!$A161+$A$11,IF($C$5,8,0),1,1)) -> 46984700 | D161: =IF(A161>$A$8,"",OFFSET(InputPriceData!C$15,CalculationsAndCharts!$A161+$A$11,IF($C$5,8,0),1,1)) -> 288.640015 | E161: =IF(A161>$A$8,"",OFFSET(InputPriceData!D$15,CalculationsAndCharts!$A161+$A$11,IF($C$5,8,0),1,1)) -> 289.26001 | F161: =IF(A161>$A$8,"",OFFSET(InputPriceData!E$15,CalculationsAndCharts!$A161+$A$11,IF($C$5,8,0),1,1)) -> 287.820007 | G161: =IF(A161>$A$8,"",OFFSET(InputPriceData!F$15,CalculationsAndCharts!$A161+$A$11,IF($C$5,8,0),1,1)) -> 288.390015 | H161: =IF(A161<$A$8,-CORREL(OFFSET($G161,0,0,$A$16,1),OFFSET($A$33,0,0,$A$16,1)),NA()) -> 0.9091848373 | I161: =IF(A161<$A$8,-CORREL(OFFSET($G161,0,0,$A$17,1),OFFSET($A$33,0,0,$A$17,1)),NA()) -> 0.07133137851 | J161: =IF(A161<$A$8,-CORREL(OFFSET($G161,0,0,$A$18,1),OFFSET($A$33,0,0,$A$18,1)),NA()) -> -0.646107511 | K161: 40.21238597 | L161: -0.5877852523 | M161: -0.8090169944 | N161: =IF($A$22=0,NA(),SIN(RADIANS(360/$A$22*(A161-1)))) -> 0.6845471059 | O161: =IF($F$22=1,G161,N161) -> 0.6845471059 | P161: =IF(A161<$A$8,CORREL(OFFSET($M$33,0,0,$A$21,1),OFFSET($O161,0,0,$A$21,1)),NA()) -> 0.1492044882 | Q161: =IF($A161<$A$8,CORREL(OFFSET($M$33,0,0,$A$21,1),OFFSET($O161,0,0,$A$21,1)),NA()) -> 0.1492044882 | R161: =IF($A161<$A$8,CORREL(OFFSET($L$33,0,0,$A$21,1),OFFSET($O161,0,0,$A$21,1)),NA()) -> -0.9420400633 | S161: 81 | T161: 81 | U161: 0 | AB161: =IF($R$22,H161,NA()) -> 0.9091848373 | AC161: =IF($R$23,I161,NA()) -> 0.07133137851 | AD161: =IF($R$24,J161,NA()) -> -0.646107511 | AE161: =IF($F$22=2,N161,R161) -> 0.6845471059 | AF161: =IF($F$22=2,P161,Q161) -> 0.1492044882 | AQ161: 46984700
A162: 130 | B162: =IF(A162>$A$8,"",OFFSET(InputPriceData!B$15,$A162+$A$11,0,1,1)) -> 2019-06-11 | C162: =IF(A162>$A$8,"",OFFSET(InputPriceData!G$15,CalculationsAndCharts!$A162+$A$11,IF($C$5,8,0),1,1)) -> 58641300 | D162: =IF(A162>$A$8,"",OFFSET(InputPriceData!C$15,CalculationsAndCharts!$A162+$A$11,IF($C$5,8,0),1,1)) -> 290.98999 | E162: =IF(A162>$A$8,"",OFFSET(InputPriceData!D$15,CalculationsAndCharts!$A162+$A$11,IF($C$5,8,0),1,1)) -> 291.399994 | F162: =IF(A162>$A$8,"",OFFSET(InputPriceData!E$15,CalculationsAndCharts!$A162+$A$11,IF($C$5,8,0),1,1)) -> 288.179993 | G162: =IF(A162>$A$8,"",OFFSET(InputPriceData!F$15,CalculationsAndCharts!$A162+$A$11,IF($C$5,8,0),1,1)) -> 288.899994 | H162: 0.8848501637 | I162: -0.03496140639 | J162: -0.6837425316 | K162: 40.52654523 | L162: =-SIN(K162) -> -0.3090169944 | M162: =COS(K162) -> -0.9510565163 | N162: 0.8443279255 | O162: 0.8443279255 | P162: 0.3356970356 | Q162: 0.3356970356 | R162: -0.8943542169 | S162: =IF(R162<>0,90+DEGREES(ATAN(Q162/R162))-IF(R162>0,180,0)) -> 69.42630935 | T162: =IF(A162>=$A$8-2,$S162,IF(AND((T163-$S162)<270,$S162<T163),T163,$S162)) -> 69.42630935 | U162: =IF(ABS(T162-T163)<$A$23,IF(T162<0,-1,IF(T162>=0,1,0)),0) -> 0 | AB162: 0.8848501637 | AC162: -0.03496140639 | AD162: -0.6837425316 | AE162: 0.8443279255 | AF162: 0.3356970356 | AG162: =IF(AND($R$14=3,$R$19,$U162=1),$AZ$34,NA()) ->  | AH162: =IF(AND($R$14=3,$R$19,$U162=-1),$AZ$34,NA()) ->  | AQ162: 58641300
A163: 131 | B163: =IF(A163>$A$8,"",OFFSET(InputPriceData!B$15,$A163+$A$11,0,1,1)) -> 2019-06-10 | C163: =IF(A163>$A$8,"",OFFSET(InputPriceData!G$15,CalculationsAndCharts!$A163+$A$11,IF($C$5,8,0),1,1)) -> 60799100 | D163: =IF(A163>$A$8,"",OFFSET(InputPriceData!C$15,CalculationsAndCharts!$A163+$A$11,IF($C$5,8,0),1,1)) -> 289.369995 | E163: =IF(A163>$A$8,"",OFFSET(InputPriceData!D$15,CalculationsAndCharts!$A163+$A$11,IF($C$5,8,0),1,1)) -> 290.820007 | F163: =IF(A163>$A$8,"",OFFSET(InputPriceData!E$15,CalculationsAndCharts!$A163+$A$11,IF($C$5,8,0),1,1)) -> 288.869995 | G163: =IF(A163>$A$8,"",OFFSET(InputPriceData!F$15,CalculationsAndCharts!$A163+$A$11,IF($C$5,8,0),1,1)) -> 288.970001 | H163: 0.7671922325 | I163: -0.1202264342 | J163: -0.7266566025 | K163: 40.8407045 | L163: 1.960020687e-15 | M163: -1 | N163: 0.9510565163 | O163: 0.9510565163 | P163: 0.5182142641 | Q163: 0.5182142641 | R163: -0.8079141903 | S163: 57.32297794 | T163: 57.32297794 | U163: 0 | AB163: 0.7671922325 | AC163: -0.1202264342 | AD163: -0.7266566025 | AE163: 0.9510565163 | AF163: 0.5182142641 | AQ163: 60799100
A164: 132 | B164: =IF(A164>$A$8,"",OFFSET(InputPriceData!B$15,$A164+$A$11,0,1,1)) -> 2019-06-07 | C164: =IF(A164>$A$8,"",OFFSET(InputPriceData!G$15,CalculationsAndCharts!$A164+$A$11,IF($C$5,8,0),1,1)) -> 74272200 | D164: =IF(A164>$A$8,"",OFFSET(InputPriceData!C$15,CalculationsAndCharts!$A164+$A$11,IF($C$5,8,0),1,1)) -> 285.929993 | E164: =IF(A164>$A$8,"",OFFSET(InputPriceData!D$15,CalculationsAndCharts!$A164+$A$11,IF($C$5,8,0),1,1)) -> 288.850006 | F164: =IF(A164>$A$8,"",OFFSET(InputPriceData!E$15,CalculationsAndCharts!$A164+$A$11,IF($C$5,8,0),1,1)) -> 285.73999 | G164: =IF(A164>$A$8,"",OFFSET(InputPriceData!F$15,CalculationsAndCharts!$A164+$A$11,IF($C$5,8,0),1,1)) -> 287.649994 | H164: 0.4649529759 | I164: -0.3829541048 | J164: -0.7567720526 | K164: 41.15486376 | L164: 0.3090169944 | M164: -0.9510565163 | N164: 0.9980267284 | O164: 0.9980267284 | P164: 0.6939453673 | Q164: 0.6939453673 | R164: -0.6740434557 | S164: 44.16650262 | T164: 44.16650262 | U164: 0 | AB164: 0.4649529759 | AC164: -0.3829541048 | AD164: -0.7567720526 | AE164: 0.9980267284 | AF164: 0.6939453673 | AP164: 74272200
A165: 133 | B165: =IF(A165>$A$8,"",OFFSET(InputPriceData!B$15,$A165+$A$11,0,1,1)) -> 2019-06-06 | C165: =IF(A165>$A$8,"",OFFSET(InputPriceData!G$15,CalculationsAndCharts!$A165+$A$11,IF($C$5,8,0),1,1)) -> 69430400 | D165: =IF(A165>$A$8,"",OFFSET(InputPriceData!C$15,CalculationsAndCharts!$A165+$A$11,IF($C$5,8,0),1,1)) -> 283.290009 | E165: =IF(A165>$A$8,"",OFFSET(InputPriceData!D$15,CalculationsAndCharts!$A165+$A$11,IF($C$5,8,0),1,1)) -> 285.549988 | F165: =IF(A165>$A$8,"",OFFSET(InputPriceData!E$15,CalculationsAndCharts!$A165+$A$11,IF($C$5,8,0),1,1)) -> 282.570007 | G165: =IF(A165>$A$8,"",OFFSET(InputPriceData!F$15,CalculationsAndCharts!$A165+$A$11,IF($C$5,8,0),1,1)) -> 284.799988 | H165: 0.0673173065 | I165: -0.5921320529 | J165: -0.7750407605 | K165: 41.46902303 | L165: 0.5877852523 | M165: -0.8090169944 | N165: 0.9822872507 | O165: 0.9822872507 | P165: 0.8505977083 | Q165: 0.8505977083 | R165: -0.4813914521 | S165: 29.50747086 | T165: 29.50747086 | U165: 0 | AB165: 0.0673173065 | AC165: -0.5921320529 | AD165: -0.7750407605 | AE165: 0.9822872507 | AF165: 0.8505977083 | AP165: 69430400
A166: 134 | B166: =IF(A166>$A$8,"",OFFSET(InputPriceData!B$15,$A166+$A$11,0,1,1)) -> 2019-06-05 | C166: =IF(A166>$A$8,"",OFFSET(InputPriceData!G$15,CalculationsAndCharts!$A166+$A$11,IF($C$5,8,0),1,1)) -> 71169700 | D166: =IF(A166>$A$8,"",OFFSET(InputPriceData!C$15,CalculationsAndCharts!$A166+$A$11,IF($C$5,8,0),1,1)) -> 282.329987 | E166: =IF(A166>$A$8,"",OFFSET(InputPriceData!D$15,CalculationsAndCharts!$A166+$A$11,IF($C$5,8,0),1,1)) -> 282.98999 | F166: =IF(A166>$A$8,"",OFFSET(InputPriceData!E$15,CalculationsAndCharts!$A166+$A$11,IF($C$5,8,0),1,1)) -> 280.320007 | G166: =IF(A166>$A$8,"",OFFSET(InputPriceData!F$15,CalculationsAndCharts!$A166+$A$11,IF($C$5,8,0),1,1)) -> 282.959991 | H166: -0.4764427015 | I166: -0.7247123768 | J166: -0.7624357105 | K166: 41.78318229 | L166: 0.8090169944 | M166: -0.5877852523 | N166: 0.9048270525 | O166: 0.9048270525 | P166: 0.9613788356 | Q166: 0.9613788356 | R166: -0.2248572087 | S166: 13.16428408 | T166: 13.16428408 | U166: 0 | AB166: -0.4764427015 | AC166: -0.7247123768 | AD166: -0.7624357105 | AE166: 0.9048270525 | AF166: 0.9613788356 | AP166: 71169700
A167: 135 | B167: =IF(A167>$A$8,"",OFFSET(InputPriceData!B$15,$A167+$A$11,0,1,1)) -> 2019-06-04 | C167: =IF(A167>$A$8,"",OFFSET(InputPriceData!G$15,CalculationsAndCharts!$A167+$A$11,IF($C$5,8,0),1,1)) -> 77231900 | D167: =IF(A167>$A$8,"",OFFSET(InputPriceData!C$15,CalculationsAndCharts!$A167+$A$11,IF($C$5,8,0),1,1)) -> 277.119995 | E167: =IF(A167>$A$8,"",OFFSET(InputPriceData!D$15,CalculationsAndCharts!$A167+$A$11,IF($C$5,8,0),1,1)) -> 280.679993 | F167: =IF(A167>$A$8,"",OFFSET(InputPriceData!E$15,CalculationsAndCharts!$A167+$A$11,IF($C$5,8,0),1,1)) -> 276.619995 | G167: =IF(A167>$A$8,"",OFFSET(InputPriceData!F$15,CalculationsAndCharts!$A167+$A$11,IF($C$5,8,0),1,1)) -> 280.529999 | H167: -0.8311882837 | I167: -0.8030064924 | J167: -0.7481485172 | K167: 42.09734156 | L167: 0.9510565163 | M167: -0.3090169944 | N167: 0.7705132428 | O167: 0.7705132428 | P167: 0.9899341049 | Q167: 0.9899341049 | R167: 0.07773424042 | S167: -4.48991835 | T167: -4.48991835 | U167: 0 | AB167: -0.8311882837 | AC167: -0.8030064924 | AD167: -0.7481485172 | AE167: 0.7705132428 | AF167: 0.9899341049 | AP167: 77231900
A168: 136 | B168: =IF(A168>$A$8,"",OFFSET(InputPriceData!B$15,$A168+$A$11,0,1,1)) -> 2019-06-03 | C168: =IF(A168>$A$8,"",OFFSET(InputPriceData!G$15,CalculationsAndCharts!$A168+$A$11,IF($C$5,8,0),1,1)) -> 96428000 | D168: =IF(A168>$A$8,"",OFFSET(InputPriceData!C$15,CalculationsAndCharts!$A168+$A$11,IF($C$5,8,0),1,1)) -> 275.309998 | E168: =IF(A168>$A$8,"",OFFSET(InputPriceData!D$15,CalculationsAndCharts!$A168+$A$11,IF($C$5,8,0),1,1)) -> 276.549988 | F168: =IF(A168>$A$8,"",OFFSET(InputPriceData!E$15,CalculationsAndCharts!$A168+$A$11,IF($C$5,8,0),1,1)) -> 273.089996 | G168: =IF(A168>$A$8,"",OFFSET(InputPriceData!F$15,CalculationsAndCharts!$A168+$A$11,IF($C$5,8,0),1,1)) -> 274.570007 | H168: -0.9425453162 | I168: -0.8451396911 | J168: -0.7183328518 | K168: 42.41150082 | L168: 1 | M168: -3.430307254e-15 | N168: 0.5877852523 | O168: 0.5877852523 | P168: 0.9158731514 | Q168: 0.9158731514 | R168: 0.3784392315 | S168: -22.45043776 | T168: -22.45043776 | U168: 0 | AB168: -0.9425453162 | AC168: -0.8451396911 | AD168: -0.7183328518 | AE168: 0.5877852523 | AF168: 0.9158731514 | AQ168: 96428000
A169: 137 | B169: =IF(A169>$A$8,"",OFFSET(InputPriceData!B$15,$A169+$A$11,0,1,1)) -> 2019-05-31 | C169: =IF(A169>$A$8,"",OFFSET(InputPriceData!G$15,CalculationsAndCharts!$A169+$A$11,IF($C$5,8,0),1,1)) -> 86862800 | D169: =IF(A169>$A$8,"",OFFSET(InputPriceData!C$15,CalculationsAndCharts!$A169+$A$11,IF($C$5,8,0),1,1)) -> 276.200012 | E169: =IF(A169>$A$8,"",OFFSET(InputPriceData!D$15,CalculationsAndCharts!$A169+$A$11,IF($C$5,8,0),1,1)) -> 277.119995 | F169: =IF(A169>$A$8,"",OFFSET(InputPriceData!E$15,CalculationsAndCharts!$A169+$A$11,IF($C$5,8,0),1,1)) -> 275.23999 | G169: =IF(A169>$A$8,"",OFFSET(InputPriceData!F$15,CalculationsAndCharts!$A169+$A$11,IF($C$5,8,0),1,1)) -> 275.269989 | H169: -0.9218437224 | I169: -0.8449513368 | J169: -0.661951228 | K169: 42.72566009 | L169: 0.9510565163 | M169: 0.3090169944 | N169: 0.3681245527 | O169: 0.3681245527 | P169: 0.7577600105 | Q169: 0.7577600105 | R169: 0.625519641 | S169: -39.53916727 | T169: -39.53916727 | U169: 0 | AB169: -0.9218437224 | AC169: -0.8449513368 | AD169: -0.661951228 | AE169: 0.3681245527 | AF169: 0.7577600105 | AQ169: 86862800
A170: 138 | B170: =IF(A170>$A$8,"",OFFSET(InputPriceData!B$15,$A170+$A$11,0,1,1)) -> 2019-05-30 | C170: =IF(A170>$A$8,"",OFFSET(InputPriceData!G$15,CalculationsAndCharts!$A170+$A$11,IF($C$5,8,0),1,1)) -> 62523800 | D170: =IF(A170>$A$8,"",OFFSET(InputPriceData!C$15,CalculationsAndCharts!$A170+$A$11,IF($C$5,8,0),1,1)) -> 279.109985 | E170: =IF(A170>$A$8,"",OFFSET(InputPriceData!D$15,CalculationsAndCharts!$A170+$A$11,IF($C$5,8,0),1,1)) -> 280.040009 | F170: =IF(A170>$A$8,"",OFFSET(InputPriceData!E$15,CalculationsAndCharts!$A170+$A$11,IF($C$5,8,0),1,1)) -> 277.809998 | G170: =IF(A170>$A$8,"",OFFSET(InputPriceData!F$15,CalculationsAndCharts!$A170+$A$11,IF($C$5,8,0),1,1)) -> 279.029999 | H170: -0.9208449046 | I170: -0.8363107475 | J170: -0.5882671886 | K170: 43.03981935 | L170: 0.8090169944 | M170: 0.5877852523 | N170: 0.1253332336 | O170: 0.1253332336 | P170: 0.5569916222 | Q170: 0.5569916222 | R170: 0.7968191743 | S170: -55.04572592 | T170: -55.04572592 | U170: 0 | AB170: -0.9208449046 | AC170: -0.8363107475 | AD170: -0.5882671886 | AE170: 0.1253332336 | AF170: 0.5569916222 | AQ170: 62523800
A171: 139 | B171: =IF(A171>$A$8,"",OFFSET(InputPriceData!B$15,$A171+$A$11,0,1,1)) -> 2019-05-29 | C171: =IF(A171>$A$8,"",OFFSET(InputPriceData!G$15,CalculationsAndCharts!$A171+$A$11,IF($C$5,8,0),1,1)) -> 104972900 | D171: =IF(A171>$A$8,"",OFFSET(InputPriceData!C$15,CalculationsAndCharts!$A171+$A$11,IF($C$5,8,0),1,1)) -> 278.910004 | E171: =IF(A171>$A$8,"",OFFSET(InputPriceData!D$15,CalculationsAndCharts!$A171+$A$11,IF($C$5,8,0),1,1)) -> 279.359985 | F171: =IF(A171>$A$8,"",OFFSET(InputPriceData!E$15,CalculationsAndCharts!$A171+$A$11,IF($C$5,8,0),1,1)) -> 276.709991 | G171: =IF(A171>$A$8,"",OFFSET(InputPriceData!F$15,CalculationsAndCharts!$A171+$A$11,IF($C$5,8,0),1,1)) -> 278.269989 | H171: -0.8376591567 | I171: -0.8321777943 | J171: -0.502532134 | K171: 43.35397862 | L171: 0.5877852523 | M171: 0.8090169944 | N171: -0.1253332336 | O171: -0.1253332336 | P171: 0.3466485339 | Q171: 0.3466485339 | R171: 0.8987221286 | S171: -68.90773985 | T171: -68.90773985 | U171: 0 | AB171: -0.8376591567 | AC171: -0.8321777943 | AD171: -0.502532134 | AE171: -0.1253332336 | AF171: 0.3466485339 | AQ171: 104972900
A172: 140 | B172: =IF(A172>$A$8,"",OFFSET(InputPriceData!B$15,$A172+$A$11,0,1,1)) -> 2019-05-28 | C172: =IF(A172>$A$8,"",OFFSET(InputPriceData!G$15,CalculationsAndCharts!$A172+$A$11,IF($C$5,8,0),1,1)) -> 70029400 | D172: =IF(A172>$A$8,"",OFFSET(InputPriceData!C$15,CalculationsAndCharts!$A172+$A$11,IF($C$5,8,0),1,1)) -> 283.089996 | E172: =IF(A172>$A$8,"",OFFSET(InputPriceData!D$15,CalculationsAndCharts!$A172+$A$11,IF($C$5,8,0),1,1)) -> 284.149994 | F172: =IF(A172>$A$8,"",OFFSET(InputPriceData!E$15,CalculationsAndCharts!$A172+$A$11,IF($C$5,8,0),1,1)) -> 280.130005 | G172: =IF(A172>$A$8,"",OFFSET(InputPriceData!F$15,CalculationsAndCharts!$A172+$A$11,IF($C$5,8,0),1,1)) -> 280.149994 | H172: -0.5750995649 | I172: -0.8309335193 | J172: -0.3985795621 | K172: 43.66813788 | L172: 0.3090169944 | M172: 0.9510565163 | N172: -0.3681245527 | O172: -0.3681245527 | P172: 0.1419074621 | Q172: 0.1419074621 | R172: 0.9465905853 | S172: -81.47403682 | T172: -81.47403682 | U172: 0 | AB172: -0.5750995649 | AC172: -0.8309335193 | AD172: -0.3985795621 | AE172: -0.3681245527 | AF172: 0.1419074621 | AQ172: 70029400
A173: 141 | B173: =IF(A173>$A$8,"",OFFSET(InputPriceData!B$15,$A173+$A$11,0,1,1)) -> 2019-05-24 | C173: =IF(A173>$A$8,"",OFFSET(InputPriceData!G$15,CalculationsAndCharts!$A173+$A$11,IF($C$5,8,0),1,1)) -> 55268100 | D173: =IF(A173>$A$8,"",OFFSET(InputPriceData!C$15,CalculationsAndCharts!$A173+$A$11,IF($C$5,8,0),1,1)) -> 283.73999 | E173: =IF(A173>$A$8,"",OFFSET(InputPriceData!D$15,CalculationsAndCharts!$A173+$A$11,IF($C$5,8,0),1,1)) -> 284.200012 | F173: =IF(A173>$A$8,"",OFFSET(InputPriceData!E$15,CalculationsAndCharts!$A173+$A$11,IF($C$5,8,0),1,1)) -> 282.089996 | G173: =IF(A173>$A$8,"",OFFSET(InputPriceData!F$15,CalculationsAndCharts!$A173+$A$11,IF($C$5,8,0),1,1)) -> 282.779999 | H173: 0.05040102152 | I173: -0.8290019072 | J173: -0.2383229879 | K173: 43.98229715 | L173: 1.715207837e-15 | M173: 1 | N173: -0.5877852523 | O173: -0.5877852523 | P173: -0.05403043772 | Q173: -0.05403043772 | R173: 0.952625196 | S173: -93.24619058 | T173: -93.24619058 | U173: 0 | AB173: 0.05040102152 | AC173: -0.8290019072 | AD173: -0.2383229879 | AE173: -0.5877852523 | AF173: -0.05403043772 | AQ173: 55268100
A174: 142 | B174: =IF(A174>$A$8,"",OFFSET(InputPriceData!B$15,$A174+$A$11,0,1,1)) -> 2019-05-23 | C174: =IF(A174>$A$8,"",OFFSET(InputPriceData!G$15,CalculationsAndCharts!$A174+$A$11,IF($C$5,8,0),1,1)) -> 98733800 | D174: =IF(A174>$A$8,"",OFFSET(InputPriceData!C$15,CalculationsAndCharts!$A174+$A$11,IF($C$5,8,0),1,1)) -> 283.160004 | E174: =IF(A174>$A$8,"",OFFSET(InputPriceData!D$15,CalculationsAndCharts!$A174+$A$11,IF($C$5,8,0),1,1)) -> 283.209991 | F174: =IF(A174>$A$8,"",OFFSET(InputPriceData!E$15,CalculationsAndCharts!$A174+$A$11,IF($C$5,8,0),1,1)) -> 280.570007 | G174: =IF(A174>$A$8,"",OFFSET(InputPriceData!F$15,CalculationsAndCharts!$A174+$A$11,IF($C$5,8,0),1,1)) -> 282.140015 | H174: -0.07761247924 | I174: -0.8327869916 | J174: -0.07350715725 | K174: 44.29645642 | L174: -0.3090169944 | M174: 0.9510565163 | N174: -0.7705132428 | O174: -0.7705132428 | P174: -0.242991375 | Q174: -0.242991375 | R174: 0.9226967237 | S174: -104.7538094 | T174: -104.7538094 | U174: 0 | AB174: -0.07761247924 | AC174: -0.8327869916 | AD174: -0.07350715725 | AE174: -0.7705132428 | AF174: -0.242991375 | AQ174: 98733800
A175: 143 | B175: =IF(A175>$A$8,"",OFFSET(InputPriceData!B$15,$A175+$A$11,0,1,1)) -> 2019-05-22 | C175: =IF(A175>$A$8,"",OFFSET(InputPriceData!G$15,CalculationsAndCharts!$A175+$A$11,IF($C$5,8,0),1,1)) -> 49482500 | D175: =IF(A175>$A$8,"",OFFSET(InputPriceData!C$15,CalculationsAndCharts!$A175+$A$11,IF($C$5,8,0),1,1)) -> 285.450012 | E175: =IF(A175>$A$8,"",OFFSET(InputPriceData!D$15,CalculationsAndCharts!$A175+$A$11,IF($C$5,8,0),1,1)) -> 286.690002 | F175: =IF(A175>$A$8,"",OFFSET(InputPriceData!E$15,CalculationsAndCharts!$A175+$A$11,IF($C$5,8,0),1,1)) -> 285.100006 | G175: =IF(A175>$A$8,"",OFFSET(InputPriceData!F$15,CalculationsAndCharts!$A175+$A$11,IF($C$5,8,0),1,1)) -> 285.630005 | H175: 0.04232216161 | I175: -0.8099783323 | J175: 0.1006286042 | K175: 44.61061568 | L175: -0.5877852523 | M175: 0.8090169944 | N175: -0.9048270525 | O175: -0.9048270525 | P175: -0.4274745941 | Q175: -0.4274745941 | R175: 0.856409327 | S175: -116.5259632 | T175: -116.5259632 | U175: 0 | AB175: 0.04232216161 | AC175: -0.8099783323 | AD175: 0.1006286042 | AE175: -0.9048270525 | AF175: -0.4274745941 | AP175: 49482500
A176: 144 | B176: =IF(A176>$A$8,"",OFFSET(InputPriceData!B$15,$A176+$A$11,0,1,1)) -> 2019-05-21 | C176: =IF(A176>$A$8,"",OFFSET(InputPriceData!G$15,CalculationsAndCharts!$A176+$A$11,IF($C$5,8,0),1,1)) -> 46847100 | D176: =IF(A176>$A$8,"",OFFSET(InputPriceData!C$15,CalculationsAndCharts!$A176+$A$11,IF($C$5,8,0),1,1)) -> 285.829987 | E176: =IF(A176>$A$8,"",OFFSET(InputPriceData!D$15,CalculationsAndCharts!$A176+$A$11,IF($C$5,8,0),1,1)) -> 286.929993 | F176: =IF(A176>$A$8,"",OFFSET(InputPriceData!E$15,CalculationsAndCharts!$A176+$A$11,IF($C$5,8,0),1,1)) -> 285.549988 | G176: =IF(A176>$A$8,"",OFFSET(InputPriceData!F$15,CalculationsAndCharts!$A176+$A$11,IF($C$5,8,0),1,1)) -> 286.51001 | H176: -0.1391130442 | I176: -0.8139222223 | J176: 0.2041050109 | K176: 44.92477495 | L176: -0.8090169944 | M176: 0.5877852523 | N176: -0.9822872507 | O176: -0.9822872507 | P176: -0.607402758 | Q176: -0.607402758 | R176: 0.7476152487 | S176: -129.0922601 | T176: -129.0922601 | U176: 0 | AB176: -0.1391130442 | AC176: -0.8139222223 | AD176: 0.2041050109 | AE176: -0.9822872507 | AF176: -0.607402758 | AP176: 46847100
A177: 145 | B177: =IF(A177>$A$8,"",OFFSET(InputPriceData!B$15,$A177+$A$11,0,1,1)) -> 2019-05-20 | C177: =IF(A177>$A$8,"",OFFSET(InputPriceData!G$15,CalculationsAndCharts!$A177+$A$11,IF($C$5,8,0),1,1)) -> 62877600 | D177: =IF(A177>$A$8,"",OFFSET(InputPriceData!C$15,CalculationsAndCharts!$A177+$A$11,IF($C$5,8,0),1,1)) -> 284.059998 | E177: =IF(A177>$A$8,"",OFFSET(InputPriceData!D$15,CalculationsAndCharts!$A177+$A$11,IF($C$5,8,0),1,1)) -> 285.959991 | F177: =IF(A177>$A$8,"",OFFSET(InputPriceData!E$15,CalculationsAndCharts!$A177+$A$11,IF($C$5,8,0),1,1)) -> 283.119995 | G177: =IF(A177>$A$8,"",OFFSET(InputPriceData!F$15,CalculationsAndCharts!$A177+$A$11,IF($C$5,8,0),1,1)) -> 283.950012 | H177: -0.3771573952 | I177: -0.8298817859 | J177: 0.3021567609 | K177: 45.23893421 | L177: -0.9510565163 | M177: 0.3090169944 | N177: -0.9980267284 | O177: -0.9980267284 | P177: -0.7759611781 | Q177: -0.7759611781 | R177: 0.585700191 | S177: -142.9542741 | T177: -142.9542741 | U177: 0 | AB177: -0.3771573952 | AC177: -0.8298817859 | AD177: 0.3021567609 | AE177: -0.9980267284 | AF177: -0.7759611781 | AQ177: 62877600
A178: 146 | B178: =IF(A178>$A$8,"",OFFSET(InputPriceData!B$15,$A178+$A$11,0,1,1)) -> 2019-05-17 | C178: =IF(A178>$A$8,"",OFFSET(InputPriceData!G$15,CalculationsAndCharts!$A178+$A$11,IF($C$5,8,0),1,1)) -> 100353000 | D178: =IF(A178>$A$8,"",OFFSET(InputPriceData!C$15,CalculationsAndCharts!$A178+$A$11,IF($C$5,8,0),1,1)) -> 285.140015 | E178: =IF(A178>$A$8,"",OFFSET(InputPriceData!D$15,CalculationsAndCharts!$A178+$A$11,IF($C$5,8,0),1,1)) -> 288.600006 | F178: =IF(A178>$A$8,"",OFFSET(InputPriceData!E$15,CalculationsAndCharts!$A178+$A$11,IF($C$5,8,0),1,1)) -> 285.119995 | G178: =IF(A178>$A$8,"",OFFSET(InputPriceData!F$15,CalculationsAndCharts!$A178+$A$11,IF($C$5,8,0),1,1)) -> 285.839996 | H178: -0.5415164292 | I178: -0.7651026446 | J178: 0.4163151893 | K178: 45.55309348 | L178: -1 | M178: 1.084202172e-19 | N178: -0.9510565163 | O178: -0.9510565163 | P178: -0.9139687952 | Q178: -0.9139687952 | R178: 0.3607438098 | S178: -158.4608327 | T178: -158.4608327 | U178: 0 | AB178: -0.5415164292 | AC178: -0.7651026446 | AD178: 0.4163151893 | AE178: -0.9510565163 | AF178: -0.9139687952 | AP178: 100353000
A179: 147 | B179: =IF(A179>$A$8,"",OFFSET(InputPriceData!B$15,$A179+$A$11,0,1,1)) -> 2019-05-16 | C179: =IF(A179>$A$8,"",OFFSET(InputPriceData!G$15,CalculationsAndCharts!$A179+$A$11,IF($C$5,8,0),1,1)) -> 76749600 | D179: =IF(A179>$A$8,"",OFFSET(InputPriceData!C$15,CalculationsAndCharts!$A179+$A$11,IF($C$5,8,0),1,1)) -> 285.839996 | E179: =IF(A179>$A$8,"",OFFSET(InputPriceData!D$15,CalculationsAndCharts!$A179+$A$11,IF($C$5,8,0),1,1)) -> 289.209991 | F179: =IF(A179>$A$8,"",OFFSET(InputPriceData!E$15,CalculationsAndCharts!$A179+$A$11,IF($C$5,8,0),1,1)) -> 285.76001 | G179: =IF(A179>$A$8,"",OFFSET(InputPriceData!F$15,CalculationsAndCharts!$A179+$A$11,IF($C$5,8,0),1,1)) -> 287.700012 | H179: -0.7120745241 | I179: -0.7027281177 | J179: 0.4646250209 | K179: 45.86725274 | L179: -0.9510565163 | M179: -0.3090169944 | N179: -0.8443279255 | O179: -0.8443279255 | P179: -0.9879912826 | Q179: -0.9879912826 | R179: 0.07689672861 | S179: -175.5495622 | T179: -175.5495622 | U179: 0 | AB179: -0.7120745241 | AC179: -0.7027281177 | AD179: 0.4646250209 | AE179: -0.8443279255 | AF179: -0.9879912826 | AP179: 76749600
A180: 148 | B180: =IF(A180>$A$8,"",OFFSET(InputPriceData!B$15,$A180+$A$11,0,1,1)) -> 2019-05-15 | C180: =IF(A180>$A$8,"",OFFSET(InputPriceData!G$15,CalculationsAndCharts!$A180+$A$11,IF($C$5,8,0),1,1)) -> 73956400 | D180: =IF(A180>$A$8,"",OFFSET(InputPriceData!C$15,CalculationsAndCharts!$A180+$A$11,IF($C$5,8,0),1,1)) -> 281.589996 | E180: =IF(A180>$A$8,"",OFFSET(InputPriceData!D$15,CalculationsAndCharts!$A180+$A$11,IF($C$5,8,0),1,1)) -> 285.769989 | F180: =IF(A180>$A$8,"",OFFSET(InputPriceData!E$15,CalculationsAndCharts!$A180+$A$11,IF($C$5,8,0),1,1)) -> 281.359985 | G180: =IF(A180>$A$8,"",OFFSET(InputPriceData!F$15,CalculationsAndCharts!$A180+$A$11,IF($C$5,8,0),1,1)) -> 285.059998 | H180: -0.8469818749 | I180: -0.6485874191 | J180: 0.5131071824 | K180: 46.18141201 | L180: -0.8090169944 | M180: -0.5877852523 | N180: -0.6845471059 | O180: -0.6845471059 | P180: -0.9655044825 | Q180: -0.9655044825 | R180: -0.2319768058 | S180: 166.4899184 | T180: 166.4899184 | U180: 0 | AB180: -0.8469818749 | AC180: -0.6485874191 | AD180: 0.5131071824 | AE180: -0.6845471059 | AF180: -0.9655044825 | AP180: 73956400
A181: 149 | B181: =IF(A181>$A$8,"",OFFSET(InputPriceData!B$15,$A181+$A$11,0,1,1)) -> 2019-05-14 | C181: =IF(A181>$A$8,"",OFFSET(InputPriceData!G$15,CalculationsAndCharts!$A181+$A$11,IF($C$5,8,0),1,1)) -> 77003200 | D181: =IF(A181>$A$8,"",OFFSET(InputPriceData!C$15,CalculationsAndCharts!$A181+$A$11,IF($C$5,8,0),1,1)) -> 281.98999 | E181: =IF(A181>$A$8,"",OFFSET(InputPriceData!D$15,CalculationsAndCharts!$A181+$A$11,IF($C$5,8,0),1,1)) -> 285.100006 | F181: =IF(A181>$A$8,"",OFFSET(InputPriceData!E$15,CalculationsAndCharts!$A181+$A$11,IF($C$5,8,0),1,1)) -> 281.850006 | G181: =IF(A181>$A$8,"",OFFSET(InputPriceData!F$15,CalculationsAndCharts!$A181+$A$11,IF($C$5,8,0),1,1)) -> 283.399994 | H181: -0.8644162021 | I181: -0.5610062505 | J181: 0.5809218238 | K181: 46.49557127 | L181: -0.5877852523 | M181: -0.8090169944 | N181: -0.4817536741 | O181: -0.4817536741 | P181: -0.8448409074 | Q181: -0.8448409074 | R181: -0.5109343118 | S181: 148.8357159 | T181: 148.8357159 | U181: 0 | AB181: -0.8644162021 | AC181: -0.5610062505 | AD181: 0.5809218238 | AE181: -0.4817536741 | AF181: -0.8448409074 | AP181: 77003200
A182: 150 | B182: =IF(A182>$A$8,"",OFFSET(InputPriceData!B$15,$A182+$A$11,0,1,1)) -> 2019-05-13 | C182: =IF(A182>$A$8,"",OFFSET(InputPriceData!G$15,CalculationsAndCharts!$A182+$A$11,IF($C$5,8,0),1,1)) -> 127290500 | D182: =IF(A182>$A$8,"",OFFSET(InputPriceData!C$15,CalculationsAndCharts!$A182+$A$11,IF($C$5,8,0),1,1)) -> 282.420013 | E182: =IF(A182>$A$8,"",OFFSET(InputPriceData!D$15,CalculationsAndCharts!$A182+$A$11,IF($C$5,8,0),1,1)) -> 283.48999 | F182: =IF(A182>$A$8,"",OFFSET(InputPriceData!E$15,CalculationsAndCharts!$A182+$A$11,IF($C$5,8,0),1,1)) -> 279.929993 | G182: =IF(A182>$A$8,"",OFFSET(InputPriceData!F$15,CalculationsAndCharts!$A182+$A$11,IF($C$5,8,0),1,1)) -> 280.859985 | H182: -0.856991379 | I182: -0.4246888836 | J182: 0.6671985548 | K182: 46.80973054 | L182: -0.3090169944 | M182: -0.9510565163 | N182: -0.2486898872 | O182: -0.2486898872 | P182: -0.6602083535 | Q182: -0.6602083535 | R182: -0.7206796246 | S182: 132.4925291 | T182: 132.4925291 | U182: 0 | AB182: -0.856991379 | AC182: -0.4246888836 | AD182: 0.6671985548 | AE182: -0.2486898872 | AF182: -0.6602083535 | AQ182: 127290500
A183: 151 | B183: =IF(A183>$A$8,"",OFFSET(InputPriceData!B$15,$A183+$A$11,0,1,1)) -> 2019-05-10 | C183: =IF(A183>$A$8,"",OFFSET(InputPriceData!G$15,CalculationsAndCharts!$A183+$A$11,IF($C$5,8,0),1,1)) -> 112429300 | D183: =IF(A183>$A$8,"",OFFSET(InputPriceData!C$15,CalculationsAndCharts!$A183+$A$11,IF($C$5,8,0),1,1)) -> 285.619995 | E183: =IF(A183>$A$8,"",OFFSET(InputPriceData!D$15,CalculationsAndCharts!$A183+$A$11,IF($C$5,8,0),1,1)) -> 288.940002 | F183: =IF(A183>$A$8,"",OFFSET(InputPriceData!E$15,CalculationsAndCharts!$A183+$A$11,IF($C$5,8,0),1,1)) -> 282.299988 | G183: =IF(A183>$A$8,"",OFFSET(InputPriceData!F$15,CalculationsAndCharts!$A183+$A$11,IF($C$5,8,0),1,1)) -> 288.100006 | H183: -0.8420307099 | I183: -0.1916973069 | J183: 0.7943996217 | K183: 47.1238898 | L183: 1.714990996e-15 | M183: -1 | N183: -1.470178146e-15 | O183: -1.470178146e-15 | P183: -0.4516903807 | Q183: -0.4516903807 | R183: -0.8554943325 | S183: 117.8334974 | T183: 117.8334974 | U183: 0 | AB183: -0.8420307099 | AC183: -0.1916973069 | AD183: 0.7943996217 | AE183: -1.470178146e-15 | AF183: -0.4516903807 | AP183: 112429300
A184: 152 | B184: =IF(A184>$A$8,"",OFFSET(InputPriceData!B$15,$A184+$A$11,0,1,1)) -> 2019-05-09 | C184: =IF(A184>$A$8,"",OFFSET(InputPriceData!G$15,CalculationsAndCharts!$A184+$A$11,IF($C$5,8,0),1,1)) -> 103471100 | D184: =IF(A184>$A$8,"",OFFSET(InputPriceData!C$15,CalculationsAndCharts!$A184+$A$11,IF($C$5,8,0),1,1)) -> 285.230011 | E184: =IF(A184>$A$8,"",OFFSET(InputPriceData!D$15,CalculationsAndCharts!$A184+$A$11,IF($C$5,8,0),1,1)) -> 287.329987 | F184: =IF(A184>$A$8,"",OFFSET(InputPriceData!E$15,CalculationsAndCharts!$A184+$A$11,IF($C$5,8,0),1,1)) -> 283.299988 | G184: =IF(A184>$A$8,"",OFFSET(InputPriceData!F$15,CalculationsAndCharts!$A184+$A$11,IF($C$5,8,0),1,1)) -> 286.660004 | H184: -0.8212258521 | I184: 0.02639902667 | J184: 0.8285399002 | K184: 47.43804907 | L184: 0.3090169944 | M184: -0.9510565163 | N184: 0.2486898872 | O184: 0.2486898872 | P184: -0.2431918379 | Q184: -0.2431918379 | R184: -0.9285090696 | S184: 104.6770221 | T184: 104.6770221 | U184: 0 | AB184: -0.8212258521 | AC184: 0.02639902667 | AD184: 0.8285399002 | AE184: 0.2486898872 | AF184: -0.2431918379 | AP184: 103471100
A185: 153 | B185: =IF(A185>$A$8,"",OFFSET(InputPriceData!B$15,$A185+$A$11,0,1,1)) -> 2019-05-08 | C185: =IF(A185>$A$8,"",OFFSET(InputPriceData!G$15,CalculationsAndCharts!$A185+$A$11,IF($C$5,8,0),1,1)) -> 91568300 | D185: =IF(A185>$A$8,"",OFFSET(InputPriceData!C$15,CalculationsAndCharts!$A185+$A$11,IF($C$5,8,0),1,1)) -> 287.529999 | E185: =IF(A185>$A$8,"",OFFSET(InputPriceData!D$15,CalculationsAndCharts!$A185+$A$11,IF($C$5,8,0),1,1)) -> 289.429993 | F185: =IF(A185>$A$8,"",OFFSET(InputPriceData!E$15,CalculationsAndCharts!$A185+$A$11,IF($C$5,8,0),1,1)) -> 286.869995 | G185: =IF(A185>$A$8,"",OFFSET(InputPriceData!F$15,CalculationsAndCharts!$A185+$A$11,IF($C$5,8,0),1,1)) -> 287.529999 | H185: -0.6515937875 | I185: 0.3216428736 | J185: 0.8724100382 | K185: 47.75220833 | L185: 0.5877852523 | M185: -0.8090169944 | N185: 0.4817536741 | O185: 0.4817536741 | P185: -0.04289620124 | Q185: -0.04289620124 | R185: -0.9543174948 | S185: 92.57369065 | T185: 92.57369065 | U185: 0 | AB185: -0.6515937875 | AC185: 0.3216428736 | AD185: 0.8724100382 | AE185: 0.4817536741 | AF185: -0.04289620124 | AP185: 91568300
A186: 154 | B186: =IF(A186>$A$8,"",OFFSET(InputPriceData!B$15,$A186+$A$11,0,1,1)) -> 2019-05-07 | C186: =IF(A186>$A$8,"",OFFSET(InputPriceData!G$15,CalculationsAndCharts!$A186+$A$11,IF($C$5,8,0),1,1)) -> 144729900 | D186: =IF(A186>$A$8,"",OFFSET(InputPriceData!C$15,CalculationsAndCharts!$A186+$A$11,IF($C$5,8,0),1,1)) -> 290.149994 | E186: =IF(A186>$A$8,"",OFFSET(InputPriceData!D$15,CalculationsAndCharts!$A186+$A$11,IF($C$5,8,0),1,1)) -> 290.809998 | F186: =IF(A186>$A$8,"",OFFSET(InputPriceData!E$15,CalculationsAndCharts!$A186+$A$11,IF($C$5,8,0),1,1)) -> 285.809998 | G186: =IF(A186>$A$8,"",OFFSET(InputPriceData!F$15,CalculationsAndCharts!$A186+$A$11,IF($C$5,8,0),1,1)) -> 287.929993 | H186: -0.4031596549 | I186: 0.6170770033 | J186: 0.9092902549 | K186: 48.0663676 | L186: 0.8090169944 | M186: -0.5877852523 | N186: 0.6845471059 | O186: 0.6845471059 | P186: 0.1492044882 | Q186: 0.1492044882 | R186: -0.9420400633 | S186: 81 | T186: 81 | U186: 0 | AB186: -0.4031596549 | AC186: 0.6170770033 | AD186: 0.9092902549 | AE186: 0.6845471059 | AF186: 0.1492044882 | AQ186: 144729900
A187: 155 | B187: =IF(A187>$A$8,"",OFFSET(InputPriceData!B$15,$A187+$A$11,0,1,1)) -> 2019-05-06 | C187: =IF(A187>$A$8,"",OFFSET(InputPriceData!G$15,CalculationsAndCharts!$A187+$A$11,IF($C$5,8,0),1,1)) -> 107198100 | D187: =IF(A187>$A$8,"",OFFSET(InputPriceData!C$15,CalculationsAndCharts!$A187+$A$11,IF($C$5,8,0),1,1)) -> 289.25 | E187: =IF(A187>$A$8,"",OFFSET(InputPriceData!D$15,CalculationsAndCharts!$A187+$A$11,IF($C$5,8,0),1,1)) -> 293.309998 | F187: =IF(A187>$A$8,"",OFFSET(InputPriceData!E$15,CalculationsAndCharts!$A187+$A$11,IF($C$5,8,0),1,1)) -> 288.899994 | G187: =IF(A187>$A$8,"",OFFSET(InputPriceData!F$15,CalculationsAndCharts!$A187+$A$11,IF($C$5,8,0),1,1)) -> 292.820007 | H187: 0.05612302527 | I187: 0.8616239443 | J187: 0.9407184348 | K187: 48.38052687 | L187: 0.9510565163 | M187: -0.3090169944 | N187: 0.8443279255 | O187: 0.8443279255 | P187: 0.3356970356 | Q187: 0.3356970356 | R187: -0.8943542169 | S187: 69.42630935 | T187: 69.42630935 | U187: 0 | AB187: 0.05612302527 | AC187: 0.8616239443 | AD187: 0.9407184348 | AE187: 0.8443279255 | AF187: 0.3356970356 | AP187: 107198100
A188: 156 | B188: =IF(A188>$A$8,"",OFFSET(InputPriceData!B$15,$A188+$A$11,0,1,1)) -> 2019-05-03 | C188: =IF(A188>$A$8,"",OFFSET(InputPriceData!G$15,CalculationsAndCharts!$A188+$A$11,IF($C$5,8,0),1,1)) -> 56543700 | D188: =IF(A188>$A$8,"",OFFSET(InputPriceData!C$15,CalculationsAndCharts!$A188+$A$11,IF($C$5,8,0),1,1)) -> 292.820007 | E188: =IF(A188>$A$8,"",OFFSET(InputPriceData!D$15,CalculationsAndCharts!$A188+$A$11,IF($C$5,8,0),1,1)) -> 294.339996 | F188: =IF(A188>$A$8,"",OFFSET(InputPriceData!E$15,CalculationsAndCharts!$A188+$A$11,IF($C$5,8,0),1,1)) -> 291.299988 | G188: =IF(A188>$A$8,"",OFFSET(InputPriceData!F$15,CalculationsAndCharts!$A188+$A$11,IF($C$5,8,0),1,1)) -> 294.029999 | H188: 0.3736382764 | I188: 0.8716211414 | J188: 0.9418532472 | K188: 48.69468613 | L188: 1 | M188: -3.675336945e-15 | N188: 0.9510565163 | O188: 0.9510565163 | P188: 0.5182142641 | Q188: 0.5182142641 | R188: -0.8079141903 | S188: 57.32297794 | T188: 57.32297794 | U188: 0 | AB188: 0.3736382764 | AC188: 0.8716211414 | AD188: 0.9418532472 | AE188: 0.9510565163 | AF188: 0.5182142641 | AP188: 56543700
A189: 157 | B189: =IF(A189>$A$8,"",OFFSET(InputPriceData!B$15,$A189+$A$11,0,1,1)) -> 2019-05-02 | C189: =IF(A189>$A$8,"",OFFSET(InputPriceData!G$15,CalculationsAndCharts!$A189+$A$11,IF($C$5,8,0),1,1)) -> 65030200 | D189: =IF(A189>$A$8,"",OFFSET(InputPriceData!C$15,CalculationsAndCharts!$A189+$A$11,IF($C$5,8,0),1,1)) -> 291.679993 | E189: =IF(A189>$A$8,"",OFFSET(InputPriceData!D$15,CalculationsAndCharts!$A189+$A$11,IF($C$5,8,0),1,1)) -> 292.700012 | F189: =IF(A189>$A$8,"",OFFSET(InputPriceData!E$15,CalculationsAndCharts!$A189+$A$11,IF($C$5,8,0),1,1)) -> 289.519989 | G189: =IF(A189>$A$8,"",OFFSET(InputPriceData!F$15,CalculationsAndCharts!$A189+$A$11,IF($C$5,8,0),1,1)) -> 291.179993 | H189: 0.4342290206 | I189: 0.8724195282 | J189: 0.9424779857 | K189: 49.0088454 | L189: 0.9510565163 | M189: 0.3090169944 | N189: 0.9980267284 | O189: 0.9980267284 | P189: 0.6939453673 | Q189: 0.6939453673 | R189: -0.6740434557 | S189: 44.16650262 | T189: 44.16650262 | U189: 0 | AB189: 0.4342290206 | AC189: 0.8724195282 | AD189: 0.9424779857 | AE189: 0.9980267284 | AF189: 0.6939453673 | AQ189: 65030200
A190: 158 | B190: =IF(A190>$A$8,"",OFFSET(InputPriceData!B$15,$A190+$A$11,0,1,1)) -> 2019-05-01 | C190: =IF(A190>$A$8,"",OFFSET(InputPriceData!G$15,CalculationsAndCharts!$A190+$A$11,IF($C$5,8,0),1,1)) -> 71671900 | D190: =IF(A190>$A$8,"",OFFSET(InputPriceData!C$15,CalculationsAndCharts!$A190+$A$11,IF($C$5,8,0),1,1)) -> 294.720001 | E190: =IF(A190>$A$8,"",OFFSET(InputPriceData!D$15,CalculationsAndCharts!$A190+$A$11,IF($C$5,8,0),1,1)) -> 294.950012 | F190: =IF(A190>$A$8,"",OFFSET(InputPriceData!E$15,CalculationsAndCharts!$A190+$A$11,IF($C$5,8,0),1,1)) -> 291.799988 | G190: =IF(A190>$A$8,"",OFFSET(InputPriceData!F$15,CalculationsAndCharts!$A190+$A$11,IF($C$5,8,0),1,1)) -> 291.809998 | H190: 0.7738651125 | I190: 0.9264589731 | J190: 0.9491690939 | K190: 49.32300466 | L190: 0.8090169944 | M190: 0.5877852523 | N190: 0.9822872507 | O190: 0.9822872507 | P190: 0.8505977083 | Q190: 0.8505977083 | R190: -0.4813914521 | S190: 29.50747086 | T190: 29.50747086 | U190: 0 | AB190: 0.7738651125 | AC190: 0.9264589731 | AD190: 0.9491690939 | AE190: 0.9822872507 | AF190: 0.8505977083 | AQ190: 71671900
A191: 159 | B191: =IF(A191>$A$8,"",OFFSET(InputPriceData!B$15,$A191+$A$11,0,1,1)) -> 2019-04-30 | C191: =IF(A191>$A$8,"",OFFSET(InputPriceData!G$15,CalculationsAndCharts!$A191+$A$11,IF($C$5,8,0),1,1)) -> 81111700 | D191: =IF(A191>$A$8,"",OFFSET(InputPriceData!C$15,CalculationsAndCharts!$A191+$A$11,IF($C$5,8,0),1,1)) -> 293.48999 | E191: =IF(A191>$A$8,"",OFFSET(InputPriceData!D$15,CalculationsAndCharts!$A191+$A$11,IF($C$5,8,0),1,1)) -> 294.339996 | F191: =IF(A191>$A$8,"",OFFSET(InputPriceData!E$15,CalculationsAndCharts!$A191+$A$11,IF($C$5,8,0),1,1)) -> 291.920013 | G191: =IF(A191>$A$8,"",OFFSET(InputPriceData!F$15,CalculationsAndCharts!$A191+$A$11,IF($C$5,8,0),1,1)) -> 294.019989 | H191: 0.926311472 | I191: 0.9552678203 | J191: 0.9485541809 | K191: 49.63716393 | L191: 0.5877852523 | M191: 0.8090169944 | N191: 0.9048270525 | O191: 0.9048270525 | P191: 0.9613788356 | Q191: 0.9613788356 | R191: -0.2248572087 | S191: 13.16428408 | T191: 13.16428408 | U191: 0 | AB191: 0.926311472 | AC191: 0.9552678203 | AD191: 0.9485541809 | AE191: 0.9048270525 | AF191: 0.9613788356 | AP191: 81111700
A192: 160 | B192: =IF(A192>$A$8,"",OFFSET(InputPriceData!B$15,$A192+$A$11,0,1,1)) -> 2019-04-29 | C192: =IF(A192>$A$8,"",OFFSET(InputPriceData!G$15,CalculationsAndCharts!$A192+$A$11,IF($C$5,8,0),1,1)) -> 57197700 | D192: =IF(A192>$A$8,"",OFFSET(InputPriceData!C$15,CalculationsAndCharts!$A192+$A$11,IF($C$5,8,0),1,1)) -> 293.51001 | E192: =IF(A192>$A$8,"",OFFSET(InputPriceData!D$15,CalculationsAndCharts!$A192+$A$11,IF($C$5,8,0),1,1)) -> 294.450012 | F192: =IF(A192>$A$8,"",OFFSET(InputPriceData!E$15,CalculationsAndCharts!$A192+$A$11,IF($C$5,8,0),1,1)) -> 293.410004 | G192: =IF(A192>$A$8,"",OFFSET(InputPriceData!F$15,CalculationsAndCharts!$A192+$A$11,IF($C$5,8,0),1,1)) -> 293.869995 | H192: 0.8999528917 | I192: 0.9546309945 | J192: 0.9412346887 | K192: 49.95132319 | L192: 0.3090169944 | M192: 0.9510565163 | N192: 0.7705132428 | O192: 0.7705132428 | P192: 0.9899341049 | Q192: 0.9899341049 | R192: 0.07773424042 | S192: -4.48991835 | T192: -4.48991835 | U192: 0 | AB192: 0.8999528917 | AC192: 0.9546309945 | AD192: 0.9412346887 | AE192: 0.7705132428 | AF192: 0.9899341049 | AP192: 57197700
A193: 161 | B193: =IF(A193>$A$8,"",OFFSET(InputPriceData!B$15,$A193+$A$11,0,1,1)) -> 2019-04-26 | C193: =IF(A193>$A$8,"",OFFSET(InputPriceData!G$15,CalculationsAndCharts!$A193+$A$11,IF($C$5,8,0),1,1)) -> 50916400 | D193: =IF(A193>$A$8,"",OFFSET(InputPriceData!C$15,CalculationsAndCharts!$A193+$A$11,IF($C$5,8,0),1,1)) -> 292.100006 | E193: =IF(A193>$A$8,"",OFFSET(InputPriceData!D$15,CalculationsAndCharts!$A193+$A$11,IF($C$5,8,0),1,1)) -> 293.48999 | F193: =IF(A193>$A$8,"",OFFSET(InputPriceData!E$15,CalculationsAndCharts!$A193+$A$11,IF($C$5,8,0),1,1)) -> 291.23999 | G193: =IF(A193>$A$8,"",OFFSET(InputPriceData!F$15,CalculationsAndCharts!$A193+$A$11,IF($C$5,8,0),1,1)) -> 293.410004 | H193: 0.8328025196 | I193: 0.9358201858 | J193: 0.9283140149 | K193: 50.26548246 | L193: 1.960237528e-15 | M193: 1 | N193: 0.5877852523 | O193: 0.5877852523 | P193: 0.9158731514 | Q193: 0.9158731514 | R193: 0.3784392315 | S193: -22.45043776 | T193: -22.45043776 | U193: 0 | AB193: 0.8328025196 | AC193: 0.9358201858 | AD193: 0.9283140149 | AE193: 0.5877852523 | AF193: 0.9158731514 | AP193: 50916400
A194: 162 | B194: =IF(A194>$A$8,"",OFFSET(InputPriceData!B$15,$A194+$A$11,0,1,1)) -> 2019-04-25 | C194: =IF(A194>$A$8,"",OFFSET(InputPriceData!G$15,CalculationsAndCharts!$A194+$A$11,IF($C$5,8,0),1,1)) -> 57770900 | D194: =IF(A194>$A$8,"",OFFSET(InputPriceData!C$15,CalculationsAndCharts!$A194+$A$11,IF($C$5,8,0),1,1)) -> 292.119995 | E194: =IF(A194>$A$8,"",OFFSET(InputPriceData!D$15,CalculationsAndCharts!$A194+$A$11,IF($C$5,8,0),1,1)) -> 292.779999 | F194: =IF(A194>$A$8,"",OFFSET(InputPriceData!E$15,CalculationsAndCharts!$A194+$A$11,IF($C$5,8,0),1,1)) -> 290.730011 | G194: =IF(A194>$A$8,"",OFFSET(InputPriceData!F$15,CalculationsAndCharts!$A194+$A$11,IF($C$5,8,0),1,1)) -> 292.049988 | H194: 0.8325987681 | I194: 0.9147459525 | J194: 0.9213374007 | K194: 50.57964172 | L194: -0.3090169944 | M194: 0.9510565163 | N194: 0.3681245527 | O194: 0.3681245527 | P194: 0.7577600105 | Q194: 0.7577600105 | R194: 0.625519641 | S194: -39.53916727 | T194: -39.53916727 | U194: 0 | AB194: 0.8325987681 | AC194: 0.9147459525 | AD194: 0.9213374007 | AE194: 0.3681245527 | AF194: 0.7577600105 | AQ194: 57770900
A195: 163 | B195: =IF(A195>$A$8,"",OFFSET(InputPriceData!B$15,$A195+$A$11,0,1,1)) -> 2019-04-24 | C195: =IF(A195>$A$8,"",OFFSET(InputPriceData!G$15,CalculationsAndCharts!$A195+$A$11,IF($C$5,8,0),1,1)) -> 50392900 | D195: =IF(A195>$A$8,"",OFFSET(InputPriceData!C$15,CalculationsAndCharts!$A195+$A$11,IF($C$5,8,0),1,1)) -> 292.790009 | E195: =IF(A195>$A$8,"",OFFSET(InputPriceData!D$15,CalculationsAndCharts!$A195+$A$11,IF($C$5,8,0),1,1)) -> 293.160004 | F195: =IF(A195>$A$8,"",OFFSET(InputPriceData!E$15,CalculationsAndCharts!$A195+$A$11,IF($C$5,8,0),1,1)) -> 292.070007 | G195: =IF(A195>$A$8,"",OFFSET(InputPriceData!F$15,CalculationsAndCharts!$A195+$A$11,IF($C$5,8,0),1,1)) -> 292.230011 | H195: 0.8482461834 | I195: 0.9119705611 | J195: 0.9118779799 | K195: 50.89380099 | L195: -0.5877852523 | M195: 0.8090169944 | N195: 0.1253332336 | O195: 0.1253332336 | P195: 0.5569916222 | Q195: 0.5569916222 | R195: 0.7968191743 | S195: -55.04572592 | T195: -55.04572592 | U195: 0 | AB195: 0.8482461834 | AC195: 0.9119705611 | AD195: 0.9118779799 | AE195: 0.1253332336 | AF195: 0.5569916222 | AQ195: 50392900
A196: 164 | B196: =IF(A196>$A$8,"",OFFSET(InputPriceData!B$15,$A196+$A$11,0,1,1)) -> 2019-04-23 | C196: =IF(A196>$A$8,"",OFFSET(InputPriceData!G$15,CalculationsAndCharts!$A196+$A$11,IF($C$5,8,0),1,1)) -> 52246600 | D196: =IF(A196>$A$8,"",OFFSET(InputPriceData!C$15,CalculationsAndCharts!$A196+$A$11,IF($C$5,8,0),1,1)) -> 290.679993 | E196: =IF(A196>$A$8,"",OFFSET(InputPriceData!D$15,CalculationsAndCharts!$A196+$A$11,IF($C$5,8,0),1,1)) -> 293.140015 | F196: =IF(A196>$A$8,"",OFFSET(InputPriceData!E$15,CalculationsAndCharts!$A196+$A$11,IF($C$5,8,0),1,1)) -> 290.420013 | G196: =IF(A196>$A$8,"",OFFSET(InputPriceData!F$15,CalculationsAndCharts!$A196+$A$11,IF($C$5,8,0),1,1)) -> 292.880005 | H196: 0.853868756 | I196: 0.9179524909 | J196: 0.8999911221 | K196: 51.20796025 | L196: -0.8090169944 | M196: 0.5877852523 | N196: -0.1253332336 | O196: -0.1253332336 | P196: 0.3466485339 | Q196: 0.3466485339 | R196: 0.8987221286 | S196: -68.90773985 | T196: -68.90773985 | U196: 0 | AB196: 0.853868756 | AC196: 0.9179524909 | AD196: 0.8999911221 | AE196: -0.1253332336 | AF196: 0.3466485339 | AP196: 52246600
A197: 165 | B197: =IF(A197>$A$8,"",OFFSET(InputPriceData!B$15,$A197+$A$11,0,1,1)) -> 2019-04-22 | C197: =IF(A197>$A$8,"",OFFSET(InputPriceData!G$15,CalculationsAndCharts!$A197+$A$11,IF($C$5,8,0),1,1)) -> 40160100 | D197: =IF(A197>$A$8,"",OFFSET(InputPriceData!C$15,CalculationsAndCharts!$A197+$A$11,IF($C$5,8,0),1,1)) -> 289.170013 | E197: =IF(A197>$A$8,"",OFFSET(InputPriceData!D$15,CalculationsAndCharts!$A197+$A$11,IF($C$5,8,0),1,1)) -> 290.440002 | F197: =IF(A197>$A$8,"",OFFSET(InputPriceData!E$15,CalculationsAndCharts!$A197+$A$11,IF($C$5,8,0),1,1)) -> 289.070007 | G197: =IF(A197>$A$8,"",OFFSET(InputPriceData!F$15,CalculationsAndCharts!$A197+$A$11,IF($C$5,8,0),1,1)) -> 290.269989 | H197: 0.7683549889 | I197: 0.9173632622 | J197: 0.8855893787 | K197: 51.52211952 | L197: -0.9510565163 | M197: 0.3090169944 | N197: -0.3681245527 | O197: -0.3681245527 | P197: 0.1419074621 | Q197: 0.1419074621 | R197: 0.9465905853 | S197: -81.47403682 | T197: -81.47403682 | U197: 0 | AB197: 0.7683549889 | AC197: 0.9173632622 | AD197: 0.8855893787 | AE197: -0.3681245527 | AF197: 0.1419074621 | AP197: 40160100
A198: 166 | B198: =IF(A198>$A$8,"",OFFSET(InputPriceData!B$15,$A198+$A$11,0,1,1)) -> 2019-04-18 | C198: =IF(A198>$A$8,"",OFFSET(InputPriceData!G$15,CalculationsAndCharts!$A198+$A$11,IF($C$5,8,0),1,1)) -> 68708500 | D198: =IF(A198>$A$8,"",OFFSET(InputPriceData!C$15,CalculationsAndCharts!$A198+$A$11,IF($C$5,8,0),1,1)) -> 290.100006 | E198: =IF(A198>$A$8,"",OFFSET(InputPriceData!D$15,CalculationsAndCharts!$A198+$A$11,IF($C$5,8,0),1,1)) -> 290.320007 | F198: =IF(A198>$A$8,"",OFFSET(InputPriceData!E$15,CalculationsAndCharts!$A198+$A$11,IF($C$5,8,0),1,1)) -> 288.660004 | G198: =IF(A198>$A$8,"",OFFSET(InputPriceData!F$15,CalculationsAndCharts!$A198+$A$11,IF($C$5,8,0),1,1)) -> 290.019989 | H198: 0.7139008691 | I198: 0.932294824 | J198: 0.873025716 | K198: 51.83627878 | L198: -1 | M198: 2.451381112e-16 | N198: -0.5877852523 | O198: -0.5877852523 | P198: -0.05403043772 | Q198: -0.05403043772 | R198: 0.952625196 | S198: -93.24619058 | T198: -93.24619058 | U198: 0 | AB198: 0.7139008691 | AC198: 0.932294824 | AD198: 0.873025716 | AE198: -0.5877852523 | AF198: -0.05403043772 | AQ198: 68708500
A199: 167 | B199: =IF(A199>$A$8,"",OFFSET(InputPriceData!B$15,$A199+$A$11,0,1,1)) -> 2019-04-17 | C199: =IF(A199>$A$8,"",OFFSET(InputPriceData!G$15,CalculationsAndCharts!$A199+$A$11,IF($C$5,8,0),1,1)) -> 58268300 | D199: =IF(A199>$A$8,"",OFFSET(InputPriceData!C$15,CalculationsAndCharts!$A199+$A$11,IF($C$5,8,0),1,1)) -> 291.399994 | E199: =IF(A199>$A$8,"",OFFSET(InputPriceData!D$15,CalculationsAndCharts!$A199+$A$11,IF($C$5,8,0),1,1)) -> 291.429993 | F199: =IF(A199>$A$8,"",OFFSET(InputPriceData!E$15,CalculationsAndCharts!$A199+$A$11,IF($C$5,8,0),1,1)) -> 288.98999 | G199: =IF(A199>$A$8,"",OFFSET(InputPriceData!F$15,CalculationsAndCharts!$A199+$A$11,IF($C$5,8,0),1,1)) -> 289.450012 | H199: 0.7624860819 | I199: 0.886812939 | J199: 0.8671037821 | K199: 52.15043805 | L199: -0.9510565163 | M199: -0.3090169944 | N199: -0.7705132428 | O199: -0.7705132428 | P199: -0.242991375 | Q199: -0.242991375 | R199: 0.9226967237 | S199: -104.7538094 | T199: -104.7538094 | U199: 0 | AB199: 0.7624860819 | AC199: 0.886812939 | AD199: 0.8671037821 | AE199: -0.7705132428 | AF199: -0.242991375 | AQ199: 58268300
A200: 168 | B200: =IF(A200>$A$8,"",OFFSET(InputPriceData!B$15,$A200+$A$11,0,1,1)) -> 2019-04-16 | C200: =IF(A200>$A$8,"",OFFSET(InputPriceData!G$15,CalculationsAndCharts!$A200+$A$11,IF($C$5,8,0),1,1)) -> 52153200 | D200: =IF(A200>$A$8,"",OFFSET(InputPriceData!C$15,CalculationsAndCharts!$A200+$A$11,IF($C$5,8,0),1,1)) -> 290.950012 | E200: =IF(A200>$A$8,"",OFFSET(InputPriceData!D$15,CalculationsAndCharts!$A200+$A$11,IF($C$5,8,0),1,1)) -> 291.01001 | F200: =IF(A200>$A$8,"",OFFSET(InputPriceData!E$15,CalculationsAndCharts!$A200+$A$11,IF($C$5,8,0),1,1)) -> 289.5 | G200: =IF(A200>$A$8,"",OFFSET(InputPriceData!F$15,CalculationsAndCharts!$A200+$A$11,IF($C$5,8,0),1,1)) -> 290.160004 | H200: 0.8477040913 | I200: 0.8861073258 | J200: 0.8556185167 | K200: 52.46459731 | L200: -0.8090169944 | M200: -0.5877852523 | N200: -0.9048270525 | O200: -0.9048270525 | P200: -0.4274745941 | Q200: -0.4274745941 | R200: 0.856409327 | S200: -116.5259632 | T200: -116.5259632 | U200: 0 | AB200: 0.8477040913 | AC200: 0.8861073258 | AD200: 0.8556185167 | AE200: -0.9048270525 | AF200: -0.4274745941 | AQ200: 52153200
A201: 169 | B201: =IF(A201>$A$8,"",OFFSET(InputPriceData!B$15,$A201+$A$11,0,1,1)) -> 2019-04-15 | C201: =IF(A201>$A$8,"",OFFSET(InputPriceData!G$15,CalculationsAndCharts!$A201+$A$11,IF($C$5,8,0),1,1)) -> 49596700 | D201: =IF(A201>$A$8,"",OFFSET(InputPriceData!C$15,CalculationsAndCharts!$A201+$A$11,IF($C$5,8,0),1,1)) -> 290.23999 | E201: =IF(A201>$A$8,"",OFFSET(InputPriceData!D$15,CalculationsAndCharts!$A201+$A$11,IF($C$5,8,0),1,1)) -> 290.350006 | F201: =IF(A201>$A$8,"",OFFSET(InputPriceData!E$15,CalculationsAndCharts!$A201+$A$11,IF($C$5,8,0),1,1)) -> 289.079987 | G201: =IF(A201>$A$8,"",OFFSET(InputPriceData!F$15,CalculationsAndCharts!$A201+$A$11,IF($C$5,8,0),1,1)) -> 289.970001 | H201: 0.8600550159 | I201: 0.8594235515 | J201: 0.8443094203 | K201: 52.77875658 | L201: -0.5877852523 | M201: -0.8090169944 | N201: -0.9822872507 | O201: -0.9822872507 | P201: -0.607402758 | Q201: -0.607402758 | R201: 0.7476152487 | S201: -129.0922601 | T201: -129.0922601 | U201: 0 | AB201: 0.8600550159 | AC201: 0.8594235515 | AD201: 0.8443094203 | AE201: -0.9822872507 | AF201: -0.607402758 | AQ201: 49596700
A202: 170 | B202: =IF(A202>$A$8,"",OFFSET(InputPriceData!B$15,$A202+$A$11,0,1,1)) -> 2019-04-12 | C202: =IF(A202>$A$8,"",OFFSET(InputPriceData!G$15,CalculationsAndCharts!$A202+$A$11,IF($C$5,8,0),1,1)) -> 69727800 | D202: =IF(A202>$A$8,"",OFFSET(InputPriceData!C$15,CalculationsAndCharts!$A202+$A$11,IF($C$5,8,0),1,1)) -> 290 | E202: =IF(A202>$A$8,"",OFFSET(InputPriceData!D$15,CalculationsAndCharts!$A202+$A$11,IF($C$5,8,0),1,1)) -> 290.470001 | F202: =IF(A202>$A$8,"",OFFSET(InputPriceData!E$15,CalculationsAndCharts!$A202+$A$11,IF($C$5,8,0),1,1)) -> 288.26001 | G202: =IF(A202>$A$8,"",OFFSET(InputPriceData!F$15,CalculationsAndCharts!$A202+$A$11,IF($C$5,8,0),1,1)) -> 290.160004 | H202: 0.8588809525 | I202: 0.8253622264 | J202: 0.8340750365 | K202: =RADIANS(360/$A$21*(A202-1)) -> 53.09291585 | L202: -0.3090169944 | M202: -0.9510565163 | N202: -0.9980267284 | O202: -0.9980267284 | P202: -0.7759611781 | Q202: -0.7759611781 | R202: 0.585700191 | S202: -142.9542741 | T202: -142.9542741 | U202: 0 | AB202: 0.8588809525 | AC202: 0.8253622264 | AD202: 0.8340750365 | AE202: -0.9980267284 | AF202: -0.7759611781 | AP202: 69727800
... 1080 more rows

Sheet Follow
A1: Stocks and Indexes I wish to follow
A3: To ease following a stock, enter a Yahoo Finance acceptable symbol in column "A" anywhere below cell "A9".
A4: Thereafter you may doubleclick the cell containing a symbol of interest to initiate data retrieval and charting for that symbol.
A7: Symbol
A8: To | B8: Description | C8: Last Trade as of most recent check
A9: Follow | C9: Date | D9: Time | E9: Open | F9: High | G9: Low | H9: Close | I9: Volume | J9: Change | K9: Retrieved @
A10: A | B10: Agilent Technologies, Inc. (A) -NYSE (Daily) | C10: 2020-03-09 | D10: 16:04:00 | E10: 72.589996 | F10: 74.190002 | G10: 70.169998 | H10: 70.75 | I10: 4591093 | J10: -7.809998 | K10: 2020-03-09T16:59:21
A11: AA | B11: Alcoa Corporation (AA) -NYSE (Daily) | C11: 2020-01-31 | D11: 16:04:00 | E11: 14.01 | F11: 14.24 | G11: 13.62 | H11: 13.95 | I11: 9931500 | J11: -0.34 | K11: 2020-02-02T15:07:13
A12: AAL | B12: American Airlines Group Inc. (AAL) -NasdaqGS (Daily) | C12: 2020-03-09 | D12: 16:00:00 | E12: 14.87 | F12: 15.79 | G12: 14.46 | H12: 14.75 | I12: 41078614 | J12: -1.22 | K12: 2020-03-09T17:00:15
A13: AAPL | B13: Apple Inc. (AAPL) -NasdaqGS (Daily) | C13: 2020-03-13 | D13: 11:43:00 | E13: 264.890015 | F13: 265.540009 | G13: 253.460007 | H13: 255.244995 | I13: 37261902 | J13: 7.014999 | K13: 2020-03-13T11:43:16
A14: ADM | B14: Archer-Daniels-Midland Company (ADM) -NYSE (Weekly) | C14: 2018-07-13 | D14: 16:00:00 | E14: 47.5 | F14: 47.84 | G14: 47.169998 | H14: 47.57 | I14: 2402809 | J14: 0
A15: ADBE | B15: Adobe Inc. (ADBE) -NasdaqGS (Daily) | C15: 2020-03-13 | D15: 11:55:00 | E15: 312.880005 | F15: 322.540009 | G15: 298.01001 | H15: 302.244995 | I15: 3498916 | J15: 17.244995 | K15: 2020-03-13T11:55:37
A16: ALGN | B16: Align Technology, Inc. (ALGN) -NasdaqGS (Daily) | C16: 2020-01-30 | D16: 16:00:00 | E16: 248.740005 | F16: 264.450012 | G16: 248.350006 | H16: 262.890015 | I16: 1833160 | J16: 1.290009
A17: AMC | B17: AMC Entertainment Holdings, Inc. (AMC) -NYSE (Weekly) | C17: 2018-07-13 | D17: 16:02:00 | E17: 17.049999 | F17: 17.15 | G17: 16.525 | H17: 17.049999 | I17: 1442776 | J17: 0
A18: BSX | B18: Boston Scientific Corporation C (BSX) -NYQ (Daily) | C18: 2015-03-13 | D18: 16:01:00 | E18: 16.84 | F18: 16.91 | G18: 16.44 | H18: 16.61 | I18: 7262460 | J18: -0.28
A19: CASY | B19: Casey's General Stores, Inc. (CASY) -NasdaqGS (Daily) | C19: 2019-04-10 | D19: 16:00:00 | E19: 128.979996 | F19: 130.330002 | G19: 128.779999 | H19: 130.179993 | I19: 351300 | J19: 1.489991
A20: CAT | B20: Caterpillar Inc. (CAT) -NYSE (Daily) | C20: 2020-03-13 | D20: 11:48:00 | E20: 98.389999 | F20: 99.910004 | G20: 90.150101 | H20: 90.269997 | I20: 3568294 | J20: -1.990005 | K20: 2020-03-13T11:48:53
A21: CSCO | B21: Cisco Systems, In (CSCO) -NasdaqNM (Daily) | C21: 2015-02-19 | D21: 16:00:00 | E21: 29.32 | F21: 29.39 | G21: 29.13 | H21: 29.31 | I21: 21469012 | J21: -0.18
A22: CVS | B22: CVS Health Corporation (CVS) -NYSE (Daily) | C22: 2020-03-09 | D22: 16:07:00 | E22: 59.75 | F22: 63 | G22: 59.599998 | H22: 61.299999 | I22: 13065424 | J22: -2.850003 | K22: 2020-03-09T17:51:54
A23: DIS | B23: The Walt Disney Company (DIS) -NYSE (Daily) | C23: 2020-03-09 | D23: 16:07:00 | E23: 108.690002 | F23: 110.43 | G23: 104.279999 | H23: 104.349998 | I23: 26101127 | J23: -10.919999 | K23: 2020-03-09T16:59:51
A24: F | B24: Ford Motor Company (F) -NYSE (Daily) | C24: 2020-01-31 | D24: 16:03:00 | E24: 8.78 | F24: 8.84 | G24: 8.74 | H24: 8.82 | I24: 59781000 | J24: -0.02 | K24: 2020-02-02T15:09:03
A25: FAS | B25: Direxion Daily Financial Bull 3X ETF (FAS) -NYSEArca (Daily) | C25: 2017-10-13 | D25: 16:00:00 | E25: 58.099998 | F25: 58.939999 | G25: 57.43 | H25: 58.450001 | I25: 1709300 | J25: 0.07
A26: FB | B26: Facebook, Inc. (FB) -NasdaqGS (Daily) | C26: 2020-02-14 | D26: 16:00:00 | E26: 214 | F26: 214.929993 | G26: 212.649994 | H26: 214.179993 | I26: 10727400 | J26: 1.039994 | K26: 2020-02-15T17:19:34
A27: GSK | B27: GlaxoSmithKline plc (GSK) -NYSE (Daily) | C27: 2019-08-14 | D27: 11:15:00 | E27: 40.060001 | F27: 40.209999 | G27: 39.895 | H27: 39.93 | I27: 941699 | J27: -0.310002
A28: GDX | B28: VanEck Vectors Gold Miners ETF (GDX) -NYSEArca (Daily) | C28: 2020-01-31 | D28: 16:00:00 | E28: 28.799999 | F28: 29.24 | G28: 28.76 | H28: 28.99 | I28: 41946000 | J28: 0.26 | K28: 2020-02-02T15:11:17
A29: GOOG | B29: Alphabet Inc. (GOOG) -NasdaqGS (Daily) | C29: 2020-02-14 | D29: 16:00:00 | E29: 1515.599976 | F29: 1520.73999 | G29: 1507.339966 | H29: 1520.73999 | I29: 1196700 | J29: 6.079956 | K29: 2020-02-15T17:20:39
A30: HD | B30: The Home Depot, Inc. (HD) -NYSE (Daily) | C30: 2020-03-13 | D30: 11:54:00 | E30: 200.449997 | F30: 201.179993 | G30: 192.270096 | H30: 193.449997 | I30: 3274582 | J30: 2.860001 | K30: 2020-03-13T11:54:29
A31: HSY | B31: The Hershey Company (HSY) -NYSE (Daily) | C31: 2019-04-10 | D31: 16:02:00 | E31: 116.099998 | F31: 116.43 | G31: 115.75 | H31: 116.309998 | I31: 574600 | J31: 0.290001
A32: HTLD | B32: Heartland Express, Inc. (HTLD) -NasdaqGS (Daily) | C32: 2020-03-09 | D32: 16:00:00 | E32: 17.33 | F32: 17.690001 | G32: 16.82 | H32: 16.879999 | I32: 284762 | J32: -1.280001 | K32: 2020-03-09T17:00:56
A33: IBM | B33: International Business Machines Corporation (IBM) -NYSE (Daily) | C33: 2019-08-14 | D33: 11:24:00 | E33: 133.910004 | F33: 134.160004 | G33: 132.130005 | H33: 132.460098 | I33: 1281528 | J33: -1.659897
A34: INTC | B34: Intel Corporation (INTC) -NasdaqGS (Daily) | C34: 2020-02-14 | D34: 16:00:00 | E34: 67.519997 | F34: 67.860001 | G34: 66.82 | H34: 67.269997 | I34: 13402800 | J34: -0.170005 | K34: 2020-02-15T17:21:41
A35: JAH | B35: Jarden Corporation Common Stock (JAH) -NYQ (Daily) | C35: 2016-01-08 | D35: 16:02:00 | E35: 53.82 | F35: 53.88 | G35: 52.65 | H35: 52.73 | I35: 4519480 | J35: -0.81
A36: JNJ | B36: Johnson & Johnson (JNJ) -NYSE (Daily) | C36: 2019-08-14 | D36: 10:33:00 | E36: 132.529999 | F36: 132.539993 | G36: 131.419998 | H36: 131.759995 | I36: 870520 | J36: -0.169998
A37: KO | B37: The Coca-Cola Company (KO) -NYSE (Daily) | C37: 2020-03-09 | D37: 16:07:00 | E37: 52.049999 | F37: 53.580002 | G37: 51.474998 | H37: 51.860001 | I37: 27771279 | J37: -3.399997 | K37: 2020-03-09T17:05:43
A38: LOW | B38: Lowe's Companies, Inc. (LOW) -NYSE (Daily) | C38: 2020-03-09 | D38: 16:03:00 | E38: 97.82 | F38: 99.82 | G38: 93.150101 | H38: 94.220001 | I38: 8167579 | J38: -11.089997 | K38: 2020-03-09T16:57:19
A39: LMT | B39: Lockheed Martin Corporation (LMT) -NYSE (Daily) | C39: 2020-03-09 | D39: 16:06:00 | E39: 359.980011 | F39: 369.470001 | G39: 351.269989 | H39: 352.029999 | I39: 3067426 | J39: -30.440002 | K39: 2020-03-09T17:06:13
A40: MCD | B40: McDonald's Corporation (MCD) -NYSE (Daily) | C40: 2020-03-09 | D40: 16:01:00 | E40: 187.669998 | F40: 194.470001 | G40: 184.100006 | H40: 186.860001 | I40: 7601343 | J40: -12 | K40: 2020-03-09T16:58:16
A41: MDT | B41: Medtronic plc (MDT) -NYSE (Daily) | C41: 2020-03-09 | D41: 16:07:00 | E41: 94.019997 | F41: 95.470001 | G41: 91.709999 | H41: 92.400002 | I41: 9000931 | J41: -6.659996 | K41: 2020-03-09T17:48:45
A42: MGM | B42: MGM Resorts International (MGM) -NYSE (Daily) | C42: 2020-03-09 | D42: 16:02:00 | E42: 18.6 | F42: 19.58 | G42: 17.530001 | H42: 17.879999 | I42: 26050818 | J42: -2.51 | K42: 2020-03-09T17:13:53
A43: MO | B43: Altria Group, Inc. (MO) -NYSE (Daily) | C43: 2020-01-31 | D43: 16:05:00 | E43: 48.25 | F43: 48.799999 | G43: 47.240002 | H43: 47.529999 | I43: 11790800 | J43: -0.470001 | K43: 2020-02-02T15:20:55
A44: MSFT | B44: Microsoft Corporation (MSFT) -NasdaqGS (Daily) | C44: 2020-03-09 | D44: 16:00:00 | E44: 151 | F44: 157.75 | G44: 150 | H44: 150.619995 | I44: 69167627 | J44: -10.950012 | K44: 2020-03-09T17:06:41
A45: NFLX | B45: Netflix, Inc. (NFLX) -NasdaqGS (Daily) | C45: 2020-03-09 | D45: 16:00:00 | E45: 343.859985 | F45: 357.470001 | G45: 341.720886 | H45: 346.48999 | I45: 6746188 | J45: -22.480011 | K45: 2020-03-09T17:23:37
A46: NUGT | B46: Direxion Daily Gold Miners Index Bull 3X Shares (NUGT) -NYSEArca (Daily) | C46: 2020-01-31 | D46: 16:00:00 | E46: 32.439999 | F46: 33.830002 | G46: 32.240002 | H46: 33.02 | I46: 11325200 | J46: 0.84 | K46: 2020-02-02T15:21:51
A47: NVS | B47: Novartis AG (NVS) -NYSE (Daily) | C47: 2020-03-06 | D47: 16:02:00 | E47: 84.330002 | F47: 85.830002 | G47: 83.970001 | H47: 85.720001 | I47: 5624700 | J47: -0.089997 | K47: 2020-03-08T16:56:35
A48: NVDA | B48: NVIDIA Corporation (NVDA) -NasdaqGS (Daily) | C48: 2020-03-13 | D48: 12:00:00 | E48: 230.5 | F48: 236.190002 | G48: 219.610001 | H48: 223.460007 | I48: 6772686 | J48: 7.150009 | K48: 2020-03-13T12:00:30
A49: PRU | B49: Prudential Financial, Inc. (PRU) -NYSE (Daily) | C49: 2020-03-09 | D49: 16:02:00 | E49: 63.75 | F49: 65.830002 | G49: 57.375 | H49: 58.240002 | I49: 7614493 | J49: -11.569996 | K49: 2020-03-09T17:11:43
A50: PSEC | B50: Prospect Capital Corporation (PSEC) -NasdaqGS (Daily) | C50: 2020-02-14 | D50: 16:00:00 | E50: 6.53 | F50: 6.56 | G50: 6.51 | H50: 6.52 | I50: 1235500 | J50: -0.04 | K50: 2020-02-15T14:43:16
A51: RPM | B51: RPM International Inc. (RPM) -NYSE (Daily) | C51: 2020-03-09 | D51: 16:02:00 | E51: 64.470001 | F51: 66.730003 | G51: 63.5 | H51: 65.290001 | I51: 1115882 | J51: -2.919998 | K51: 2020-03-09T17:10:08
A52: RSP | B52: Invesco S&P 500 Equal Weight ETF (RSP) -NYSEArca (Daily) | C52: 2020-01-31 | D52: 16:00:00 | E52: 115.279999 | F52: 115.32 | G52: 113.230003 | H52: 113.540001 | I52: 747600 | J52: -2.309997 | K52: 2020-02-02T15:28:52
A53: SPR | B53: Spirit AeroSystems Holdings, Inc. (SPR) -NYSE (Daily) | C53: 2020-03-09 | D53: 16:06:00 | E53: 43.700001 | F53: 43.880001 | G53: 41.5 | H53: 42.139999 | I53: 2091368 | J53: -5.23 | K53: 2020-03-09T17:09:37
A54: SWKS | B54: Skyworks Solutions, Inc. (SWKS) -NasdaqGS (Daily) | C54: 2020-01-31 | D54: 16:00:00 | E54: 115.5 | F54: 115.739998 | G54: 112.720001 | H54: 113.150002 | I54: 2444600 | J54: -3.080001 | K54: 2020-02-02T15:26:46
A55: TOL | B55: Toll Brothers, Inc. (TOL) -NYSE (Daily) | C55: 2020-03-09 | D55: 16:07:00 | E55: 34.759998 | F55: 35.314999 | G55: 32.060001 | H55: 34.110001 | I55: 3127968 | J55: -2.86 | K55: 2020-03-09T17:12:09
A56: TSLA | B56: Tesla, Inc. (TSLA) -NasdaqGS (Daily) | C56: 2020-03-13 | D56: 12:08:00 | E56: 595 | F56: 607.570007 | G56: 502.01001 | H56: 510 | I56: 12224537 | J56: -50.549988 | K56: 2020-03-13T12:08:39
A57: UNP | B57: Union Pacific Corporation (UNP) -NYSE (Daily) | C57: 2020-03-09 | D57: 16:07:00 | E57: 145.199997 | F57: 145.580002 | G57: 133.179993 | H57: 135.839996 | I57: 9380024 | J57: -20.25 | K57: 2020-03-09T17:11:21
A58: VZ | B58: Verizon Communications Inc. (VZ) -NYSE (Daily) | C58: 2019-04-10 | D58: 16:00:00 | E58: 58.400002 | F58: 58.700001 | G58: 58.360001 | H58: 58.610001 | I58: 8022000 | J58: 0.209999
A59: WBA | B59: Walgreens Boots Alliance, Inc. (WBA) -NasdaqGS (Daily) | C59: 2020-01-31 | D59: 16:00:00 | E59: 51.709999 | F59: 51.919998 | G59: 50.66 | H59: 50.849998 | I59: 6532300 | J59: -1.100003 | K59: 2020-02-02T15:28:06
A60: WMT | B60: Walmart Inc. (WMT) -NYSE (Daily) | C60: 2020-03-09 | D60: 16:01:00 | E60: 113.82 | F60: 120.629997 | G60: 112.730003 | H60: 117.160004 | I60: 19567750 | J60: -0.069999 | K60: 2020-03-09T17:10:39
A62: ^AEX | B62: AEX-INDEX (^AEX) -Amsterdam (Daily) | C62: 2020-03-09 | D62: 18:05:00 | E62: 506.950012 | F62: 506.950012 | G62: 485.730011 | H62: 490.660004 | I62: 0 | J62: -40.629974 | K62: 2020-03-09T17:41:58
A63: ^AORD | B63: ALL ORDINARIES (^AORD) -ASX (Daily) | C63: 2020-03-09 | D63: 16:17:00 | E63: 6472.399902 | F63: 6287.299805 | G63: 5822.399902 | H63: 5822.399902 | I63: 0 | J63: -465.100098 | K63: 2020-03-09T17:45:59
A64: ^DJI | B64: Dow Jones Industrial Average (^DJI) -DJI (Daily) | C64: 2020-03-09 | D64: 16:59:00 | E64: 24992.35938 | F64: 24992.35938 | G64: 23706.07031 | H64: 23851.01953 | I64: 750431083 | J64: -2013.759766 | K64: 2020-03-09T17:37:29
A65: ^FTSE | B65: FTSE 100 (^FTSE) -FTSE Index (Daily) | C65: 2020-03-09 | D65: 16:45:00 | E65: 6462.549805 | F65: 6462.549805 | G65: 5891.560059 | H65: 5965.77002 | I65: 0 | J65: -496.830078 | K65: 2020-03-09T17:43:57
A66: ^GSPC | B66: S&P 500 (^GSPC) -SNP (Daily) | C66: 2019-09-13 | D66: 16:56:00 | E66: 3012.209961 | F66: 3017.330078 | G66: 3002.899902 | H66: 3007.389893 | I66: 3520060000 | J66: -2.180175
A67: ^HSI | B67: HANG SENG INDEX (^HSI) -HKSE (Daily) | C67: 2020-03-09 | D67: 16:08:00 | E67: 25134.01953 | F67: 25321.2793 | G67: 24948.38086 | H67: 25040.46094 | I67: 0 | J67: -1106.208984 | K67: 2020-03-09T17:39:06
A68: ^MID | B68: S&P MID CAP 400 INDEX (^MID) -NYSE (Daily) | C68: 2020-02-14 | D68: 16:06:00 | E68: 2099.459961 | F68: 2100.51001 | G68: 2089.610107 | H68: 2096.610107 | I68: 0 | J68: -0.679932 | K68: 2020-02-14T21:04:41
A69: ^NDX | B69: NASDAQ 100 (^NDX) -Nasdaq GIDS (Daily) | C69: 2020-02-14 | D69: 16:51:00 | E69: 9613.881836 | F69: 9634.750977 | G69: 9583.083008 | H69: 9623.580078 | I69: 469910279 | J69: 27.879883 | K69: 2020-02-14T16:52:02
A70: ^NYA | B70: NYSE COMPOSITE (DJ) (^NYA) -NYSE (Daily) | C70: 2020-03-13 | D70: 13:53:00 | E70: 10445.44043 | F70: 10642.39844 | G70: 10060.35352 | H70: 10464.54883 | I70: 0 | J70: 403.789062 | K70: 2020-03-13T14:08:31
A71: ^OEX | B71: S&P 100 INDEX (^OEX) -Chicago Options (Daily) | C71: 2019-09-13 | D71: 16:56:00 | E71: 1332.27002 | F71: 1334.420044 | G71: 1328.73999 | H71: 1330.969971 | I71: 3520060000 | J71: -1.010009
A72: ^RUT | B72: Russell 2000 (^RUT) -Chicago Options (Daily) | C72: 2019-09-13 | D72: 16:30:00 | E72: 1579.22998 | F72: 1589.449951 | G72: 1577.109985 | H72: 1578.140015 | I72: 35200600 | J72: 3.070069
A73: ^SSEC | B73: SSE Composite Index (^SSEC) -Shanghai (Daily) | C73: 2020-03-09 | D73: 15:00:00 | E73: 3039.939453 | F73: 2989.205078 | G73: 2940.713867 | H73: 2943.290771 | I73: 2801367936 | J73: -388.231202 | K73: 2020-03-09T17:38:09
A74: ^VIX | B74: CBOE Volatility Index (^VIX) -Chicago Options (Daily) | C74: 2020-03-09 | D74: 16:14:00 | E74: 41.939999 | F74: 62.119999 | G74: 41.939999 | H74: 54.459999 | I74: 0 | J74: 12.52 | K74: 2020-03-09T17:38:36
A75: IWM | B75: iShares Russell 2000 ETF (IWM) -NYSEArca (Daily) | C75: 2018-04-13 | D75: 16:00:00 | E75: 155.289993 | F75: 155.330002 | G75: 153.509995 | H75: 153.949997 | I75: 19710100 | J75: -0.809998
A76: QQQ | B76: Invesco QQQ Trust (QQQ) -NasdaqGM (Daily) | C76: 2019-08-12 | D76: 16:00:00 | E76: 185.339996 | F76: 185.889999 | G76: 183.5 | H76: 184.350006 | I76: 23162601 | J76: -2.139999
A77: SPY | B77: SPDR S&P 500 ETF Trust (SPY) -NYSEArca (Daily) | C77: 2020-04-13 | D77: 15:43:00 | E77: 277.140015 | F77: 277.420013 | G77: 271.410004 | H77: 275.670013 | I77: 96957829 | J77: -2.529999 | K77: 2020-04-13T15:43:46
A79: ACAD | B79: ACADIA Pharmaceut (ACAD) -NasdaqNM (Daily) | C79: 2014-07-21 | D79: 16:00:00 | E79: 20.13 | F79: 20.55 | G79: 19.8101 | H79: 20.31 | I79: 691016
A80: CLDX | B80: Celldex Therapeut (CLDX) -NasdaqNM (Daily) | C80: 2015-02-02 | D80: 16:00:00 | E80: 21.47 | F80: 21.69 | G80: 20.11 | H80: 21.02 | I80: 1570418 | J80: -0.4
A81: ICPT | B81: Intercept Pharmac (ICPT) -NasdaqNM (Daily) | C81: 2014-07-21 | D81: 16:00:00 | E81: 215.97 | F81: 218.43 | G81: 213.05 | H81: 218.14 | I81: 191276
A82: INO | B82: Inovio Pharmaceut (INO) -AMEX (Daily) | C82: 2014-07-21 | D82: 16:00:00 | E82: 10.3 | F82: 11.08 | G82: 10.1 | H82: 11.01 | I82: 1800796
A83: JCP | B83: J. C. Penney Company, Inc. (JCP) -NYSE (Daily) | C83: 2017-12-07 | D83: 16:01:00 | E83: 3.34 | F83: 3.4 | G83: 3.25 | H83: 3.27 | I83: 14485464 | J83: -0.07
A84: LCI | B84: Lannett Co Inc Co (LCI) -NYSE (Daily) | C84: 2014-07-21 | D84: 16:02:00 | E84: 38.09 | F84: 38.803 | G84: 36.5101 | H84: 37.76 | I84: 611367
A85: NPSP | B85: NPS Pharmaceutica (NPSP) -NasdaqNM (Daily) | C85: 2014-07-21 | D85: 15:59:00 | E85: 28.75 | F85: 29.43 | G85: 28.31 | H85: 29.29 | I85: 1126758
A86: PBYI | B86: Puma Biotechnolog (PBYI) -NYSE (Daily) | C86: 2014-07-21 | D86: 16:02:00 | E86: 58.27 | F86: 59.46 | G86: 57.39 | H86: 58.98 | I86: 348030
